Workbook

Sheet Disclaimer
A6: Important Disclaimer

Sheet Summary
A1: 1 | B1: Project | D1: =+G7 -> Settlement A Heat map | J1: District heating project compared to baseline
A2: =+A1+1 -> 2 | B2: Cost benefit model | E2: Capacity | F2: Energy | G2: Currency | H2: start year | J2: Project | K2: Baseline
A3: =+A2+1 -> 3 | D3: kW | E3: MW | F3: MWh | G3: £ | H3: 2015 | J3: DH | K3: Heat pumps | L3: Oil boilers | M3: Gas boilers
A4: 4 | B4: Maximal heat demand in the project area | I4: =$F$3&"/a" -> MWh/a | J4: =+Project!$E22 -> 0 | K4: =+Baseline!$E21 -> 0 | L4: =+Baseline!$E39 -> 0 | M4: =+Baseline!$E57 -> 0
A5: 5 | B5: Heat connected end year | E5: Growth p.a. | F5: -0.005 | G5: 1 GHP, | H5: 0 excluded | N5: Scenarios to be copied to be selected
A6: 6 | G6: 2 oil, 3 gas | H6: 1 included
A7: 7 | C7: Districts from Heat Map of Scotland | G7: Settlement A Heat map | N7: Settlement B | P7: Settlement A Heat map | T7: Settlement A districts
A8: 8 | B8: 1 | C8: =+Project!C96 -> [Settlement B] 1 | G8: 3 | H8: 0 | I8: =$F$3&"/a" -> MWh/a | J8: =+Project!$AC96 -> 0 | K8: =+Baseline!AC6 -> 0 | L8: =+Baseline!AC24 -> 0 | M8: =+Baseline!AC42 -> 0 | N8: 2 | O8: 1 | P8: 3 | Q8: 0 | T8: 3 | U8: 0
A9: 9 | B9: 2 | C9: =+Project!C97 -> [Settlement B] 2 | G9: 3 | H9: 0 | I9: MWh/a | J9: =+Project!$AC97 -> 0 | K9: =+Baseline!AC7 -> 0 | L9: =+Baseline!AC25 -> 0 | M9: =+Baseline!AC43 -> 0 | N9: 2 | O9: 1 | P9: 3 | Q9: 0 | T9: 3 | U9: 0
A10: 10 | B10: 3 | C10: =+Project!C98 -> [Settlement B] 3 | G10: 3 | H10: 0 | I10: MWh/a | J10: =+Project!$AC98 -> 0 | K10: =+Baseline!AC8 -> 0 | L10: =+Baseline!AC26 -> 0 | M10: =+Baseline!AC44 -> 0 | N10: 2 | O10: 1 | P10: 3 | Q10: 0 | T10: 3 | U10: 0
A11: 11 | B11: 4 | C11: =+Project!C99 -> [Settlement B] 4 | G11: 3 | H11: 0 | I11: MWh/a | J11: =+Project!$AC99 -> 0 | K11: =+Baseline!AC9 -> 0 | L11: =+Baseline!AC27 -> 0 | M11: =+Baseline!AC45 -> 0 | N11: 2 | O11: 1 | P11: 3 | Q11: 0 | T11: 3 | U11: 0
A12: 12 | B12: 5 | C12: =+Project!C100 -> [Settlement B] 5 | G12: 3 | H12: 0 | I12: MWh/a | J12: =+Project!$AC100 -> 0 | K12: =+Baseline!AC10 -> 0 | L12: =+Baseline!AC28 -> 0 | M12: =+Baseline!AC46 -> 0 | N12: 2 | O12: 0 | P12: 3 | Q12: 0 | T12: 3 | U12: 0
A13: 13 | B13: 6 | C13: =+Project!C101 -> [Settlement B] 6 | G13: 3 | H13: 0 | I13: MWh/a | J13: =+Project!$AC101 -> 0 | K13: =+Baseline!AC11 -> 0 | L13: =+Baseline!AC29 -> 0 | M13: =+Baseline!AC47 -> 0 | N13: 2 | O13: 1 | P13: 3 | Q13: 0 | T13: 3 | U13: 0
A14: 14 | B14: 7 | C14: =+Project!C102 -> [Settlement B] 7 | G14: 3 | H14: 0 | I14: MWh/a | J14: =+Project!$AC102 -> 0 | K14: =+Baseline!AC12 -> 0 | L14: =+Baseline!AC30 -> 0 | M14: =+Baseline!AC48 -> 0 | N14: 2 | O14: 1 | P14: 3 | Q14: 0 | T14: 3 | U14: 0
A15: 15 | B15: 8 | C15: =+Project!C103 -> [Settlement B] 8 | G15: 3 | H15: 0 | I15: MWh/a | J15: =+Project!$AC103 -> 0 | K15: =+Baseline!AC13 -> 0 | L15: =+Baseline!AC31 -> 0 | M15: =+Baseline!AC49 -> 0 | N15: 2 | O15: 1 | P15: 3 | Q15: 0 | T15: 3 | U15: 0
A16: 16 | B16: 9 | C16: =+Project!C104 -> [Settlement A] Master | G16: 3 | H16: 0 | I16: MWh/a | J16: =+Project!$AC104 -> 0 | K16: =+Baseline!AC14 -> 0 | L16: =+Baseline!AC32 -> 0 | M16: =+Baseline!AC50 -> 0 | N16: 2 | O16: 0 | P16: 3 | Q16: 0 | T16: 3 | U16: 1
A17: 17 | B17: 10 | C17: =+Project!C105 -> [Settlement A] 2 | G17: 3 | H17: 0 | I17: MWh/a | J17: =+Project!$AC105 -> 0 | K17: =+Baseline!AC15 -> 0 | L17: =+Baseline!AC33 -> 0 | M17: =+Baseline!AC51 -> 0 | N17: 2 | O17: 0 | P17: 3 | Q17: 0 | T17: 3 | U17: 1
A18: 18 | B18: 11 | C18: =+Project!C106 -> [Settlement A] 3 | G18: 3 | H18: 0 | I18: MWh/a | J18: =+Project!$AC106 -> 0 | K18: =+Baseline!AC16 -> 0 | L18: =+Baseline!AC34 -> 0 | M18: =+Baseline!AC52 -> 0 | N18: 3 | O18: 0 | P18: 3 | Q18: 0 | T18: 3 | U18: 1
A19: 19 | B19: 12 | C19: =+Project!C107 -> [Settlement A] 4 | G19: 3 | H19: 0 | I19: MWh/a | J19: =+Project!AC107 -> 0 | K19: =+Baseline!AC17 -> 0 | L19: =+Baseline!AC35 -> 0 | M19: =+Baseline!AC53 -> 0 | N19: 3 | O19: 0 | P19: 3 | Q19: 0 | T19: 3 | U19: 1
A20: 20 | B20: 13 | C20: =+Project!C108 -> [Settlement A] 5 | G20: 3 | H20: 0 | I20: MWh/a | J20: =+Project!AC108 -> 0 | K20: =+Baseline!AC18 -> 0 | L20: =+Baseline!AC36 -> 0 | M20: =+Baseline!AC54 -> 0 | N20: 3 | O20: 0 | P20: 3 | Q20: 0 | T20: 3 | U20: 1
A21: 21 | B21: 14 | C21: =+Project!C109 -> [Settlement A] 6 | G21: 3 | H21: 0 | I21: MWh/a | J21: =+Project!AC109 -> 0 | K21: =+Baseline!AC19 -> 0 | L21: =+Baseline!AC37 -> 0 | M21: =+Baseline!AC55 -> 0 | N21: 3 | O21: 0 | P21: 3 | Q21: 0 | T21: 3 | U21: 1
A22: 22 | B22: 15 | C22: =+Project!C110 -> [Settlement A] 7 | G22: 3 | H22: 1 | I22: MWh/a | J22: =+Project!AC110 -> 0 | K22: =+Baseline!AC20 -> 0 | L22: =+Baseline!AC38 -> 0 | M22: =+Baseline!AC56 -> 0 | N22: 3 | O22: 0 | P22: 3 | Q22: 1 | T22: 3 | U22: 0
A23: 23 | B23: Heat demand to DH end-year | I23: MWh/a | J23: =+Project!$AC111 -> 0 | K23: =+Baseline!AC21 -> 0 | L23: =+Baseline!AC39 -> 0 | M23: =+Baseline!AC57 -> 0
A24: 24 | B24: Heat losses end-year | I24: MWh/a | J24: =+Project!$AC151 ->  | K24: =+J24/J25 -> 
A25: 25 | B25: District heating production end-year | I25: MWh/a | J25: =+Project!$AC157 ->  | K25: 1
A26: 26
A27: 27 | B27: Heat production | D27: Name of plant | F27: Ownership | G27: MW | H27: % | J27: =+I28 -> MWh/a | K27: Max load h | L27: Max. Hours | N27: MW | O27: % | P27: MW | Q27: % | T27: MW | U27: %
A28: 28 | B28: Capacity and | D28: Supplier, large CHP | F28: External | G28: 0 | H28: 0 | I28: MWh/a | J28: =+Project!$AC181 ->  | K28: =+Project!F190 -> 0 | L28: 8760 | N28: 0 | O28: 0 | P28: 0 | Q28: 0 | T28: 0 | U28: 0
A29: 29 | B29: heat production | D29: Supplier, Surplus heat | F29: External | G29: 1 | H29: 0.08 | I29: MWh/a | J29: =+Project!$AC182 ->  | K29: =+Project!F191 ->  | L29: 8760 | N29: 0 | O29: 0 | P29: 1 | Q29: 0.08 | T29: 1 | U29: 0.08
A30: 30 | B30: divided on | D30: Gas CHP | F30: Internal | G30: 20 | H30: 0.8 | I30: MWh/a | J30: =+Project!$AC183 ->  | K30: =+Project!F192 ->  | L30: 8760 | N30: 0 | O30: 0 | P30: 20 | Q30: 0.8 | T30: 20 | U30: 0.8
A31: 31 | B31: plants end-year | D31: Biomass boiler | F31: Internal | G31: 0 | H31: 0 | I31: MWh/a | J31: =+Project!$AC184 ->  | K31: =+Project!F193 -> 0 | L31: 8760 | N31: 1 | O31: 0.45 | P31: 0 | Q31: 0 | T31: 0 | U31: 0
A32: 32 | D32: Large heat pump | F32: Internal | G32: 1 | H32: 0.07 | I32: MWh/a | J32: =+Project!$AC185 ->  | K32: =+Project!F194 ->  | L32: 8760 | N32: 1 | O32: 0.45 | P32: 1 | Q32: 0.07 | T32: 1 | U32: 0.07
A33: 33 | D33: Peak boiler | F33: Internal | G33: =+Project!E168 ->  | H33: =+Project!AC178 -> 0.05 | I33: MWh/a | J33: =+Project!$AC186 ->  | K33: =+Project!F195 ->  | L33: 8760
A34: 34 | B34: Load to netw. | D34: Max load hours 2021 | F34: 3000 | G34: =SUM(G28:G33) ->  | H34: =SUM(H28:H33) -> 1 | I34: MW | J34: =+Project!O160 ->  | K34: Security min | L34: 1.2
A35: 35
A36: 36 | B36: District heating tariff | G36: Variable | H36: Fixed | J36: Fixed | N36: Variable | O36: Fixed | P36: Variable | Q36: Fixed | T36: Variable | U36: Fixed
A37: 37 | B37: Annual heat meter fee | F37: Fixed | H37: 100 | I37: =+G3&"/no" -> £/no | O37: 100 | Q37: 100 | U37: 100
A38: 38 | B38: Interval for fixed tariff | F38: Var/fixed | G38: 24 | H38: 18 | I38: =+G$3&"/"&F$3 -> £/MWh | N38: 60 | O38: 20 | P38: 24 | Q38: 18 | T38: 24 | U38: 18
A39: 39 | C39: =+B216 -> Fixed fee 0-250 MWh | F39: Reduction | H39: 1 | I39: =+G$3&"/"&F$3 -> £/MWh | J39: =+J216 -> 18 | O39: 1 | Q39: 1 | U39: 1
A40: 40 | C40: =+B217 -> Fixed fee 250-2500 MWh | H40: 0.8 | I40: £/MWh | J40: =+J217 -> 14.4 | O40: 0.8 | Q40: 0.8 | U40: 0.8
A41: 41 | C41: =+B218 -> Fixed fee 2500-25000 MWh | H41: 0.7 | I41: £/MWh | J41: =+J218 -> 12.6 | O41: 0.6 | Q41: 0.7 | U41: 0.7
A42: 42 | C42: =+B219 -> Fixed fee 25000-250000 MWh | H42: 0.4 | I42: =+G$3&"/"&F$3 -> £/MWh | J42: =+J219 -> 7.2 | O42: 0.4 | Q42: 0.4 | U42: 0.4
A43: 43
A44: 44 | B44: Investments in project
A45: 45 | B45: =+Project!$B281 -> Total investment in network | I45: ="NPV k"&$G$3 -> NPV k£ | J45: =+Project!$F281 -> 
A46: 46 | B46: =+Project!$B283 -> Residual value network | I46: ="NPV k"&$G$3 -> NPV k£ | J46: =+Project!$F283 -> 
A47: 47 | B47: =+Project!$B208 -> No contribution to residual value | F47: from production plants | I47: NPV k£ | J47: =+Project!$F208 -> 
A48: 48 | B48: =+Project!$B209 -> Investment cost in production | I48: NPV k£ | J48: =+Project!$F209 -> 
A49: 49 | B49: =+Project!$B312 -> Investments in DH substations | I49: NPV k£ | J49: =+Project!$F312 -> 
A50: 50 | B50: =+Project!$B314 -> Residual value of DH substations | H50: Max. 10% | I50: NPV k£ | J50: =+Project!$F314 -> 
A51: 51 | B51: Total investments in the city in the project period, incl. Residual | I51: NPV k£ | J51: =+SUM(J45:J50) -> 
A52: 52 | B52: Total investments in the city in the project period, without resicual value | I52: NPV k£ | J52: =+J51-J46 -> 
A53: 53 | B53: Priority figure: NPV of total investments including residual per heat sale | I53: =$G$3&"/"&$F$3 -> £/MWh | J53: =+J51*1000/J23 -> 
A54: 54
A55: 55 | B55: Summary of results | J55: Project
A56: 56 | B56: =+Project!B475 -> Total benefit for all stakeholders
A57: 57 | B57: =+Project!B476 -> Supplier, large CHP | I57: ="NPV k"&$G$3 -> NPV k£ | J57: =+Project!$F476 -> 
A58: 58 | B58: =+Project!B477 -> Supplier, Surplus heat | I58: ="NPV k"&$G$3 -> NPV k£ | J58: =+Project!$F477 -> 
A59: 59 | B59: =+Project!B478 -> District heating company, cash flow, revenues and costs | I59: NPV k£ | J59: =+Project!$F478 -> 
A60: 60 | B60: =+Project!B479 -> Consumers | I60: NPV k£ | J60: =+Project!$F479 -> 
A61: 61 | B61: =+Project!B480 -> Total local community | I61: NPV k£ | J61: =+Project!$F480 -> 
A62: 62 | B62: IRR for the district heating company compared to the baseline | I62: % | J62: =+Project!$F455 -> 
A63: 63 | B63: IRR for the local community compared to baseline | I63: % | J63: =+Project!$F481 -> 
A64: 64 | B64: Compared to a new individuel supply, consumers save in average first year | I64: % | J64: =+Consumers!CX25 -> 
A65: 65 | B65: Accumulated profit for DH company end-year | I65: ="k"&$G$3&Project!AC1 -> k£2035 | J65: =+Project!$AC560 -> 
A66: 66 | B66: =+Project!B354 -> Economic pay-back time | I66: years | J66: =+Project!F354 -> 
A67: 67 | B67: =+Project!B561 -> Financial pay-back time of cash credit | I67: years | J67: =+Project!F561 -> 
A68: =+A67+1 -> 68 | B68: =+Project!B566 -> Financial pay-back time of all debt | I68: years | J68: =+Project!F566 -> 
A69: 69 | B69: Total CO2 emission district heating | H69: 20 years | I69: Tonn | J69: =+Project!D593 -> 
A70: 70 | B70: Total CO2 emission baseline | H70: 20 years | I70: Tonn | J70: =+Project!D594 -> 0
A71: 71 | B71: Saved CO2 emission district heating compared to baseline | H71: 20 years | I71: Tonn | J71: =+Project!D595 -> 
A72: 72 | B72: Heat tariff incentive in project | I72: ="NPV k"&$G$3 -> NPV k£ | J72: =+Project!F227 -> 
A73: 73 | B73: Heat tariff incentive in baseline | I73: NPV k£ | J73: =+Baseline!F148 -> 0
A74: 74
A75: 75 | B75: Financial parameters
A76: 76 | B76: Discount rate | I76: % | J76: 0.03
A77: 77 | B77: Inflation | I77: % | J77: 0.02
A78: 78 | B78: Nominal interest rate, long-term loan | I78: % | J78: 0.05
A79: 79 | B79: Nominal interest rate, short-term credit negative | I79: % | J79: 0.06
A80: 80 | B80: Nominal interest rate, short-term credit positive | I80: % | J80: 0.04
A81: 81 | B81: Depreciation of district heating investments | I81: Years | J81: 20
A82: 82 | B82: Amortisation of consumer investments in district heating installations | I82: % | J82: 0.074
A83: 83 | B83: Amortisation of consumer investments in individual solutions | I83: % | J83: 0.09
A84: 84
A85: 85 | B85: Total NPV of all costs for all stakeholders in the local community | I85: NPV | J85: =+J$3 -> DH
A86: 86 | B86: =+Project!B358 -> Supplier, large CHP
A87: 87 | C87: =+Project!B363 -> Revenues for sale of heat | I87: =+$I$57 -> NPV k£ | J87: =+Project!$F363 -> 
A88: 88 | C88: =+Project!B364 -> Investmens | I88: =+$I$57 -> NPV k£ | J88: =+Project!$F364 -> 0
A89: 89 | C89: =+Project!B365 -> Energy costs | I89: NPV k£ | J89: =+Project!$F365 -> 
A90: 90 | C90: =+Project!B366 -> O&M costs | I90: NPV k£ | J90: =+Project!$F366 -> 0
A91: 91 | C91: =+Project!B367 -> Net cash flow | I91: NPV k£ | J91: =+Project!$F367 -> 
A92: 92
A93: 93 | B93: =+Project!B371 -> Supplier, Surplus heat
A94: 94 | C94: =+Project!B376 -> Revenues for sale of heat | I94: =+$I$57 -> NPV k£ | J94: =+Project!$F376 -> 
A95: 95 | C95: =+Project!B377 -> Investments | I95: NPV k£ | J95: =+Project!$F377 -> -97.08737864
A96: 96 | C96: =+Project!B378 -> Energy costs | I96: NPV k£ | J96: =+Project!$F378 -> 
A97: 97 | C97: =+Project!B379 -> O&M costs | I97: NPV k£ | J97: =+Project!$F379 -> -14.87747486
A98: 98 | C98: =+Project!B380 -> Net cash flow | I98: NPV k£ | J98: =+Project!$F380 -> 
A99: 99
A100: 100 | B100: =+Project!B384 -> District heating company, cash flow, revenues and costs
A101: 101 | C101: =+Project!B413 -> Connection fee | I101: =+$I$57 -> NPV k£ | J101: =+Project!$F413 -> 
A102: 102
A103: 103 | C103: =+Project!B415 -> Revenues for sale of heat | I103: =+$I$57 -> NPV k£ | J103: =+Project!$F415 -> 0
A104: 104
A105: 105 | C105: =+Project!B424 -> Purchase of heat and capacity | F105: =+Project!D424 -> Supplier, large CHP | I105: =+$I$57 -> NPV k£ | J105: =+Project!$F424 -> 
A106: 106 | C106: =+Project!B425 -> Purchase of heat and capacity | F106: =+Project!D425 -> Supplier, Surplus heat | I106: NPV k£ | J106: =+Project!$F425 -> 
A107: 107 | C107: =+Project!B426 -> Energy cost of production | F107: =+Project!D426 -> Gas CHP | I107: NPV k£ | J107: =+Project!$F426 -> 
A108: 108 | C108: =+Project!B427 -> Energy cost of production | F108: =+Project!D427 -> Biomass boiler | I108: NPV k£ | J108: =+Project!$F427 -> 
A109: 109 | C109: =+Project!B428 -> Energy cost of production | F109: =+Project!D428 -> Large heat pump | I109: NPV k£ | J109: =+Project!$F428 -> 
A110: 110 | C110: =+Project!B429 -> Energy cost of production | F110: =+Project!D429 -> Peak boiler | I110: NPV k£ | J110: =+Project!$F429 -> 
A111: 111 | C111: =+Project!B430 -> Purchase of energy | I111: NPV k£ | J111: =+Project!$F430 -> 
A112: 112
A113: 113 | C113: =+Project!B432 -> Investment in production | F113: =+Project!D432 -> Gas CHP | I113: NPV k£ | J113: =+Project!$F432 -> -11650.48544
A114: 114 | C114: =+Project!B433 -> Investment in production | F114: =+Project!D433 -> Biomass boiler | I114: NPV k£ | J114: =+Project!$F433 -> 0
A115: 115 | C115: =+Project!B434 -> Investment in production | F115: =+Project!D434 -> Large heat pump | I115: NPV k£ | J115: =+Project!$F434 -> -485.4368932
A116: 116 | C116: =+Project!B435 -> Investment in production | F116: =+Project!D435 -> Peak boiler | I116: NPV k£ | J116: =+Project!$F435 -> 
A117: 117 | C117: =+Project!B436 -> Investment in network | F117: =+Project!D436 -> Total | I117: NPV k£ | J117: =+Project!$F436 -> 
A118: 118 | C118: =+Project!B437 -> Investment in network residual value | F118: =+Project!D437 -> residual | I118: NPV k£ | J118: =+Project!$F437 -> 
A119: 119 | C119: =+Project!B438 -> Total investment | I119: NPV k£ | J119: =+Project!$F438 -> 
A120: 120
A121: 121 | C121: =+Project!B441 -> O&M costs | F121: =+Project!D441 -> Gas CHP | I121: NPV k£ | J121: =+Project!$F441 -> -1487.747486
A122: 122 | C122: =+Project!B442 -> O&M costs | F122: =+Project!D442 -> Biomass boiler | I122: NPV k£ | J122: =+Project!$F442 -> 0
A123: 123 | C123: =+Project!B443 -> O&M costs | F123: =+Project!D443 -> Large heat pump | I123: NPV k£ | J123: =+Project!$F443 -> -29.75494972
A124: 124 | C124: =+Project!B444 -> O&M costs | F124: =+Project!D444 -> Peak boiler | I124: NPV k£ | J124: =+Project!$F444 -> 
A125: 125 | C125: =+Project!B445 -> O&M costs | F125: =+Project!D445 -> Network | I125: NPV k£ | J125: =+Project!$F445 -> 
A126: 126 | C126: =+Project!B446 -> Total O&M costs | I126: NPV k£ | J126: =+Project!$F446 -> 
A127: 127
A128: 128 | C128: =+Project!B448 -> Connection fee | I128: NPV k£ | J128: =+Project!F448 -> 
A129: 129 | C129: =+Project!B449 -> Revenues for sale of heat | I129: NPV k£ | J129: =+Project!F449 -> 0
A130: 130 | C130: =+Project!B451 -> Purchase of energy | I130: NPV k£ | J130: =+Project!F451 -> 
A131: 131 | C131: =+Project!B452 -> Total investment | I131: NPV k£ | J131: =+Project!F452 -> 
A132: 132 | C132: =+Project!B453 -> Total O&M costs | I132: NPV k£ | J132: =+Project!F453 -> 
A133: 133 | C133: =+Project!B454 -> Net cash flow of district heating | I133: NPV k£ | J133: =+Project!F454 -> 
A134: 134 | C134: =+Project!B455 -> Internal rate of return | I134: % | J134: =+Project!F455 -> 
A135: 135
A136: =+A135+1 -> 136 | B136: =+Project!B461 -> Consumers
A137: 137 | C137: =+Project!B467 -> Connection fee | F137: =+Project!D467 -> District heating | I137: =+$I$57 -> NPV k£ | J137: =+Project!F467 -> 
A138: 138 | C138: =+Project!B468 -> Purchase of district heating | F138: =+Project!D468 -> District heating | I138: NPV k£ | J138: =+Project!F468 -> 0
A139: 139 | C139: =+Project!B469 -> Investment and O&M of substations | F139: =+Project!D469 -> District heating | I139: NPV k£ | J139: =+Project!F469 -> 
A140: 140 | C140: =+Project!B470 -> Investments | F140: =+Project!D470 -> Base line | I140: NPV k£ | J140: =+Project!F470 -> 
A141: 141 | C141: =+Project!B471 -> Energy | F141: =+Project!D471 -> Base line | I141: NPV k£ | J141: =+Project!F471 -> 0
A142: 142 | C142: =+Project!B472 -> O&M costs | F142: =+Project!D472 -> Base line | I142: NPV k£ | J142: =+Project!F472 -> 381.0089131
A143: 143 | C143: =+Project!B473 -> Total benefit for consumers | I143: NPV k£ | J143: =+Project!$F473 -> 
A144: 144
A145: 145 | B145: =+Project!B475 -> Total benefit for all stakeholders
A146: 146 | C146: =+Project!B476 -> Supplier, large CHP | I146: =+$I$57 -> NPV k£ | J146: =+Project!$F476 -> 
A147: 147 | C147: =+Project!B477 -> Supplier, Surplus heat | I147: NPV k£ | J147: =+Project!$F477 -> 
A148: 148 | C148: =+Project!B478 -> District heating company, cash flow, revenues and costs | I148: NPV k£ | J148: =+Project!$F478 -> 
A149: 149 | C149: =+Project!B479 -> Consumers | I149: NPV k£ | J149: =+Project!$F479 -> 
A150: 150 | C150: =+Project!B480 -> Total local community | I150: NPV k£ | J150: =+Project!$F480 -> 
A151: 151
A152: 152 | J152: =+J$3 -> DH
A153: 153 | B153: Individual solar heating end-year
A154: 154 | B154: =+B171 -> 1 | D154: =+C8 -> [Settlement B] 1 | I154: MWh | J154: =+Project!#REF! -> 
A155: 155 | B155: =+B172 -> 2 | D155: [Settlement B] 2 | I155: MWh | J155: =+Project!#REF! -> 
A156: 156 | B156: 3 | D156: [Settlement B] 3 | I156: MWh | J156: =+Project!#REF! -> 
A157: 157 | B157: 4 | D157: [Settlement B] 4 | I157: MWh | J157: =+Project!#REF! -> 
A158: 158 | B158: 5 | D158: [Settlement B] 5 | I158: MWh | J158: =+Project!#REF! -> 
A159: 159 | B159: 6 | D159: [Settlement B] 6 | I159: MWh | J159: =+Project!#REF! -> 
A160: 160 | B160: 7 | D160: [Settlement B] 7 | I160: MWh | J160: =+Project!#REF! -> 
A161: 161 | B161: 8 | D161: [Settlement B] 8 | I161: MWh | J161: =+Project!#REF! -> 
A162: 162 | B162: 9 | D162: [Settlement A] Master | I162: MWh | J162: =+Project!#REF! -> 
A163: 163 | B163: 10 | D163: [Settlement A] 2 | I163: MWh | J163: =+Project!#REF! -> 
A164: 164 | B164: 11 | D164: [Settlement A] 3 | I164: MWh | J164: =+Project!#REF! -> 
A165: 165 | B165: 12 | D165: [Settlement A] 4 | I165: MWh | J165: =+Project!#REF! -> 
A166: 166 | B166: 13 | D166: [Settlement A] 5 | I166: MWh | J166: =+Project!#REF! -> 
A167: 167 | B167: 14 | D167: [Settlement A] 6 | I167: MWh | J167: =+Project!#REF! -> 
A168: 168 | B168: 15 | D168: [Settlement A] 7 | I168: MWh | J168: =+Project!#REF! -> 
A169: 169 | B169: Individual solar heating end-year | I169: MWh | J169: =SUM(J154:J168) -> 
A170: 170 | B170: Individual heat pumps end-year
A171: 171 | B171: =B8 -> 1 | D171: =C8 -> [Settlement B] 1 | I171: MWh | J171: =+Project!#REF! -> 
A172: 172 | B172: 2 | D172: [Settlement B] 2 | I172: MWh | J172: =+Project!#REF! -> 
A173: 173 | B173: 3 | D173: [Settlement B] 3 | I173: MWh | J173: =+Project!#REF! -> 
A174: 174 | B174: 4 | D174: [Settlement B] 4 | I174: MWh | J174: =+Project!#REF! -> 
A175: 175 | B175: 5 | D175: [Settlement B] 5 | I175: MWh | J175: =+Project!#REF! -> 
A176: 176 | B176: 6 | D176: [Settlement B] 6 | I176: MWh | J176: =+Project!#REF! -> 
A177: 177 | B177: 7 | D177: [Settlement B] 7 | I177: MWh | J177: =+Project!#REF! -> 
A178: 178 | B178: 8 | D178: [Settlement B] 8 | I178: MWh | J178: =+Project!#REF! -> 
A179: 179 | B179: 9 | D179: [Settlement A] Master | I179: MWh | J179: =+Project!#REF! -> 
A180: 180 | B180: 10 | D180: [Settlement A] 2 | I180: MWh | J180: =+Project!#REF! -> 
A181: 181 | B181: 11 | D181: [Settlement A] 3 | I181: MWh | J181: =+Project!#REF! -> 
A182: 182 | B182: 12 | D182: [Settlement A] 4 | I182: MWh | J182: =+Project!#REF! -> 
A183: 183 | B183: 13 | D183: [Settlement A] 5 | I183: MWh | J183: =+Project!#REF! -> 
A184: 184 | B184: 14 | D184: [Settlement A] 6 | I184: MWh | J184: =+Project!#REF! -> 
A185: 185 | B185: 15 | D185: [Settlement A] 7 | I185: MWh | J185: =+Project!#REF! -> 
A186: 186 | B186: Individual heat pumps end-year | I186: MWh | J186: =SUM(J171:J185) -> 
A187: 187 | B187: Individual gas boilers end-year
A188: 188 | B188: =+B171 -> 1 | D188: =+C8 -> [Settlement B] 1 | I188: MWh | J188: =+Project!#REF! -> 
A189: 189 | B189: =+B172 -> 2 | D189: [Settlement B] 2 | I189: MWh | J189: =+Project!#REF! -> 
A190: 190 | B190: 3 | D190: [Settlement B] 3 | I190: MWh | J190: =+Project!#REF! -> 
A191: 191 | B191: 4 | D191: [Settlement B] 4 | I191: MWh | J191: =+Project!#REF! -> 
A192: 192 | B192: 5 | D192: [Settlement B] 5 | I192: MWh | J192: =+Project!#REF! -> 
A193: 193 | B193: 6 | D193: [Settlement B] 6 | I193: MWh | J193: =+Project!#REF! -> 
A194: 194 | B194: 7 | D194: [Settlement B] 7 | I194: MWh | J194: =+Project!#REF! -> 
A195: 195 | B195: 8 | D195: [Settlement B] 8 | I195: MWh | J195: =+Project!#REF! -> 
A196: 196 | B196: 9 | D196: [Settlement A] Master | I196: MWh | J196: =+Project!#REF! -> 
A197: 197 | B197: 10 | D197: [Settlement A] 2 | I197: MWh | J197: =+Project!#REF! -> 
A198: 198 | B198: 11 | D198: [Settlement A] 3 | I198: MWh | J198: =+Project!#REF! -> 
A199: 199 | B199: 12 | D199: [Settlement A] 4 | I199: MWh | J199: =+Project!#REF! -> 
A200: =+A199+1 -> 200 | B200: 13 | D200: [Settlement A] 5 | I200: MWh | J200: =+Project!#REF! -> 
... 224 more rows

Sheet Project
A1: 1 | B1: Project | G1: Unit | I1: =+Summary!H3 -> 2015 | J1: =+I1+1 -> 2016 | K1: 2017 | L1: =+K1+1 -> 2018 | M1: =+L1+1 -> 2019 | N1: =+M1+1 -> 2020 | O1: 2021 | P1: 2022 | Q1: 2023 | R1: 2024 | S1: 2025 | T1: 2026 | U1: 2027 | V1: 2028 | W1: 2029 | X1: 2030 | Y1: =+X1+1 -> 2031 | Z1: =+Y1+1 -> 2032 | AA1: =+Z1+1 -> 2033 | AB1: =+AA1+1 -> 2034 | AC1: =+AB1+1 -> 2035
A2: =+A1+1 -> 2 | B2: All costs excluding VAT | I2: Base year | J2: Project operation in economic analysis
A3: =+A2+1 -> 3 | B3: Heat demand
A4: 4 | B4: Development of heat demand per year | E4: =+Summary!F5 -> -0.005 | G4: % | I4: =100% -> 1 | J4: =+I4*(1+$E4) -> 0.995 | K4: =+J4*(1+$E4) -> 0.990025 | L4: 0.985074875 | M4: 0.9801495006 | N4: 0.9752487531 | O4: 0.9703725094 | P4: 0.9655206468 | Q4: 0.9606930436 | R4: 0.9558895784 | S4: 0.9511101305 | T4: 0.9463545798 | U4: 0.9416228069 | V4: 0.9369146929 | W4: 0.9322301194 | X4: 0.9275689688 | Y4: 0.922931124 | Z4: 0.9183164684 | AA4: 0.913724886 | AB4: 0.9091562616 | AC4: 0.9046104803
A5: 5
A6: 6 | B6: Potential heat maket for DH | E6: =Summary!$F$3&"/a" -> MWh/a
A7: 7 | B7: =+Summary!B8 -> 1 | C7: =+Consumers!B9 -> [Settlement B] 1 | D7: =+Summary!$H8 -> 0 | E7: =Consumers!O9 -> 0 | G7: =Summary!$F$3&"/a" -> MWh/a | I7: =+$E7*I$4*$D7 -> 0 | J7: =+$E7*J$4*$D7 -> 0 | K7: 0 | L7: 0 | M7: 0 | N7: 0 | O7: 0 | P7: 0 | Q7: 0 | R7: 0 | S7: 0 | T7: 0 | U7: 0 | V7: 0 | W7: 0 | X7: 0 | Y7: 0 | Z7: =+$E7*Z$4*$D7 -> 0 | AA7: 0 | AB7: 0 | AC7: 0
A8: 8 | B8: =+Summary!B9 -> 2 | C8: =+Consumers!B10 -> [Settlement B] 2 | D8: =+Summary!$H9 -> 0 | E8: =Consumers!O10 -> 0 | G8: =Summary!$F$3&"/a" -> MWh/a | I8: =+$E8*I$4*$D8 -> 0 | J8: 0 | K8: 0 | L8: 0 | M8: 0 | N8: 0 | O8: 0 | P8: 0 | Q8: 0 | R8: 0 | S8: 0 | T8: 0 | U8: 0 | V8: 0 | W8: 0 | X8: 0 | Y8: 0 | Z8: 0 | AA8: 0 | AB8: 0 | AC8: 0
A9: 9 | B9: =+Summary!B10 -> 3 | C9: =+Consumers!B11 -> [Settlement B] 3 | D9: =+Summary!$H10 -> 0 | E9: =Consumers!O11 -> 0 | G9: =Summary!$F$3&"/a" -> MWh/a | I9: 0 | J9: 0 | K9: 0 | L9: 0 | M9: 0 | N9: 0 | O9: 0 | P9: 0 | Q9: 0 | R9: 0 | S9: 0 | T9: 0 | U9: 0 | V9: 0 | W9: 0 | X9: 0 | Y9: 0 | Z9: 0 | AA9: 0 | AB9: 0 | AC9: 0
A10: 10 | B10: =+Summary!B11 -> 4 | C10: =+Consumers!B12 -> [Settlement B] 4 | D10: =+Summary!$H11 -> 0 | E10: =Consumers!O12 -> 0 | G10: =Summary!$F$3&"/a" -> MWh/a | I10: 0 | J10: 0 | K10: 0 | L10: 0 | M10: 0 | N10: 0 | O10: 0 | P10: 0 | Q10: 0 | R10: 0 | S10: 0 | T10: 0 | U10: 0 | V10: 0 | W10: 0 | X10: 0 | Y10: 0 | Z10: 0 | AA10: 0 | AB10: 0 | AC10: 0
A11: 11 | B11: =+Summary!B12 -> 5 | C11: =+Consumers!B13 -> [Settlement B] 5 | D11: =+Summary!$H12 -> 0 | E11: =Consumers!O13 -> 0 | G11: =Summary!$F$3&"/a" -> MWh/a | I11: 0 | J11: 0 | K11: 0 | L11: 0 | M11: 0 | N11: 0 | O11: 0 | P11: 0 | Q11: 0 | R11: 0 | S11: 0 | T11: 0 | U11: 0 | V11: 0 | W11: 0 | X11: 0 | Y11: 0 | Z11: 0 | AA11: 0 | AB11: 0 | AC11: 0
A12: 12 | B12: =+Summary!B13 -> 6 | C12: =+Consumers!B14 -> [Settlement B] 6 | D12: =+Summary!$H13 -> 0 | E12: =Consumers!O14 -> 0 | G12: =Summary!$F$3&"/a" -> MWh/a | I12: 0 | J12: 0 | K12: 0 | L12: 0 | M12: 0 | N12: 0 | O12: 0 | P12: 0 | Q12: 0 | R12: 0 | S12: 0 | T12: 0 | U12: 0 | V12: 0 | W12: 0 | X12: 0 | Y12: 0 | Z12: 0 | AA12: 0 | AB12: 0 | AC12: 0
A13: 13 | B13: =+Summary!B14 -> 7 | C13: =+Consumers!B15 -> [Settlement B] 7 | D13: =+Summary!$H14 -> 0 | E13: =Consumers!O15 -> 0 | G13: =Summary!$F$3&"/a" -> MWh/a | I13: 0 | J13: 0 | K13: 0 | L13: 0 | M13: 0 | N13: 0 | O13: 0 | P13: 0 | Q13: 0 | R13: 0 | S13: 0 | T13: 0 | U13: 0 | V13: 0 | W13: 0 | X13: 0 | Y13: 0 | Z13: 0 | AA13: 0 | AB13: 0 | AC13: 0
A14: 14 | B14: =+Summary!B15 -> 8 | C14: =+Consumers!B16 -> [Settlement B] 8 | D14: =+Summary!$H15 -> 0 | E14: =Consumers!O16 -> 0 | G14: =Summary!$F$3&"/a" -> MWh/a | I14: 0 | J14: 0 | K14: 0 | L14: 0 | M14: 0 | N14: 0 | O14: 0 | P14: 0 | Q14: 0 | R14: 0 | S14: 0 | T14: 0 | U14: 0 | V14: 0 | W14: 0 | X14: 0 | Y14: 0 | Z14: 0 | AA14: 0 | AB14: 0 | AC14: 0
A15: 15 | B15: =+Summary!B16 -> 9 | C15: =+Consumers!B17 -> [Settlement A] Master | D15: =+Summary!$H16 -> 0 | E15: =Consumers!O17 -> 0 | G15: =Summary!$F$3&"/a" -> MWh/a | I15: 0 | J15: 0 | K15: 0 | L15: 0 | M15: 0 | N15: 0 | O15: 0 | P15: 0 | Q15: 0 | R15: 0 | S15: 0 | T15: 0 | U15: 0 | V15: 0 | W15: 0 | X15: 0 | Y15: 0 | Z15: 0 | AA15: 0 | AB15: 0 | AC15: 0
A16: 16 | B16: =+Summary!B17 -> 10 | C16: =+Consumers!B18 -> [Settlement A] 2 | D16: =+Summary!$H17 -> 0 | E16: =Consumers!O18 -> 0 | G16: =Summary!$F$3&"/a" -> MWh/a | I16: 0 | J16: 0 | K16: 0 | L16: 0 | M16: 0 | N16: 0 | O16: 0 | P16: 0 | Q16: 0 | R16: 0 | S16: 0 | T16: 0 | U16: 0 | V16: 0 | W16: 0 | X16: 0 | Y16: 0 | Z16: 0 | AA16: 0 | AB16: 0 | AC16: 0
A17: 17 | B17: =+Summary!B18 -> 11 | C17: =+Consumers!B19 -> [Settlement A] 3 | D17: =+Summary!$H18 -> 0 | E17: =Consumers!O19 -> 0 | G17: =Summary!$F$3&"/a" -> MWh/a | I17: 0 | J17: 0 | K17: 0 | L17: 0 | M17: 0 | N17: 0 | O17: 0 | P17: 0 | Q17: 0 | R17: 0 | S17: 0 | T17: 0 | U17: 0 | V17: 0 | W17: 0 | X17: 0 | Y17: 0 | Z17: 0 | AA17: 0 | AB17: 0 | AC17: 0
A18: 18 | B18: =+Summary!B19 -> 12 | C18: =+Consumers!B20 -> [Settlement A] 4 | D18: =+Summary!$H19 -> 0 | E18: =Consumers!O20 -> 0 | G18: =Summary!$F$3&"/a" -> MWh/a | I18: 0 | J18: 0 | K18: 0 | L18: 0 | M18: 0 | N18: 0 | O18: 0 | P18: 0 | Q18: 0 | R18: 0 | S18: 0 | T18: 0 | U18: 0 | V18: 0 | W18: 0 | X18: 0 | Y18: 0 | Z18: 0 | AA18: 0 | AB18: 0 | AC18: 0
A19: 19 | B19: =+Summary!B20 -> 13 | C19: =+Consumers!B21 -> [Settlement A] 5 | D19: =+Summary!$H20 -> 0 | E19: =Consumers!O21 -> 0 | G19: =Summary!$F$3&"/a" -> MWh/a | I19: 0 | J19: 0 | K19: 0 | L19: 0 | M19: 0 | N19: 0 | O19: 0 | P19: 0 | Q19: 0 | R19: 0 | S19: 0 | T19: 0 | U19: 0 | V19: 0 | W19: 0 | X19: 0 | Y19: 0 | Z19: 0 | AA19: 0 | AB19: 0 | AC19: 0
A20: 20 | B20: =+Summary!B21 -> 14 | C20: =+Consumers!B22 -> [Settlement A] 6 | D20: =+Summary!$H21 -> 0 | E20: =Consumers!O22 -> 0 | G20: =Summary!$F$3&"/a" -> MWh/a | I20: 0 | J20: 0 | K20: 0 | L20: 0 | M20: 0 | N20: 0 | O20: 0 | P20: 0 | Q20: 0 | R20: 0 | S20: 0 | T20: 0 | U20: 0 | V20: 0 | W20: 0 | X20: 0 | Y20: 0 | Z20: 0 | AA20: 0 | AB20: 0 | AC20: 0
A21: 21 | B21: =+Summary!B22 -> 15 | C21: =+Consumers!B23 -> [Settlement A] 7 | D21: =+Summary!$H22 -> 1 | E21: =Consumers!O23 -> 0 | G21: =Summary!$F$3&"/a" -> MWh/a | I21: 0 | J21: 0 | K21: 0 | L21: 0 | M21: 0 | N21: 0 | O21: 0 | P21: 0 | Q21: 0 | R21: 0 | S21: 0 | T21: 0 | U21: 0 | V21: 0 | W21: 0 | X21: 0 | Y21: 0 | Z21: 0 | AA21: 0 | AB21: 0 | AC21: 0
A22: 22 | B22: District heating potential | E22: =SUM(E7:E21) -> 0 | G22: =Summary!$F$3&"/a" -> MWh/a | I22: =SUM(I7:I21) -> 0 | J22: 0 | K22: 0 | L22: 0 | M22: 0 | N22: 0 | O22: 0 | P22: 0 | Q22: 0 | R22: 0 | S22: 0 | T22: 0 | U22: 0 | V22: 0 | W22: 0 | X22: 0 | Y22: 0 | Z22: 0 | AA22: 0 | AB22: 0 | AC22: =SUM(AC7:AC21) -> 0
A23: 23
A24: 24 | B24: Forecast for development of the new DH network | I24: Default values can be replaced. Only increasing values
A25: 25 | B25: =+B$7 -> 1 | C25: =+C$7 -> [Settlement B] 1 | G25: % | I25: =+Summary!G$348 -> 0 | J25: =+Summary!H$348 -> 0.3 | K25: =+Summary!I$348 -> 0.6 | L25: =+Summary!J$348 -> 1 | M25: =+Summary!K$348 -> 1 | N25: =+Summary!L$348 -> 1 | O25: =+Summary!M$348 -> 1 | P25: =+O25 -> 1 | Q25: 1 | R25: 1 | S25: 1 | T25: 1 | U25: 1 | V25: 1 | W25: 1 | X25: 1 | Y25: 1 | Z25: 1 | AA25: 1 | AB25: 1 | AC25: 1
A26: 26 | B26: =+B$8 -> 2 | C26: =+C$8 -> [Settlement B] 2 | G26: % | I26: =+Summary!G$348 -> 0 | J26: =+Summary!H$348 -> 0.3 | K26: =+Summary!I$348 -> 0.6 | L26: =+Summary!J$348 -> 1 | M26: =+Summary!K$348 -> 1 | N26: =+Summary!L$348 -> 1 | O26: =+Summary!M$348 -> 1 | P26: 1 | Q26: 1 | R26: 1 | S26: 1 | T26: 1 | U26: 1 | V26: 1 | W26: 1 | X26: 1 | Y26: 1 | Z26: 1 | AA26: 1 | AB26: 1 | AC26: 1
A27: 27 | B27: =+B$9 -> 3 | C27: =+C$9 -> [Settlement B] 3 | G27: % | I27: =+Summary!G$348 -> 0 | J27: =+Summary!H$348 -> 0.3 | K27: =+Summary!I$348 -> 0.6 | L27: =+Summary!J$348 -> 1 | M27: =+Summary!K$348 -> 1 | N27: =+Summary!L$348 -> 1 | O27: =+Summary!M$348 -> 1 | P27: 1 | Q27: 1 | R27: 1 | S27: 1 | T27: 1 | U27: 1 | V27: 1 | W27: 1 | X27: 1 | Y27: 1 | Z27: 1 | AA27: 1 | AB27: 1 | AC27: 1
A28: 28 | B28: =+B$10 -> 4 | C28: =+C$10 -> [Settlement B] 4 | G28: % | I28: =+Summary!G$348 -> 0 | J28: =+Summary!H$348 -> 0.3 | K28: =+Summary!I$348 -> 0.6 | L28: =+Summary!J$348 -> 1 | M28: =+Summary!K$348 -> 1 | N28: =+Summary!L$348 -> 1 | O28: =+Summary!M$348 -> 1 | P28: 1 | Q28: 1 | R28: 1 | S28: 1 | T28: 1 | U28: 1 | V28: 1 | W28: 1 | X28: 1 | Y28: 1 | Z28: 1 | AA28: 1 | AB28: 1 | AC28: 1
A29: 29 | B29: =+B$11 -> 5 | C29: =+C$11 -> [Settlement B] 5 | G29: % | I29: =+Summary!G$348 -> 0 | J29: =+Summary!H$348 -> 0.3 | K29: =+Summary!I$348 -> 0.6 | L29: =+Summary!J$348 -> 1 | M29: =+Summary!K$348 -> 1 | N29: =+Summary!L$348 -> 1 | O29: =+Summary!M$348 -> 1 | P29: 1 | Q29: 1 | R29: 1 | S29: 1 | T29: 1 | U29: 1 | V29: 1 | W29: 1 | X29: 1 | Y29: 1 | Z29: 1 | AA29: 1 | AB29: 1 | AC29: 1
A30: 30 | B30: =+B$12 -> 6 | C30: =+C$12 -> [Settlement B] 6 | G30: % | I30: =+Summary!G$348 -> 0 | J30: =+Summary!H$348 -> 0.3 | K30: =+Summary!I$348 -> 0.6 | L30: =+Summary!J$348 -> 1 | M30: =+Summary!K$348 -> 1 | N30: =+Summary!L$348 -> 1 | O30: =+Summary!M$348 -> 1 | P30: 1 | Q30: 1 | R30: 1 | S30: 1 | T30: 1 | U30: 1 | V30: 1 | W30: 1 | X30: 1 | Y30: 1 | Z30: 1 | AA30: 1 | AB30: 1 | AC30: 1
A31: 31 | B31: =+B$13 -> 7 | C31: =+C$13 -> [Settlement B] 7 | G31: % | I31: =+Summary!G$348 -> 0 | J31: =+Summary!H$348 -> 0.3 | K31: =+Summary!I$348 -> 0.6 | L31: =+Summary!J$348 -> 1 | M31: =+Summary!K$348 -> 1 | N31: =+Summary!L$348 -> 1 | O31: =+Summary!M$348 -> 1 | P31: 1 | Q31: 1 | R31: 1 | S31: 1 | T31: 1 | U31: 1 | V31: 1 | W31: 1 | X31: 1 | Y31: 1 | Z31: 1 | AA31: 1 | AB31: 1 | AC31: 1
A32: 32 | B32: =+B$14 -> 8 | C32: =+C$14 -> [Settlement B] 8 | G32: % | I32: =+Summary!G$348 -> 0 | J32: =+Summary!H$348 -> 0.3 | K32: =+Summary!I$348 -> 0.6 | L32: =+Summary!J$348 -> 1 | M32: =+Summary!K$348 -> 1 | N32: =+Summary!L$348 -> 1 | O32: =+Summary!M$348 -> 1 | P32: 1 | Q32: 1 | R32: 1 | S32: 1 | T32: 1 | U32: 1 | V32: 1 | W32: 1 | X32: 1 | Y32: 1 | Z32: 1 | AA32: 1 | AB32: 1 | AC32: 1
A33: 33 | B33: =+B$15 -> 9 | C33: =+C$15 -> [Settlement A] Master | G33: % | I33: =+Summary!G$348 -> 0 | J33: =+Summary!H$348 -> 0.3 | K33: =+Summary!I$348 -> 0.6 | L33: =+Summary!J$348 -> 1 | M33: =+Summary!K$348 -> 1 | N33: =+Summary!L$348 -> 1 | O33: =+Summary!M$348 -> 1 | P33: 1 | Q33: 1 | R33: 1 | S33: 1 | T33: 1 | U33: 1 | V33: 1 | W33: 1 | X33: 1 | Y33: 1 | Z33: 1 | AA33: 1 | AB33: 1 | AC33: 1
A34: 34 | B34: =+B$16 -> 10 | C34: =+C$16 -> [Settlement A] 2 | G34: % | I34: =+Summary!G$348 -> 0 | J34: =+Summary!H$348 -> 0.3 | K34: =+Summary!I$348 -> 0.6 | L34: =+Summary!J$348 -> 1 | M34: =+Summary!K$348 -> 1 | N34: =+Summary!L$348 -> 1 | O34: =+Summary!M$348 -> 1 | P34: 1 | Q34: 1 | R34: 1 | S34: 1 | T34: 1 | U34: 1 | V34: 1 | W34: 1 | X34: 1 | Y34: 1 | Z34: 1 | AA34: 1 | AB34: 1 | AC34: 1
A35: 35 | B35: =+B$17 -> 11 | C35: =+C$17 -> [Settlement A] 3 | G35: % | I35: =+Summary!G$348 -> 0 | J35: =+Summary!H$348 -> 0.3 | K35: =+Summary!I$348 -> 0.6 | L35: =+Summary!J$348 -> 1 | M35: =+Summary!K$348 -> 1 | N35: =+Summary!L$348 -> 1 | O35: =+Summary!M$348 -> 1 | P35: 1 | Q35: 1 | R35: 1 | S35: 1 | T35: 1 | U35: 1 | V35: 1 | W35: 1 | X35: 1 | Y35: 1 | Z35: 1 | AA35: 1 | AB35: 1 | AC35: 1
A36: 36 | B36: =+B$18 -> 12 | C36: =+C$18 -> [Settlement A] 4 | G36: % | I36: =+Summary!G$348 -> 0 | J36: =+Summary!H$348 -> 0.3 | K36: =+Summary!I$348 -> 0.6 | L36: =+Summary!J$348 -> 1 | M36: =+Summary!K$348 -> 1 | N36: =+Summary!L$348 -> 1 | O36: =+Summary!M$348 -> 1 | P36: 1 | Q36: 1 | R36: 1 | S36: 1 | T36: 1 | U36: 1 | V36: 1 | W36: 1 | X36: 1 | Y36: 1 | Z36: 1 | AA36: 1 | AB36: 1 | AC36: 1
A37: 37 | B37: =+B$19 -> 13 | C37: =+C$19 -> [Settlement A] 5 | G37: % | I37: =+Summary!G$348 -> 0 | J37: =+Summary!H$348 -> 0.3 | K37: =+Summary!I$348 -> 0.6 | L37: =+Summary!J$348 -> 1 | M37: =+Summary!K$348 -> 1 | N37: =+Summary!L$348 -> 1 | O37: =+Summary!M$348 -> 1 | P37: 1 | Q37: 1 | R37: 1 | S37: 1 | T37: 1 | U37: 1 | V37: 1 | W37: 1 | X37: 1 | Y37: 1 | Z37: 1 | AA37: 1 | AB37: 1 | AC37: 1
A38: 38 | B38: =+B$20 -> 14 | C38: =+C$20 -> [Settlement A] 6 | G38: % | I38: =+Summary!G$348 -> 0 | J38: =+Summary!H$348 -> 0.3 | K38: =+Summary!I$348 -> 0.6 | L38: =+Summary!J$348 -> 1 | M38: =+Summary!K$348 -> 1 | N38: =+Summary!L$348 -> 1 | O38: =+Summary!M$348 -> 1 | P38: 1 | Q38: 1 | R38: 1 | S38: 1 | T38: 1 | U38: 1 | V38: 1 | W38: 1 | X38: 1 | Y38: 1 | Z38: 1 | AA38: 1 | AB38: 1 | AC38: 1
A39: 39 | B39: =+B$21 -> 15 | C39: =+C$21 -> [Settlement A] 7 | G39: % | I39: =+Summary!G$348 -> 0 | J39: =+Summary!H$348 -> 0.3 | K39: =+Summary!I$348 -> 0.6 | L39: =+Summary!J$348 -> 1 | M39: =+Summary!K$348 -> 1 | N39: =+Summary!L$348 -> 1 | O39: =+Summary!M$348 -> 1 | P39: 1 | Q39: 1 | R39: 1 | S39: 1 | T39: 1 | U39: 1 | V39: 1 | W39: 1 | X39: 1 | Y39: 1 | Z39: 1 | AA39: 1 | AB39: 1 | AC39: 1
A40: 40
A41: 41 | B41: Forecast for connection of DH consumers to the new network
A42: 42 | I42: Default values can be replaced. Only increasing values
A43: 43 | B43: =+B$7 -> 1 | C43: =+C$7 -> [Settlement B] 1 | G43: % | I43: =+Summary!G$349 -> 0 | J43: =+Summary!H$349 -> 0.3 | K43: =+Summary!I$349 -> 0.5 | L43: =+Summary!J$349 -> 0.6 | M43: =+Summary!K$349 -> 0.7 | N43: =+Summary!L$349 -> 0.8 | O43: =+Summary!M$349 -> 0.9 | P43: =+O43 -> 0.9 | Q43: =+P43 -> 0.9 | R43: =+Q43 -> 0.9 | S43: =+R43 -> 0.9 | T43: =+S43 -> 0.9 | U43: =+T43 -> 0.9 | V43: =+U43 -> 0.9 | W43: =+V43 -> 0.9 | X43: =+W43 -> 0.9 | Y43: =+X43 -> 0.9 | Z43: =+Y43 -> 0.9 | AA43: =+Z43 -> 0.9 | AB43: =+AA43 -> 0.9 | AC43: =+AB43 -> 0.9
A44: 44 | B44: =+B$8 -> 2 | C44: =+C$8 -> [Settlement B] 2 | G44: % | I44: =+Summary!G$349 -> 0 | J44: =+Summary!H$349 -> 0.3 | K44: =+Summary!I$349 -> 0.5 | L44: =+Summary!J$349 -> 0.6 | M44: =+Summary!K$349 -> 0.7 | N44: =+Summary!L$349 -> 0.8 | O44: =+Summary!M$349 -> 0.9 | P44: 0.9 | Q44: 0.9 | R44: 0.9 | S44: 0.9 | T44: 0.9 | U44: 0.9 | V44: 0.9 | W44: 0.9 | X44: 0.9 | Y44: 0.9 | Z44: 0.9 | AA44: 0.9 | AB44: 0.9 | AC44: 0.9
A45: 45 | B45: =+B$9 -> 3 | C45: =+C$9 -> [Settlement B] 3 | G45: % | I45: =+Summary!G$349 -> 0 | J45: =+Summary!H$349 -> 0.3 | K45: =+Summary!I$349 -> 0.5 | L45: =+Summary!J$349 -> 0.6 | M45: =+Summary!K$349 -> 0.7 | N45: =+Summary!L$349 -> 0.8 | O45: =+Summary!M$349 -> 0.9 | P45: 0.9 | Q45: 0.9 | R45: 0.9 | S45: 0.9 | T45: 0.9 | U45: 0.9 | V45: 0.9 | W45: 0.9 | X45: 0.9 | Y45: 0.9 | Z45: 0.9 | AA45: 0.9 | AB45: 0.9 | AC45: 0.9
A46: 46 | B46: =+B$10 -> 4 | C46: =+C$10 -> [Settlement B] 4 | G46: % | I46: =+Summary!G$349 -> 0 | J46: =+Summary!H$349 -> 0.3 | K46: =+Summary!I$349 -> 0.5 | L46: =+Summary!J$349 -> 0.6 | M46: =+Summary!K$349 -> 0.7 | N46: =+Summary!L$349 -> 0.8 | O46: =+Summary!M$349 -> 0.9 | P46: 0.9 | Q46: 0.9 | R46: 0.9 | S46: 0.9 | T46: 0.9 | U46: 0.9 | V46: 0.9 | W46: 0.9 | X46: 0.9 | Y46: 0.9 | Z46: 0.9 | AA46: 0.9 | AB46: 0.9 | AC46: 0.9
A47: 47 | B47: =+B$11 -> 5 | C47: =+C$11 -> [Settlement B] 5 | G47: % | I47: =+Summary!G$349 -> 0 | J47: =+Summary!H$349 -> 0.3 | K47: =+Summary!I$349 -> 0.5 | L47: =+Summary!J$349 -> 0.6 | M47: =+Summary!K$349 -> 0.7 | N47: =+Summary!L$349 -> 0.8 | O47: =+Summary!M$349 -> 0.9 | P47: 0.9 | Q47: 0.9 | R47: 0.9 | S47: 0.9 | T47: 0.9 | U47: 0.9 | V47: 0.9 | W47: 0.9 | X47: 0.9 | Y47: 0.9 | Z47: 0.9 | AA47: 0.9 | AB47: 0.9 | AC47: 0.9
A48: 48 | B48: =+B$12 -> 6 | C48: =+C$12 -> [Settlement B] 6 | G48: % | I48: =+Summary!G$349 -> 0 | J48: =+Summary!H$349 -> 0.3 | K48: =+Summary!I$349 -> 0.5 | L48: =+Summary!J$349 -> 0.6 | M48: =+Summary!K$349 -> 0.7 | N48: =+Summary!L$349 -> 0.8 | O48: =+Summary!M$349 -> 0.9 | P48: 0.9 | Q48: 0.9 | R48: 0.9 | S48: 0.9 | T48: 0.9 | U48: 0.9 | V48: 0.9 | W48: 0.9 | X48: 0.9 | Y48: 0.9 | Z48: 0.9 | AA48: 0.9 | AB48: 0.9 | AC48: 0.9
A49: 49 | B49: =+B$13 -> 7 | C49: =+C$13 -> [Settlement B] 7 | G49: % | I49: =+Summary!G$349 -> 0 | J49: =+Summary!H$349 -> 0.3 | K49: =+Summary!I$349 -> 0.5 | L49: =+Summary!J$349 -> 0.6 | M49: =+Summary!K$349 -> 0.7 | N49: =+Summary!L$349 -> 0.8 | O49: =+Summary!M$349 -> 0.9 | P49: 0.9 | Q49: 0.9 | R49: 0.9 | S49: 0.9 | T49: 0.9 | U49: 0.9 | V49: 0.9 | W49: 0.9 | X49: 0.9 | Y49: 0.9 | Z49: 0.9 | AA49: 0.9 | AB49: 0.9 | AC49: 0.9
A50: 50 | B50: =+B$14 -> 8 | C50: =+C$14 -> [Settlement B] 8 | G50: % | I50: =+Summary!G$349 -> 0 | J50: =+Summary!H$349 -> 0.3 | K50: =+Summary!I$349 -> 0.5 | L50: =+Summary!J$349 -> 0.6 | M50: =+Summary!K$349 -> 0.7 | N50: =+Summary!L$349 -> 0.8 | O50: =+Summary!M$349 -> 0.9 | P50: 0.9 | Q50: 0.9 | R50: 0.9 | S50: 0.9 | T50: 0.9 | U50: 0.9 | V50: 0.9 | W50: 0.9 | X50: 0.9 | Y50: 0.9 | Z50: 0.9 | AA50: 0.9 | AB50: 0.9 | AC50: 0.9
A51: 51 | B51: =+B$15 -> 9 | C51: =+C$15 -> [Settlement A] Master | G51: % | I51: =+Summary!G$349 -> 0 | J51: =+Summary!H$349 -> 0.3 | K51: =+Summary!I$349 -> 0.5 | L51: =+Summary!J$349 -> 0.6 | M51: =+Summary!K$349 -> 0.7 | N51: =+Summary!L$349 -> 0.8 | O51: =+Summary!M$349 -> 0.9 | P51: 0.9 | Q51: 0.9 | R51: 0.9 | S51: 0.9 | T51: 0.9 | U51: 0.9 | V51: 0.9 | W51: 0.9 | X51: 0.9 | Y51: 0.9 | Z51: 0.9 | AA51: 0.9 | AB51: 0.9 | AC51: 0.9
A52: 52 | B52: =+B$16 -> 10 | C52: =+C$16 -> [Settlement A] 2 | G52: % | I52: =+Summary!G$349 -> 0 | J52: =+Summary!H$349 -> 0.3 | K52: =+Summary!I$349 -> 0.5 | L52: =+Summary!J$349 -> 0.6 | M52: =+Summary!K$349 -> 0.7 | N52: =+Summary!L$349 -> 0.8 | O52: =+Summary!M$349 -> 0.9 | P52: 0.9 | Q52: 0.9 | R52: 0.9 | S52: 0.9 | T52: 0.9 | U52: 0.9 | V52: 0.9 | W52: 0.9 | X52: 0.9 | Y52: 0.9 | Z52: 0.9 | AA52: 0.9 | AB52: 0.9 | AC52: 0.9
A53: 53 | B53: =+B$17 -> 11 | C53: =+C$17 -> [Settlement A] 3 | G53: % | I53: =+Summary!G$349 -> 0 | J53: =+Summary!H$349 -> 0.3 | K53: =+Summary!I$349 -> 0.5 | L53: =+Summary!J$349 -> 0.6 | M53: =+Summary!K$349 -> 0.7 | N53: =+Summary!L$349 -> 0.8 | O53: =+Summary!M$349 -> 0.9 | P53: 0.9 | Q53: 0.9 | R53: 0.9 | S53: 0.9 | T53: 0.9 | U53: 0.9 | V53: 0.9 | W53: 0.9 | X53: 0.9 | Y53: 0.9 | Z53: 0.9 | AA53: 0.9 | AB53: 0.9 | AC53: 0.9
A54: 54 | B54: =+B$18 -> 12 | C54: =+C$18 -> [Settlement A] 4 | G54: % | I54: =+Summary!G$349 -> 0 | J54: =+Summary!H$349 -> 0.3 | K54: =+Summary!I$349 -> 0.5 | L54: =+Summary!J$349 -> 0.6 | M54: =+Summary!K$349 -> 0.7 | N54: =+Summary!L$349 -> 0.8 | O54: =+Summary!M$349 -> 0.9 | P54: 0.9 | Q54: 0.9 | R54: 0.9 | S54: 0.9 | T54: 0.9 | U54: 0.9 | V54: 0.9 | W54: 0.9 | X54: 0.9 | Y54: 0.9 | Z54: 0.9 | AA54: 0.9 | AB54: 0.9 | AC54: 0.9
A55: 55 | B55: =+B$19 -> 13 | C55: =+C$19 -> [Settlement A] 5 | G55: % | I55: =+Summary!G$349 -> 0 | J55: =+Summary!H$349 -> 0.3 | K55: =+Summary!I$349 -> 0.5 | L55: =+Summary!J$349 -> 0.6 | M55: =+Summary!K$349 -> 0.7 | N55: =+Summary!L$349 -> 0.8 | O55: =+Summary!M$349 -> 0.9 | P55: 0.9 | Q55: 0.9 | R55: 0.9 | S55: 0.9 | T55: 0.9 | U55: 0.9 | V55: 0.9 | W55: 0.9 | X55: 0.9 | Y55: 0.9 | Z55: 0.9 | AA55: 0.9 | AB55: 0.9 | AC55: 0.9
A56: 56 | B56: =+B$20 -> 14 | C56: =+C$20 -> [Settlement A] 6 | G56: % | I56: =+Summary!G$349 -> 0 | J56: =+Summary!H$349 -> 0.3 | K56: =+Summary!I$349 -> 0.5 | L56: =+Summary!J$349 -> 0.6 | M56: =+Summary!K$349 -> 0.7 | N56: =+Summary!L$349 -> 0.8 | O56: =+Summary!M$349 -> 0.9 | P56: 0.9 | Q56: 0.9 | R56: 0.9 | S56: 0.9 | T56: 0.9 | U56: 0.9 | V56: 0.9 | W56: 0.9 | X56: 0.9 | Y56: 0.9 | Z56: 0.9 | AA56: 0.9 | AB56: 0.9 | AC56: 0.9
A57: 57 | B57: =+B$21 -> 15 | C57: =+C$21 -> [Settlement A] 7 | G57: % | I57: =+Summary!G$349 -> 0 | J57: =+Summary!H$349 -> 0.3 | K57: =+Summary!I$349 -> 0.5 | L57: =+Summary!J$349 -> 0.6 | M57: =+Summary!K$349 -> 0.7 | N57: =+Summary!L$349 -> 0.8 | O57: =+Summary!M$349 -> 0.9 | P57: 0.9 | Q57: 0.9 | R57: 0.9 | S57: 0.9 | T57: 0.9 | U57: 0.9 | V57: 0.9 | W57: 0.9 | X57: 0.9 | Y57: 0.9 | Z57: 0.9 | AA57: 0.9 | AB57: 0.9 | AC57: 0.9
A58: 58
A59: 59 | B59: Consumers to DH network | E59: Maximal
A60: 60 | B60: =+B$7 -> 1 | C60: =+C$7 -> [Settlement B] 1 | E60: =Consumers!L9 -> 0 | G60: no | I60: =+$E60*I43 -> 0 | J60: 0 | K60: 0 | L60: 0 | M60: 0 | N60: 0 | O60: 0 | P60: 0 | Q60: 0 | R60: 0 | S60: 0 | T60: 0 | U60: 0 | V60: 0 | W60: 0 | X60: 0 | Y60: 0 | Z60: 0 | AA60: 0 | AB60: 0 | AC60: 0
A61: 61 | B61: =+B$8 -> 2 | C61: =+C$8 -> [Settlement B] 2 | E61: =Consumers!L10 -> 0 | G61: no | I61: =+$E61*I44 -> 0 | J61: 0 | K61: 0 | L61: 0 | M61: 0 | N61: 0 | O61: 0 | P61: 0 | Q61: 0 | R61: 0 | S61: 0 | T61: 0 | U61: 0 | V61: 0 | W61: 0 | X61: 0 | Y61: 0 | Z61: 0 | AA61: 0 | AB61: 0 | AC61: 0
A62: 62 | B62: =+B$9 -> 3 | C62: =+C$9 -> [Settlement B] 3 | E62: =Consumers!L11 -> 0 | G62: no | I62: =+$E62*I45 -> 0 | J62: 0 | K62: 0 | L62: 0 | M62: 0 | N62: 0 | O62: 0 | P62: 0 | Q62: 0 | R62: 0 | S62: 0 | T62: 0 | U62: 0 | V62: 0 | W62: 0 | X62: 0 | Y62: 0 | Z62: 0 | AA62: 0 | AB62: 0 | AC62: 0
A63: 63 | B63: =+B$10 -> 4 | C63: =+C$10 -> [Settlement B] 4 | E63: =Consumers!L12 -> 0 | G63: no | I63: =+$E63*I46 -> 0 | J63: 0 | K63: 0 | L63: 0 | M63: 0 | N63: 0 | O63: 0 | P63: 0 | Q63: 0 | R63: 0 | S63: 0 | T63: 0 | U63: 0 | V63: 0 | W63: 0 | X63: 0 | Y63: 0 | Z63: 0 | AA63: 0 | AB63: 0 | AC63: 0
A64: 64 | B64: =+B$11 -> 5 | C64: =+C$11 -> [Settlement B] 5 | E64: =Consumers!L13 -> 0 | G64: no | I64: =+$E64*I47 -> 0 | J64: 0 | K64: 0 | L64: 0 | M64: 0 | N64: 0 | O64: 0 | P64: 0 | Q64: 0 | R64: 0 | S64: 0 | T64: 0 | U64: 0 | V64: 0 | W64: 0 | X64: 0 | Y64: 0 | Z64: 0 | AA64: 0 | AB64: 0 | AC64: 0
A65: 65 | B65: =+B$12 -> 6 | C65: =+C$12 -> [Settlement B] 6 | E65: =Consumers!L14 -> 0 | G65: no | I65: =+$E65*I48 -> 0 | J65: 0 | K65: 0 | L65: 0 | M65: 0 | N65: 0 | O65: 0 | P65: 0 | Q65: 0 | R65: 0 | S65: 0 | T65: 0 | U65: 0 | V65: 0 | W65: 0 | X65: 0 | Y65: 0 | Z65: 0 | AA65: 0 | AB65: 0 | AC65: 0
A66: 66 | B66: =+B$13 -> 7 | C66: =+C$13 -> [Settlement B] 7 | E66: =Consumers!L15 -> 0 | G66: no | I66: =+$E66*I49 -> 0 | J66: 0 | K66: 0 | L66: 0 | M66: 0 | N66: 0 | O66: 0 | P66: 0 | Q66: 0 | R66: 0 | S66: 0 | T66: 0 | U66: 0 | V66: 0 | W66: 0 | X66: 0 | Y66: 0 | Z66: 0 | AA66: 0 | AB66: 0 | AC66: 0
A67: =+A66+1 -> 67 | B67: =+B$14 -> 8 | C67: =+C$14 -> [Settlement B] 8 | E67: =Consumers!L16 -> 0 | G67: no | I67: =+$E67*I50 -> 0 | J67: 0 | K67: 0 | L67: 0 | M67: 0 | N67: 0 | O67: 0 | P67: 0 | Q67: 0 | R67: 0 | S67: 0 | T67: 0 | U67: 0 | V67: 0 | W67: 0 | X67: 0 | Y67: 0 | Z67: 0 | AA67: 0 | AB67: 0 | AC67: 0
A68: 68 | B68: =+B$15 -> 9 | C68: =+C$15 -> [Settlement A] Master | E68: =Consumers!L17 -> 0 | G68: no | I68: =+$E68*I51 -> 0 | J68: 0 | K68: 0 | L68: 0 | M68: 0 | N68: 0 | O68: 0 | P68: 0 | Q68: 0 | R68: 0 | S68: 0 | T68: 0 | U68: 0 | V68: 0 | W68: 0 | X68: 0 | Y68: 0 | Z68: 0 | AA68: 0 | AB68: 0 | AC68: 0
A69: 69 | B69: =+B$16 -> 10 | C69: =+C$16 -> [Settlement A] 2 | E69: =Consumers!L18 -> 0 | G69: no | I69: =+$E69*I52 -> 0 | J69: 0 | K69: 0 | L69: 0 | M69: 0 | N69: 0 | O69: 0 | P69: 0 | Q69: 0 | R69: 0 | S69: 0 | T69: 0 | U69: 0 | V69: 0 | W69: 0 | X69: 0 | Y69: 0 | Z69: 0 | AA69: 0 | AB69: 0 | AC69: 0
A70: 70 | B70: =+B$17 -> 11 | C70: =+C$17 -> [Settlement A] 3 | E70: =Consumers!L19 -> 0 | G70: no | I70: =+$E70*I53 -> 0 | J70: 0 | K70: 0 | L70: 0 | M70: 0 | N70: 0 | O70: 0 | P70: 0 | Q70: 0 | R70: 0 | S70: 0 | T70: 0 | U70: 0 | V70: 0 | W70: 0 | X70: 0 | Y70: 0 | Z70: 0 | AA70: 0 | AB70: 0 | AC70: 0
A71: 71 | B71: =+B$18 -> 12 | C71: =+C$18 -> [Settlement A] 4 | E71: =Consumers!L20 -> 0 | G71: no | I71: =+$E71*I54 -> 0 | J71: 0 | K71: 0 | L71: 0 | M71: 0 | N71: 0 | O71: 0 | P71: 0 | Q71: 0 | R71: 0 | S71: 0 | T71: 0 | U71: 0 | V71: 0 | W71: 0 | X71: 0 | Y71: 0 | Z71: 0 | AA71: 0 | AB71: 0 | AC71: 0
A72: 72 | B72: =+B$19 -> 13 | C72: =+C$19 -> [Settlement A] 5 | E72: =Consumers!L21 -> 0 | G72: no | I72: =+$E72*I55 -> 0 | J72: 0 | K72: 0 | L72: 0 | M72: 0 | N72: 0 | O72: 0 | P72: 0 | Q72: 0 | R72: 0 | S72: 0 | T72: 0 | U72: 0 | V72: 0 | W72: 0 | X72: 0 | Y72: 0 | Z72: 0 | AA72: 0 | AB72: 0 | AC72: 0
A73: 73 | B73: =+B$20 -> 14 | C73: =+C$20 -> [Settlement A] 6 | E73: =Consumers!L22 -> 0 | G73: no | I73: =+$E73*I56 -> 0 | J73: 0 | K73: 0 | L73: 0 | M73: 0 | N73: 0 | O73: 0 | P73: 0 | Q73: 0 | R73: 0 | S73: 0 | T73: 0 | U73: 0 | V73: 0 | W73: 0 | X73: 0 | Y73: 0 | Z73: 0 | AA73: 0 | AB73: 0 | AC73: 0
A74: 74 | B74: =+B$21 -> 15 | C74: =+C$21 -> [Settlement A] 7 | E74: =Consumers!L23 -> 396 | G74: no | I74: =+$E74*I57 -> 0 | J74: 118.8 | K74: 198 | L74: 237.6 | M74: 277.2 | N74: 316.8 | O74: 356.4 | P74: 356.4 | Q74: 356.4 | R74: 356.4 | S74: 356.4 | T74: 356.4 | U74: 356.4 | V74: 356.4 | W74: 356.4 | X74: 356.4 | Y74: 356.4 | Z74: 356.4 | AA74: 356.4 | AB74: 356.4 | AC74: 356.4
A75: 75 | B75: Consumers connected to DH | E75: =SUM(E60:E74) -> 396 | G75: no | I75: =SUM(I60:I74) -> 0 | J75: 118.8 | K75: 198 | L75: 237.6 | M75: 277.2 | N75: 316.8 | O75: 356.4 | P75: 356.4 | Q75: 356.4 | R75: 356.4 | S75: 356.4 | T75: 356.4 | U75: 356.4 | V75: 356.4 | W75: 356.4 | X75: 356.4 | Y75: 356.4 | Z75: 356.4 | AA75: 356.4 | AB75: 356.4 | AC75: =SUM(AC60:AC74) -> 356.4
A76: 76
A77: 77 | B77: Connected consumer capacity to the network | E77: Maximal
A78: 78 | B78: =+B43 -> 1 | C78: =+C43 -> [Settlement B] 1 | E78: =Consumers!S9 -> 0 | F78: =I78+NPV(+Summary!J$76,J78:AC78) -> 0 | G78: =+Summary!$D$3 -> kW | I78: =+$E78*I43 -> 0 | J78: =+$E78*J43 -> 0 | K78: 0 | L78: 0 | M78: 0 | N78: 0 | O78: 0 | P78: 0 | Q78: 0 | R78: 0 | S78: 0 | T78: 0 | U78: 0 | V78: 0 | W78: 0 | X78: 0 | Y78: 0 | Z78: 0 | AA78: 0 | AB78: 0 | AC78: 0
A79: 79 | B79: =+B44 -> 2 | C79: [Settlement B] 2 | E79: =Consumers!S10 -> 0 | F79: =I79+NPV(+Summary!J$76,J79:AC79) -> 0 | G79: =+Summary!$D$3 -> kW | I79: =+$E79*I44 -> 0 | J79: 0 | K79: 0 | L79: 0 | M79: 0 | N79: 0 | O79: 0 | P79: 0 | Q79: 0 | R79: 0 | S79: 0 | T79: 0 | U79: 0 | V79: 0 | W79: 0 | X79: 0 | Y79: 0 | Z79: 0 | AA79: 0 | AB79: 0 | AC79: 0
A80: 80 | B80: =+B45 -> 3 | C80: [Settlement B] 3 | E80: =Consumers!S11 -> 0 | F80: =I80+NPV(+Summary!J$76,J80:AC80) -> 0 | G80: =+Summary!$D$3 -> kW | I80: =+$E80*I45 -> 0 | J80: 0 | K80: 0 | L80: 0 | M80: 0 | N80: 0 | O80: 0 | P80: 0 | Q80: 0 | R80: 0 | S80: 0 | T80: 0 | U80: 0 | V80: 0 | W80: 0 | X80: 0 | Y80: 0 | Z80: 0 | AA80: 0 | AB80: 0 | AC80: 0
A81: 81 | B81: =+B46 -> 4 | C81: [Settlement B] 4 | E81: =Consumers!S12 -> 0 | F81: =I81+NPV(+Summary!J$76,J81:AC81) -> 0 | G81: =+Summary!$D$3 -> kW | I81: =+$E81*I46 -> 0 | J81: 0 | K81: 0 | L81: 0 | M81: 0 | N81: 0 | O81: 0 | P81: 0 | Q81: 0 | R81: 0 | S81: 0 | T81: 0 | U81: 0 | V81: 0 | W81: 0 | X81: 0 | Y81: 0 | Z81: 0 | AA81: 0 | AB81: 0 | AC81: 0
A82: 82 | B82: =+B47 -> 5 | C82: [Settlement B] 5 | E82: =Consumers!S13 -> 0 | F82: =I82+NPV(+Summary!J$76,J82:AC82) -> 0 | G82: =+Summary!$D$3 -> kW | I82: =+$E82*I47 -> 0 | J82: 0 | K82: 0 | L82: 0 | M82: 0 | N82: 0 | O82: 0 | P82: 0 | Q82: 0 | R82: 0 | S82: 0 | T82: 0 | U82: 0 | V82: 0 | W82: 0 | X82: 0 | Y82: 0 | Z82: 0 | AA82: 0 | AB82: 0 | AC82: 0
A83: 83 | B83: =+B48 -> 6 | C83: [Settlement B] 6 | E83: =Consumers!S14 -> 0 | F83: =I83+NPV(+Summary!J$76,J83:AC83) -> 0 | G83: =+Summary!$D$3 -> kW | I83: =+$E83*I48 -> 0 | J83: 0 | K83: 0 | L83: 0 | M83: 0 | N83: 0 | O83: 0 | P83: 0 | Q83: 0 | R83: 0 | S83: 0 | T83: 0 | U83: 0 | V83: 0 | W83: 0 | X83: 0 | Y83: 0 | Z83: 0 | AA83: 0 | AB83: 0 | AC83: 0
A84: 84 | B84: =+B49 -> 7 | C84: [Settlement B] 7 | E84: =Consumers!S15 -> 0 | F84: =I84+NPV(+Summary!J$76,J84:AC84) -> 0 | G84: =+Summary!$D$3 -> kW | I84: =+$E84*I49 -> 0 | J84: 0 | K84: 0 | L84: 0 | M84: 0 | N84: 0 | O84: 0 | P84: 0 | Q84: 0 | R84: 0 | S84: 0 | T84: 0 | U84: 0 | V84: 0 | W84: 0 | X84: 0 | Y84: 0 | Z84: 0 | AA84: 0 | AB84: 0 | AC84: 0
A85: 85 | B85: =+B50 -> 8 | C85: [Settlement B] 8 | E85: =Consumers!S16 -> 0 | F85: =I85+NPV(+Summary!J$76,J85:AC85) -> 0 | G85: =+Summary!$D$3 -> kW | I85: =+$E85*I50 -> 0 | J85: 0 | K85: 0 | L85: 0 | M85: 0 | N85: 0 | O85: 0 | P85: 0 | Q85: 0 | R85: 0 | S85: 0 | T85: 0 | U85: 0 | V85: 0 | W85: 0 | X85: 0 | Y85: 0 | Z85: 0 | AA85: 0 | AB85: 0 | AC85: 0
A86: 86 | B86: =+B51 -> 9 | C86: [Settlement A] Master | E86: =Consumers!S17 -> 0 | F86: =I86+NPV(+Summary!J$76,J86:AC86) -> 0 | G86: =+Summary!$D$3 -> kW | I86: =+$E86*I51 -> 0 | J86: 0 | K86: 0 | L86: 0 | M86: 0 | N86: 0 | O86: 0 | P86: 0 | Q86: 0 | R86: 0 | S86: 0 | T86: 0 | U86: 0 | V86: 0 | W86: 0 | X86: 0 | Y86: 0 | Z86: 0 | AA86: 0 | AB86: 0 | AC86: 0
A87: 87 | B87: =+B52 -> 10 | C87: [Settlement A] 2 | E87: =Consumers!S18 -> 0 | F87: =I87+NPV(+Summary!J$76,J87:AC87) -> 0 | G87: =+Summary!$D$3 -> kW | I87: =+$E87*I52 -> 0 | J87: 0 | K87: 0 | L87: 0 | M87: 0 | N87: 0 | O87: 0 | P87: 0 | Q87: 0 | R87: 0 | S87: 0 | T87: 0 | U87: 0 | V87: 0 | W87: 0 | X87: 0 | Y87: 0 | Z87: 0 | AA87: 0 | AB87: 0 | AC87: 0
A88: 88 | B88: =+B53 -> 11 | C88: [Settlement A] 3 | E88: =Consumers!S19 -> 0 | F88: =I88+NPV(+Summary!J$76,J88:AC88) -> 0 | G88: =+Summary!$D$3 -> kW | I88: =+$E88*I53 -> 0 | J88: 0 | K88: 0 | L88: 0 | M88: 0 | N88: 0 | O88: 0 | P88: 0 | Q88: 0 | R88: 0 | S88: 0 | T88: 0 | U88: 0 | V88: 0 | W88: 0 | X88: 0 | Y88: 0 | Z88: 0 | AA88: 0 | AB88: 0 | AC88: 0
A89: 89 | B89: =+B54 -> 12 | C89: [Settlement A] 4 | E89: =Consumers!S20 -> 0 | F89: =I89+NPV(+Summary!J$76,J89:AC89) -> 0 | G89: =+Summary!$D$3 -> kW | I89: =+$E89*I54 -> 0 | J89: 0 | K89: 0 | L89: 0 | M89: 0 | N89: 0 | O89: 0 | P89: 0 | Q89: 0 | R89: 0 | S89: 0 | T89: 0 | U89: 0 | V89: 0 | W89: 0 | X89: 0 | Y89: 0 | Z89: 0 | AA89: 0 | AB89: 0 | AC89: 0
A90: 90 | B90: =+B55 -> 13 | C90: [Settlement A] 5 | E90: =Consumers!S21 -> 0 | F90: =I90+NPV(+Summary!J$76,J90:AC90) -> 0 | G90: =+Summary!$D$3 -> kW | I90: =+$E90*I55 -> 0 | J90: 0 | K90: 0 | L90: 0 | M90: 0 | N90: 0 | O90: 0 | P90: 0 | Q90: 0 | R90: 0 | S90: 0 | T90: 0 | U90: 0 | V90: 0 | W90: 0 | X90: 0 | Y90: 0 | Z90: 0 | AA90: 0 | AB90: 0 | AC90: 0
A91: 91 | B91: =+B56 -> 14 | C91: [Settlement A] 6 | E91: =Consumers!S22 -> 0 | F91: =I91+NPV(+Summary!J$76,J91:AC91) -> 0 | G91: =+Summary!$D$3 -> kW | I91: =+$E91*I56 -> 0 | J91: 0 | K91: 0 | L91: 0 | M91: 0 | N91: 0 | O91: 0 | P91: 0 | Q91: 0 | R91: 0 | S91: 0 | T91: 0 | U91: 0 | V91: 0 | W91: 0 | X91: 0 | Y91: 0 | Z91: 0 | AA91: 0 | AB91: 0 | AC91: 0
A92: 92 | B92: =+B57 -> 15 | C92: [Settlement A] 7 | E92: =Consumers!S23 ->  | F92: =I92+NPV(+Summary!J$76,J92:AC92) ->  | G92: =+Summary!$D$3 -> kW | I92: =+$E92*I57 -> 
A93: 93 | B93: Total capacity connected | E93: =SUM(E78:E92) ->  | F93: =I93+NPV(+Summary!J$76,J93:AC93) ->  | G93: =+Summary!$D$3 -> kW | I93: =SUM(I78:I92) ->  | AC93: =SUM(AC78:AC92) -> 
A94: 94
A95: 95 | B95: Sale to DH consumers
A96: 96 | B96: =+B$7 -> 1 | C96: =+C$7 -> [Settlement B] 1 | E96: =Consumers!O9 -> 0 | F96: =I96+NPV(+Summary!J$76,J96:AC96) -> 0 | G96: =Summary!$F$3&"/a" -> MWh/a | I96: =+I7*I43 -> 0 | J96: 0 | K96: 0 | L96: 0 | M96: 0 | N96: 0 | O96: 0 | P96: 0 | Q96: 0 | R96: 0 | S96: 0 | T96: 0 | U96: 0 | V96: 0 | W96: 0 | X96: 0 | Y96: 0 | Z96: 0 | AA96: 0 | AB96: 0 | AC96: 0
A97: 97 | B97: =+B$8 -> 2 | C97: =+C$8 -> [Settlement B] 2 | E97: =Consumers!O10 -> 0 | F97: =I97+NPV(+Summary!J$76,J97:AC97) -> 0 | G97: =Summary!$F$3&"/a" -> MWh/a | I97: =+I8*I44 -> 0 | J97: 0 | K97: 0 | L97: 0 | M97: 0 | N97: 0 | O97: 0 | P97: 0 | Q97: 0 | R97: 0 | S97: 0 | T97: 0 | U97: 0 | V97: 0 | W97: 0 | X97: 0 | Y97: 0 | Z97: 0 | AA97: 0 | AB97: 0 | AC97: 0
A98: 98 | B98: =+B$9 -> 3 | C98: =+C$9 -> [Settlement B] 3 | E98: =Consumers!O11 -> 0 | F98: =I98+NPV(+Summary!J$76,J98:AC98) -> 0 | G98: =Summary!$F$3&"/a" -> MWh/a | I98: =+I9*I45 -> 0 | J98: 0 | K98: 0 | L98: 0 | M98: 0 | N98: 0 | O98: 0 | P98: 0 | Q98: 0 | R98: 0 | S98: 0 | T98: 0 | U98: 0 | V98: 0 | W98: 0 | X98: 0 | Y98: 0 | Z98: 0 | AA98: 0 | AB98: 0 | AC98: 0
A99: 99 | B99: =+B$10 -> 4 | C99: =+C$10 -> [Settlement B] 4 | E99: =Consumers!O12 -> 0 | F99: =I99+NPV(+Summary!J$76,J99:AC99) -> 0 | G99: =Summary!$F$3&"/a" -> MWh/a | I99: =+I10*I46 -> 0 | J99: 0 | K99: 0 | L99: 0 | M99: 0 | N99: 0 | O99: 0 | P99: 0 | Q99: 0 | R99: 0 | S99: 0 | T99: 0 | U99: 0 | V99: 0 | W99: 0 | X99: 0 | Y99: 0 | Z99: 0 | AA99: 0 | AB99: 0 | AC99: 0
A100: 100 | B100: =+B$11 -> 5 | C100: =+C$11 -> [Settlement B] 5 | E100: =Consumers!O13 -> 0 | F100: =I100+NPV(+Summary!J$76,J100:AC100) -> 0 | G100: =Summary!$F$3&"/a" -> MWh/a | I100: =+I11*I47 -> 0 | J100: 0 | K100: 0 | L100: 0 | M100: 0 | N100: 0 | O100: 0 | P100: 0 | Q100: 0 | R100: 0 | S100: 0 | T100: 0 | U100: 0 | V100: 0 | W100: 0 | X100: 0 | Y100: 0 | Z100: 0 | AA100: 0 | AB100: 0 | AC100: 0
A101: 101 | B101: =+B$12 -> 6 | C101: =+C$12 -> [Settlement B] 6 | E101: =Consumers!O14 -> 0 | F101: =I101+NPV(+Summary!J$76,J101:AC101) -> 0 | G101: =Summary!$F$3&"/a" -> MWh/a | I101: =+I12*I48 -> 0 | J101: 0 | K101: 0 | L101: 0 | M101: 0 | N101: 0 | O101: 0 | P101: 0 | Q101: 0 | R101: 0 | S101: 0 | T101: 0 | U101: 0 | V101: 0 | W101: 0 | X101: 0 | Y101: 0 | Z101: 0 | AA101: 0 | AB101: 0 | AC101: 0
A102: 102 | B102: =+B$13 -> 7 | C102: =+C$13 -> [Settlement B] 7 | E102: =Consumers!O15 -> 0 | F102: =I102+NPV(+Summary!J$76,J102:AC102) -> 0 | G102: =Summary!$F$3&"/a" -> MWh/a | I102: =+I13*I49 -> 0 | J102: 0 | K102: 0 | L102: 0 | M102: 0 | N102: 0 | O102: 0 | P102: 0 | Q102: 0 | R102: 0 | S102: 0 | T102: 0 | U102: 0 | V102: 0 | W102: 0 | X102: 0 | Y102: 0 | Z102: 0 | AA102: 0 | AB102: 0 | AC102: 0
A103: 103 | B103: =+B$14 -> 8 | C103: =+C$14 -> [Settlement B] 8 | E103: =Consumers!O16 -> 0 | F103: =I103+NPV(+Summary!J$76,J103:AC103) -> 0 | G103: =Summary!$F$3&"/a" -> MWh/a | I103: =+I14*I50 -> 0 | J103: 0 | K103: 0 | L103: 0 | M103: 0 | N103: 0 | O103: 0 | P103: 0 | Q103: 0 | R103: 0 | S103: 0 | T103: 0 | U103: 0 | V103: 0 | W103: 0 | X103: 0 | Y103: 0 | Z103: 0 | AA103: 0 | AB103: 0 | AC103: 0
A104: 104 | B104: =+B$15 -> 9 | C104: =+C$15 -> [Settlement A] Master | E104: =Consumers!O17 -> 0 | F104: =I104+NPV(+Summary!J$76,J104:AC104) -> 0 | G104: =Summary!$F$3&"/a" -> MWh/a | I104: =+I15*I51 -> 0 | J104: 0 | K104: 0 | L104: 0 | M104: 0 | N104: 0 | O104: 0 | P104: 0 | Q104: 0 | R104: 0 | S104: 0 | T104: 0 | U104: 0 | V104: 0 | W104: 0 | X104: 0 | Y104: 0 | Z104: 0 | AA104: 0 | AB104: 0 | AC104: 0
A105: 105 | B105: =+B$16 -> 10 | C105: =+C$16 -> [Settlement A] 2 | E105: =Consumers!O18 -> 0 | F105: =I105+NPV(+Summary!J$76,J105:AC105) -> 0 | G105: =Summary!$F$3&"/a" -> MWh/a | I105: =+I16*I52 -> 0 | J105: 0 | K105: 0 | L105: 0 | M105: 0 | N105: 0 | O105: 0 | P105: 0 | Q105: 0 | R105: 0 | S105: 0 | T105: 0 | U105: 0 | V105: 0 | W105: 0 | X105: 0 | Y105: 0 | Z105: 0 | AA105: 0 | AB105: 0 | AC105: 0
A106: 106 | B106: =+B$17 -> 11 | C106: =+C$17 -> [Settlement A] 3 | E106: =Consumers!O19 -> 0 | F106: =I106+NPV(+Summary!J$76,J106:AC106) -> 0 | G106: =Summary!$F$3&"/a" -> MWh/a | I106: =+I17*I53 -> 0 | J106: 0 | K106: 0 | L106: 0 | M106: 0 | N106: 0 | O106: 0 | P106: 0 | Q106: 0 | R106: 0 | S106: 0 | T106: 0 | U106: 0 | V106: 0 | W106: 0 | X106: 0 | Y106: 0 | Z106: 0 | AA106: 0 | AB106: 0 | AC106: 0
A107: 107 | B107: =+B$18 -> 12 | C107: =+C$18 -> [Settlement A] 4 | E107: =Consumers!O20 -> 0 | F107: =I107+NPV(+Summary!J$76,J107:AC107) -> 0 | G107: =Summary!$F$3&"/a" -> MWh/a | I107: =+I18*I54 -> 0 | J107: 0 | K107: 0 | L107: 0 | M107: 0 | N107: 0 | O107: 0 | P107: 0 | Q107: 0 | R107: 0 | S107: 0 | T107: 0 | U107: 0 | V107: 0 | W107: 0 | X107: 0 | Y107: 0 | Z107: 0 | AA107: 0 | AB107: 0 | AC107: 0
A108: 108 | B108: =+B$19 -> 13 | C108: =+C$19 -> [Settlement A] 5 | E108: =Consumers!O21 -> 0 | F108: =I108+NPV(+Summary!J$76,J108:AC108) -> 0 | G108: =Summary!$F$3&"/a" -> MWh/a | I108: =+I19*I55 -> 0 | J108: 0 | K108: 0 | L108: 0 | M108: 0 | N108: 0 | O108: 0 | P108: 0 | Q108: 0 | R108: 0 | S108: 0 | T108: 0 | U108: 0 | V108: 0 | W108: 0 | X108: 0 | Y108: 0 | Z108: 0 | AA108: 0 | AB108: 0 | AC108: 0
A109: 109 | B109: =+B$20 -> 14 | C109: =+C$20 -> [Settlement A] 6 | E109: =Consumers!O22 -> 0 | F109: =I109+NPV(+Summary!J$76,J109:AC109) -> 0 | G109: =Summary!$F$3&"/a" -> MWh/a | I109: =+I20*I56 -> 0 | J109: 0 | K109: 0 | L109: 0 | M109: 0 | N109: 0 | O109: 0 | P109: 0 | Q109: 0 | R109: 0 | S109: 0 | T109: 0 | U109: 0 | V109: 0 | W109: 0 | X109: 0 | Y109: 0 | Z109: 0 | AA109: 0 | AB109: 0 | AC109: 0
A110: 110 | B110: =+B$21 -> 15 | C110: =+C$21 -> [Settlement A] 7 | E110: =Consumers!O23 -> 0 | F110: =I110+NPV(+Summary!J$76,J110:AC110) -> 0 | G110: =Summary!$F$3&"/a" -> MWh/a | I110: =+I21*I57 -> 0 | J110: 0 | K110: 0 | L110: 0 | M110: 0 | N110: 0 | O110: 0 | P110: 0 | Q110: 0 | R110: 0 | S110: 0 | T110: 0 | U110: 0 | V110: 0 | W110: 0 | X110: 0 | Y110: 0 | Z110: 0 | AA110: 0 | AB110: 0 | AC110: 0
A111: 111 | B111: Total sale to DH consumers | E111: =+SUM(E96:E110) -> 0 | F111: =I111+NPV(+Summary!J$76,J111:AC111) -> 0 | G111: =Summary!$F$3&"/a" -> MWh/a | I111: =+SUM(I96:I110) -> 0 | J111: =+SUM(J96:J110) -> 0 | K111: 0 | L111: 0 | M111: 0 | N111: 0 | O111: 0 | P111: 0 | Q111: 0 | R111: =+SUM(R96:R110) -> 0 | S111: =+SUM(S96:S110) -> 0 | T111: 0 | U111: 0 | V111: 0 | W111: 0 | X111: 0 | Y111: 0 | Z111: 0 | AA111: 0 | AB111: 0 | AC111: 0
A112: 112 | B112: Connection in pct. of maximal net connection | G112: % | I112: =IF(I22=0,0,I111/I22) -> 0 | J112: 0 | K112: 0 | L112: 0 | M112: 0 | N112: 0 | O112: 0 | P112: 0 | Q112: 0 | R112: 0 | S112: 0 | T112: 0 | U112: 0 | V112: 0 | W112: 0 | X112: 0 | Y112: 0 | Z112: 0 | AA112: 0 | AB112: 0 | AC112: 0
A113: 113
A114: 114 | B114: Heat losses in networks
A115: 115 | B115: Heat losses in new distribution pipes | E115: =Summary!$F$3&"/a" -> MWh/a
A116: 116 | B116: =+B$7 -> 1 | C116: =+C$7 -> [Settlement B] 1 | E116: =+Network!S141 -> 0 | G116: =Summary!$F$3&"/a" -> MWh/a | I116: =+$E116*I25 -> 0 | J116: 0 | K116: 0 | L116: 0 | M116: 0 | N116: 0 | O116: 0 | P116: 0 | Q116: 0 | R116: 0 | S116: 0 | T116: 0 | U116: 0 | V116: 0 | W116: 0 | X116: 0 | Y116: 0 | Z116: 0 | AA116: 0 | AB116: 0 | AC116: 0
A117: 117 | B117: =+B$8 -> 2 | C117: =+C$8 -> [Settlement B] 2 | E117: =+Network!S142 -> 0 | G117: =Summary!$F$3&"/a" -> MWh/a | I117: =+$E117*I26 -> 0 | J117: 0 | K117: 0 | L117: 0 | M117: 0 | N117: 0 | O117: 0 | P117: 0 | Q117: 0 | R117: 0 | S117: 0 | T117: 0 | U117: 0 | V117: 0 | W117: 0 | X117: 0 | Y117: 0 | Z117: 0 | AA117: 0 | AB117: 0 | AC117: 0
A118: 118 | B118: =+B$9 -> 3 | C118: =+C$9 -> [Settlement B] 3 | E118: =+Network!S143 -> 0 | G118: =Summary!$F$3&"/a" -> MWh/a | I118: =+$E118*I27 -> 0 | J118: 0 | K118: 0 | L118: 0 | M118: 0 | N118: 0 | O118: 0 | P118: 0 | Q118: 0 | R118: 0 | S118: 0 | T118: 0 | U118: 0 | V118: 0 | W118: 0 | X118: 0 | Y118: 0 | Z118: 0 | AA118: 0 | AB118: 0 | AC118: 0
A119: 119 | B119: =+B$10 -> 4 | C119: =+C$10 -> [Settlement B] 4 | E119: =+Network!S144 -> 0 | G119: =Summary!$F$3&"/a" -> MWh/a | I119: =+$E119*I28 -> 0 | J119: 0 | K119: 0 | L119: 0 | M119: 0 | N119: 0 | O119: 0 | P119: 0 | Q119: 0 | R119: 0 | S119: 0 | T119: 0 | U119: 0 | V119: 0 | W119: 0 | X119: 0 | Y119: 0 | Z119: 0 | AA119: 0 | AB119: 0 | AC119: 0
A120: 120 | B120: =+B$11 -> 5 | C120: =+C$11 -> [Settlement B] 5 | E120: =+Network!S145 -> 0 | G120: =Summary!$F$3&"/a" -> MWh/a | I120: =+$E120*I29 -> 0 | J120: 0 | K120: 0 | L120: 0 | M120: 0 | N120: 0 | O120: 0 | P120: 0 | Q120: 0 | R120: 0 | S120: 0 | T120: 0 | U120: 0 | V120: 0 | W120: 0 | X120: 0 | Y120: 0 | Z120: 0 | AA120: 0 | AB120: 0 | AC120: 0
A121: 121 | B121: =+B$12 -> 6 | C121: =+C$12 -> [Settlement B] 6 | E121: =+Network!S146 -> 0 | G121: =Summary!$F$3&"/a" -> MWh/a | I121: =+$E121*I30 -> 0 | J121: 0 | K121: 0 | L121: 0 | M121: 0 | N121: 0 | O121: 0 | P121: 0 | Q121: 0 | R121: 0 | S121: 0 | T121: 0 | U121: 0 | V121: 0 | W121: 0 | X121: 0 | Y121: 0 | Z121: 0 | AA121: 0 | AB121: 0 | AC121: 0
A122: 122 | B122: =+B$13 -> 7 | C122: =+C$13 -> [Settlement B] 7 | E122: =+Network!S147 -> 0 | G122: =Summary!$F$3&"/a" -> MWh/a | I122: =+$E122*I31 -> 0 | J122: 0 | K122: 0 | L122: 0 | M122: 0 | N122: 0 | O122: 0 | P122: 0 | Q122: 0 | R122: 0 | S122: 0 | T122: 0 | U122: 0 | V122: 0 | W122: 0 | X122: 0 | Y122: 0 | Z122: 0 | AA122: 0 | AB122: 0 | AC122: 0
A123: 123 | B123: =+B$14 -> 8 | C123: =+C$14 -> [Settlement B] 8 | E123: =+Network!S148 -> 0 | G123: =Summary!$F$3&"/a" -> MWh/a | I123: =+$E123*I32 -> 0 | J123: 0 | K123: 0 | L123: 0 | M123: 0 | N123: 0 | O123: 0 | P123: 0 | Q123: 0 | R123: 0 | S123: 0 | T123: 0 | U123: 0 | V123: 0 | W123: 0 | X123: 0 | Y123: 0 | Z123: 0 | AA123: 0 | AB123: 0 | AC123: 0
A124: 124 | B124: =+B$15 -> 9 | C124: =+C$15 -> [Settlement A] Master | E124: =+Network!S149 -> 0 | G124: =Summary!$F$3&"/a" -> MWh/a | I124: =+$E124*I33 -> 0 | J124: 0 | K124: 0 | L124: 0 | M124: 0 | N124: 0 | O124: 0 | P124: 0 | Q124: 0 | R124: 0 | S124: 0 | T124: 0 | U124: 0 | V124: 0 | W124: 0 | X124: 0 | Y124: 0 | Z124: 0 | AA124: 0 | AB124: 0 | AC124: 0
A125: 125 | B125: =+B$16 -> 10 | C125: =+C$16 -> [Settlement A] 2 | E125: =+Network!S150 -> 0 | G125: =Summary!$F$3&"/a" -> MWh/a | I125: =+$E125*I34 -> 0 | J125: 0 | K125: 0 | L125: 0 | M125: 0 | N125: 0 | O125: 0 | P125: 0 | Q125: 0 | R125: 0 | S125: 0 | T125: 0 | U125: 0 | V125: 0 | W125: 0 | X125: 0 | Y125: 0 | Z125: 0 | AA125: 0 | AB125: 0 | AC125: 0
A126: 126 | B126: =+B$17 -> 11 | C126: =+C$17 -> [Settlement A] 3 | E126: =+Network!S151 -> 0 | G126: =Summary!$F$3&"/a" -> MWh/a | I126: =+$E126*I35 -> 0 | J126: 0 | K126: 0 | L126: 0 | M126: 0 | N126: 0 | O126: 0 | P126: 0 | Q126: 0 | R126: 0 | S126: 0 | T126: 0 | U126: 0 | V126: 0 | W126: 0 | X126: 0 | Y126: 0 | Z126: 0 | AA126: 0 | AB126: 0 | AC126: 0
A127: 127 | B127: =+B$18 -> 12 | C127: =+C$18 -> [Settlement A] 4 | E127: =+Network!S152 -> 0 | G127: =Summary!$F$3&"/a" -> MWh/a | I127: =+$E127*I36 -> 0 | J127: 0 | K127: 0 | L127: 0 | M127: 0 | N127: 0 | O127: 0 | P127: 0 | Q127: 0 | R127: 0 | S127: 0 | T127: 0 | U127: 0 | V127: 0 | W127: 0 | X127: 0 | Y127: 0 | Z127: 0 | AA127: 0 | AB127: 0 | AC127: 0
A128: 128 | B128: =+B$19 -> 13 | C128: =+C$19 -> [Settlement A] 5 | E128: =+Network!S153 -> 0 | G128: =Summary!$F$3&"/a" -> MWh/a | I128: =+$E128*I37 -> 0 | J128: 0 | K128: 0 | L128: 0 | M128: 0 | N128: 0 | O128: 0 | P128: 0 | Q128: 0 | R128: 0 | S128: 0 | T128: 0 | U128: 0 | V128: 0 | W128: 0 | X128: 0 | Y128: 0 | Z128: 0 | AA128: 0 | AB128: 0 | AC128: 0
A129: 129 | B129: =+B$20 -> 14 | C129: =+C$20 -> [Settlement A] 6 | E129: =+Network!S154 -> 0 | G129: =Summary!$F$3&"/a" -> MWh/a | I129: =+$E129*I38 -> 0 | J129: 0 | K129: 0 | L129: 0 | M129: 0 | N129: 0 | O129: 0 | P129: 0 | Q129: 0 | R129: 0 | S129: 0 | T129: 0 | U129: 0 | V129: 0 | W129: 0 | X129: 0 | Y129: 0 | Z129: 0 | AA129: 0 | AB129: 0 | AC129: 0
A130: 130 | B130: =+B$21 -> 15 | C130: =+C$21 -> [Settlement A] 7 | E130: =+Network!S155 -> 1076.157774 | G130: =Summary!$F$3&"/a" -> MWh/a | I130: =+$E130*I39 -> 0 | J130: 322.8473322 | K130: 645.6946643 | L130: 1076.157774 | M130: 1076.157774 | N130: 1076.157774 | O130: 1076.157774 | P130: 1076.157774 | Q130: 1076.157774 | R130: 1076.157774 | S130: 1076.157774 | T130: 1076.157774 | U130: 1076.157774 | V130: 1076.157774 | W130: 1076.157774 | X130: 1076.157774 | Y130: 1076.157774 | Z130: 1076.157774 | AA130: 1076.157774 | AB130: 1076.157774 | AC130: 1076.157774
A131: =+A130+1 -> 131 | B131: Heat losses in new distribution | E131: =SUM(E116:E130) -> 1076.157774 | G131: =Summary!$F$3&"/a" -> MWh/a | I131: =SUM(I116:I130) -> 0 | J131: 322.8473322 | K131: 645.6946643 | L131: 1076.157774 | M131: 1076.157774 | N131: 1076.157774 | O131: 1076.157774 | P131: 1076.157774 | Q131: 1076.157774 | R131: 1076.157774 | S131: 1076.157774 | T131: 1076.157774 | U131: 1076.157774 | V131: 1076.157774 | W131: 1076.157774 | X131: 1076.157774 | Y131: 1076.157774 | Z131: 1076.157774 | AA131: 1076.157774 | AB131: 1076.157774 | AC131: 1076.157774
A132: 132
A133: 133 | B133: Heat losses in new branch lines | E133: =Summary!$F$3&"/a" -> MWh/a
A134: 134 | B134: =+B$7 -> 1 | C134: =+C$7 -> [Settlement B] 1 | E134: =+Network!T141 -> 0 | G134: =Summary!$F$3&"/a" -> MWh/a | I134: =+$E134*I43 -> 0 | J134: 0 | K134: 0 | L134: 0 | M134: 0 | N134: 0 | O134: 0 | P134: 0 | Q134: 0 | R134: 0 | S134: 0 | T134: 0 | U134: 0 | V134: 0 | W134: 0 | X134: 0 | Y134: 0 | Z134: 0 | AA134: 0 | AB134: 0 | AC134: 0
A135: 135 | B135: =+B$8 -> 2 | C135: =+C$8 -> [Settlement B] 2 | E135: =+Network!T142 -> 0 | G135: =Summary!$F$3&"/a" -> MWh/a | I135: =+$E135*I44 -> 0 | J135: 0 | K135: 0 | L135: 0 | M135: 0 | N135: 0 | O135: 0 | P135: 0 | Q135: 0 | R135: 0 | S135: 0 | T135: 0 | U135: 0 | V135: 0 | W135: 0 | X135: 0 | Y135: 0 | Z135: 0 | AA135: 0 | AB135: 0 | AC135: 0
A136: 136 | B136: =+B$9 -> 3 | C136: =+C$9 -> [Settlement B] 3 | E136: =+Network!T143 -> 0 | G136: =Summary!$F$3&"/a" -> MWh/a | I136: =+$E136*I45 -> 0 | J136: 0 | K136: 0 | L136: 0 | M136: 0 | N136: 0 | O136: 0 | P136: 0 | Q136: 0 | R136: 0 | S136: 0 | T136: 0 | U136: 0 | V136: 0 | W136: 0 | X136: 0 | Y136: 0 | Z136: 0 | AA136: 0 | AB136: 0 | AC136: 0
A137: 137 | B137: =+B$10 -> 4 | C137: =+C$10 -> [Settlement B] 4 | E137: =+Network!T144 -> 0 | G137: =Summary!$F$3&"/a" -> MWh/a | I137: =+$E137*I46 -> 0 | J137: 0 | K137: 0 | L137: 0 | M137: 0 | N137: 0 | O137: 0 | P137: 0 | Q137: 0 | R137: 0 | S137: 0 | T137: 0 | U137: 0 | V137: 0 | W137: 0 | X137: 0 | Y137: 0 | Z137: 0 | AA137: 0 | AB137: 0 | AC137: 0
A138: 138 | B138: =+B$11 -> 5 | C138: =+C$11 -> [Settlement B] 5 | E138: =+Network!T145 -> 0 | G138: =Summary!$F$3&"/a" -> MWh/a | I138: =+$E138*I47 -> 0 | J138: 0 | K138: 0 | L138: 0 | M138: 0 | N138: 0 | O138: 0 | P138: 0 | Q138: 0 | R138: 0 | S138: 0 | T138: 0 | U138: 0 | V138: 0 | W138: 0 | X138: 0 | Y138: 0 | Z138: 0 | AA138: 0 | AB138: 0 | AC138: 0
A139: 139 | B139: =+B$12 -> 6 | C139: =+C$12 -> [Settlement B] 6 | E139: =+Network!T146 -> 0 | G139: =Summary!$F$3&"/a" -> MWh/a | I139: =+$E139*I48 -> 0 | J139: 0 | K139: 0 | L139: 0 | M139: 0 | N139: 0 | O139: 0 | P139: 0 | Q139: 0 | R139: 0 | S139: 0 | T139: 0 | U139: 0 | V139: 0 | W139: 0 | X139: 0 | Y139: 0 | Z139: 0 | AA139: 0 | AB139: 0 | AC139: 0
A140: 140 | B140: =+B$13 -> 7 | C140: =+C$13 -> [Settlement B] 7 | E140: =+Network!T147 -> 0 | G140: =Summary!$F$3&"/a" -> MWh/a | I140: =+$E140*I49 -> 0 | J140: 0 | K140: 0 | L140: 0 | M140: 0 | N140: 0 | O140: 0 | P140: 0 | Q140: 0 | R140: 0 | S140: 0 | T140: 0 | U140: 0 | V140: 0 | W140: 0 | X140: 0 | Y140: 0 | Z140: 0 | AA140: 0 | AB140: 0 | AC140: 0
A141: 141 | B141: =+B$14 -> 8 | C141: =+C$14 -> [Settlement B] 8 | E141: =+Network!T148 -> 0 | G141: =Summary!$F$3&"/a" -> MWh/a | I141: =+$E141*I50 -> 0 | J141: 0 | K141: 0 | L141: 0 | M141: 0 | N141: 0 | O141: 0 | P141: 0 | Q141: 0 | R141: 0 | S141: 0 | T141: 0 | U141: 0 | V141: 0 | W141: 0 | X141: 0 | Y141: 0 | Z141: 0 | AA141: 0 | AB141: 0 | AC141: 0
A142: 142 | B142: =+B$15 -> 9 | C142: =+C$15 -> [Settlement A] Master | E142: =+Network!T149 -> 0 | G142: =Summary!$F$3&"/a" -> MWh/a | I142: =+$E142*I51 -> 0 | J142: 0 | K142: 0 | L142: 0 | M142: 0 | N142: 0 | O142: 0 | P142: 0 | Q142: 0 | R142: 0 | S142: 0 | T142: 0 | U142: 0 | V142: 0 | W142: 0 | X142: 0 | Y142: 0 | Z142: 0 | AA142: 0 | AB142: 0 | AC142: 0
A143: 143 | B143: =+B$16 -> 10 | C143: =+C$16 -> [Settlement A] 2 | E143: =+Network!T150 -> 0 | G143: =Summary!$F$3&"/a" -> MWh/a | I143: =+$E143*I52 -> 0 | J143: 0 | K143: 0 | L143: 0 | M143: 0 | N143: 0 | O143: 0 | P143: 0 | Q143: 0 | R143: 0 | S143: 0 | T143: 0 | U143: 0 | V143: 0 | W143: 0 | X143: 0 | Y143: 0 | Z143: 0 | AA143: 0 | AB143: 0 | AC143: 0
A144: 144 | B144: =+B$17 -> 11 | C144: =+C$17 -> [Settlement A] 3 | E144: =+Network!T151 -> 0 | G144: =Summary!$F$3&"/a" -> MWh/a | I144: =+$E144*I53 -> 0 | J144: 0 | K144: 0 | L144: 0 | M144: 0 | N144: 0 | O144: 0 | P144: 0 | Q144: 0 | R144: 0 | S144: 0 | T144: 0 | U144: 0 | V144: 0 | W144: 0 | X144: 0 | Y144: 0 | Z144: 0 | AA144: 0 | AB144: 0 | AC144: 0
A145: 145 | B145: =+B$18 -> 12 | C145: =+C$18 -> [Settlement A] 4 | E145: =+Network!T152 -> 0 | G145: =Summary!$F$3&"/a" -> MWh/a | I145: =+$E145*I54 -> 0 | J145: 0 | K145: 0 | L145: 0 | M145: 0 | N145: 0 | O145: 0 | P145: 0 | Q145: 0 | R145: 0 | S145: 0 | T145: 0 | U145: 0 | V145: 0 | W145: 0 | X145: 0 | Y145: 0 | Z145: 0 | AA145: 0 | AB145: 0 | AC145: 0
A146: 146 | B146: =+B$19 -> 13 | C146: =+C$19 -> [Settlement A] 5 | E146: =+Network!T153 -> 0 | G146: =Summary!$F$3&"/a" -> MWh/a | I146: =+$E146*I55 -> 0 | J146: 0 | K146: 0 | L146: 0 | M146: 0 | N146: 0 | O146: 0 | P146: 0 | Q146: 0 | R146: 0 | S146: 0 | T146: 0 | U146: 0 | V146: 0 | W146: 0 | X146: 0 | Y146: 0 | Z146: 0 | AA146: 0 | AB146: 0 | AC146: 0
A147: 147 | B147: =+B$20 -> 14 | C147: =+C$20 -> [Settlement A] 6 | E147: =+Network!T154 -> 0 | G147: =Summary!$F$3&"/a" -> MWh/a | I147: =+$E147*I56 -> 0 | J147: 0 | K147: 0 | L147: 0 | M147: 0 | N147: 0 | O147: 0 | P147: 0 | Q147: 0 | R147: 0 | S147: 0 | T147: 0 | U147: 0 | V147: 0 | W147: 0 | X147: 0 | Y147: 0 | Z147: 0 | AA147: 0 | AB147: 0 | AC147: 0
A148: =+A147+1 -> 148 | B148: =+B$21 -> 15 | C148: =+C$21 -> [Settlement A] 7 | E148: =+Network!T155 ->  | G148: =Summary!$F$3&"/a" -> MWh/a | I148: =+$E148*I57 -> 
A149: 149 | B149: Heat losses in new branch lines | E149: =SUM(E134:E148) ->  | G149: =Summary!$F$3&"/a" -> MWh/a | I149: =SUM(I134:I148) -> 
A150: 150
A151: 151 | B151: Heat losses in new networks | E151: =+E131+E149 ->  | G151: =Summary!$F$3&"/a" -> MWh/a | I151: =+I131+I149 -> 
A152: 152 | B152: Heat losses in new networks | E152: in pct. of production | G152: % | I152: =+IF((I111+I151)=0,0,I151/(I111+I151)) -> 
A153: 153
A154: 154 | B154: Total heat demand and production
A155: 155 | B155: New district heating | F155: =I155+NPV(+F$199,J155:AC155) -> 0 | G155: =Summary!$F$3&"/a" -> MWh/a | I155: =+I111 -> 0 | J155: 0 | K155: 0 | L155: 0 | M155: 0 | N155: 0 | O155: 0 | P155: 0 | Q155: 0 | R155: 0 | S155: 0 | T155: 0 | U155: 0 | V155: 0 | W155: 0 | X155: 0 | Y155: 0 | Z155: 0 | AA155: 0 | AB155: 0 | AC155: 0
A156: 156 | B156: New district heating losses | F156: =I156+NPV(+F$199,J156:AC156) ->  | G156: =Summary!$F$3&"/a" -> MWh/a | I156: =I151 -> 
A157: 157 | B157: District heating production in total | F157: =I157+NPV(+F$199,J157:AC157) ->  | G157: =Summary!$F$3&"/a" -> MWh/a | I157: =SUM(I155:I156) ->  | J157: =SUM(J155:J156) ->  | K157: =SUM(K155:K156) -> 
A158: 158
A159: 159 | B159: Max load hours to network | E159: =+Summary!F34 -> 3000 | G159: h | I159: =+$E159 -> 3000 | J159: =+$E159 -> 3000 | K159: 3000 | L159: 3000 | M159: 3000 | N159: 3000 | O159: 3000 | P159: 3000 | Q159: 3000 | R159: 3000 | S159: 3000 | T159: 3000 | U159: 3000 | V159: 3000 | W159: 3000 | X159: 3000 | Y159: 3000 | Z159: 3000 | AA159: 3000 | AB159: 3000 | AC159: 3000
A160: 160 | B160: Max heat load to network | G160: =Summary!$E$3&"" -> MW | I160: =+I157/I159 ->  | J160: =+J157/J159 -> 
A161: 161
A162: 162 | B162: Heat production capacities | E162: Default capacities | I162: Alternative to default values for each plant each year each year is possible. Not for peak and not decreasing capacity
A163: 163 | B163: =+Summary!D28 -> Supplier, large CHP | D163: =+Summary!F28 -> External | E163: =+Summary!G28 -> 0 | G163: =Summary!$E$3&"" -> MW | I163: =+$E163 -> 0 | J163: =+$E163 -> 0 | K163: 0 | L163: 0 | M163: 0 | N163: 0 | O163: 0 | P163: 0 | Q163: 0 | R163: 0 | S163: 0 | T163: 0 | U163: 0 | V163: 0 | W163: 0 | X163: 0 | Y163: 0 | Z163: =+$E163 -> 0 | AA163: 0 | AB163: 0 | AC163: 0
A164: 164 | B164: =+Summary!D29 -> Supplier, Surplus heat | D164: =+Summary!F29 -> External | E164: =+Summary!G29 -> 1 | G164: =Summary!$E$3&"" -> MW | I164: 0 | J164: 1 | K164: 1 | L164: 1 | M164: 1 | N164: 1 | O164: 1 | P164: 1 | Q164: 1 | R164: 1 | S164: 1 | T164: 1 | U164: 1 | V164: 1 | W164: 1 | X164: 1 | Y164: 1 | Z164: 1 | AA164: 1 | AB164: 1 | AC164: 1
A165: 165 | B165: =+Summary!D30 -> Gas CHP | D165: =+Summary!F30 -> Internal | E165: =+Summary!G30 -> 20 | G165: =Summary!$E$3&"" -> MW | I165: 0 | J165: 20 | K165: 20 | L165: 20 | M165: 20 | N165: 20 | O165: 20 | P165: 20 | Q165: 20 | R165: 20 | S165: 20 | T165: 20 | U165: 20 | V165: 20 | W165: 20 | X165: 20 | Y165: 20 | Z165: 20 | AA165: 20 | AB165: 20 | AC165: 20
A166: 166 | B166: =+Summary!D31 -> Biomass boiler | D166: =+Summary!F31 -> Internal | E166: =+Summary!G31 -> 0 | G166: =Summary!$E$3&"" -> MW | I166: 0 | J166: 0 | K166: 0 | L166: 0 | M166: 0 | N166: 0 | O166: 0 | P166: 0 | Q166: 0 | R166: 0 | S166: 0 | T166: 0 | U166: 0 | V166: 0 | W166: 0 | X166: 0 | Y166: 0 | Z166: 0 | AA166: 0 | AB166: 0 | AC166: 0
A167: 167 | B167: =+Summary!D32 -> Large heat pump | D167: =+Summary!F32 -> Internal | E167: =+Summary!G32 -> 1 | G167: =Summary!$E$3&"" -> MW | I167: 0 | J167: 1 | K167: 1 | L167: 1 | M167: 1 | N167: 1 | O167: 1 | P167: 1 | Q167: 1 | R167: 1 | S167: 1 | T167: 1 | U167: 1 | V167: 1 | W167: 1 | X167: 1 | Y167: 1 | Z167: 1 | AA167: 1 | AB167: 1 | AC167: 1
A168: 168 | B168: =+Summary!D33 -> Peak boiler | D168: =+Summary!F33 -> Internal | E168: =+O170-SUM(O163:O167) ->  | G168: =Summary!$E$3&"" -> MW
A169: 169 | B169: Total available capacity | E169: =SUM(E163:E168) ->  | G169: =Summary!$E$3&"" -> MW | I169: =SUM(I163:I168) ->  | J169: =SUM(J163:J168) ->  | K169: =SUM(K163:K168) ->  | L169: =SUM(L163:L168) ->  | M169: =SUM(M163:M168) ->  | N169: =SUM(N163:N168) ->  | O169: =SUM(O163:O168) ->  | P169: =SUM(P163:P168) ->  | Q169: =SUM(Q163:Q168) ->  | R169: =SUM(R163:R168) ->  | S169: =SUM(S163:S168) ->  | T169: =SUM(T163:T168) ->  | U169: =SUM(U163:U168) ->  | V169: =SUM(V163:V168) ->  | W169: =SUM(W163:W168) ->  | X169: =SUM(X163:X168) ->  | Y169: =SUM(Y163:Y168) ->  | Z169: =SUM(Z163:Z168) ->  | AA169: =SUM(AA163:AA168) ->  | AB169: =SUM(AB163:AB168) ->  | AC169: =SUM(AC163:AC168) -> 
A170: 170 | B170: Minimum capacity | D170: Minimal 2021 | E170: =+Summary!L34 -> 1.2 | G170: =Summary!$E$3&"" -> MW | I170: =+I160*$E170 ->  | J170: =+J160*$E170 -> 
A171: 171 | B171: Actual security | I171: =+IF(I160=0,0,I169/I160) ->  | J171: =+IF(J160=0,0,J169/J160) -> 
A172: 172 | B172: Load dispatch | E172: Default | F172: Data from Energypro simulation | I172: Alternatives to default values for each year is possible, only peak boiler >0%
A173: 173 | B173: =+B163 -> Supplier, large CHP | E173: =+Summary!H28 -> 0 | G173: % | I173: =+$E173 -> 0 | J173: =+$E173 -> 0 | K173: =+$E173 -> 0 | L173: 0 | M173: 0 | N173: 0 | O173: 0 | P173: 0 | Q173: 0 | R173: 0 | S173: 0 | T173: 0 | U173: 0 | V173: 0 | W173: 0 | X173: 0 | Y173: 0 | Z173: 0 | AA173: =+$E173 -> 0 | AB173: 0 | AC173: 0
A174: 174 | B174: Supplier, Surplus heat | E174: =+Summary!H29 -> 0.08 | G174: % | I174: =+$E174 -> 0.08 | J174: 0.08 | K174: 0.08 | L174: 0.08 | M174: 0.08 | N174: 0.08 | O174: 0.08 | P174: 0.08 | Q174: 0.08 | R174: 0.08 | S174: 0.08 | T174: 0.08 | U174: 0.08 | V174: 0.08 | W174: 0.08 | X174: 0.08 | Y174: 0.08 | Z174: 0.08 | AA174: 0.08 | AB174: 0.08 | AC174: 0.08
A175: 175 | B175: Gas CHP | E175: =+Summary!H30 -> 0.8 | G175: % | I175: 0.8 | J175: 0.8 | K175: 0.8 | L175: 0.8 | M175: 0.8 | N175: 0.8 | O175: 0.8 | P175: 0.8 | Q175: 0.8 | R175: 0.8 | S175: 0.8 | T175: 0.8 | U175: 0.8 | V175: 0.8 | W175: 0.8 | X175: 0.8 | Y175: 0.8 | Z175: 0.8 | AA175: 0.8 | AB175: 0.8 | AC175: 0.8
A176: 176 | B176: Biomass boiler | E176: =+Summary!H31 -> 0 | G176: % | I176: 0 | J176: 0 | K176: 0 | L176: 0 | M176: 0 | N176: 0 | O176: 0 | P176: 0 | Q176: 0 | R176: 0 | S176: 0 | T176: 0 | U176: 0 | V176: 0 | W176: 0 | X176: 0 | Y176: 0 | Z176: 0 | AA176: 0 | AB176: 0 | AC176: 0
A177: 177 | B177: Large heat pump | E177: =+Summary!H32 -> 0.07 | G177: % | I177: 0.07 | J177: 0.07 | K177: 0.07 | L177: 0.07 | M177: 0.07 | N177: 0.07 | O177: 0.07 | P177: 0.07 | Q177: 0.07 | R177: 0.07 | S177: 0.07 | T177: 0.07 | U177: 0.07 | V177: 0.07 | W177: 0.07 | X177: 0.07 | Y177: 0.07 | Z177: 0.07 | AA177: 0.07 | AB177: 0.07 | AC177: 0.07
A178: 178 | B178: Peak boiler | D178: Rest | E178: =+AC178 -> 0.05 | G178: % | I178: =+I179-SUM(I173:I177) -> 0.05 | J178: =+J179-SUM(J173:J177) -> 0.05 | K178: 0.05 | L178: 0.05 | M178: 0.05 | N178: 0.05 | O178: 0.05 | P178: 0.05 | Q178: 0.05 | R178: 0.05 | S178: 0.05 | T178: 0.05 | U178: 0.05 | V178: 0.05 | W178: 0.05 | X178: 0.05 | Y178: 0.05 | Z178: 0.05 | AA178: 0.05 | AB178: 0.05 | AC178: 0.05
A179: 179 | B179: Total | G179: % | I179: 1 | J179: 1 | K179: 1 | L179: 1 | M179: 1 | N179: 1 | O179: 1 | P179: 1 | Q179: 1 | R179: 1 | S179: 1 | T179: 1 | U179: 1 | V179: 1 | W179: 1 | X179: 1 | Y179: 1 | Z179: 1 | AA179: 1 | AB179: 1 | AC179: 1
A180: 180
A181: 181 | B181: =+B163 -> Supplier, large CHP | F181: =I181+NPV(+F$199,J181:AC181) ->  | G181: =Summary!$F$3&"/a" -> MWh/a | I181: =+I$157*I173 ->  | J181: =+J$157*J173 -> 
A182: 182 | B182: Supplier, Surplus heat | G182: =Summary!$F$3&"/a" -> MWh/a | J182: =+J$157*J174 -> 
A183: 183 | B183: Gas CHP | G183: =Summary!$F$3&"/a" -> MWh/a | J183: =+J$157*J175 -> 
A184: 184 | B184: Biomass boiler | G184: =Summary!$F$3&"/a" -> MWh/a | J184: =+J$157*J176 -> 
A185: 185 | B185: Large heat pump | G185: =Summary!$F$3&"/a" -> MWh/a | J185: =+J$157*J177 -> 
A186: 186 | B186: Peak boiler | G186: =Summary!$F$3&"/a" -> MWh/a | J186: =+J$157*J178 -> 
A187: 187 | B187: =+B179 -> Total | G187: =Summary!$F$3&"/a" -> MWh/a | J187: =+J$157*J179 -> 
A188: 188 | B188: control figure to be zero | I188: =+SUM(I181:I186)-I187 ->  | J188: =+SUM(J181:J186)-J187 ->  | K188: =+SUM(K181:K186)-K187 -> 
A189: 189 | B189: Max load hours of production plants | E189: Maximal | F189: Actual last year
A190: 190 | B190: =+B163 -> Supplier, large CHP | E190: =+Summary!L28 -> 8760 | F190: =+AC190 -> 0 | G190: h | I190: =+IF(I163=0,0,IF(I181/I163>$E190,"too large",I181/I163)) -> 0 | J190: 0 | K190: 0 | L190: 0 | M190: 0 | N190: 0 | O190: 0 | P190: 0 | Q190: 0 | R190: 0 | S190: 0 | T190: 0 | U190: 0 | V190: 0 | W190: 0 | X190: 0 | Y190: 0 | Z190: 0 | AA190: 0 | AB190: 0 | AC190: 0
A191: 191 | B191: Supplier, Surplus heat | E191: =+Summary!L29 -> 8760 | F191: =+AC191 ->  | G191: h | I191: =+IF(I164=0,0,IF(I182/I164>$E191,"too large",I182/I164)) -> 0
A192: 192 | B192: Gas CHP | E192: =+Summary!L30 -> 8760 | G192: h | I192: =+IF(I165=0,0,IF(I183/I165>$E192,"too large",I183/I165)) -> 0
A193: 193 | B193: Biomass boiler | E193: =+Summary!L31 -> 8760 | F193: 0 | G193: h | I193: =+IF(I166=0,0,IF(I184/I166>$E193,"too large",I184/I166)) -> 0 | J193: 0 | K193: 0 | L193: 0 | M193: 0 | N193: 0 | O193: 0 | P193: 0 | Q193: 0 | R193: 0 | S193: 0 | T193: 0 | U193: 0 | V193: 0 | W193: 0 | X193: 0 | Y193: 0 | Z193: 0 | AA193: 0 | AB193: 0 | AC193: 0
A194: 194 | B194: Large heat pump | E194: =+Summary!L32 -> 8760 | G194: h | I194: 0
A195: 195 | B195: Peak boiler | E195: =+Summary!L33 -> 8760 | G195: h | I195: =+IF(I168=0,0,IF(I186/I168>$E195,"too large",I186/I168)) -> 
A196: 196
A197: 197
A198: 198 | B198: Cost | F198: NPV | G198: Fixed price
A199: 199 | B199: Cost of DH production in DH scenario | E199: =+SUM(J199:AC199) -> 14.87747486 | F199: =+Summary!J76 -> 0.03 | G199: ex. VAT | I199: 1 | J199: =+I199/(1+$F199) -> 0.9708737864 | K199: =+J199/(1+$F199) -> 0.9425959091 | L199: 0.9151416594 | M199: 0.8884870479 | N199: 0.8626087844 | O199: 0.8374842567 | P199: 0.8130915113 | Q199: 0.7894092343 | R199: 0.7664167323 | S199: 0.7440939149 | T199: 0.7224212766 | U199: 0.7013798802 | V199: 0.68095134 | W199: 0.6611178058 | X199: 0.6418619474 | Y199: 0.6231669392 | Z199: 0.6050164458 | AA199: 0.5873946076 | AB199: 0.5702860268 | AC199: 0.5536757542
A200: 200 | B200: Investment cost in production | D200: ="k"&Summary!$G$3&"/"&Summary!$E3 -> k£/MW | E200: Total
... 389 more rows

Sheet Baseline
A1: 1 | B1: Base line | F1: NPV | G1: Unit | I1: =+Summary!H3 -> 2015 | J1: =+I1+1 -> 2016 | K1: 2017 | L1: 2018 | M1: 2019 | N1: 2020 | O1: 2021 | P1: 2022 | Q1: 2023 | R1: 2024 | S1: 2025 | T1: 2026 | U1: 2027 | V1: 2028 | W1: 2029 | X1: 2030 | Y1: =+X1+1 -> 2031 | Z1: =+Y1+1 -> 2032 | AA1: =+Z1+1 -> 2033 | AB1: =+AA1+1 -> 2034 | AC1: =+AB1+1 -> 2035
A2: =+A1+1 -> 2 | B2: All costs excl. VAT | I2: Base year | J2: Project operation in economic analysis
A3: =+A2+1 -> 3 | B3: =+Project!B3 -> Heat demand
A4: 4 | B4: Development of heat demand per year | E4: =+Summary!F5 -> -0.005 | G4: % | I4: =100% -> 1 | J4: =+I4*(1+$E4) -> 0.995 | K4: =+J4*(1+$E4) -> 0.990025 | L4: 0.985074875 | M4: 0.9801495006 | N4: 0.9752487531 | O4: 0.9703725094 | P4: 0.9655206468 | Q4: 0.9606930436 | R4: 0.9558895784 | S4: 0.9511101305 | T4: 0.9463545798 | U4: 0.9416228069 | V4: 0.9369146929 | W4: 0.9322301194 | X4: 0.9275689688 | Y4: 0.922931124 | Z4: 0.9183164684 | AA4: 0.913724886 | AB4: 0.9091562616 | AC4: 0.9046104803
A5: 5 | B5: Heat pump | E5: =Summary!$F$3&"/a" -> MWh/a
A6: 6 | B6: =+Project!B7 -> 1 | C6: =+Project!C7 -> [Settlement B] 1 | E6: =Consumers!BB9 -> 0 | G6: =Summary!$F$3&"/a" -> MWh/a | I6: =+Project!I43*$E6*I$4 -> 0 | J6: =+Project!J43*$E6*J$4 -> 0 | K6: =+Project!K43*$E6*K$4 -> 0 | L6: =+Project!L43*$E6*L$4 -> 0 | M6: =+Project!M43*$E6*M$4 -> 0 | N6: =+Project!N43*$E6*N$4 -> 0 | O6: =+Project!O43*$E6*O$4 -> 0 | P6: =+Project!P43*$E6*P$4 -> 0 | Q6: =+Project!Q43*$E6*Q$4 -> 0 | R6: =+Project!R43*$E6*R$4 -> 0 | S6: =+Project!S43*$E6*S$4 -> 0 | T6: =+Project!T43*$E6*T$4 -> 0 | U6: =+Project!U43*$E6*U$4 -> 0 | V6: =+Project!V43*$E6*V$4 -> 0 | W6: =+Project!W43*$E6*W$4 -> 0 | X6: =+Project!X43*$E6*X$4 -> 0 | Y6: =+Project!Y43*$E6*Y$4 -> 0 | Z6: =+Project!Z43*$E6*Z$4 -> 0 | AA6: =+Project!AA43*$E6*AA$4 -> 0 | AB6: =+Project!AB43*$E6*AB$4 -> 0 | AC6: =+Project!AC43*$E6*AC$4 -> 0
A7: =+A6+1 -> 7 | B7: =+Project!B8 -> 2 | C7: =+Project!C8 -> [Settlement B] 2 | E7: =Consumers!BB10 -> 0 | G7: =Summary!$F$3&"/a" -> MWh/a | I7: =+Project!I44*$E7*I$4 -> 0 | J7: =+Project!J44*$E7*J$4 -> 0 | K7: =+Project!K44*$E7*K$4 -> 0 | L7: =+Project!L44*$E7*L$4 -> 0 | M7: =+Project!M44*$E7*M$4 -> 0 | N7: =+Project!N44*$E7*N$4 -> 0 | O7: =+Project!O44*$E7*O$4 -> 0 | P7: =+Project!P44*$E7*P$4 -> 0 | Q7: =+Project!Q44*$E7*Q$4 -> 0 | R7: =+Project!R44*$E7*R$4 -> 0 | S7: =+Project!S44*$E7*S$4 -> 0 | T7: =+Project!T44*$E7*T$4 -> 0 | U7: =+Project!U44*$E7*U$4 -> 0 | V7: =+Project!V44*$E7*V$4 -> 0 | W7: =+Project!W44*$E7*W$4 -> 0 | X7: =+Project!X44*$E7*X$4 -> 0 | Y7: =+Project!Y44*$E7*Y$4 -> 0 | Z7: =+Project!Z44*$E7*Z$4 -> 0 | AA7: =+Project!AA44*$E7*AA$4 -> 0 | AB7: =+Project!AB44*$E7*AB$4 -> 0 | AC7: =+Project!AC44*$E7*AC$4 -> 0
A8: 8 | B8: =+Project!B9 -> 3 | C8: =+Project!C9 -> [Settlement B] 3 | E8: =Consumers!BB11 -> 0 | G8: =Summary!$F$3&"/a" -> MWh/a | I8: =+Project!I45*$E8*I$4 -> 0 | J8: =+Project!J45*$E8*J$4 -> 0 | K8: =+Project!K45*$E8*K$4 -> 0 | L8: =+Project!L45*$E8*L$4 -> 0 | M8: =+Project!M45*$E8*M$4 -> 0 | N8: =+Project!N45*$E8*N$4 -> 0 | O8: =+Project!O45*$E8*O$4 -> 0 | P8: =+Project!P45*$E8*P$4 -> 0 | Q8: =+Project!Q45*$E8*Q$4 -> 0 | R8: =+Project!R45*$E8*R$4 -> 0 | S8: =+Project!S45*$E8*S$4 -> 0 | T8: =+Project!T45*$E8*T$4 -> 0 | U8: =+Project!U45*$E8*U$4 -> 0 | V8: =+Project!V45*$E8*V$4 -> 0 | W8: =+Project!W45*$E8*W$4 -> 0 | X8: =+Project!X45*$E8*X$4 -> 0 | Y8: =+Project!Y45*$E8*Y$4 -> 0 | Z8: =+Project!Z45*$E8*Z$4 -> 0 | AA8: =+Project!AA45*$E8*AA$4 -> 0 | AB8: =+Project!AB45*$E8*AB$4 -> 0 | AC8: =+Project!AC45*$E8*AC$4 -> 0
A9: 9 | B9: =+Project!B10 -> 4 | C9: =+Project!C10 -> [Settlement B] 4 | E9: =Consumers!BB12 -> 0 | G9: =Summary!$F$3&"/a" -> MWh/a | I9: =+Project!I46*$E9*I$4 -> 0 | J9: =+Project!J46*$E9*J$4 -> 0 | K9: =+Project!K46*$E9*K$4 -> 0 | L9: =+Project!L46*$E9*L$4 -> 0 | M9: =+Project!M46*$E9*M$4 -> 0 | N9: =+Project!N46*$E9*N$4 -> 0 | O9: =+Project!O46*$E9*O$4 -> 0 | P9: =+Project!P46*$E9*P$4 -> 0 | Q9: =+Project!Q46*$E9*Q$4 -> 0 | R9: =+Project!R46*$E9*R$4 -> 0 | S9: =+Project!S46*$E9*S$4 -> 0 | T9: =+Project!T46*$E9*T$4 -> 0 | U9: =+Project!U46*$E9*U$4 -> 0 | V9: =+Project!V46*$E9*V$4 -> 0 | W9: =+Project!W46*$E9*W$4 -> 0 | X9: =+Project!X46*$E9*X$4 -> 0 | Y9: =+Project!Y46*$E9*Y$4 -> 0 | Z9: =+Project!Z46*$E9*Z$4 -> 0 | AA9: =+Project!AA46*$E9*AA$4 -> 0 | AB9: =+Project!AB46*$E9*AB$4 -> 0 | AC9: =+Project!AC46*$E9*AC$4 -> 0
A10: 10 | B10: =+Project!B11 -> 5 | C10: =+Project!C11 -> [Settlement B] 5 | E10: =Consumers!BB13 -> 0 | G10: =Summary!$F$3&"/a" -> MWh/a | I10: =+Project!I47*$E10*I$4 -> 0 | J10: =+Project!J47*$E10*J$4 -> 0 | K10: =+Project!K47*$E10*K$4 -> 0 | L10: =+Project!L47*$E10*L$4 -> 0 | M10: =+Project!M47*$E10*M$4 -> 0 | N10: =+Project!N47*$E10*N$4 -> 0 | O10: =+Project!O47*$E10*O$4 -> 0 | P10: =+Project!P47*$E10*P$4 -> 0 | Q10: =+Project!Q47*$E10*Q$4 -> 0 | R10: =+Project!R47*$E10*R$4 -> 0 | S10: =+Project!S47*$E10*S$4 -> 0 | T10: =+Project!T47*$E10*T$4 -> 0 | U10: =+Project!U47*$E10*U$4 -> 0 | V10: =+Project!V47*$E10*V$4 -> 0 | W10: =+Project!W47*$E10*W$4 -> 0 | X10: =+Project!X47*$E10*X$4 -> 0 | Y10: =+Project!Y47*$E10*Y$4 -> 0 | Z10: =+Project!Z47*$E10*Z$4 -> 0 | AA10: =+Project!AA47*$E10*AA$4 -> 0 | AB10: =+Project!AB47*$E10*AB$4 -> 0 | AC10: =+Project!AC47*$E10*AC$4 -> 0
A11: 11 | B11: =+Project!B12 -> 6 | C11: =+Project!C12 -> [Settlement B] 6 | E11: =Consumers!BB14 -> 0 | G11: =Summary!$F$3&"/a" -> MWh/a | I11: =+Project!I48*$E11*I$4 -> 0 | J11: =+Project!J48*$E11*J$4 -> 0 | K11: =+Project!K48*$E11*K$4 -> 0 | L11: =+Project!L48*$E11*L$4 -> 0 | M11: =+Project!M48*$E11*M$4 -> 0 | N11: =+Project!N48*$E11*N$4 -> 0 | O11: =+Project!O48*$E11*O$4 -> 0 | P11: =+Project!P48*$E11*P$4 -> 0 | Q11: =+Project!Q48*$E11*Q$4 -> 0 | R11: =+Project!R48*$E11*R$4 -> 0 | S11: =+Project!S48*$E11*S$4 -> 0 | T11: =+Project!T48*$E11*T$4 -> 0 | U11: =+Project!U48*$E11*U$4 -> 0 | V11: =+Project!V48*$E11*V$4 -> 0 | W11: =+Project!W48*$E11*W$4 -> 0 | X11: =+Project!X48*$E11*X$4 -> 0 | Y11: =+Project!Y48*$E11*Y$4 -> 0 | Z11: =+Project!Z48*$E11*Z$4 -> 0 | AA11: =+Project!AA48*$E11*AA$4 -> 0 | AB11: =+Project!AB48*$E11*AB$4 -> 0 | AC11: =+Project!AC48*$E11*AC$4 -> 0
A12: 12 | B12: =+Project!B13 -> 7 | C12: =+Project!C13 -> [Settlement B] 7 | E12: =Consumers!BB15 -> 0 | G12: =Summary!$F$3&"/a" -> MWh/a | I12: =+Project!I49*$E12*I$4 -> 0 | J12: =+Project!J49*$E12*J$4 -> 0 | K12: =+Project!K49*$E12*K$4 -> 0 | L12: =+Project!L49*$E12*L$4 -> 0 | M12: =+Project!M49*$E12*M$4 -> 0 | N12: =+Project!N49*$E12*N$4 -> 0 | O12: =+Project!O49*$E12*O$4 -> 0 | P12: =+Project!P49*$E12*P$4 -> 0 | Q12: =+Project!Q49*$E12*Q$4 -> 0 | R12: =+Project!R49*$E12*R$4 -> 0 | S12: =+Project!S49*$E12*S$4 -> 0 | T12: =+Project!T49*$E12*T$4 -> 0 | U12: =+Project!U49*$E12*U$4 -> 0 | V12: =+Project!V49*$E12*V$4 -> 0 | W12: =+Project!W49*$E12*W$4 -> 0 | X12: =+Project!X49*$E12*X$4 -> 0 | Y12: =+Project!Y49*$E12*Y$4 -> 0 | Z12: =+Project!Z49*$E12*Z$4 -> 0 | AA12: =+Project!AA49*$E12*AA$4 -> 0 | AB12: =+Project!AB49*$E12*AB$4 -> 0 | AC12: =+Project!AC49*$E12*AC$4 -> 0
A13: 13 | B13: =+Project!B14 -> 8 | C13: =+Project!C14 -> [Settlement B] 8 | E13: =Consumers!BB16 -> 0 | G13: =Summary!$F$3&"/a" -> MWh/a | I13: =+Project!I50*$E13*I$4 -> 0 | J13: =+Project!J50*$E13*J$4 -> 0 | K13: =+Project!K50*$E13*K$4 -> 0 | L13: =+Project!L50*$E13*L$4 -> 0 | M13: =+Project!M50*$E13*M$4 -> 0 | N13: =+Project!N50*$E13*N$4 -> 0 | O13: =+Project!O50*$E13*O$4 -> 0 | P13: =+Project!P50*$E13*P$4 -> 0 | Q13: =+Project!Q50*$E13*Q$4 -> 0 | R13: =+Project!R50*$E13*R$4 -> 0 | S13: =+Project!S50*$E13*S$4 -> 0 | T13: =+Project!T50*$E13*T$4 -> 0 | U13: =+Project!U50*$E13*U$4 -> 0 | V13: =+Project!V50*$E13*V$4 -> 0 | W13: =+Project!W50*$E13*W$4 -> 0 | X13: =+Project!X50*$E13*X$4 -> 0 | Y13: =+Project!Y50*$E13*Y$4 -> 0 | Z13: =+Project!Z50*$E13*Z$4 -> 0 | AA13: =+Project!AA50*$E13*AA$4 -> 0 | AB13: =+Project!AB50*$E13*AB$4 -> 0 | AC13: =+Project!AC50*$E13*AC$4 -> 0
A14: 14 | B14: =+Project!B15 -> 9 | C14: =+Project!C15 -> [Settlement A] Master | E14: =Consumers!BB17 -> 0 | G14: =Summary!$F$3&"/a" -> MWh/a | I14: =+Project!I51*$E14*I$4 -> 0 | J14: =+Project!J51*$E14*J$4 -> 0 | K14: =+Project!K51*$E14*K$4 -> 0 | L14: =+Project!L51*$E14*L$4 -> 0 | M14: =+Project!M51*$E14*M$4 -> 0 | N14: =+Project!N51*$E14*N$4 -> 0 | O14: =+Project!O51*$E14*O$4 -> 0 | P14: =+Project!P51*$E14*P$4 -> 0 | Q14: =+Project!Q51*$E14*Q$4 -> 0 | R14: =+Project!R51*$E14*R$4 -> 0 | S14: =+Project!S51*$E14*S$4 -> 0 | T14: =+Project!T51*$E14*T$4 -> 0 | U14: =+Project!U51*$E14*U$4 -> 0 | V14: =+Project!V51*$E14*V$4 -> 0 | W14: =+Project!W51*$E14*W$4 -> 0 | X14: =+Project!X51*$E14*X$4 -> 0 | Y14: =+Project!Y51*$E14*Y$4 -> 0 | Z14: =+Project!Z51*$E14*Z$4 -> 0 | AA14: =+Project!AA51*$E14*AA$4 -> 0 | AB14: =+Project!AB51*$E14*AB$4 -> 0 | AC14: =+Project!AC51*$E14*AC$4 -> 0
A15: 15 | B15: =+Project!B16 -> 10 | C15: =+Project!C16 -> [Settlement A] 2 | E15: =Consumers!BB18 -> 0 | G15: =Summary!$F$3&"/a" -> MWh/a | I15: =+Project!I52*$E15*I$4 -> 0 | J15: =+Project!J52*$E15*J$4 -> 0 | K15: =+Project!K52*$E15*K$4 -> 0 | L15: =+Project!L52*$E15*L$4 -> 0 | M15: =+Project!M52*$E15*M$4 -> 0 | N15: =+Project!N52*$E15*N$4 -> 0 | O15: =+Project!O52*$E15*O$4 -> 0 | P15: =+Project!P52*$E15*P$4 -> 0 | Q15: =+Project!Q52*$E15*Q$4 -> 0 | R15: =+Project!R52*$E15*R$4 -> 0 | S15: =+Project!S52*$E15*S$4 -> 0 | T15: =+Project!T52*$E15*T$4 -> 0 | U15: =+Project!U52*$E15*U$4 -> 0 | V15: =+Project!V52*$E15*V$4 -> 0 | W15: =+Project!W52*$E15*W$4 -> 0 | X15: =+Project!X52*$E15*X$4 -> 0 | Y15: =+Project!Y52*$E15*Y$4 -> 0 | Z15: =+Project!Z52*$E15*Z$4 -> 0 | AA15: =+Project!AA52*$E15*AA$4 -> 0 | AB15: =+Project!AB52*$E15*AB$4 -> 0 | AC15: =+Project!AC52*$E15*AC$4 -> 0
A16: 16 | B16: =+Project!B17 -> 11 | C16: =+Project!C17 -> [Settlement A] 3 | E16: =Consumers!BB19 -> 0 | G16: =Summary!$F$3&"/a" -> MWh/a | I16: =+Project!I53*$E16*I$4 -> 0 | J16: =+Project!J53*$E16*J$4 -> 0 | K16: =+Project!K53*$E16*K$4 -> 0 | L16: =+Project!L53*$E16*L$4 -> 0 | M16: =+Project!M53*$E16*M$4 -> 0 | N16: =+Project!N53*$E16*N$4 -> 0 | O16: =+Project!O53*$E16*O$4 -> 0 | P16: =+Project!P53*$E16*P$4 -> 0 | Q16: =+Project!Q53*$E16*Q$4 -> 0 | R16: =+Project!R53*$E16*R$4 -> 0 | S16: =+Project!S53*$E16*S$4 -> 0 | T16: =+Project!T53*$E16*T$4 -> 0 | U16: =+Project!U53*$E16*U$4 -> 0 | V16: =+Project!V53*$E16*V$4 -> 0 | W16: =+Project!W53*$E16*W$4 -> 0 | X16: =+Project!X53*$E16*X$4 -> 0 | Y16: =+Project!Y53*$E16*Y$4 -> 0 | Z16: =+Project!Z53*$E16*Z$4 -> 0 | AA16: =+Project!AA53*$E16*AA$4 -> 0 | AB16: =+Project!AB53*$E16*AB$4 -> 0 | AC16: =+Project!AC53*$E16*AC$4 -> 0
A17: 17 | B17: =+Project!B18 -> 12 | C17: =+Project!C18 -> [Settlement A] 4 | E17: =Consumers!BB20 -> 0 | G17: =Summary!$F$3&"/a" -> MWh/a | I17: =+Project!I54*$E17*I$4 -> 0 | J17: =+Project!J54*$E17*J$4 -> 0 | K17: =+Project!K54*$E17*K$4 -> 0 | L17: =+Project!L54*$E17*L$4 -> 0 | M17: =+Project!M54*$E17*M$4 -> 0 | N17: =+Project!N54*$E17*N$4 -> 0 | O17: =+Project!O54*$E17*O$4 -> 0 | P17: =+Project!P54*$E17*P$4 -> 0 | Q17: =+Project!Q54*$E17*Q$4 -> 0 | R17: =+Project!R54*$E17*R$4 -> 0 | S17: =+Project!S54*$E17*S$4 -> 0 | T17: =+Project!T54*$E17*T$4 -> 0 | U17: =+Project!U54*$E17*U$4 -> 0 | V17: =+Project!V54*$E17*V$4 -> 0 | W17: =+Project!W54*$E17*W$4 -> 0 | X17: =+Project!X54*$E17*X$4 -> 0 | Y17: =+Project!Y54*$E17*Y$4 -> 0 | Z17: =+Project!Z54*$E17*Z$4 -> 0 | AA17: =+Project!AA54*$E17*AA$4 -> 0 | AB17: =+Project!AB54*$E17*AB$4 -> 0 | AC17: =+Project!AC54*$E17*AC$4 -> 0
A18: 18 | B18: =+Project!B19 -> 13 | C18: =+Project!C19 -> [Settlement A] 5 | E18: =Consumers!BB21 -> 0 | G18: =Summary!$F$3&"/a" -> MWh/a | I18: =+Project!I55*$E18*I$4 -> 0 | J18: =+Project!J55*$E18*J$4 -> 0 | K18: =+Project!K55*$E18*K$4 -> 0 | L18: =+Project!L55*$E18*L$4 -> 0 | M18: =+Project!M55*$E18*M$4 -> 0 | N18: =+Project!N55*$E18*N$4 -> 0 | O18: =+Project!O55*$E18*O$4 -> 0 | P18: =+Project!P55*$E18*P$4 -> 0 | Q18: =+Project!Q55*$E18*Q$4 -> 0 | R18: =+Project!R55*$E18*R$4 -> 0 | S18: =+Project!S55*$E18*S$4 -> 0 | T18: =+Project!T55*$E18*T$4 -> 0 | U18: =+Project!U55*$E18*U$4 -> 0 | V18: =+Project!V55*$E18*V$4 -> 0 | W18: =+Project!W55*$E18*W$4 -> 0 | X18: =+Project!X55*$E18*X$4 -> 0 | Y18: =+Project!Y55*$E18*Y$4 -> 0 | Z18: =+Project!Z55*$E18*Z$4 -> 0 | AA18: =+Project!AA55*$E18*AA$4 -> 0 | AB18: =+Project!AB55*$E18*AB$4 -> 0 | AC18: =+Project!AC55*$E18*AC$4 -> 0
A19: 19 | B19: =+Project!B20 -> 14 | C19: =+Project!C20 -> [Settlement A] 6 | E19: =Consumers!BB22 -> 0 | G19: =Summary!$F$3&"/a" -> MWh/a | I19: =+Project!I56*$E19*I$4 -> 0 | J19: =+Project!J56*$E19*J$4 -> 0 | K19: =+Project!K56*$E19*K$4 -> 0 | L19: =+Project!L56*$E19*L$4 -> 0 | M19: =+Project!M56*$E19*M$4 -> 0 | N19: =+Project!N56*$E19*N$4 -> 0 | O19: =+Project!O56*$E19*O$4 -> 0 | P19: =+Project!P56*$E19*P$4 -> 0 | Q19: =+Project!Q56*$E19*Q$4 -> 0 | R19: =+Project!R56*$E19*R$4 -> 0 | S19: =+Project!S56*$E19*S$4 -> 0 | T19: =+Project!T56*$E19*T$4 -> 0 | U19: =+Project!U56*$E19*U$4 -> 0 | V19: =+Project!V56*$E19*V$4 -> 0 | W19: =+Project!W56*$E19*W$4 -> 0 | X19: =+Project!X56*$E19*X$4 -> 0 | Y19: =+Project!Y56*$E19*Y$4 -> 0 | Z19: =+Project!Z56*$E19*Z$4 -> 0 | AA19: =+Project!AA56*$E19*AA$4 -> 0 | AB19: =+Project!AB56*$E19*AB$4 -> 0 | AC19: =+Project!AC56*$E19*AC$4 -> 0
A20: 20 | B20: =+Project!B21 -> 15 | C20: =+Project!C21 -> [Settlement A] 7 | E20: =Consumers!BB23 -> 0 | G20: =Summary!$F$3&"/a" -> MWh/a | I20: =+Project!I57*$E20*I$4 -> 0 | J20: =+Project!J57*$E20*J$4 -> 0 | K20: =+Project!K57*$E20*K$4 -> 0 | L20: =+Project!L57*$E20*L$4 -> 0 | M20: =+Project!M57*$E20*M$4 -> 0 | N20: =+Project!N57*$E20*N$4 -> 0 | O20: =+Project!O57*$E20*O$4 -> 0 | P20: =+Project!P57*$E20*P$4 -> 0 | Q20: =+Project!Q57*$E20*Q$4 -> 0 | R20: =+Project!R57*$E20*R$4 -> 0 | S20: =+Project!S57*$E20*S$4 -> 0 | T20: =+Project!T57*$E20*T$4 -> 0 | U20: =+Project!U57*$E20*U$4 -> 0 | V20: =+Project!V57*$E20*V$4 -> 0 | W20: =+Project!W57*$E20*W$4 -> 0 | X20: =+Project!X57*$E20*X$4 -> 0 | Y20: =+Project!Y57*$E20*Y$4 -> 0 | Z20: =+Project!Z57*$E20*Z$4 -> 0 | AA20: =+Project!AA57*$E20*AA$4 -> 0 | AB20: =+Project!AB57*$E20*AB$4 -> 0 | AC20: =+Project!AC57*$E20*AC$4 -> 0
A21: 21 | B21: Heat Pump total | E21: =SUM(E6:E20) -> 0 | G21: =Summary!$F$3&"/a" -> MWh/a | I21: =SUM(I6:I20) -> 0 | J21: 0 | K21: 0 | L21: 0 | M21: 0 | N21: 0 | O21: 0 | P21: 0 | Q21: 0 | R21: 0 | S21: 0 | T21: 0 | U21: 0 | V21: 0 | W21: 0 | X21: 0 | Y21: 0 | Z21: 0 | AA21: 0 | AB21: 0 | AC21: 0
A22: 22
A23: 23 | B23: Oil boilers | E23: =Summary!$F$3&"/a" -> MWh/a
A24: 24 | B24: =+B6 -> 1 | C24: =+C6 -> [Settlement B] 1 | E24: =Consumers!BV9 -> 0 | G24: =Summary!$F$3&"/a" -> MWh/a | I24: =+Project!I43*$E24*I$4 -> 0 | J24: =+Project!J43*$E24*J$4 -> 0 | K24: =+Project!K43*$E24*K$4 -> 0 | L24: =+Project!L43*$E24*L$4 -> 0 | M24: =+Project!M43*$E24*M$4 -> 0 | N24: =+Project!N43*$E24*N$4 -> 0 | O24: =+Project!O43*$E24*O$4 -> 0 | P24: =+Project!P43*$E24*P$4 -> 0 | Q24: =+Project!Q43*$E24*Q$4 -> 0 | R24: =+Project!R43*$E24*R$4 -> 0 | S24: =+Project!S43*$E24*S$4 -> 0 | T24: =+Project!T43*$E24*T$4 -> 0 | U24: =+Project!U43*$E24*U$4 -> 0 | V24: =+Project!V43*$E24*V$4 -> 0 | W24: =+Project!W43*$E24*W$4 -> 0 | X24: =+Project!X43*$E24*X$4 -> 0 | Y24: =+Project!Y43*$E24*Y$4 -> 0 | Z24: =+Project!Z43*$E24*Z$4 -> 0 | AA24: =+Project!AA43*$E24*AA$4 -> 0 | AB24: =+Project!AB43*$E24*AB$4 -> 0 | AC24: =+Project!AC43*$E24*AC$4 -> 0
A25: 25 | B25: =+B7 -> 2 | C25: [Settlement B] 2 | E25: =Consumers!BV10 -> 0 | G25: =Summary!$F$3&"/a" -> MWh/a | I25: =+Project!I44*$E25*I$4 -> 0 | J25: =+Project!J44*$E25*J$4 -> 0 | K25: =+Project!K44*$E25*K$4 -> 0 | L25: =+Project!L44*$E25*L$4 -> 0 | M25: =+Project!M44*$E25*M$4 -> 0 | N25: =+Project!N44*$E25*N$4 -> 0 | O25: =+Project!O44*$E25*O$4 -> 0 | P25: =+Project!P44*$E25*P$4 -> 0 | Q25: =+Project!Q44*$E25*Q$4 -> 0 | R25: =+Project!R44*$E25*R$4 -> 0 | S25: =+Project!S44*$E25*S$4 -> 0 | T25: =+Project!T44*$E25*T$4 -> 0 | U25: =+Project!U44*$E25*U$4 -> 0 | V25: =+Project!V44*$E25*V$4 -> 0 | W25: =+Project!W44*$E25*W$4 -> 0 | X25: =+Project!X44*$E25*X$4 -> 0 | Y25: =+Project!Y44*$E25*Y$4 -> 0 | Z25: =+Project!Z44*$E25*Z$4 -> 0 | AA25: =+Project!AA44*$E25*AA$4 -> 0 | AB25: =+Project!AB44*$E25*AB$4 -> 0 | AC25: =+Project!AC44*$E25*AC$4 -> 0
A26: 26 | B26: =+B8 -> 3 | C26: [Settlement B] 3 | E26: =Consumers!BV11 -> 0 | G26: =Summary!$F$3&"/a" -> MWh/a | I26: =+Project!I45*$E26*I$4 -> 0 | J26: =+Project!J45*$E26*J$4 -> 0 | K26: =+Project!K45*$E26*K$4 -> 0 | L26: =+Project!L45*$E26*L$4 -> 0 | M26: =+Project!M45*$E26*M$4 -> 0 | N26: =+Project!N45*$E26*N$4 -> 0 | O26: =+Project!O45*$E26*O$4 -> 0 | P26: =+Project!P45*$E26*P$4 -> 0 | Q26: =+Project!Q45*$E26*Q$4 -> 0 | R26: =+Project!R45*$E26*R$4 -> 0 | S26: =+Project!S45*$E26*S$4 -> 0 | T26: =+Project!T45*$E26*T$4 -> 0 | U26: =+Project!U45*$E26*U$4 -> 0 | V26: =+Project!V45*$E26*V$4 -> 0 | W26: =+Project!W45*$E26*W$4 -> 0 | X26: =+Project!X45*$E26*X$4 -> 0 | Y26: =+Project!Y45*$E26*Y$4 -> 0 | Z26: =+Project!Z45*$E26*Z$4 -> 0 | AA26: =+Project!AA45*$E26*AA$4 -> 0 | AB26: =+Project!AB45*$E26*AB$4 -> 0 | AC26: =+Project!AC45*$E26*AC$4 -> 0
A27: 27 | B27: =+B9 -> 4 | C27: [Settlement B] 4 | E27: =Consumers!BV12 -> 0 | G27: =Summary!$F$3&"/a" -> MWh/a | I27: =+Project!I46*$E27*I$4 -> 0 | J27: =+Project!J46*$E27*J$4 -> 0 | K27: =+Project!K46*$E27*K$4 -> 0 | L27: =+Project!L46*$E27*L$4 -> 0 | M27: =+Project!M46*$E27*M$4 -> 0 | N27: =+Project!N46*$E27*N$4 -> 0 | O27: =+Project!O46*$E27*O$4 -> 0 | P27: =+Project!P46*$E27*P$4 -> 0 | Q27: =+Project!Q46*$E27*Q$4 -> 0 | R27: =+Project!R46*$E27*R$4 -> 0 | S27: =+Project!S46*$E27*S$4 -> 0 | T27: =+Project!T46*$E27*T$4 -> 0 | U27: =+Project!U46*$E27*U$4 -> 0 | V27: =+Project!V46*$E27*V$4 -> 0 | W27: =+Project!W46*$E27*W$4 -> 0 | X27: =+Project!X46*$E27*X$4 -> 0 | Y27: =+Project!Y46*$E27*Y$4 -> 0 | Z27: =+Project!Z46*$E27*Z$4 -> 0 | AA27: =+Project!AA46*$E27*AA$4 -> 0 | AB27: =+Project!AB46*$E27*AB$4 -> 0 | AC27: =+Project!AC46*$E27*AC$4 -> 0
A28: 28 | B28: =+B10 -> 5 | C28: [Settlement B] 5 | E28: =Consumers!BV13 -> 0 | G28: =Summary!$F$3&"/a" -> MWh/a | I28: =+Project!I47*$E28*I$4 -> 0 | J28: =+Project!J47*$E28*J$4 -> 0 | K28: =+Project!K47*$E28*K$4 -> 0 | L28: =+Project!L47*$E28*L$4 -> 0 | M28: =+Project!M47*$E28*M$4 -> 0 | N28: =+Project!N47*$E28*N$4 -> 0 | O28: =+Project!O47*$E28*O$4 -> 0 | P28: =+Project!P47*$E28*P$4 -> 0 | Q28: =+Project!Q47*$E28*Q$4 -> 0 | R28: =+Project!R47*$E28*R$4 -> 0 | S28: =+Project!S47*$E28*S$4 -> 0 | T28: =+Project!T47*$E28*T$4 -> 0 | U28: =+Project!U47*$E28*U$4 -> 0 | V28: =+Project!V47*$E28*V$4 -> 0 | W28: =+Project!W47*$E28*W$4 -> 0 | X28: =+Project!X47*$E28*X$4 -> 0 | Y28: =+Project!Y47*$E28*Y$4 -> 0 | Z28: =+Project!Z47*$E28*Z$4 -> 0 | AA28: =+Project!AA47*$E28*AA$4 -> 0 | AB28: =+Project!AB47*$E28*AB$4 -> 0 | AC28: =+Project!AC47*$E28*AC$4 -> 0
A29: 29 | B29: =+B11 -> 6 | C29: [Settlement B] 6 | E29: =Consumers!BV14 -> 0 | G29: =Summary!$F$3&"/a" -> MWh/a | I29: =+Project!I48*$E29*I$4 -> 0 | J29: =+Project!J48*$E29*J$4 -> 0 | K29: =+Project!K48*$E29*K$4 -> 0 | L29: =+Project!L48*$E29*L$4 -> 0 | M29: =+Project!M48*$E29*M$4 -> 0 | N29: =+Project!N48*$E29*N$4 -> 0 | O29: =+Project!O48*$E29*O$4 -> 0 | P29: =+Project!P48*$E29*P$4 -> 0 | Q29: =+Project!Q48*$E29*Q$4 -> 0 | R29: =+Project!R48*$E29*R$4 -> 0 | S29: =+Project!S48*$E29*S$4 -> 0 | T29: =+Project!T48*$E29*T$4 -> 0 | U29: =+Project!U48*$E29*U$4 -> 0 | V29: =+Project!V48*$E29*V$4 -> 0 | W29: =+Project!W48*$E29*W$4 -> 0 | X29: =+Project!X48*$E29*X$4 -> 0 | Y29: =+Project!Y48*$E29*Y$4 -> 0 | Z29: =+Project!Z48*$E29*Z$4 -> 0 | AA29: =+Project!AA48*$E29*AA$4 -> 0 | AB29: =+Project!AB48*$E29*AB$4 -> 0 | AC29: =+Project!AC48*$E29*AC$4 -> 0
A30: 30 | B30: =+B12 -> 7 | C30: [Settlement B] 7 | E30: =Consumers!BV15 -> 0 | G30: =Summary!$F$3&"/a" -> MWh/a | I30: =+Project!I49*$E30*I$4 -> 0 | J30: =+Project!J49*$E30*J$4 -> 0 | K30: =+Project!K49*$E30*K$4 -> 0 | L30: =+Project!L49*$E30*L$4 -> 0 | M30: =+Project!M49*$E30*M$4 -> 0 | N30: =+Project!N49*$E30*N$4 -> 0 | O30: =+Project!O49*$E30*O$4 -> 0 | P30: =+Project!P49*$E30*P$4 -> 0 | Q30: =+Project!Q49*$E30*Q$4 -> 0 | R30: =+Project!R49*$E30*R$4 -> 0 | S30: =+Project!S49*$E30*S$4 -> 0 | T30: =+Project!T49*$E30*T$4 -> 0 | U30: =+Project!U49*$E30*U$4 -> 0 | V30: =+Project!V49*$E30*V$4 -> 0 | W30: =+Project!W49*$E30*W$4 -> 0 | X30: =+Project!X49*$E30*X$4 -> 0 | Y30: =+Project!Y49*$E30*Y$4 -> 0 | Z30: =+Project!Z49*$E30*Z$4 -> 0 | AA30: =+Project!AA49*$E30*AA$4 -> 0 | AB30: =+Project!AB49*$E30*AB$4 -> 0 | AC30: =+Project!AC49*$E30*AC$4 -> 0
A31: 31 | B31: =+B13 -> 8 | C31: [Settlement B] 8 | E31: =Consumers!BV16 -> 0 | G31: =Summary!$F$3&"/a" -> MWh/a | I31: =+Project!I50*$E31*I$4 -> 0 | J31: =+Project!J50*$E31*J$4 -> 0 | K31: =+Project!K50*$E31*K$4 -> 0 | L31: =+Project!L50*$E31*L$4 -> 0 | M31: =+Project!M50*$E31*M$4 -> 0 | N31: =+Project!N50*$E31*N$4 -> 0 | O31: =+Project!O50*$E31*O$4 -> 0 | P31: =+Project!P50*$E31*P$4 -> 0 | Q31: =+Project!Q50*$E31*Q$4 -> 0 | R31: =+Project!R50*$E31*R$4 -> 0 | S31: =+Project!S50*$E31*S$4 -> 0 | T31: =+Project!T50*$E31*T$4 -> 0 | U31: =+Project!U50*$E31*U$4 -> 0 | V31: =+Project!V50*$E31*V$4 -> 0 | W31: =+Project!W50*$E31*W$4 -> 0 | X31: =+Project!X50*$E31*X$4 -> 0 | Y31: =+Project!Y50*$E31*Y$4 -> 0 | Z31: =+Project!Z50*$E31*Z$4 -> 0 | AA31: =+Project!AA50*$E31*AA$4 -> 0 | AB31: =+Project!AB50*$E31*AB$4 -> 0 | AC31: =+Project!AC50*$E31*AC$4 -> 0
A32: 32 | B32: =+B14 -> 9 | C32: [Settlement A] Master | E32: =Consumers!BV17 -> 0 | G32: =Summary!$F$3&"/a" -> MWh/a | I32: =+Project!I51*$E32*I$4 -> 0 | J32: =+Project!J51*$E32*J$4 -> 0 | K32: =+Project!K51*$E32*K$4 -> 0 | L32: =+Project!L51*$E32*L$4 -> 0 | M32: =+Project!M51*$E32*M$4 -> 0 | N32: =+Project!N51*$E32*N$4 -> 0 | O32: =+Project!O51*$E32*O$4 -> 0 | P32: =+Project!P51*$E32*P$4 -> 0 | Q32: =+Project!Q51*$E32*Q$4 -> 0 | R32: =+Project!R51*$E32*R$4 -> 0 | S32: =+Project!S51*$E32*S$4 -> 0 | T32: =+Project!T51*$E32*T$4 -> 0 | U32: =+Project!U51*$E32*U$4 -> 0 | V32: =+Project!V51*$E32*V$4 -> 0 | W32: =+Project!W51*$E32*W$4 -> 0 | X32: =+Project!X51*$E32*X$4 -> 0 | Y32: =+Project!Y51*$E32*Y$4 -> 0 | Z32: =+Project!Z51*$E32*Z$4 -> 0 | AA32: =+Project!AA51*$E32*AA$4 -> 0 | AB32: =+Project!AB51*$E32*AB$4 -> 0 | AC32: =+Project!AC51*$E32*AC$4 -> 0
A33: 33 | B33: =+B15 -> 10 | C33: [Settlement A] 2 | E33: =Consumers!BV18 -> 0 | G33: =Summary!$F$3&"/a" -> MWh/a | I33: =+Project!I52*$E33*I$4 -> 0 | J33: =+Project!J52*$E33*J$4 -> 0 | K33: =+Project!K52*$E33*K$4 -> 0 | L33: =+Project!L52*$E33*L$4 -> 0 | M33: =+Project!M52*$E33*M$4 -> 0 | N33: =+Project!N52*$E33*N$4 -> 0 | O33: =+Project!O52*$E33*O$4 -> 0 | P33: =+Project!P52*$E33*P$4 -> 0 | Q33: =+Project!Q52*$E33*Q$4 -> 0 | R33: =+Project!R52*$E33*R$4 -> 0 | S33: =+Project!S52*$E33*S$4 -> 0 | T33: =+Project!T52*$E33*T$4 -> 0 | U33: =+Project!U52*$E33*U$4 -> 0 | V33: =+Project!V52*$E33*V$4 -> 0 | W33: =+Project!W52*$E33*W$4 -> 0 | X33: =+Project!X52*$E33*X$4 -> 0 | Y33: =+Project!Y52*$E33*Y$4 -> 0 | Z33: =+Project!Z52*$E33*Z$4 -> 0 | AA33: =+Project!AA52*$E33*AA$4 -> 0 | AB33: =+Project!AB52*$E33*AB$4 -> 0 | AC33: =+Project!AC52*$E33*AC$4 -> 0
A34: 34 | B34: =+B16 -> 11 | C34: [Settlement A] 3 | E34: =Consumers!BV19 -> 0 | G34: =Summary!$F$3&"/a" -> MWh/a | I34: =+Project!I53*$E34*I$4 -> 0 | J34: =+Project!J53*$E34*J$4 -> 0 | K34: =+Project!K53*$E34*K$4 -> 0 | L34: =+Project!L53*$E34*L$4 -> 0 | M34: =+Project!M53*$E34*M$4 -> 0 | N34: =+Project!N53*$E34*N$4 -> 0 | O34: =+Project!O53*$E34*O$4 -> 0 | P34: =+Project!P53*$E34*P$4 -> 0 | Q34: =+Project!Q53*$E34*Q$4 -> 0 | R34: =+Project!R53*$E34*R$4 -> 0 | S34: =+Project!S53*$E34*S$4 -> 0 | T34: =+Project!T53*$E34*T$4 -> 0 | U34: =+Project!U53*$E34*U$4 -> 0 | V34: =+Project!V53*$E34*V$4 -> 0 | W34: =+Project!W53*$E34*W$4 -> 0 | X34: =+Project!X53*$E34*X$4 -> 0 | Y34: =+Project!Y53*$E34*Y$4 -> 0 | Z34: =+Project!Z53*$E34*Z$4 -> 0 | AA34: =+Project!AA53*$E34*AA$4 -> 0 | AB34: =+Project!AB53*$E34*AB$4 -> 0 | AC34: =+Project!AC53*$E34*AC$4 -> 0
A35: 35 | B35: =+B17 -> 12 | C35: [Settlement A] 4 | E35: =Consumers!BV20 -> 0 | G35: =Summary!$F$3&"/a" -> MWh/a | I35: =+Project!I54*$E35*I$4 -> 0 | J35: =+Project!J54*$E35*J$4 -> 0 | K35: =+Project!K54*$E35*K$4 -> 0 | L35: =+Project!L54*$E35*L$4 -> 0 | M35: =+Project!M54*$E35*M$4 -> 0 | N35: =+Project!N54*$E35*N$4 -> 0 | O35: =+Project!O54*$E35*O$4 -> 0 | P35: =+Project!P54*$E35*P$4 -> 0 | Q35: =+Project!Q54*$E35*Q$4 -> 0 | R35: =+Project!R54*$E35*R$4 -> 0 | S35: =+Project!S54*$E35*S$4 -> 0 | T35: =+Project!T54*$E35*T$4 -> 0 | U35: =+Project!U54*$E35*U$4 -> 0 | V35: =+Project!V54*$E35*V$4 -> 0 | W35: =+Project!W54*$E35*W$4 -> 0 | X35: =+Project!X54*$E35*X$4 -> 0 | Y35: =+Project!Y54*$E35*Y$4 -> 0 | Z35: =+Project!Z54*$E35*Z$4 -> 0 | AA35: =+Project!AA54*$E35*AA$4 -> 0 | AB35: =+Project!AB54*$E35*AB$4 -> 0 | AC35: =+Project!AC54*$E35*AC$4 -> 0
A36: 36 | B36: =+B18 -> 13 | C36: [Settlement A] 5 | E36: =Consumers!BV21 -> 0 | G36: =Summary!$F$3&"/a" -> MWh/a | I36: =+Project!I55*$E36*I$4 -> 0 | J36: =+Project!J55*$E36*J$4 -> 0 | K36: =+Project!K55*$E36*K$4 -> 0 | L36: =+Project!L55*$E36*L$4 -> 0 | M36: =+Project!M55*$E36*M$4 -> 0 | N36: =+Project!N55*$E36*N$4 -> 0 | O36: =+Project!O55*$E36*O$4 -> 0 | P36: =+Project!P55*$E36*P$4 -> 0 | Q36: =+Project!Q55*$E36*Q$4 -> 0 | R36: =+Project!R55*$E36*R$4 -> 0 | S36: =+Project!S55*$E36*S$4 -> 0 | T36: =+Project!T55*$E36*T$4 -> 0 | U36: =+Project!U55*$E36*U$4 -> 0 | V36: =+Project!V55*$E36*V$4 -> 0 | W36: =+Project!W55*$E36*W$4 -> 0 | X36: =+Project!X55*$E36*X$4 -> 0 | Y36: =+Project!Y55*$E36*Y$4 -> 0 | Z36: =+Project!Z55*$E36*Z$4 -> 0 | AA36: =+Project!AA55*$E36*AA$4 -> 0 | AB36: =+Project!AB55*$E36*AB$4 -> 0 | AC36: =+Project!AC55*$E36*AC$4 -> 0
A37: 37 | B37: =+B19 -> 14 | C37: [Settlement A] 6 | E37: =Consumers!BV22 -> 0 | G37: =Summary!$F$3&"/a" -> MWh/a | I37: =+Project!I56*$E37*I$4 -> 0 | J37: =+Project!J56*$E37*J$4 -> 0 | K37: =+Project!K56*$E37*K$4 -> 0 | L37: =+Project!L56*$E37*L$4 -> 0 | M37: =+Project!M56*$E37*M$4 -> 0 | N37: =+Project!N56*$E37*N$4 -> 0 | O37: =+Project!O56*$E37*O$4 -> 0 | P37: =+Project!P56*$E37*P$4 -> 0 | Q37: =+Project!Q56*$E37*Q$4 -> 0 | R37: =+Project!R56*$E37*R$4 -> 0 | S37: =+Project!S56*$E37*S$4 -> 0 | T37: =+Project!T56*$E37*T$4 -> 0 | U37: =+Project!U56*$E37*U$4 -> 0 | V37: =+Project!V56*$E37*V$4 -> 0 | W37: =+Project!W56*$E37*W$4 -> 0 | X37: =+Project!X56*$E37*X$4 -> 0 | Y37: =+Project!Y56*$E37*Y$4 -> 0 | Z37: =+Project!Z56*$E37*Z$4 -> 0 | AA37: =+Project!AA56*$E37*AA$4 -> 0 | AB37: =+Project!AB56*$E37*AB$4 -> 0 | AC37: =+Project!AC56*$E37*AC$4 -> 0
A38: 38 | B38: =+B20 -> 15 | C38: [Settlement A] 7 | E38: =Consumers!BV23 -> 0 | G38: =Summary!$F$3&"/a" -> MWh/a | I38: =+Project!I57*$E38*I$4 -> 0 | J38: =+Project!J57*$E38*J$4 -> 0 | K38: =+Project!K57*$E38*K$4 -> 0 | L38: =+Project!L57*$E38*L$4 -> 0 | M38: =+Project!M57*$E38*M$4 -> 0 | N38: =+Project!N57*$E38*N$4 -> 0 | O38: =+Project!O57*$E38*O$4 -> 0 | P38: =+Project!P57*$E38*P$4 -> 0 | Q38: =+Project!Q57*$E38*Q$4 -> 0 | R38: =+Project!R57*$E38*R$4 -> 0 | S38: =+Project!S57*$E38*S$4 -> 0 | T38: =+Project!T57*$E38*T$4 -> 0 | U38: =+Project!U57*$E38*U$4 -> 0 | V38: =+Project!V57*$E38*V$4 -> 0 | W38: =+Project!W57*$E38*W$4 -> 0 | X38: =+Project!X57*$E38*X$4 -> 0 | Y38: =+Project!Y57*$E38*Y$4 -> 0 | Z38: =+Project!Z57*$E38*Z$4 -> 0 | AA38: =+Project!AA57*$E38*AA$4 -> 0 | AB38: =+Project!AB57*$E38*AB$4 -> 0 | AC38: =+Project!AC57*$E38*AC$4 -> 0
A39: 39 | B39: Heat Pump total | E39: =SUM(E24:E38) -> 0 | G39: =Summary!$F$3&"/a" -> MWh/a | I39: =SUM(I24:I38) -> 0 | J39: 0 | K39: 0 | L39: 0 | M39: 0 | N39: 0 | O39: 0 | P39: 0 | Q39: 0 | R39: 0 | S39: 0 | T39: 0 | U39: 0 | V39: 0 | W39: 0 | X39: 0 | Y39: 0 | Z39: 0 | AA39: 0 | AB39: 0 | AC39: 0
A40: 40
A41: 41 | B41: Gas boilers | E41: =Summary!$F$3&"/a" -> MWh/a
A42: 42 | B42: =+B6 -> 1 | C42: =+C6 -> [Settlement B] 1 | E42: =Consumers!CE9 -> 0 | G42: =Summary!$F$3&"/a" -> MWh/a | I42: =+Project!I43*$E42*I$4 -> 0 | J42: =+Project!J43*$E42*J$4 -> 0 | K42: =+Project!K43*$E42*K$4 -> 0 | L42: =+Project!L43*$E42*L$4 -> 0 | M42: =+Project!M43*$E42*M$4 -> 0 | N42: =+Project!N43*$E42*N$4 -> 0 | O42: =+Project!O43*$E42*O$4 -> 0 | P42: =+Project!P43*$E42*P$4 -> 0 | Q42: =+Project!Q43*$E42*Q$4 -> 0 | R42: =+Project!R43*$E42*R$4 -> 0 | S42: =+Project!S43*$E42*S$4 -> 0 | T42: =+Project!T43*$E42*T$4 -> 0 | U42: =+Project!U43*$E42*U$4 -> 0 | V42: =+Project!V43*$E42*V$4 -> 0 | W42: =+Project!W43*$E42*W$4 -> 0 | X42: =+Project!X43*$E42*X$4 -> 0 | Y42: =+Project!Y43*$E42*Y$4 -> 0 | Z42: =+Project!Z43*$E42*Z$4 -> 0 | AA42: =+Project!AA43*$E42*AA$4 -> 0 | AB42: =+Project!AB43*$E42*AB$4 -> 0 | AC42: =+Project!AC43*$E42*AC$4 -> 0
A43: 43 | B43: =+B7 -> 2 | C43: =+C7 -> [Settlement B] 2 | E43: =Consumers!CE10 -> 0 | G43: =Summary!$F$3&"/a" -> MWh/a | I43: =+Project!I44*$E43*I$4 -> 0 | J43: =+Project!J44*$E43*J$4 -> 0 | K43: =+Project!K44*$E43*K$4 -> 0 | L43: =+Project!L44*$E43*L$4 -> 0 | M43: =+Project!M44*$E43*M$4 -> 0 | N43: =+Project!N44*$E43*N$4 -> 0 | O43: =+Project!O44*$E43*O$4 -> 0 | P43: =+Project!P44*$E43*P$4 -> 0 | Q43: =+Project!Q44*$E43*Q$4 -> 0 | R43: =+Project!R44*$E43*R$4 -> 0 | S43: =+Project!S44*$E43*S$4 -> 0 | T43: =+Project!T44*$E43*T$4 -> 0 | U43: =+Project!U44*$E43*U$4 -> 0 | V43: =+Project!V44*$E43*V$4 -> 0 | W43: =+Project!W44*$E43*W$4 -> 0 | X43: =+Project!X44*$E43*X$4 -> 0 | Y43: =+Project!Y44*$E43*Y$4 -> 0 | Z43: =+Project!Z44*$E43*Z$4 -> 0 | AA43: =+Project!AA44*$E43*AA$4 -> 0 | AB43: =+Project!AB44*$E43*AB$4 -> 0 | AC43: =+Project!AC44*$E43*AC$4 -> 0
A44: 44 | B44: =+B8 -> 3 | C44: [Settlement B] 3 | E44: =Consumers!CE11 -> 0 | G44: =Summary!$F$3&"/a" -> MWh/a | I44: =+Project!I45*$E44*I$4 -> 0 | J44: =+Project!J45*$E44*J$4 -> 0 | K44: =+Project!K45*$E44*K$4 -> 0 | L44: =+Project!L45*$E44*L$4 -> 0 | M44: =+Project!M45*$E44*M$4 -> 0 | N44: =+Project!N45*$E44*N$4 -> 0 | O44: =+Project!O45*$E44*O$4 -> 0 | P44: =+Project!P45*$E44*P$4 -> 0 | Q44: =+Project!Q45*$E44*Q$4 -> 0 | R44: =+Project!R45*$E44*R$4 -> 0 | S44: =+Project!S45*$E44*S$4 -> 0 | T44: =+Project!T45*$E44*T$4 -> 0 | U44: =+Project!U45*$E44*U$4 -> 0 | V44: =+Project!V45*$E44*V$4 -> 0 | W44: =+Project!W45*$E44*W$4 -> 0 | X44: =+Project!X45*$E44*X$4 -> 0 | Y44: =+Project!Y45*$E44*Y$4 -> 0 | Z44: =+Project!Z45*$E44*Z$4 -> 0 | AA44: =+Project!AA45*$E44*AA$4 -> 0 | AB44: =+Project!AB45*$E44*AB$4 -> 0 | AC44: =+Project!AC45*$E44*AC$4 -> 0
A45: 45 | B45: =+B9 -> 4 | C45: [Settlement B] 4 | E45: =Consumers!CE12 -> 0 | G45: =Summary!$F$3&"/a" -> MWh/a | I45: =+Project!I46*$E45*I$4 -> 0 | J45: =+Project!J46*$E45*J$4 -> 0 | K45: =+Project!K46*$E45*K$4 -> 0 | L45: =+Project!L46*$E45*L$4 -> 0 | M45: =+Project!M46*$E45*M$4 -> 0 | N45: =+Project!N46*$E45*N$4 -> 0 | O45: =+Project!O46*$E45*O$4 -> 0 | P45: =+Project!P46*$E45*P$4 -> 0 | Q45: =+Project!Q46*$E45*Q$4 -> 0 | R45: =+Project!R46*$E45*R$4 -> 0 | S45: =+Project!S46*$E45*S$4 -> 0 | T45: =+Project!T46*$E45*T$4 -> 0 | U45: =+Project!U46*$E45*U$4 -> 0 | V45: =+Project!V46*$E45*V$4 -> 0 | W45: =+Project!W46*$E45*W$4 -> 0 | X45: =+Project!X46*$E45*X$4 -> 0 | Y45: =+Project!Y46*$E45*Y$4 -> 0 | Z45: =+Project!Z46*$E45*Z$4 -> 0 | AA45: =+Project!AA46*$E45*AA$4 -> 0 | AB45: =+Project!AB46*$E45*AB$4 -> 0 | AC45: =+Project!AC46*$E45*AC$4 -> 0
A46: 46 | B46: =+B10 -> 5 | C46: [Settlement B] 5 | E46: =Consumers!CE13 -> 0 | G46: =Summary!$F$3&"/a" -> MWh/a | I46: =+Project!I47*$E46*I$4 -> 0 | J46: =+Project!J47*$E46*J$4 -> 0 | K46: =+Project!K47*$E46*K$4 -> 0 | L46: =+Project!L47*$E46*L$4 -> 0 | M46: =+Project!M47*$E46*M$4 -> 0 | N46: =+Project!N47*$E46*N$4 -> 0 | O46: =+Project!O47*$E46*O$4 -> 0 | P46: =+Project!P47*$E46*P$4 -> 0 | Q46: =+Project!Q47*$E46*Q$4 -> 0 | R46: =+Project!R47*$E46*R$4 -> 0 | S46: =+Project!S47*$E46*S$4 -> 0 | T46: =+Project!T47*$E46*T$4 -> 0 | U46: =+Project!U47*$E46*U$4 -> 0 | V46: =+Project!V47*$E46*V$4 -> 0 | W46: =+Project!W47*$E46*W$4 -> 0 | X46: =+Project!X47*$E46*X$4 -> 0 | Y46: =+Project!Y47*$E46*Y$4 -> 0 | Z46: =+Project!Z47*$E46*Z$4 -> 0 | AA46: =+Project!AA47*$E46*AA$4 -> 0 | AB46: =+Project!AB47*$E46*AB$4 -> 0 | AC46: =+Project!AC47*$E46*AC$4 -> 0
A47: 47 | B47: =+B11 -> 6 | C47: [Settlement B] 6 | E47: =Consumers!CE14 -> 0 | G47: =Summary!$F$3&"/a" -> MWh/a | I47: =+Project!I48*$E47*I$4 -> 0 | J47: =+Project!J48*$E47*J$4 -> 0 | K47: =+Project!K48*$E47*K$4 -> 0 | L47: =+Project!L48*$E47*L$4 -> 0 | M47: =+Project!M48*$E47*M$4 -> 0 | N47: =+Project!N48*$E47*N$4 -> 0 | O47: =+Project!O48*$E47*O$4 -> 0 | P47: =+Project!P48*$E47*P$4 -> 0 | Q47: =+Project!Q48*$E47*Q$4 -> 0 | R47: =+Project!R48*$E47*R$4 -> 0 | S47: =+Project!S48*$E47*S$4 -> 0 | T47: =+Project!T48*$E47*T$4 -> 0 | U47: =+Project!U48*$E47*U$4 -> 0 | V47: =+Project!V48*$E47*V$4 -> 0 | W47: =+Project!W48*$E47*W$4 -> 0 | X47: =+Project!X48*$E47*X$4 -> 0 | Y47: =+Project!Y48*$E47*Y$4 -> 0 | Z47: =+Project!Z48*$E47*Z$4 -> 0 | AA47: =+Project!AA48*$E47*AA$4 -> 0 | AB47: =+Project!AB48*$E47*AB$4 -> 0 | AC47: =+Project!AC48*$E47*AC$4 -> 0
A48: 48 | B48: =+B12 -> 7 | C48: [Settlement B] 7 | E48: =Consumers!CE15 -> 0 | G48: =Summary!$F$3&"/a" -> MWh/a | I48: =+Project!I49*$E48*I$4 -> 0 | J48: =+Project!J49*$E48*J$4 -> 0 | K48: =+Project!K49*$E48*K$4 -> 0 | L48: =+Project!L49*$E48*L$4 -> 0 | M48: =+Project!M49*$E48*M$4 -> 0 | N48: =+Project!N49*$E48*N$4 -> 0 | O48: =+Project!O49*$E48*O$4 -> 0 | P48: =+Project!P49*$E48*P$4 -> 0 | Q48: =+Project!Q49*$E48*Q$4 -> 0 | R48: =+Project!R49*$E48*R$4 -> 0 | S48: =+Project!S49*$E48*S$4 -> 0 | T48: =+Project!T49*$E48*T$4 -> 0 | U48: =+Project!U49*$E48*U$4 -> 0 | V48: =+Project!V49*$E48*V$4 -> 0 | W48: =+Project!W49*$E48*W$4 -> 0 | X48: =+Project!X49*$E48*X$4 -> 0 | Y48: =+Project!Y49*$E48*Y$4 -> 0 | Z48: =+Project!Z49*$E48*Z$4 -> 0 | AA48: =+Project!AA49*$E48*AA$4 -> 0 | AB48: =+Project!AB49*$E48*AB$4 -> 0 | AC48: =+Project!AC49*$E48*AC$4 -> 0
A49: 49 | B49: =+B13 -> 8 | C49: [Settlement B] 8 | E49: =Consumers!CE16 -> 0 | G49: =Summary!$F$3&"/a" -> MWh/a | I49: =+Project!I50*$E49*I$4 -> 0 | J49: =+Project!J50*$E49*J$4 -> 0 | K49: =+Project!K50*$E49*K$4 -> 0 | L49: =+Project!L50*$E49*L$4 -> 0 | M49: =+Project!M50*$E49*M$4 -> 0 | N49: =+Project!N50*$E49*N$4 -> 0 | O49: =+Project!O50*$E49*O$4 -> 0 | P49: =+Project!P50*$E49*P$4 -> 0 | Q49: =+Project!Q50*$E49*Q$4 -> 0 | R49: =+Project!R50*$E49*R$4 -> 0 | S49: =+Project!S50*$E49*S$4 -> 0 | T49: =+Project!T50*$E49*T$4 -> 0 | U49: =+Project!U50*$E49*U$4 -> 0 | V49: =+Project!V50*$E49*V$4 -> 0 | W49: =+Project!W50*$E49*W$4 -> 0 | X49: =+Project!X50*$E49*X$4 -> 0 | Y49: =+Project!Y50*$E49*Y$4 -> 0 | Z49: =+Project!Z50*$E49*Z$4 -> 0 | AA49: =+Project!AA50*$E49*AA$4 -> 0 | AB49: =+Project!AB50*$E49*AB$4 -> 0 | AC49: =+Project!AC50*$E49*AC$4 -> 0
A50: 50 | B50: =+B14 -> 9 | C50: [Settlement A] Master | E50: =Consumers!CE17 -> 0 | G50: =Summary!$F$3&"/a" -> MWh/a | I50: =+Project!I51*$E50*I$4 -> 0 | J50: =+Project!J51*$E50*J$4 -> 0 | K50: =+Project!K51*$E50*K$4 -> 0 | L50: =+Project!L51*$E50*L$4 -> 0 | M50: =+Project!M51*$E50*M$4 -> 0 | N50: =+Project!N51*$E50*N$4 -> 0 | O50: =+Project!O51*$E50*O$4 -> 0 | P50: =+Project!P51*$E50*P$4 -> 0 | Q50: =+Project!Q51*$E50*Q$4 -> 0 | R50: =+Project!R51*$E50*R$4 -> 0 | S50: =+Project!S51*$E50*S$4 -> 0 | T50: =+Project!T51*$E50*T$4 -> 0 | U50: =+Project!U51*$E50*U$4 -> 0 | V50: =+Project!V51*$E50*V$4 -> 0 | W50: =+Project!W51*$E50*W$4 -> 0 | X50: =+Project!X51*$E50*X$4 -> 0 | Y50: =+Project!Y51*$E50*Y$4 -> 0 | Z50: =+Project!Z51*$E50*Z$4 -> 0 | AA50: =+Project!AA51*$E50*AA$4 -> 0 | AB50: =+Project!AB51*$E50*AB$4 -> 0 | AC50: =+Project!AC51*$E50*AC$4 -> 0
A51: 51 | B51: =+B15 -> 10 | C51: [Settlement A] 2 | E51: =Consumers!CE18 -> 0 | G51: =Summary!$F$3&"/a" -> MWh/a | I51: =+Project!I52*$E51*I$4 -> 0 | J51: =+Project!J52*$E51*J$4 -> 0 | K51: =+Project!K52*$E51*K$4 -> 0 | L51: =+Project!L52*$E51*L$4 -> 0 | M51: =+Project!M52*$E51*M$4 -> 0 | N51: =+Project!N52*$E51*N$4 -> 0 | O51: =+Project!O52*$E51*O$4 -> 0 | P51: =+Project!P52*$E51*P$4 -> 0 | Q51: =+Project!Q52*$E51*Q$4 -> 0 | R51: =+Project!R52*$E51*R$4 -> 0 | S51: =+Project!S52*$E51*S$4 -> 0 | T51: =+Project!T52*$E51*T$4 -> 0 | U51: =+Project!U52*$E51*U$4 -> 0 | V51: =+Project!V52*$E51*V$4 -> 0 | W51: =+Project!W52*$E51*W$4 -> 0 | X51: =+Project!X52*$E51*X$4 -> 0 | Y51: =+Project!Y52*$E51*Y$4 -> 0 | Z51: =+Project!Z52*$E51*Z$4 -> 0 | AA51: =+Project!AA52*$E51*AA$4 -> 0 | AB51: =+Project!AB52*$E51*AB$4 -> 0 | AC51: =+Project!AC52*$E51*AC$4 -> 0
A52: 52 | B52: =+B16 -> 11 | C52: [Settlement A] 3 | E52: =Consumers!CE19 -> 0 | G52: =Summary!$F$3&"/a" -> MWh/a | I52: =+Project!I53*$E52*I$4 -> 0 | J52: =+Project!J53*$E52*J$4 -> 0 | K52: =+Project!K53*$E52*K$4 -> 0 | L52: =+Project!L53*$E52*L$4 -> 0 | M52: =+Project!M53*$E52*M$4 -> 0 | N52: =+Project!N53*$E52*N$4 -> 0 | O52: =+Project!O53*$E52*O$4 -> 0 | P52: =+Project!P53*$E52*P$4 -> 0 | Q52: =+Project!Q53*$E52*Q$4 -> 0 | R52: =+Project!R53*$E52*R$4 -> 0 | S52: =+Project!S53*$E52*S$4 -> 0 | T52: =+Project!T53*$E52*T$4 -> 0 | U52: =+Project!U53*$E52*U$4 -> 0 | V52: =+Project!V53*$E52*V$4 -> 0 | W52: =+Project!W53*$E52*W$4 -> 0 | X52: =+Project!X53*$E52*X$4 -> 0 | Y52: =+Project!Y53*$E52*Y$4 -> 0 | Z52: =+Project!Z53*$E52*Z$4 -> 0 | AA52: =+Project!AA53*$E52*AA$4 -> 0 | AB52: =+Project!AB53*$E52*AB$4 -> 0 | AC52: =+Project!AC53*$E52*AC$4 -> 0
A53: 53 | B53: =+B17 -> 12 | C53: [Settlement A] 4 | E53: =Consumers!CE20 -> 0 | G53: =Summary!$F$3&"/a" -> MWh/a | I53: =+Project!I54*$E53*I$4 -> 0 | J53: =+Project!J54*$E53*J$4 -> 0 | K53: =+Project!K54*$E53*K$4 -> 0 | L53: =+Project!L54*$E53*L$4 -> 0 | M53: =+Project!M54*$E53*M$4 -> 0 | N53: =+Project!N54*$E53*N$4 -> 0 | O53: =+Project!O54*$E53*O$4 -> 0 | P53: =+Project!P54*$E53*P$4 -> 0 | Q53: =+Project!Q54*$E53*Q$4 -> 0 | R53: =+Project!R54*$E53*R$4 -> 0 | S53: =+Project!S54*$E53*S$4 -> 0 | T53: =+Project!T54*$E53*T$4 -> 0 | U53: =+Project!U54*$E53*U$4 -> 0 | V53: =+Project!V54*$E53*V$4 -> 0 | W53: =+Project!W54*$E53*W$4 -> 0 | X53: =+Project!X54*$E53*X$4 -> 0 | Y53: =+Project!Y54*$E53*Y$4 -> 0 | Z53: =+Project!Z54*$E53*Z$4 -> 0 | AA53: =+Project!AA54*$E53*AA$4 -> 0 | AB53: =+Project!AB54*$E53*AB$4 -> 0 | AC53: =+Project!AC54*$E53*AC$4 -> 0
A54: 54 | B54: =+B18 -> 13 | C54: [Settlement A] 5 | E54: =Consumers!CE21 -> 0 | G54: =Summary!$F$3&"/a" -> MWh/a | I54: =+Project!I55*$E54*I$4 -> 0 | J54: =+Project!J55*$E54*J$4 -> 0 | K54: =+Project!K55*$E54*K$4 -> 0 | L54: =+Project!L55*$E54*L$4 -> 0 | M54: =+Project!M55*$E54*M$4 -> 0 | N54: =+Project!N55*$E54*N$4 -> 0 | O54: =+Project!O55*$E54*O$4 -> 0 | P54: =+Project!P55*$E54*P$4 -> 0 | Q54: =+Project!Q55*$E54*Q$4 -> 0 | R54: =+Project!R55*$E54*R$4 -> 0 | S54: =+Project!S55*$E54*S$4 -> 0 | T54: =+Project!T55*$E54*T$4 -> 0 | U54: =+Project!U55*$E54*U$4 -> 0 | V54: =+Project!V55*$E54*V$4 -> 0 | W54: =+Project!W55*$E54*W$4 -> 0 | X54: =+Project!X55*$E54*X$4 -> 0 | Y54: =+Project!Y55*$E54*Y$4 -> 0 | Z54: =+Project!Z55*$E54*Z$4 -> 0 | AA54: =+Project!AA55*$E54*AA$4 -> 0 | AB54: =+Project!AB55*$E54*AB$4 -> 0 | AC54: =+Project!AC55*$E54*AC$4 -> 0
A55: 55 | B55: =+B19 -> 14 | C55: [Settlement A] 6 | E55: =Consumers!CE22 -> 0 | G55: =Summary!$F$3&"/a" -> MWh/a | I55: =+Project!I56*$E55*I$4 -> 0 | J55: =+Project!J56*$E55*J$4 -> 0 | K55: =+Project!K56*$E55*K$4 -> 0 | L55: =+Project!L56*$E55*L$4 -> 0 | M55: =+Project!M56*$E55*M$4 -> 0 | N55: =+Project!N56*$E55*N$4 -> 0 | O55: =+Project!O56*$E55*O$4 -> 0 | P55: =+Project!P56*$E55*P$4 -> 0 | Q55: =+Project!Q56*$E55*Q$4 -> 0 | R55: =+Project!R56*$E55*R$4 -> 0 | S55: =+Project!S56*$E55*S$4 -> 0 | T55: =+Project!T56*$E55*T$4 -> 0 | U55: =+Project!U56*$E55*U$4 -> 0 | V55: =+Project!V56*$E55*V$4 -> 0 | W55: =+Project!W56*$E55*W$4 -> 0 | X55: =+Project!X56*$E55*X$4 -> 0 | Y55: =+Project!Y56*$E55*Y$4 -> 0 | Z55: =+Project!Z56*$E55*Z$4 -> 0 | AA55: =+Project!AA56*$E55*AA$4 -> 0 | AB55: =+Project!AB56*$E55*AB$4 -> 0 | AC55: =+Project!AC56*$E55*AC$4 -> 0
A56: 56 | B56: =+B20 -> 15 | C56: [Settlement A] 7 | E56: =Consumers!CE23 -> 0 | G56: =Summary!$F$3&"/a" -> MWh/a | I56: =+Project!I57*$E56*I$4 -> 0 | J56: =+Project!J57*$E56*J$4 -> 0 | K56: =+Project!K57*$E56*K$4 -> 0 | L56: =+Project!L57*$E56*L$4 -> 0 | M56: =+Project!M57*$E56*M$4 -> 0 | N56: =+Project!N57*$E56*N$4 -> 0 | O56: =+Project!O57*$E56*O$4 -> 0 | P56: =+Project!P57*$E56*P$4 -> 0 | Q56: =+Project!Q57*$E56*Q$4 -> 0 | R56: =+Project!R57*$E56*R$4 -> 0 | S56: =+Project!S57*$E56*S$4 -> 0 | T56: =+Project!T57*$E56*T$4 -> 0 | U56: =+Project!U57*$E56*U$4 -> 0 | V56: =+Project!V57*$E56*V$4 -> 0 | W56: =+Project!W57*$E56*W$4 -> 0 | X56: =+Project!X57*$E56*X$4 -> 0 | Y56: =+Project!Y57*$E56*Y$4 -> 0 | Z56: =+Project!Z57*$E56*Z$4 -> 0 | AA56: =+Project!AA57*$E56*AA$4 -> 0 | AB56: =+Project!AB57*$E56*AB$4 -> 0 | AC56: =+Project!AC57*$E56*AC$4 -> 0
A57: 57 | B57: Gas boilers total | E57: =SUM(E42:E56) -> 0 | G57: =Summary!$F$3&"/a" -> MWh/a | I57: =SUM(I42:I56) -> 0 | J57: 0 | K57: 0 | L57: =SUM(L42:L56) -> 0 | M57: =SUM(M42:M56) -> 0 | N57: 0 | O57: 0 | P57: 0 | Q57: 0 | R57: 0 | S57: 0 | T57: 0 | U57: 0 | V57: 0 | W57: 0 | X57: 0 | Y57: 0 | Z57: 0 | AA57: 0 | AB57: 0 | AC57: 0
A58: 58
A59: 59 | B59: Market share of individual production | I59: =+I1 -> 2015 | J59: =+J1 -> 2016 | K59: 2017 | L59: 2018 | M59: 2019 | N59: 2020 | O59: 2021 | P59: 2022 | Q59: 2023 | R59: 2024 | S59: 2025 | T59: 2026 | U59: 2027 | V59: 2028 | W59: 2029 | X59: 2030 | Y59: 2031 | Z59: 2032 | AA59: 2033 | AB59: 2034 | AC59: 2035
A60: 60 | B60: =+B5 -> Heat pump | E60: =+E21 -> 0 | F60: =I60+NPV(+F$68,J60:AC60) -> 0 | G60: =Summary!$F$3&"/a" -> MWh/a | I60: =+I21 -> 0 | J60: =+J21 -> 0 | K60: 0 | L60: 0 | M60: 0 | N60: 0 | O60: 0 | P60: 0 | Q60: 0 | R60: 0 | S60: 0 | T60: 0 | U60: 0 | V60: 0 | W60: 0 | X60: 0 | Y60: 0 | Z60: 0 | AA60: 0 | AB60: 0 | AC60: 0
A61: 61 | B61: =+B23 -> Oil boilers | E61: =+E39 -> 0 | F61: =I61+NPV(+F$68,J61:AC61) -> 0 | G61: =Summary!$F$3&"/a" -> MWh/a | I61: =+I39 -> 0 | J61: =+J39 -> 0 | K61: 0 | L61: 0 | M61: 0 | N61: 0 | O61: 0 | P61: 0 | Q61: 0 | R61: 0 | S61: 0 | T61: 0 | U61: 0 | V61: 0 | W61: 0 | X61: 0 | Y61: 0 | Z61: 0 | AA61: 0 | AB61: 0 | AC61: 0
A62: 62 | B62: =+B41 -> Gas boilers | E62: =+E57 -> 0 | F62: =I62+NPV(+F$68,J62:AC62) -> 0 | G62: =Summary!$F$3&"/a" -> MWh/a | I62: =+I57 -> 0 | J62: =+J57 -> 0 | K62: 0 | L62: 0 | M62: 0 | N62: 0 | O62: 0 | P62: 0 | Q62: 0 | R62: 0 | S62: 0 | T62: 0 | U62: 0 | V62: 0 | W62: 0 | X62: 0 | Y62: 0 | Z62: 0 | AA62: 0 | AB62: 0 | AC62: 0
A63: 63 | B63: Total individual production | E63: =SUM(E60:E62) -> 0 | F63: =I63+NPV(+F$68,J63:AC63) -> 0 | G63: =Summary!$F$3&"/a" -> MWh/a | I63: =+I21+I39+I57 -> 0 | J63: =+J21+J39+J57 -> 0 | K63: 0 | L63: 0 | M63: 0 | N63: 0 | O63: 0 | P63: 0 | Q63: 0 | R63: 0 | S63: 0 | T63: 0 | U63: 0 | V63: 0 | W63: 0 | X63: 0 | Y63: 0 | Z63: 0 | AA63: 0 | AB63: 0 | AC63: 0
A64: 64 | B64: Control figure (zero) | G64: =Summary!$F$3&"/a" -> MWh/a | I64: =+Project!I111-I63 -> 0 | J64: =+Project!J111-J63 -> 0 | K64: =+Project!K111-K63 -> 0 | L64: =+Project!L111-L63 -> 0 | M64: =+Project!M111-M63 -> 0 | N64: =+Project!N111-N63 -> 0 | O64: =+Project!O111-O63 -> 0 | P64: =+Project!P111-P63 -> 0 | Q64: =+Project!Q111-Q63 -> 0 | R64: =+Project!R111-R63 -> 0 | S64: =+Project!S111-S63 -> 0 | T64: =+Project!T111-T63 -> 0 | U64: =+Project!U111-U63 -> 0 | V64: =+Project!V111-V63 -> 0 | W64: =+Project!W111-W63 -> 0 | X64: =+Project!X111-X63 -> 0 | Y64: =+Project!Y111-Y63 -> 0 | Z64: =+Project!Z111-Z63 -> 0 | AA64: =+Project!AA111-AA63 -> 0 | AB64: =+Project!AB111-AB63 -> 0 | AC64: =+Project!AC111-AC63 -> 0
A65: 65
A66: 66
A67: 67 | B67: Cost | F67: NPV | G67: Fixed price
A68: 68 | B68: Cost of individual supply | F68: =+Summary!J76 -> 0.03
A69: 69 | B69: Investments
A70: 70 | B70: Heat pumps | D70: Maximal | E70: Actual | F70: NPV | I70: =+IF(Summary!$J$380=1,"Reinvestments same year the consumer else would be connected to DH","Reinvestment uniformly distributed during life-time") -> Reinvestments same year the consumer else would be connected to DH
A71: 71 | B71: =+B6 -> 1 | C71: =+C6 -> [Settlement B] 1 | D71: =Consumers!BA9/1000 -> 0 | E71: =+SUM(J71:AB71) -> 0 | F71: =I71+NPV(+F$68,J71:AC71) -> 0 | G71: ="k"&Summary!$G$3 -> k£ | I71: =IF(Summary!$J$380=1,(+Project!I43-Project!H43)*$D71,$D71/$D$87*Project!$AC43) -> 0 | J71: =IF(Summary!$J$380=1,(+Project!J43-Project!I43)*$D71,$D71/$D$87*Project!$AC43) -> 0 | K71: =IF(Summary!$J$380=1,(+Project!K43-Project!J43)*$D71,$D71/$D$87*Project!$AC43) -> 0 | L71: =IF(Summary!$J$380=1,(+Project!L43-Project!K43)*$D71,$D71/$D$87*Project!$AC43) -> 0 | M71: =IF(Summary!$J$380=1,(+Project!M43-Project!L43)*$D71,$D71/$D$87*Project!$AC43) -> 0 | N71: =IF(Summary!$J$380=1,(+Project!N43-Project!M43)*$D71,$D71/$D$87*Project!$AC43) -> 0 | O71: =IF(Summary!$J$380=1,(+Project!O43-Project!N43)*$D71,$D71/$D$87*Project!$AC43) -> 0 | P71: =IF(Summary!$J$380=1,(+Project!P43-Project!O43)*$D71,$D71/$D$87*Project!$AC43) -> 0 | Q71: =IF(Summary!$J$380=1,(+Project!Q43-Project!P43)*$D71,$D71/$D$87*Project!$AC43) -> 0 | R71: =IF(Summary!$J$380=1,(+Project!R43-Project!Q43)*$D71,$D71/$D$87*Project!$AC43) -> 0 | S71: =IF(Summary!$J$380=1,(+Project!S43-Project!R43)*$D71,$D71/$D$87*Project!$AC43) -> 0 | T71: =IF(Summary!$J$380=1,(+Project!T43-Project!S43)*$D71,$D71/$D$87*Project!$AC43) -> 0 | U71: =IF(Summary!$J$380=1,(+Project!U43-Project!T43)*$D71,$D71/$D$87*Project!$AC43) -> 0 | V71: =IF(Summary!$J$380=1,(+Project!V43-Project!U43)*$D71,$D71/$D$87*Project!$AC43) -> 0 | W71: =IF(Summary!$J$380=1,(+Project!W43-Project!V43)*$D71,$D71/$D$87*Project!$AC43) -> 0 | X71: =IF(Summary!$J$380=1,(+Project!X43-Project!W43)*$D71,$D71/$D$87*Project!$AC43) -> 0 | Y71: =IF(Summary!$J$380=1,(+Project!Y43-Project!X43)*$D71,$D71/$D$87*Project!$AC43) -> 0 | Z71: =IF(Summary!$J$380=1,(+Project!Z43-Project!Y43)*$D71,$D71/$D$87*Project!$AC43) -> 0 | AA71: =IF(Summary!$J$380=1,(+Project!AA43-Project!Z43)*$D71,$D71/$D$87*Project!$AC43) -> 0 | AB71: =IF(Summary!$J$380=1,(+Project!AB43-Project!AA43)*$D71,$D71/$D$87*Project!$AC43) -> 0 | AC71: =IF(Summary!$J$380=1,(+Project!AC43-Project!AB43)*$D71,$D71/$D$87*Project!$AC43) -> 0
A72: 72 | B72: =+B7 -> 2 | C72: =+C7 -> [Settlement B] 2 | D72: =Consumers!BA10/1000 -> 0 | E72: 0 | F72: 0 | G72: ="k"&Summary!$G$3 -> k£ | I72: =IF(Summary!$J$380=1,(+Project!I44-Project!H44)*$D72,$D72/$D$87*Project!$AC44) -> 0 | J72: =IF(Summary!$J$380=1,(+Project!J44-Project!I44)*$D72,$D72/$D$87*Project!$AC44) -> 0 | K72: =IF(Summary!$J$380=1,(+Project!K44-Project!J44)*$D72,$D72/$D$87*Project!$AC44) -> 0 | L72: =IF(Summary!$J$380=1,(+Project!L44-Project!K44)*$D72,$D72/$D$87*Project!$AC44) -> 0 | M72: =IF(Summary!$J$380=1,(+Project!M44-Project!L44)*$D72,$D72/$D$87*Project!$AC44) -> 0 | N72: =IF(Summary!$J$380=1,(+Project!N44-Project!M44)*$D72,$D72/$D$87*Project!$AC44) -> 0 | O72: =IF(Summary!$J$380=1,(+Project!O44-Project!N44)*$D72,$D72/$D$87*Project!$AC44) -> 0 | P72: =IF(Summary!$J$380=1,(+Project!P44-Project!O44)*$D72,$D72/$D$87*Project!$AC44) -> 0 | Q72: =IF(Summary!$J$380=1,(+Project!Q44-Project!P44)*$D72,$D72/$D$87*Project!$AC44) -> 0 | R72: =IF(Summary!$J$380=1,(+Project!R44-Project!Q44)*$D72,$D72/$D$87*Project!$AC44) -> 0 | S72: =IF(Summary!$J$380=1,(+Project!S44-Project!R44)*$D72,$D72/$D$87*Project!$AC44) -> 0 | T72: =IF(Summary!$J$380=1,(+Project!T44-Project!S44)*$D72,$D72/$D$87*Project!$AC44) -> 0 | U72: =IF(Summary!$J$380=1,(+Project!U44-Project!T44)*$D72,$D72/$D$87*Project!$AC44) -> 0 | V72: =IF(Summary!$J$380=1,(+Project!V44-Project!U44)*$D72,$D72/$D$87*Project!$AC44) -> 0 | W72: =IF(Summary!$J$380=1,(+Project!W44-Project!V44)*$D72,$D72/$D$87*Project!$AC44) -> 0 | X72: =IF(Summary!$J$380=1,(+Project!X44-Project!W44)*$D72,$D72/$D$87*Project!$AC44) -> 0 | Y72: =IF(Summary!$J$380=1,(+Project!Y44-Project!X44)*$D72,$D72/$D$87*Project!$AC44) -> 0 | Z72: =IF(Summary!$J$380=1,(+Project!Z44-Project!Y44)*$D72,$D72/$D$87*Project!$AC44) -> 0 | AA72: =IF(Summary!$J$380=1,(+Project!AA44-Project!Z44)*$D72,$D72/$D$87*Project!$AC44) -> 0 | AB72: =IF(Summary!$J$380=1,(+Project!AB44-Project!AA44)*$D72,$D72/$D$87*Project!$AC44) -> 0 | AC72: =IF(Summary!$J$380=1,(+Project!AC44-Project!AB44)*$D72,$D72/$D$87*Project!$AC44) -> 0
A73: 73 | B73: =+B8 -> 3 | C73: [Settlement B] 3 | D73: =Consumers!BA11/1000 -> 0 | E73: 0 | F73: 0 | G73: ="k"&Summary!$G$3 -> k£ | I73: =IF(Summary!$J$380=1,(+Project!I45-Project!H45)*$D73,$D73/$D$87*Project!$AC45) -> 0 | J73: =IF(Summary!$J$380=1,(+Project!J45-Project!I45)*$D73,$D73/$D$87*Project!$AC45) -> 0 | K73: =IF(Summary!$J$380=1,(+Project!K45-Project!J45)*$D73,$D73/$D$87*Project!$AC45) -> 0 | L73: =IF(Summary!$J$380=1,(+Project!L45-Project!K45)*$D73,$D73/$D$87*Project!$AC45) -> 0 | M73: =IF(Summary!$J$380=1,(+Project!M45-Project!L45)*$D73,$D73/$D$87*Project!$AC45) -> 0 | N73: =IF(Summary!$J$380=1,(+Project!N45-Project!M45)*$D73,$D73/$D$87*Project!$AC45) -> 0 | O73: =IF(Summary!$J$380=1,(+Project!O45-Project!N45)*$D73,$D73/$D$87*Project!$AC45) -> 0 | P73: =IF(Summary!$J$380=1,(+Project!P45-Project!O45)*$D73,$D73/$D$87*Project!$AC45) -> 0 | Q73: =IF(Summary!$J$380=1,(+Project!Q45-Project!P45)*$D73,$D73/$D$87*Project!$AC45) -> 0 | R73: =IF(Summary!$J$380=1,(+Project!R45-Project!Q45)*$D73,$D73/$D$87*Project!$AC45) -> 0 | S73: =IF(Summary!$J$380=1,(+Project!S45-Project!R45)*$D73,$D73/$D$87*Project!$AC45) -> 0 | T73: =IF(Summary!$J$380=1,(+Project!T45-Project!S45)*$D73,$D73/$D$87*Project!$AC45) -> 0 | U73: =IF(Summary!$J$380=1,(+Project!U45-Project!T45)*$D73,$D73/$D$87*Project!$AC45) -> 0 | V73: =IF(Summary!$J$380=1,(+Project!V45-Project!U45)*$D73,$D73/$D$87*Project!$AC45) -> 0 | W73: =IF(Summary!$J$380=1,(+Project!W45-Project!V45)*$D73,$D73/$D$87*Project!$AC45) -> 0 | X73: =IF(Summary!$J$380=1,(+Project!X45-Project!W45)*$D73,$D73/$D$87*Project!$AC45) -> 0 | Y73: =IF(Summary!$J$380=1,(+Project!Y45-Project!X45)*$D73,$D73/$D$87*Project!$AC45) -> 0 | Z73: =IF(Summary!$J$380=1,(+Project!Z45-Project!Y45)*$D73,$D73/$D$87*Project!$AC45) -> 0 | AA73: =IF(Summary!$J$380=1,(+Project!AA45-Project!Z45)*$D73,$D73/$D$87*Project!$AC45) -> 0 | AB73: =IF(Summary!$J$380=1,(+Project!AB45-Project!AA45)*$D73,$D73/$D$87*Project!$AC45) -> 0 | AC73: =IF(Summary!$J$380=1,(+Project!AC45-Project!AB45)*$D73,$D73/$D$87*Project!$AC45) -> 0
A74: 74 | B74: =+B9 -> 4 | C74: [Settlement B] 4 | D74: =Consumers!BA12/1000 -> 0 | E74: 0 | F74: 0 | G74: ="k"&Summary!$G$3 -> k£ | I74: =IF(Summary!$J$380=1,(+Project!I46-Project!H46)*$D74,$D74/$D$87*Project!$AC46) -> 0 | J74: =IF(Summary!$J$380=1,(+Project!J46-Project!I46)*$D74,$D74/$D$87*Project!$AC46) -> 0 | K74: =IF(Summary!$J$380=1,(+Project!K46-Project!J46)*$D74,$D74/$D$87*Project!$AC46) -> 0 | L74: =IF(Summary!$J$380=1,(+Project!L46-Project!K46)*$D74,$D74/$D$87*Project!$AC46) -> 0 | M74: =IF(Summary!$J$380=1,(+Project!M46-Project!L46)*$D74,$D74/$D$87*Project!$AC46) -> 0 | N74: =IF(Summary!$J$380=1,(+Project!N46-Project!M46)*$D74,$D74/$D$87*Project!$AC46) -> 0 | O74: =IF(Summary!$J$380=1,(+Project!O46-Project!N46)*$D74,$D74/$D$87*Project!$AC46) -> 0 | P74: =IF(Summary!$J$380=1,(+Project!P46-Project!O46)*$D74,$D74/$D$87*Project!$AC46) -> 0 | Q74: =IF(Summary!$J$380=1,(+Project!Q46-Project!P46)*$D74,$D74/$D$87*Project!$AC46) -> 0 | R74: =IF(Summary!$J$380=1,(+Project!R46-Project!Q46)*$D74,$D74/$D$87*Project!$AC46) -> 0 | S74: =IF(Summary!$J$380=1,(+Project!S46-Project!R46)*$D74,$D74/$D$87*Project!$AC46) -> 0 | T74: =IF(Summary!$J$380=1,(+Project!T46-Project!S46)*$D74,$D74/$D$87*Project!$AC46) -> 0 | U74: =IF(Summary!$J$380=1,(+Project!U46-Project!T46)*$D74,$D74/$D$87*Project!$AC46) -> 0 | V74: =IF(Summary!$J$380=1,(+Project!V46-Project!U46)*$D74,$D74/$D$87*Project!$AC46) -> 0 | W74: =IF(Summary!$J$380=1,(+Project!W46-Project!V46)*$D74,$D74/$D$87*Project!$AC46) -> 0 | X74: =IF(Summary!$J$380=1,(+Project!X46-Project!W46)*$D74,$D74/$D$87*Project!$AC46) -> 0 | Y74: =IF(Summary!$J$380=1,(+Project!Y46-Project!X46)*$D74,$D74/$D$87*Project!$AC46) -> 0 | Z74: =IF(Summary!$J$380=1,(+Project!Z46-Project!Y46)*$D74,$D74/$D$87*Project!$AC46) -> 0 | AA74: =IF(Summary!$J$380=1,(+Project!AA46-Project!Z46)*$D74,$D74/$D$87*Project!$AC46) -> 0 | AB74: =IF(Summary!$J$380=1,(+Project!AB46-Project!AA46)*$D74,$D74/$D$87*Project!$AC46) -> 0 | AC74: =IF(Summary!$J$380=1,(+Project!AC46-Project!AB46)*$D74,$D74/$D$87*Project!$AC46) -> 0
A75: 75 | B75: =+B10 -> 5 | C75: [Settlement B] 5 | D75: =Consumers!BA13/1000 -> 0 | E75: 0 | F75: 0 | G75: ="k"&Summary!$G$3 -> k£ | I75: =IF(Summary!$J$380=1,(+Project!I47-Project!H47)*$D75,$D75/$D$87*Project!$AC47) -> 0 | J75: =IF(Summary!$J$380=1,(+Project!J47-Project!I47)*$D75,$D75/$D$87*Project!$AC47) -> 0 | K75: =IF(Summary!$J$380=1,(+Project!K47-Project!J47)*$D75,$D75/$D$87*Project!$AC47) -> 0 | L75: =IF(Summary!$J$380=1,(+Project!L47-Project!K47)*$D75,$D75/$D$87*Project!$AC47) -> 0 | M75: =IF(Summary!$J$380=1,(+Project!M47-Project!L47)*$D75,$D75/$D$87*Project!$AC47) -> 0 | N75: =IF(Summary!$J$380=1,(+Project!N47-Project!M47)*$D75,$D75/$D$87*Project!$AC47) -> 0 | O75: =IF(Summary!$J$380=1,(+Project!O47-Project!N47)*$D75,$D75/$D$87*Project!$AC47) -> 0 | P75: =IF(Summary!$J$380=1,(+Project!P47-Project!O47)*$D75,$D75/$D$87*Project!$AC47) -> 0 | Q75: =IF(Summary!$J$380=1,(+Project!Q47-Project!P47)*$D75,$D75/$D$87*Project!$AC47) -> 0 | R75: =IF(Summary!$J$380=1,(+Project!R47-Project!Q47)*$D75,$D75/$D$87*Project!$AC47) -> 0 | S75: =IF(Summary!$J$380=1,(+Project!S47-Project!R47)*$D75,$D75/$D$87*Project!$AC47) -> 0 | T75: =IF(Summary!$J$380=1,(+Project!T47-Project!S47)*$D75,$D75/$D$87*Project!$AC47) -> 0 | U75: =IF(Summary!$J$380=1,(+Project!U47-Project!T47)*$D75,$D75/$D$87*Project!$AC47) -> 0 | V75: =IF(Summary!$J$380=1,(+Project!V47-Project!U47)*$D75,$D75/$D$87*Project!$AC47) -> 0 | W75: =IF(Summary!$J$380=1,(+Project!W47-Project!V47)*$D75,$D75/$D$87*Project!$AC47) -> 0 | X75: =IF(Summary!$J$380=1,(+Project!X47-Project!W47)*$D75,$D75/$D$87*Project!$AC47) -> 0 | Y75: =IF(Summary!$J$380=1,(+Project!Y47-Project!X47)*$D75,$D75/$D$87*Project!$AC47) -> 0 | Z75: =IF(Summary!$J$380=1,(+Project!Z47-Project!Y47)*$D75,$D75/$D$87*Project!$AC47) -> 0 | AA75: =IF(Summary!$J$380=1,(+Project!AA47-Project!Z47)*$D75,$D75/$D$87*Project!$AC47) -> 0 | AB75: =IF(Summary!$J$380=1,(+Project!AB47-Project!AA47)*$D75,$D75/$D$87*Project!$AC47) -> 0 | AC75: =IF(Summary!$J$380=1,(+Project!AC47-Project!AB47)*$D75,$D75/$D$87*Project!$AC47) -> 0
A76: 76 | B76: =+B11 -> 6 | C76: [Settlement B] 6 | D76: =Consumers!BA14/1000 -> 0 | E76: 0 | F76: 0 | G76: ="k"&Summary!$G$3 -> k£ | I76: =IF(Summary!$J$380=1,(+Project!I48-Project!H48)*$D76,$D76/$D$87*Project!$AC48) -> 0 | J76: =IF(Summary!$J$380=1,(+Project!J48-Project!I48)*$D76,$D76/$D$87*Project!$AC48) -> 0 | K76: =IF(Summary!$J$380=1,(+Project!K48-Project!J48)*$D76,$D76/$D$87*Project!$AC48) -> 0 | L76: =IF(Summary!$J$380=1,(+Project!L48-Project!K48)*$D76,$D76/$D$87*Project!$AC48) -> 0 | M76: =IF(Summary!$J$380=1,(+Project!M48-Project!L48)*$D76,$D76/$D$87*Project!$AC48) -> 0 | N76: =IF(Summary!$J$380=1,(+Project!N48-Project!M48)*$D76,$D76/$D$87*Project!$AC48) -> 0 | O76: =IF(Summary!$J$380=1,(+Project!O48-Project!N48)*$D76,$D76/$D$87*Project!$AC48) -> 0 | P76: =IF(Summary!$J$380=1,(+Project!P48-Project!O48)*$D76,$D76/$D$87*Project!$AC48) -> 0 | Q76: =IF(Summary!$J$380=1,(+Project!Q48-Project!P48)*$D76,$D76/$D$87*Project!$AC48) -> 0 | R76: =IF(Summary!$J$380=1,(+Project!R48-Project!Q48)*$D76,$D76/$D$87*Project!$AC48) -> 0 | S76: =IF(Summary!$J$380=1,(+Project!S48-Project!R48)*$D76,$D76/$D$87*Project!$AC48) -> 0 | T76: =IF(Summary!$J$380=1,(+Project!T48-Project!S48)*$D76,$D76/$D$87*Project!$AC48) -> 0 | U76: =IF(Summary!$J$380=1,(+Project!U48-Project!T48)*$D76,$D76/$D$87*Project!$AC48) -> 0 | V76: =IF(Summary!$J$380=1,(+Project!V48-Project!U48)*$D76,$D76/$D$87*Project!$AC48) -> 0 | W76: =IF(Summary!$J$380=1,(+Project!W48-Project!V48)*$D76,$D76/$D$87*Project!$AC48) -> 0 | X76: =IF(Summary!$J$380=1,(+Project!X48-Project!W48)*$D76,$D76/$D$87*Project!$AC48) -> 0 | Y76: =IF(Summary!$J$380=1,(+Project!Y48-Project!X48)*$D76,$D76/$D$87*Project!$AC48) -> 0 | Z76: =IF(Summary!$J$380=1,(+Project!Z48-Project!Y48)*$D76,$D76/$D$87*Project!$AC48) -> 0 | AA76: =IF(Summary!$J$380=1,(+Project!AA48-Project!Z48)*$D76,$D76/$D$87*Project!$AC48) -> 0 | AB76: =IF(Summary!$J$380=1,(+Project!AB48-Project!AA48)*$D76,$D76/$D$87*Project!$AC48) -> 0 | AC76: =IF(Summary!$J$380=1,(+Project!AC48-Project!AB48)*$D76,$D76/$D$87*Project!$AC48) -> 0
A77: 77 | B77: =+B12 -> 7 | C77: [Settlement B] 7 | D77: =Consumers!BA15/1000 -> 0 | E77: 0 | F77: 0 | G77: ="k"&Summary!$G$3 -> k£ | I77: =IF(Summary!$J$380=1,(+Project!I49-Project!H49)*$D77,$D77/$D$87*Project!$AC49) -> 0 | J77: =IF(Summary!$J$380=1,(+Project!J49-Project!I49)*$D77,$D77/$D$87*Project!$AC49) -> 0 | K77: =IF(Summary!$J$380=1,(+Project!K49-Project!J49)*$D77,$D77/$D$87*Project!$AC49) -> 0 | L77: =IF(Summary!$J$380=1,(+Project!L49-Project!K49)*$D77,$D77/$D$87*Project!$AC49) -> 0 | M77: =IF(Summary!$J$380=1,(+Project!M49-Project!L49)*$D77,$D77/$D$87*Project!$AC49) -> 0 | N77: =IF(Summary!$J$380=1,(+Project!N49-Project!M49)*$D77,$D77/$D$87*Project!$AC49) -> 0 | O77: =IF(Summary!$J$380=1,(+Project!O49-Project!N49)*$D77,$D77/$D$87*Project!$AC49) -> 0 | P77: =IF(Summary!$J$380=1,(+Project!P49-Project!O49)*$D77,$D77/$D$87*Project!$AC49) -> 0 | Q77: =IF(Summary!$J$380=1,(+Project!Q49-Project!P49)*$D77,$D77/$D$87*Project!$AC49) -> 0 | R77: =IF(Summary!$J$380=1,(+Project!R49-Project!Q49)*$D77,$D77/$D$87*Project!$AC49) -> 0 | S77: =IF(Summary!$J$380=1,(+Project!S49-Project!R49)*$D77,$D77/$D$87*Project!$AC49) -> 0 | T77: =IF(Summary!$J$380=1,(+Project!T49-Project!S49)*$D77,$D77/$D$87*Project!$AC49) -> 0 | U77: =IF(Summary!$J$380=1,(+Project!U49-Project!T49)*$D77,$D77/$D$87*Project!$AC49) -> 0 | V77: =IF(Summary!$J$380=1,(+Project!V49-Project!U49)*$D77,$D77/$D$87*Project!$AC49) -> 0 | W77: =IF(Summary!$J$380=1,(+Project!W49-Project!V49)*$D77,$D77/$D$87*Project!$AC49) -> 0 | X77: =IF(Summary!$J$380=1,(+Project!X49-Project!W49)*$D77,$D77/$D$87*Project!$AC49) -> 0 | Y77: =IF(Summary!$J$380=1,(+Project!Y49-Project!X49)*$D77,$D77/$D$87*Project!$AC49) -> 0 | Z77: =IF(Summary!$J$380=1,(+Project!Z49-Project!Y49)*$D77,$D77/$D$87*Project!$AC49) -> 0 | AA77: =IF(Summary!$J$380=1,(+Project!AA49-Project!Z49)*$D77,$D77/$D$87*Project!$AC49) -> 0 | AB77: =IF(Summary!$J$380=1,(+Project!AB49-Project!AA49)*$D77,$D77/$D$87*Project!$AC49) -> 0 | AC77: =IF(Summary!$J$380=1,(+Project!AC49-Project!AB49)*$D77,$D77/$D$87*Project!$AC49) -> 0
A78: 78 | B78: =+B13 -> 8 | C78: [Settlement B] 8 | D78: =Consumers!BA16/1000 -> 0 | E78: 0 | F78: 0 | G78: ="k"&Summary!$G$3 -> k£ | I78: =IF(Summary!$J$380=1,(+Project!I50-Project!H50)*$D78,$D78/$D$87*Project!$AC50) -> 0 | J78: =IF(Summary!$J$380=1,(+Project!J50-Project!I50)*$D78,$D78/$D$87*Project!$AC50) -> 0 | K78: =IF(Summary!$J$380=1,(+Project!K50-Project!J50)*$D78,$D78/$D$87*Project!$AC50) -> 0 | L78: =IF(Summary!$J$380=1,(+Project!L50-Project!K50)*$D78,$D78/$D$87*Project!$AC50) -> 0 | M78: =IF(Summary!$J$380=1,(+Project!M50-Project!L50)*$D78,$D78/$D$87*Project!$AC50) -> 0 | N78: =IF(Summary!$J$380=1,(+Project!N50-Project!M50)*$D78,$D78/$D$87*Project!$AC50) -> 0 | O78: =IF(Summary!$J$380=1,(+Project!O50-Project!N50)*$D78,$D78/$D$87*Project!$AC50) -> 0 | P78: =IF(Summary!$J$380=1,(+Project!P50-Project!O50)*$D78,$D78/$D$87*Project!$AC50) -> 0 | Q78: =IF(Summary!$J$380=1,(+Project!Q50-Project!P50)*$D78,$D78/$D$87*Project!$AC50) -> 0 | R78: =IF(Summary!$J$380=1,(+Project!R50-Project!Q50)*$D78,$D78/$D$87*Project!$AC50) -> 0 | S78: =IF(Summary!$J$380=1,(+Project!S50-Project!R50)*$D78,$D78/$D$87*Project!$AC50) -> 0 | T78: =IF(Summary!$J$380=1,(+Project!T50-Project!S50)*$D78,$D78/$D$87*Project!$AC50) -> 0 | U78: =IF(Summary!$J$380=1,(+Project!U50-Project!T50)*$D78,$D78/$D$87*Project!$AC50) -> 0 | V78: =IF(Summary!$J$380=1,(+Project!V50-Project!U50)*$D78,$D78/$D$87*Project!$AC50) -> 0 | W78: =IF(Summary!$J$380=1,(+Project!W50-Project!V50)*$D78,$D78/$D$87*Project!$AC50) -> 0 | X78: =IF(Summary!$J$380=1,(+Project!X50-Project!W50)*$D78,$D78/$D$87*Project!$AC50) -> 0 | Y78: =IF(Summary!$J$380=1,(+Project!Y50-Project!X50)*$D78,$D78/$D$87*Project!$AC50) -> 0 | Z78: =IF(Summary!$J$380=1,(+Project!Z50-Project!Y50)*$D78,$D78/$D$87*Project!$AC50) -> 0 | AA78: =IF(Summary!$J$380=1,(+Project!AA50-Project!Z50)*$D78,$D78/$D$87*Project!$AC50) -> 0 | AB78: =IF(Summary!$J$380=1,(+Project!AB50-Project!AA50)*$D78,$D78/$D$87*Project!$AC50) -> 0 | AC78: =IF(Summary!$J$380=1,(+Project!AC50-Project!AB50)*$D78,$D78/$D$87*Project!$AC50) -> 0
A79: 79 | B79: =+B14 -> 9 | C79: [Settlement A] Master | D79: =Consumers!BA17/1000 -> 0 | E79: 0 | F79: 0 | G79: ="k"&Summary!$G$3 -> k£ | I79: =IF(Summary!$J$380=1,(+Project!I51-Project!H51)*$D79,$D79/$D$87*Project!$AC51) -> 0 | J79: =IF(Summary!$J$380=1,(+Project!J51-Project!I51)*$D79,$D79/$D$87*Project!$AC51) -> 0 | K79: =IF(Summary!$J$380=1,(+Project!K51-Project!J51)*$D79,$D79/$D$87*Project!$AC51) -> 0 | L79: =IF(Summary!$J$380=1,(+Project!L51-Project!K51)*$D79,$D79/$D$87*Project!$AC51) -> 0 | M79: =IF(Summary!$J$380=1,(+Project!M51-Project!L51)*$D79,$D79/$D$87*Project!$AC51) -> 0 | N79: =IF(Summary!$J$380=1,(+Project!N51-Project!M51)*$D79,$D79/$D$87*Project!$AC51) -> 0 | O79: =IF(Summary!$J$380=1,(+Project!O51-Project!N51)*$D79,$D79/$D$87*Project!$AC51) -> 0 | P79: =IF(Summary!$J$380=1,(+Project!P51-Project!O51)*$D79,$D79/$D$87*Project!$AC51) -> 0 | Q79: =IF(Summary!$J$380=1,(+Project!Q51-Project!P51)*$D79,$D79/$D$87*Project!$AC51) -> 0 | R79: =IF(Summary!$J$380=1,(+Project!R51-Project!Q51)*$D79,$D79/$D$87*Project!$AC51) -> 0 | S79: =IF(Summary!$J$380=1,(+Project!S51-Project!R51)*$D79,$D79/$D$87*Project!$AC51) -> 0 | T79: =IF(Summary!$J$380=1,(+Project!T51-Project!S51)*$D79,$D79/$D$87*Project!$AC51) -> 0 | U79: =IF(Summary!$J$380=1,(+Project!U51-Project!T51)*$D79,$D79/$D$87*Project!$AC51) -> 0 | V79: =IF(Summary!$J$380=1,(+Project!V51-Project!U51)*$D79,$D79/$D$87*Project!$AC51) -> 0 | W79: =IF(Summary!$J$380=1,(+Project!W51-Project!V51)*$D79,$D79/$D$87*Project!$AC51) -> 0 | X79: =IF(Summary!$J$380=1,(+Project!X51-Project!W51)*$D79,$D79/$D$87*Project!$AC51) -> 0 | Y79: =IF(Summary!$J$380=1,(+Project!Y51-Project!X51)*$D79,$D79/$D$87*Project!$AC51) -> 0 | Z79: =IF(Summary!$J$380=1,(+Project!Z51-Project!Y51)*$D79,$D79/$D$87*Project!$AC51) -> 0 | AA79: =IF(Summary!$J$380=1,(+Project!AA51-Project!Z51)*$D79,$D79/$D$87*Project!$AC51) -> 0 | AB79: =IF(Summary!$J$380=1,(+Project!AB51-Project!AA51)*$D79,$D79/$D$87*Project!$AC51) -> 0 | AC79: =IF(Summary!$J$380=1,(+Project!AC51-Project!AB51)*$D79,$D79/$D$87*Project!$AC51) -> 0
A80: 80 | B80: =+B15 -> 10 | C80: [Settlement A] 2 | D80: =Consumers!BA18/1000 -> 0 | E80: 0 | F80: 0 | G80: ="k"&Summary!$G$3 -> k£ | I80: =IF(Summary!$J$380=1,(+Project!I52-Project!H52)*$D80,$D80/$D$87*Project!$AC52) -> 0 | J80: =IF(Summary!$J$380=1,(+Project!J52-Project!I52)*$D80,$D80/$D$87*Project!$AC52) -> 0 | K80: =IF(Summary!$J$380=1,(+Project!K52-Project!J52)*$D80,$D80/$D$87*Project!$AC52) -> 0 | L80: =IF(Summary!$J$380=1,(+Project!L52-Project!K52)*$D80,$D80/$D$87*Project!$AC52) -> 0 | M80: =IF(Summary!$J$380=1,(+Project!M52-Project!L52)*$D80,$D80/$D$87*Project!$AC52) -> 0 | N80: =IF(Summary!$J$380=1,(+Project!N52-Project!M52)*$D80,$D80/$D$87*Project!$AC52) -> 0 | O80: =IF(Summary!$J$380=1,(+Project!O52-Project!N52)*$D80,$D80/$D$87*Project!$AC52) -> 0 | P80: =IF(Summary!$J$380=1,(+Project!P52-Project!O52)*$D80,$D80/$D$87*Project!$AC52) -> 0 | Q80: =IF(Summary!$J$380=1,(+Project!Q52-Project!P52)*$D80,$D80/$D$87*Project!$AC52) -> 0 | R80: =IF(Summary!$J$380=1,(+Project!R52-Project!Q52)*$D80,$D80/$D$87*Project!$AC52) -> 0 | S80: =IF(Summary!$J$380=1,(+Project!S52-Project!R52)*$D80,$D80/$D$87*Project!$AC52) -> 0 | T80: =IF(Summary!$J$380=1,(+Project!T52-Project!S52)*$D80,$D80/$D$87*Project!$AC52) -> 0 | U80: =IF(Summary!$J$380=1,(+Project!U52-Project!T52)*$D80,$D80/$D$87*Project!$AC52) -> 0 | V80: =IF(Summary!$J$380=1,(+Project!V52-Project!U52)*$D80,$D80/$D$87*Project!$AC52) -> 0 | W80: =IF(Summary!$J$380=1,(+Project!W52-Project!V52)*$D80,$D80/$D$87*Project!$AC52) -> 0 | X80: =IF(Summary!$J$380=1,(+Project!X52-Project!W52)*$D80,$D80/$D$87*Project!$AC52) -> 0 | Y80: =IF(Summary!$J$380=1,(+Project!Y52-Project!X52)*$D80,$D80/$D$87*Project!$AC52) -> 0 | Z80: =IF(Summary!$J$380=1,(+Project!Z52-Project!Y52)*$D80,$D80/$D$87*Project!$AC52) -> 0 | AA80: =IF(Summary!$J$380=1,(+Project!AA52-Project!Z52)*$D80,$D80/$D$87*Project!$AC52) -> 0 | AB80: =IF(Summary!$J$380=1,(+Project!AB52-Project!AA52)*$D80,$D80/$D$87*Project!$AC52) -> 0 | AC80: =IF(Summary!$J$380=1,(+Project!AC52-Project!AB52)*$D80,$D80/$D$87*Project!$AC52) -> 0
A81: 81 | B81: =+B16 -> 11 | C81: [Settlement A] 3 | D81: =Consumers!BA19/1000 -> 0 | E81: 0 | F81: 0 | G81: ="k"&Summary!$G$3 -> k£ | I81: =IF(Summary!$J$380=1,(+Project!I53-Project!H53)*$D81,$D81/$D$87*Project!$AC53) -> 0 | J81: =IF(Summary!$J$380=1,(+Project!J53-Project!I53)*$D81,$D81/$D$87*Project!$AC53) -> 0 | K81: =IF(Summary!$J$380=1,(+Project!K53-Project!J53)*$D81,$D81/$D$87*Project!$AC53) -> 0 | L81: =IF(Summary!$J$380=1,(+Project!L53-Project!K53)*$D81,$D81/$D$87*Project!$AC53) -> 0 | M81: =IF(Summary!$J$380=1,(+Project!M53-Project!L53)*$D81,$D81/$D$87*Project!$AC53) -> 0 | N81: =IF(Summary!$J$380=1,(+Project!N53-Project!M53)*$D81,$D81/$D$87*Project!$AC53) -> 0 | O81: =IF(Summary!$J$380=1,(+Project!O53-Project!N53)*$D81,$D81/$D$87*Project!$AC53) -> 0 | P81: =IF(Summary!$J$380=1,(+Project!P53-Project!O53)*$D81,$D81/$D$87*Project!$AC53) -> 0 | Q81: =IF(Summary!$J$380=1,(+Project!Q53-Project!P53)*$D81,$D81/$D$87*Project!$AC53) -> 0 | R81: =IF(Summary!$J$380=1,(+Project!R53-Project!Q53)*$D81,$D81/$D$87*Project!$AC53) -> 0 | S81: =IF(Summary!$J$380=1,(+Project!S53-Project!R53)*$D81,$D81/$D$87*Project!$AC53) -> 0 | T81: =IF(Summary!$J$380=1,(+Project!T53-Project!S53)*$D81,$D81/$D$87*Project!$AC53) -> 0 | U81: =IF(Summary!$J$380=1,(+Project!U53-Project!T53)*$D81,$D81/$D$87*Project!$AC53) -> 0 | V81: =IF(Summary!$J$380=1,(+Project!V53-Project!U53)*$D81,$D81/$D$87*Project!$AC53) -> 0 | W81: =IF(Summary!$J$380=1,(+Project!W53-Project!V53)*$D81,$D81/$D$87*Project!$AC53) -> 0 | X81: =IF(Summary!$J$380=1,(+Project!X53-Project!W53)*$D81,$D81/$D$87*Project!$AC53) -> 0 | Y81: =IF(Summary!$J$380=1,(+Project!Y53-Project!X53)*$D81,$D81/$D$87*Project!$AC53) -> 0 | Z81: =IF(Summary!$J$380=1,(+Project!Z53-Project!Y53)*$D81,$D81/$D$87*Project!$AC53) -> 0 | AA81: =IF(Summary!$J$380=1,(+Project!AA53-Project!Z53)*$D81,$D81/$D$87*Project!$AC53) -> 0 | AB81: =IF(Summary!$J$380=1,(+Project!AB53-Project!AA53)*$D81,$D81/$D$87*Project!$AC53) -> 0 | AC81: =IF(Summary!$J$380=1,(+Project!AC53-Project!AB53)*$D81,$D81/$D$87*Project!$AC53) -> 0
A82: 82 | B82: =+B17 -> 12 | C82: [Settlement A] 4 | D82: =Consumers!BA20/1000 -> 0 | E82: 0 | F82: 0 | G82: ="k"&Summary!$G$3 -> k£ | I82: =IF(Summary!$J$380=1,(+Project!I54-Project!H54)*$D82,$D82/$D$87*Project!$AC54) -> 0 | J82: =IF(Summary!$J$380=1,(+Project!J54-Project!I54)*$D82,$D82/$D$87*Project!$AC54) -> 0 | K82: =IF(Summary!$J$380=1,(+Project!K54-Project!J54)*$D82,$D82/$D$87*Project!$AC54) -> 0 | L82: =IF(Summary!$J$380=1,(+Project!L54-Project!K54)*$D82,$D82/$D$87*Project!$AC54) -> 0 | M82: =IF(Summary!$J$380=1,(+Project!M54-Project!L54)*$D82,$D82/$D$87*Project!$AC54) -> 0 | N82: =IF(Summary!$J$380=1,(+Project!N54-Project!M54)*$D82,$D82/$D$87*Project!$AC54) -> 0 | O82: =IF(Summary!$J$380=1,(+Project!O54-Project!N54)*$D82,$D82/$D$87*Project!$AC54) -> 0 | P82: =IF(Summary!$J$380=1,(+Project!P54-Project!O54)*$D82,$D82/$D$87*Project!$AC54) -> 0 | Q82: =IF(Summary!$J$380=1,(+Project!Q54-Project!P54)*$D82,$D82/$D$87*Project!$AC54) -> 0 | R82: =IF(Summary!$J$380=1,(+Project!R54-Project!Q54)*$D82,$D82/$D$87*Project!$AC54) -> 0 | S82: =IF(Summary!$J$380=1,(+Project!S54-Project!R54)*$D82,$D82/$D$87*Project!$AC54) -> 0 | T82: =IF(Summary!$J$380=1,(+Project!T54-Project!S54)*$D82,$D82/$D$87*Project!$AC54) -> 0 | U82: =IF(Summary!$J$380=1,(+Project!U54-Project!T54)*$D82,$D82/$D$87*Project!$AC54) -> 0 | V82: =IF(Summary!$J$380=1,(+Project!V54-Project!U54)*$D82,$D82/$D$87*Project!$AC54) -> 0 | W82: =IF(Summary!$J$380=1,(+Project!W54-Project!V54)*$D82,$D82/$D$87*Project!$AC54) -> 0 | X82: =IF(Summary!$J$380=1,(+Project!X54-Project!W54)*$D82,$D82/$D$87*Project!$AC54) -> 0 | Y82: =IF(Summary!$J$380=1,(+Project!Y54-Project!X54)*$D82,$D82/$D$87*Project!$AC54) -> 0 | Z82: =IF(Summary!$J$380=1,(+Project!Z54-Project!Y54)*$D82,$D82/$D$87*Project!$AC54) -> 0 | AA82: =IF(Summary!$J$380=1,(+Project!AA54-Project!Z54)*$D82,$D82/$D$87*Project!$AC54) -> 0 | AB82: =IF(Summary!$J$380=1,(+Project!AB54-Project!AA54)*$D82,$D82/$D$87*Project!$AC54) -> 0 | AC82: =IF(Summary!$J$380=1,(+Project!AC54-Project!AB54)*$D82,$D82/$D$87*Project!$AC54) -> 0
A83: 83 | B83: =+B18 -> 13 | C83: [Settlement A] 5 | D83: =Consumers!BA21/1000 -> 0 | E83: 0 | F83: 0 | G83: ="k"&Summary!$G$3 -> k£ | I83: =IF(Summary!$J$380=1,(+Project!I55-Project!H55)*$D83,$D83/$D$87*Project!$AC55) -> 0 | J83: =IF(Summary!$J$380=1,(+Project!J55-Project!I55)*$D83,$D83/$D$87*Project!$AC55) -> 0 | K83: =IF(Summary!$J$380=1,(+Project!K55-Project!J55)*$D83,$D83/$D$87*Project!$AC55) -> 0 | L83: =IF(Summary!$J$380=1,(+Project!L55-Project!K55)*$D83,$D83/$D$87*Project!$AC55) -> 0 | M83: =IF(Summary!$J$380=1,(+Project!M55-Project!L55)*$D83,$D83/$D$87*Project!$AC55) -> 0 | N83: =IF(Summary!$J$380=1,(+Project!N55-Project!M55)*$D83,$D83/$D$87*Project!$AC55) -> 0 | O83: =IF(Summary!$J$380=1,(+Project!O55-Project!N55)*$D83,$D83/$D$87*Project!$AC55) -> 0 | P83: =IF(Summary!$J$380=1,(+Project!P55-Project!O55)*$D83,$D83/$D$87*Project!$AC55) -> 0 | Q83: =IF(Summary!$J$380=1,(+Project!Q55-Project!P55)*$D83,$D83/$D$87*Project!$AC55) -> 0 | R83: =IF(Summary!$J$380=1,(+Project!R55-Project!Q55)*$D83,$D83/$D$87*Project!$AC55) -> 0 | S83: =IF(Summary!$J$380=1,(+Project!S55-Project!R55)*$D83,$D83/$D$87*Project!$AC55) -> 0 | T83: =IF(Summary!$J$380=1,(+Project!T55-Project!S55)*$D83,$D83/$D$87*Project!$AC55) -> 0 | U83: =IF(Summary!$J$380=1,(+Project!U55-Project!T55)*$D83,$D83/$D$87*Project!$AC55) -> 0 | V83: =IF(Summary!$J$380=1,(+Project!V55-Project!U55)*$D83,$D83/$D$87*Project!$AC55) -> 0 | W83: =IF(Summary!$J$380=1,(+Project!W55-Project!V55)*$D83,$D83/$D$87*Project!$AC55) -> 0 | X83: =IF(Summary!$J$380=1,(+Project!X55-Project!W55)*$D83,$D83/$D$87*Project!$AC55) -> 0 | Y83: =IF(Summary!$J$380=1,(+Project!Y55-Project!X55)*$D83,$D83/$D$87*Project!$AC55) -> 0 | Z83: =IF(Summary!$J$380=1,(+Project!Z55-Project!Y55)*$D83,$D83/$D$87*Project!$AC55) -> 0 | AA83: =IF(Summary!$J$380=1,(+Project!AA55-Project!Z55)*$D83,$D83/$D$87*Project!$AC55) -> 0 | AB83: =IF(Summary!$J$380=1,(+Project!AB55-Project!AA55)*$D83,$D83/$D$87*Project!$AC55) -> 0 | AC83: =IF(Summary!$J$380=1,(+Project!AC55-Project!AB55)*$D83,$D83/$D$87*Project!$AC55) -> 0
A84: 84 | B84: =+B19 -> 14 | C84: [Settlement A] 6 | D84: =Consumers!BA22/1000 -> 0 | E84: 0 | F84: 0 | G84: ="k"&Summary!$G$3 -> k£ | I84: =IF(Summary!$J$380=1,(+Project!I56-Project!H56)*$D84,$D84/$D$87*Project!$AC56) -> 0 | J84: =IF(Summary!$J$380=1,(+Project!J56-Project!I56)*$D84,$D84/$D$87*Project!$AC56) -> 0 | K84: =IF(Summary!$J$380=1,(+Project!K56-Project!J56)*$D84,$D84/$D$87*Project!$AC56) -> 0 | L84: =IF(Summary!$J$380=1,(+Project!L56-Project!K56)*$D84,$D84/$D$87*Project!$AC56) -> 0 | M84: =IF(Summary!$J$380=1,(+Project!M56-Project!L56)*$D84,$D84/$D$87*Project!$AC56) -> 0 | N84: =IF(Summary!$J$380=1,(+Project!N56-Project!M56)*$D84,$D84/$D$87*Project!$AC56) -> 0 | O84: =IF(Summary!$J$380=1,(+Project!O56-Project!N56)*$D84,$D84/$D$87*Project!$AC56) -> 0 | P84: =IF(Summary!$J$380=1,(+Project!P56-Project!O56)*$D84,$D84/$D$87*Project!$AC56) -> 0 | Q84: =IF(Summary!$J$380=1,(+Project!Q56-Project!P56)*$D84,$D84/$D$87*Project!$AC56) -> 0 | R84: =IF(Summary!$J$380=1,(+Project!R56-Project!Q56)*$D84,$D84/$D$87*Project!$AC56) -> 0 | S84: =IF(Summary!$J$380=1,(+Project!S56-Project!R56)*$D84,$D84/$D$87*Project!$AC56) -> 0 | T84: =IF(Summary!$J$380=1,(+Project!T56-Project!S56)*$D84,$D84/$D$87*Project!$AC56) -> 0 | U84: =IF(Summary!$J$380=1,(+Project!U56-Project!T56)*$D84,$D84/$D$87*Project!$AC56) -> 0 | V84: =IF(Summary!$J$380=1,(+Project!V56-Project!U56)*$D84,$D84/$D$87*Project!$AC56) -> 0 | W84: =IF(Summary!$J$380=1,(+Project!W56-Project!V56)*$D84,$D84/$D$87*Project!$AC56) -> 0 | X84: =IF(Summary!$J$380=1,(+Project!X56-Project!W56)*$D84,$D84/$D$87*Project!$AC56) -> 0 | Y84: =IF(Summary!$J$380=1,(+Project!Y56-Project!X56)*$D84,$D84/$D$87*Project!$AC56) -> 0 | Z84: =IF(Summary!$J$380=1,(+Project!Z56-Project!Y56)*$D84,$D84/$D$87*Project!$AC56) -> 0 | AA84: =IF(Summary!$J$380=1,(+Project!AA56-Project!Z56)*$D84,$D84/$D$87*Project!$AC56) -> 0 | AB84: =IF(Summary!$J$380=1,(+Project!AB56-Project!AA56)*$D84,$D84/$D$87*Project!$AC56) -> 0 | AC84: =IF(Summary!$J$380=1,(+Project!AC56-Project!AB56)*$D84,$D84/$D$87*Project!$AC56) -> 0
A85: 85 | B85: =+B20 -> 15 | C85: [Settlement A] 7 | D85: =Consumers!BA23/1000 ->  | G85: ="k"&Summary!$G$3 -> k£ | I85: =IF(Summary!$J$380=1,(+Project!I57-Project!H57)*$D85,$D85/$D$87*Project!$AC57) ->  | J85: =IF(Summary!$J$380=1,(+Project!J57-Project!I57)*$D85,$D85/$D$87*Project!$AC57) ->  | K85: =IF(Summary!$J$380=1,(+Project!K57-Project!J57)*$D85,$D85/$D$87*Project!$AC57) ->  | L85: =IF(Summary!$J$380=1,(+Project!L57-Project!K57)*$D85,$D85/$D$87*Project!$AC57) ->  | M85: =IF(Summary!$J$380=1,(+Project!M57-Project!L57)*$D85,$D85/$D$87*Project!$AC57) ->  | N85: =IF(Summary!$J$380=1,(+Project!N57-Project!M57)*$D85,$D85/$D$87*Project!$AC57) ->  | O85: =IF(Summary!$J$380=1,(+Project!O57-Project!N57)*$D85,$D85/$D$87*Project!$AC57) ->  | P85: =IF(Summary!$J$380=1,(+Project!P57-Project!O57)*$D85,$D85/$D$87*Project!$AC57) ->  | Q85: =IF(Summary!$J$380=1,(+Project!Q57-Project!P57)*$D85,$D85/$D$87*Project!$AC57) ->  | R85: =IF(Summary!$J$380=1,(+Project!R57-Project!Q57)*$D85,$D85/$D$87*Project!$AC57) ->  | S85: =IF(Summary!$J$380=1,(+Project!S57-Project!R57)*$D85,$D85/$D$87*Project!$AC57) ->  | T85: =IF(Summary!$J$380=1,(+Project!T57-Project!S57)*$D85,$D85/$D$87*Project!$AC57) ->  | U85: =IF(Summary!$J$380=1,(+Project!U57-Project!T57)*$D85,$D85/$D$87*Project!$AC57) ->  | V85: =IF(Summary!$J$380=1,(+Project!V57-Project!U57)*$D85,$D85/$D$87*Project!$AC57) ->  | W85: =IF(Summary!$J$380=1,(+Project!W57-Project!V57)*$D85,$D85/$D$87*Project!$AC57) ->  | X85: =IF(Summary!$J$380=1,(+Project!X57-Project!W57)*$D85,$D85/$D$87*Project!$AC57) ->  | Y85: =IF(Summary!$J$380=1,(+Project!Y57-Project!X57)*$D85,$D85/$D$87*Project!$AC57) ->  | Z85: =IF(Summary!$J$380=1,(+Project!Z57-Project!Y57)*$D85,$D85/$D$87*Project!$AC57) ->  | AA85: =IF(Summary!$J$380=1,(+Project!AA57-Project!Z57)*$D85,$D85/$D$87*Project!$AC57) ->  | AB85: =IF(Summary!$J$380=1,(+Project!AB57-Project!AA57)*$D85,$D85/$D$87*Project!$AC57) ->  | AC85: =IF(Summary!$J$380=1,(+Project!AC57-Project!AB57)*$D85,$D85/$D$87*Project!$AC57) -> 
A86: 86 | B86: Heat pumps | C86: =+B$69 -> Investments | D86: =SUM(D71:D85) ->  | E86: =+SUM(J86:AC86) ->  | G86: ="k"&Summary!$G$3 -> k£ | I86: =SUM(I71:I85) ->  | J86: =SUM(J71:J85) ->  | K86: =SUM(K71:K85) -> 
A87: 87 | B87: Contribution to residual value | D87: =+Summary!J392 -> 20 | E87: =+SUM(I87:AC87) ->  | G87: ="k"&Summary!$G$3 -> k£ | I87: =-I86*(1-($AC$1-I$1)/$D87) -> 
A88: 88 | B88: Residual value of individual investments | F88: =I88+NPV(+F$68,J88:AC88) ->  | G88: ="k"&Summary!$G$3 -> k£ | I88: 0 | J88: 0 | K88: 0 | L88: 0 | M88: 0 | N88: 0 | O88: 0 | P88: 0 | Q88: 0 | R88: 0 | S88: 0 | T88: 0 | U88: 0 | V88: 0 | W88: 0 | X88: 0 | Y88: 0 | Z88: 0 | AA88: 0 | AB88: 0 | AC88: =E87 -> 
A89: 89 | B89: Individual investments including residual value | F89: =I89+NPV(+F$68,J89:AC89) ->  | G89: ="k"&Summary!$G$3 -> k£ | I89: =+I86+I88 ->  | AC89: =+AC86+AC88 -> 
A90: 90
A91: 91 | B91: Individual oil boilers | D91: Maximal | E91: Actual | F91: NPV | I91: =+IF(Summary!$J$380=1,"Reinvestments same year the consumer else would be connected to DH","Reinvestment uniformly distributed during life-time") -> Reinvestments same year the consumer else would be connected to DH
A92: 92 | B92: =+B6 -> 1 | C92: =+C6 -> [Settlement B] 1 | D92: =Consumers!BU9/1000 -> 0 | E92: =+SUM(J92:AB92) -> 0 | F92: =I92+NPV(+F$68,J92:AC92) -> 0 | G92: ="k"&Summary!$G$3 -> k£ | I92: =IF(Summary!$J$380=1,(+Project!I43-Project!H43)*$D92,$D92/$D$108*Project!$AC43) -> 0 | J92: =IF(Summary!$J$380=1,(+Project!J43-Project!I43)*$D92,$D92/$D$108*Project!$AC43) -> 0 | K92: =IF(Summary!$J$380=1,(+Project!K43-Project!J43)*$D92,$D92/$D$108*Project!$AC43) -> 0 | L92: =IF(Summary!$J$380=1,(+Project!L43-Project!K43)*$D92,$D92/$D$108*Project!$AC43) -> 0 | M92: =IF(Summary!$J$380=1,(+Project!M43-Project!L43)*$D92,$D92/$D$108*Project!$AC43) -> 0 | N92: =IF(Summary!$J$380=1,(+Project!N43-Project!M43)*$D92,$D92/$D$108*Project!$AC43) -> 0 | O92: =IF(Summary!$J$380=1,(+Project!O43-Project!N43)*$D92,$D92/$D$108*Project!$AC43) -> 0 | P92: =IF(Summary!$J$380=1,(+Project!P43-Project!O43)*$D92,$D92/$D$108*Project!$AC43) -> 0 | Q92: =IF(Summary!$J$380=1,(+Project!Q43-Project!P43)*$D92,$D92/$D$108*Project!$AC43) -> 0 | R92: =IF(Summary!$J$380=1,(+Project!R43-Project!Q43)*$D92,$D92/$D$108*Project!$AC43) -> 0 | S92: =IF(Summary!$J$380=1,(+Project!S43-Project!R43)*$D92,$D92/$D$108*Project!$AC43) -> 0 | T92: =IF(Summary!$J$380=1,(+Project!T43-Project!S43)*$D92,$D92/$D$108*Project!$AC43) -> 0 | U92: =IF(Summary!$J$380=1,(+Project!U43-Project!T43)*$D92,$D92/$D$108*Project!$AC43) -> 0 | V92: =IF(Summary!$J$380=1,(+Project!V43-Project!U43)*$D92,$D92/$D$108*Project!$AC43) -> 0 | W92: =IF(Summary!$J$380=1,(+Project!W43-Project!V43)*$D92,$D92/$D$108*Project!$AC43) -> 0 | X92: =IF(Summary!$J$380=1,(+Project!X43-Project!W43)*$D92,$D92/$D$108*Project!$AC43) -> 0 | Y92: =IF(Summary!$J$380=1,(+Project!Y43-Project!X43)*$D92,$D92/$D$108*Project!$AC43) -> 0 | Z92: =IF(Summary!$J$380=1,(+Project!Z43-Project!Y43)*$D92,$D92/$D$108*Project!$AC43) -> 0 | AA92: =IF(Summary!$J$380=1,(+Project!AA43-Project!Z43)*$D92,$D92/$D$108*Project!$AC43) -> 0 | AB92: =IF(Summary!$J$380=1,(+Project!AB43-Project!AA43)*$D92,$D92/$D$108*Project!$AC43) -> 0 | AC92: =IF(Summary!$J$380=1,(+Project!AC43-Project!AB43)*$D92,$D92/$D$108*Project!$AC43) -> 0
A93: 93 | B93: =+B7 -> 2 | C93: =+C7 -> [Settlement B] 2 | D93: =Consumers!BU10/1000 -> 0 | E93: 0 | F93: 0 | G93: ="k"&Summary!$G$3 -> k£ | I93: =IF(Summary!$J$380=1,(+Project!I44-Project!H44)*$D93,$D93/$D$108*Project!$AC44) -> 0 | J93: =IF(Summary!$J$380=1,(+Project!J44-Project!I44)*$D93,$D93/$D$108*Project!$AC44) -> 0 | K93: =IF(Summary!$J$380=1,(+Project!K44-Project!J44)*$D93,$D93/$D$108*Project!$AC44) -> 0 | L93: =IF(Summary!$J$380=1,(+Project!L44-Project!K44)*$D93,$D93/$D$108*Project!$AC44) -> 0 | M93: =IF(Summary!$J$380=1,(+Project!M44-Project!L44)*$D93,$D93/$D$108*Project!$AC44) -> 0 | N93: =IF(Summary!$J$380=1,(+Project!N44-Project!M44)*$D93,$D93/$D$108*Project!$AC44) -> 0 | O93: =IF(Summary!$J$380=1,(+Project!O44-Project!N44)*$D93,$D93/$D$108*Project!$AC44) -> 0 | P93: =IF(Summary!$J$380=1,(+Project!P44-Project!O44)*$D93,$D93/$D$108*Project!$AC44) -> 0 | Q93: =IF(Summary!$J$380=1,(+Project!Q44-Project!P44)*$D93,$D93/$D$108*Project!$AC44) -> 0 | R93: =IF(Summary!$J$380=1,(+Project!R44-Project!Q44)*$D93,$D93/$D$108*Project!$AC44) -> 0 | S93: =IF(Summary!$J$380=1,(+Project!S44-Project!R44)*$D93,$D93/$D$108*Project!$AC44) -> 0 | T93: =IF(Summary!$J$380=1,(+Project!T44-Project!S44)*$D93,$D93/$D$108*Project!$AC44) -> 0 | U93: =IF(Summary!$J$380=1,(+Project!U44-Project!T44)*$D93,$D93/$D$108*Project!$AC44) -> 0 | V93: =IF(Summary!$J$380=1,(+Project!V44-Project!U44)*$D93,$D93/$D$108*Project!$AC44) -> 0 | W93: =IF(Summary!$J$380=1,(+Project!W44-Project!V44)*$D93,$D93/$D$108*Project!$AC44) -> 0 | X93: =IF(Summary!$J$380=1,(+Project!X44-Project!W44)*$D93,$D93/$D$108*Project!$AC44) -> 0 | Y93: =IF(Summary!$J$380=1,(+Project!Y44-Project!X44)*$D93,$D93/$D$108*Project!$AC44) -> 0 | Z93: =IF(Summary!$J$380=1,(+Project!Z44-Project!Y44)*$D93,$D93/$D$108*Project!$AC44) -> 0 | AA93: =IF(Summary!$J$380=1,(+Project!AA44-Project!Z44)*$D93,$D93/$D$108*Project!$AC44) -> 0 | AB93: =IF(Summary!$J$380=1,(+Project!AB44-Project!AA44)*$D93,$D93/$D$108*Project!$AC44) -> 0 | AC93: =IF(Summary!$J$380=1,(+Project!AC44-Project!AB44)*$D93,$D93/$D$108*Project!$AC44) -> 0
A94: 94 | B94: =+B8 -> 3 | C94: [Settlement B] 3 | D94: =Consumers!BU11/1000 -> 0 | E94: 0 | F94: 0 | G94: ="k"&Summary!$G$3 -> k£ | I94: =IF(Summary!$J$380=1,(+Project!I45-Project!H45)*$D94,$D94/$D$108*Project!$AC45) -> 0 | J94: =IF(Summary!$J$380=1,(+Project!J45-Project!I45)*$D94,$D94/$D$108*Project!$AC45) -> 0 | K94: =IF(Summary!$J$380=1,(+Project!K45-Project!J45)*$D94,$D94/$D$108*Project!$AC45) -> 0 | L94: =IF(Summary!$J$380=1,(+Project!L45-Project!K45)*$D94,$D94/$D$108*Project!$AC45) -> 0 | M94: =IF(Summary!$J$380=1,(+Project!M45-Project!L45)*$D94,$D94/$D$108*Project!$AC45) -> 0 | N94: =IF(Summary!$J$380=1,(+Project!N45-Project!M45)*$D94,$D94/$D$108*Project!$AC45) -> 0 | O94: =IF(Summary!$J$380=1,(+Project!O45-Project!N45)*$D94,$D94/$D$108*Project!$AC45) -> 0 | P94: =IF(Summary!$J$380=1,(+Project!P45-Project!O45)*$D94,$D94/$D$108*Project!$AC45) -> 0 | Q94: =IF(Summary!$J$380=1,(+Project!Q45-Project!P45)*$D94,$D94/$D$108*Project!$AC45) -> 0 | R94: =IF(Summary!$J$380=1,(+Project!R45-Project!Q45)*$D94,$D94/$D$108*Project!$AC45) -> 0 | S94: =IF(Summary!$J$380=1,(+Project!S45-Project!R45)*$D94,$D94/$D$108*Project!$AC45) -> 0 | T94: =IF(Summary!$J$380=1,(+Project!T45-Project!S45)*$D94,$D94/$D$108*Project!$AC45) -> 0 | U94: =IF(Summary!$J$380=1,(+Project!U45-Project!T45)*$D94,$D94/$D$108*Project!$AC45) -> 0 | V94: =IF(Summary!$J$380=1,(+Project!V45-Project!U45)*$D94,$D94/$D$108*Project!$AC45) -> 0 | W94: =IF(Summary!$J$380=1,(+Project!W45-Project!V45)*$D94,$D94/$D$108*Project!$AC45) -> 0 | X94: =IF(Summary!$J$380=1,(+Project!X45-Project!W45)*$D94,$D94/$D$108*Project!$AC45) -> 0 | Y94: =IF(Summary!$J$380=1,(+Project!Y45-Project!X45)*$D94,$D94/$D$108*Project!$AC45) -> 0 | Z94: =IF(Summary!$J$380=1,(+Project!Z45-Project!Y45)*$D94,$D94/$D$108*Project!$AC45) -> 0 | AA94: =IF(Summary!$J$380=1,(+Project!AA45-Project!Z45)*$D94,$D94/$D$108*Project!$AC45) -> 0 | AB94: =IF(Summary!$J$380=1,(+Project!AB45-Project!AA45)*$D94,$D94/$D$108*Project!$AC45) -> 0 | AC94: =IF(Summary!$J$380=1,(+Project!AC45-Project!AB45)*$D94,$D94/$D$108*Project!$AC45) -> 0
A95: 95 | B95: =+B9 -> 4 | C95: [Settlement B] 4 | D95: =Consumers!BU12/1000 -> 0 | E95: 0 | F95: 0 | G95: ="k"&Summary!$G$3 -> k£ | I95: =IF(Summary!$J$380=1,(+Project!I46-Project!H46)*$D95,$D95/$D$108*Project!$AC46) -> 0 | J95: =IF(Summary!$J$380=1,(+Project!J46-Project!I46)*$D95,$D95/$D$108*Project!$AC46) -> 0 | K95: =IF(Summary!$J$380=1,(+Project!K46-Project!J46)*$D95,$D95/$D$108*Project!$AC46) -> 0 | L95: =IF(Summary!$J$380=1,(+Project!L46-Project!K46)*$D95,$D95/$D$108*Project!$AC46) -> 0 | M95: =IF(Summary!$J$380=1,(+Project!M46-Project!L46)*$D95,$D95/$D$108*Project!$AC46) -> 0 | N95: =IF(Summary!$J$380=1,(+Project!N46-Project!M46)*$D95,$D95/$D$108*Project!$AC46) -> 0 | O95: =IF(Summary!$J$380=1,(+Project!O46-Project!N46)*$D95,$D95/$D$108*Project!$AC46) -> 0 | P95: =IF(Summary!$J$380=1,(+Project!P46-Project!O46)*$D95,$D95/$D$108*Project!$AC46) -> 0 | Q95: =IF(Summary!$J$380=1,(+Project!Q46-Project!P46)*$D95,$D95/$D$108*Project!$AC46) -> 0 | R95: =IF(Summary!$J$380=1,(+Project!R46-Project!Q46)*$D95,$D95/$D$108*Project!$AC46) -> 0 | S95: =IF(Summary!$J$380=1,(+Project!S46-Project!R46)*$D95,$D95/$D$108*Project!$AC46) -> 0 | T95: =IF(Summary!$J$380=1,(+Project!T46-Project!S46)*$D95,$D95/$D$108*Project!$AC46) -> 0 | U95: =IF(Summary!$J$380=1,(+Project!U46-Project!T46)*$D95,$D95/$D$108*Project!$AC46) -> 0 | V95: =IF(Summary!$J$380=1,(+Project!V46-Project!U46)*$D95,$D95/$D$108*Project!$AC46) -> 0 | W95: =IF(Summary!$J$380=1,(+Project!W46-Project!V46)*$D95,$D95/$D$108*Project!$AC46) -> 0 | X95: =IF(Summary!$J$380=1,(+Project!X46-Project!W46)*$D95,$D95/$D$108*Project!$AC46) -> 0 | Y95: =IF(Summary!$J$380=1,(+Project!Y46-Project!X46)*$D95,$D95/$D$108*Project!$AC46) -> 0 | Z95: =IF(Summary!$J$380=1,(+Project!Z46-Project!Y46)*$D95,$D95/$D$108*Project!$AC46) -> 0 | AA95: =IF(Summary!$J$380=1,(+Project!AA46-Project!Z46)*$D95,$D95/$D$108*Project!$AC46) -> 0 | AB95: =IF(Summary!$J$380=1,(+Project!AB46-Project!AA46)*$D95,$D95/$D$108*Project!$AC46) -> 0 | AC95: =IF(Summary!$J$380=1,(+Project!AC46-Project!AB46)*$D95,$D95/$D$108*Project!$AC46) -> 0
A96: 96 | B96: =+B10 -> 5 | C96: [Settlement B] 5 | D96: =Consumers!BU13/1000 -> 0 | E96: 0 | F96: 0 | G96: ="k"&Summary!$G$3 -> k£ | I96: =IF(Summary!$J$380=1,(+Project!I47-Project!H47)*$D96,$D96/$D$108*Project!$AC47) -> 0 | J96: =IF(Summary!$J$380=1,(+Project!J47-Project!I47)*$D96,$D96/$D$108*Project!$AC47) -> 0 | K96: =IF(Summary!$J$380=1,(+Project!K47-Project!J47)*$D96,$D96/$D$108*Project!$AC47) -> 0 | L96: =IF(Summary!$J$380=1,(+Project!L47-Project!K47)*$D96,$D96/$D$108*Project!$AC47) -> 0 | M96: =IF(Summary!$J$380=1,(+Project!M47-Project!L47)*$D96,$D96/$D$108*Project!$AC47) -> 0 | N96: =IF(Summary!$J$380=1,(+Project!N47-Project!M47)*$D96,$D96/$D$108*Project!$AC47) -> 0 | O96: =IF(Summary!$J$380=1,(+Project!O47-Project!N47)*$D96,$D96/$D$108*Project!$AC47) -> 0 | P96: =IF(Summary!$J$380=1,(+Project!P47-Project!O47)*$D96,$D96/$D$108*Project!$AC47) -> 0 | Q96: =IF(Summary!$J$380=1,(+Project!Q47-Project!P47)*$D96,$D96/$D$108*Project!$AC47) -> 0 | R96: =IF(Summary!$J$380=1,(+Project!R47-Project!Q47)*$D96,$D96/$D$108*Project!$AC47) -> 0 | S96: =IF(Summary!$J$380=1,(+Project!S47-Project!R47)*$D96,$D96/$D$108*Project!$AC47) -> 0 | T96: =IF(Summary!$J$380=1,(+Project!T47-Project!S47)*$D96,$D96/$D$108*Project!$AC47) -> 0 | U96: =IF(Summary!$J$380=1,(+Project!U47-Project!T47)*$D96,$D96/$D$108*Project!$AC47) -> 0 | V96: =IF(Summary!$J$380=1,(+Project!V47-Project!U47)*$D96,$D96/$D$108*Project!$AC47) -> 0 | W96: =IF(Summary!$J$380=1,(+Project!W47-Project!V47)*$D96,$D96/$D$108*Project!$AC47) -> 0 | X96: =IF(Summary!$J$380=1,(+Project!X47-Project!W47)*$D96,$D96/$D$108*Project!$AC47) -> 0 | Y96: =IF(Summary!$J$380=1,(+Project!Y47-Project!X47)*$D96,$D96/$D$108*Project!$AC47) -> 0 | Z96: =IF(Summary!$J$380=1,(+Project!Z47-Project!Y47)*$D96,$D96/$D$108*Project!$AC47) -> 0 | AA96: =IF(Summary!$J$380=1,(+Project!AA47-Project!Z47)*$D96,$D96/$D$108*Project!$AC47) -> 0 | AB96: =IF(Summary!$J$380=1,(+Project!AB47-Project!AA47)*$D96,$D96/$D$108*Project!$AC47) -> 0 | AC96: =IF(Summary!$J$380=1,(+Project!AC47-Project!AB47)*$D96,$D96/$D$108*Project!$AC47) -> 0
A97: 97 | B97: =+B11 -> 6 | C97: [Settlement B] 6 | D97: =Consumers!BU14/1000 -> 0 | E97: 0 | F97: 0 | G97: ="k"&Summary!$G$3 -> k£ | I97: =IF(Summary!$J$380=1,(+Project!I48-Project!H48)*$D97,$D97/$D$108*Project!$AC48) -> 0 | J97: =IF(Summary!$J$380=1,(+Project!J48-Project!I48)*$D97,$D97/$D$108*Project!$AC48) -> 0 | K97: =IF(Summary!$J$380=1,(+Project!K48-Project!J48)*$D97,$D97/$D$108*Project!$AC48) -> 0 | L97: =IF(Summary!$J$380=1,(+Project!L48-Project!K48)*$D97,$D97/$D$108*Project!$AC48) -> 0 | M97: =IF(Summary!$J$380=1,(+Project!M48-Project!L48)*$D97,$D97/$D$108*Project!$AC48) -> 0 | N97: =IF(Summary!$J$380=1,(+Project!N48-Project!M48)*$D97,$D97/$D$108*Project!$AC48) -> 0 | O97: =IF(Summary!$J$380=1,(+Project!O48-Project!N48)*$D97,$D97/$D$108*Project!$AC48) -> 0 | P97: =IF(Summary!$J$380=1,(+Project!P48-Project!O48)*$D97,$D97/$D$108*Project!$AC48) -> 0 | Q97: =IF(Summary!$J$380=1,(+Project!Q48-Project!P48)*$D97,$D97/$D$108*Project!$AC48) -> 0 | R97: =IF(Summary!$J$380=1,(+Project!R48-Project!Q48)*$D97,$D97/$D$108*Project!$AC48) -> 0 | S97: =IF(Summary!$J$380=1,(+Project!S48-Project!R48)*$D97,$D97/$D$108*Project!$AC48) -> 0 | T97: =IF(Summary!$J$380=1,(+Project!T48-Project!S48)*$D97,$D97/$D$108*Project!$AC48) -> 0 | U97: =IF(Summary!$J$380=1,(+Project!U48-Project!T48)*$D97,$D97/$D$108*Project!$AC48) -> 0 | V97: =IF(Summary!$J$380=1,(+Project!V48-Project!U48)*$D97,$D97/$D$108*Project!$AC48) -> 0 | W97: =IF(Summary!$J$380=1,(+Project!W48-Project!V48)*$D97,$D97/$D$108*Project!$AC48) -> 0 | X97: =IF(Summary!$J$380=1,(+Project!X48-Project!W48)*$D97,$D97/$D$108*Project!$AC48) -> 0 | Y97: =IF(Summary!$J$380=1,(+Project!Y48-Project!X48)*$D97,$D97/$D$108*Project!$AC48) -> 0 | Z97: =IF(Summary!$J$380=1,(+Project!Z48-Project!Y48)*$D97,$D97/$D$108*Project!$AC48) -> 0 | AA97: =IF(Summary!$J$380=1,(+Project!AA48-Project!Z48)*$D97,$D97/$D$108*Project!$AC48) -> 0 | AB97: =IF(Summary!$J$380=1,(+Project!AB48-Project!AA48)*$D97,$D97/$D$108*Project!$AC48) -> 0 | AC97: =IF(Summary!$J$380=1,(+Project!AC48-Project!AB48)*$D97,$D97/$D$108*Project!$AC48) -> 0
A98: 98 | B98: =+B12 -> 7 | C98: [Settlement B] 7 | D98: =Consumers!BU15/1000 -> 0 | E98: 0 | F98: 0 | G98: ="k"&Summary!$G$3 -> k£ | I98: =IF(Summary!$J$380=1,(+Project!I49-Project!H49)*$D98,$D98/$D$108*Project!$AC49) -> 0 | J98: =IF(Summary!$J$380=1,(+Project!J49-Project!I49)*$D98,$D98/$D$108*Project!$AC49) -> 0 | K98: =IF(Summary!$J$380=1,(+Project!K49-Project!J49)*$D98,$D98/$D$108*Project!$AC49) -> 0 | L98: =IF(Summary!$J$380=1,(+Project!L49-Project!K49)*$D98,$D98/$D$108*Project!$AC49) -> 0 | M98: =IF(Summary!$J$380=1,(+Project!M49-Project!L49)*$D98,$D98/$D$108*Project!$AC49) -> 0 | N98: =IF(Summary!$J$380=1,(+Project!N49-Project!M49)*$D98,$D98/$D$108*Project!$AC49) -> 0 | O98: =IF(Summary!$J$380=1,(+Project!O49-Project!N49)*$D98,$D98/$D$108*Project!$AC49) -> 0 | P98: =IF(Summary!$J$380=1,(+Project!P49-Project!O49)*$D98,$D98/$D$108*Project!$AC49) -> 0 | Q98: =IF(Summary!$J$380=1,(+Project!Q49-Project!P49)*$D98,$D98/$D$108*Project!$AC49) -> 0 | R98: =IF(Summary!$J$380=1,(+Project!R49-Project!Q49)*$D98,$D98/$D$108*Project!$AC49) -> 0 | S98: =IF(Summary!$J$380=1,(+Project!S49-Project!R49)*$D98,$D98/$D$108*Project!$AC49) -> 0 | T98: =IF(Summary!$J$380=1,(+Project!T49-Project!S49)*$D98,$D98/$D$108*Project!$AC49) -> 0 | U98: =IF(Summary!$J$380=1,(+Project!U49-Project!T49)*$D98,$D98/$D$108*Project!$AC49) -> 0 | V98: =IF(Summary!$J$380=1,(+Project!V49-Project!U49)*$D98,$D98/$D$108*Project!$AC49) -> 0 | W98: =IF(Summary!$J$380=1,(+Project!W49-Project!V49)*$D98,$D98/$D$108*Project!$AC49) -> 0 | X98: =IF(Summary!$J$380=1,(+Project!X49-Project!W49)*$D98,$D98/$D$108*Project!$AC49) -> 0 | Y98: =IF(Summary!$J$380=1,(+Project!Y49-Project!X49)*$D98,$D98/$D$108*Project!$AC49) -> 0 | Z98: =IF(Summary!$J$380=1,(+Project!Z49-Project!Y49)*$D98,$D98/$D$108*Project!$AC49) -> 0 | AA98: =IF(Summary!$J$380=1,(+Project!AA49-Project!Z49)*$D98,$D98/$D$108*Project!$AC49) -> 0 | AB98: =IF(Summary!$J$380=1,(+Project!AB49-Project!AA49)*$D98,$D98/$D$108*Project!$AC49) -> 0 | AC98: =IF(Summary!$J$380=1,(+Project!AC49-Project!AB49)*$D98,$D98/$D$108*Project!$AC49) -> 0
A99: 99 | B99: =+B13 -> 8 | C99: [Settlement B] 8 | D99: =Consumers!BU16/1000 -> 0 | E99: 0 | F99: 0 | G99: ="k"&Summary!$G$3 -> k£ | I99: =IF(Summary!$J$380=1,(+Project!I50-Project!H50)*$D99,$D99/$D$108*Project!$AC50) -> 0 | J99: =IF(Summary!$J$380=1,(+Project!J50-Project!I50)*$D99,$D99/$D$108*Project!$AC50) -> 0 | K99: =IF(Summary!$J$380=1,(+Project!K50-Project!J50)*$D99,$D99/$D$108*Project!$AC50) -> 0 | L99: =IF(Summary!$J$380=1,(+Project!L50-Project!K50)*$D99,$D99/$D$108*Project!$AC50) -> 0 | M99: =IF(Summary!$J$380=1,(+Project!M50-Project!L50)*$D99,$D99/$D$108*Project!$AC50) -> 0 | N99: =IF(Summary!$J$380=1,(+Project!N50-Project!M50)*$D99,$D99/$D$108*Project!$AC50) -> 0 | O99: =IF(Summary!$J$380=1,(+Project!O50-Project!N50)*$D99,$D99/$D$108*Project!$AC50) -> 0 | P99: =IF(Summary!$J$380=1,(+Project!P50-Project!O50)*$D99,$D99/$D$108*Project!$AC50) -> 0 | Q99: =IF(Summary!$J$380=1,(+Project!Q50-Project!P50)*$D99,$D99/$D$108*Project!$AC50) -> 0 | R99: =IF(Summary!$J$380=1,(+Project!R50-Project!Q50)*$D99,$D99/$D$108*Project!$AC50) -> 0 | S99: =IF(Summary!$J$380=1,(+Project!S50-Project!R50)*$D99,$D99/$D$108*Project!$AC50) -> 0 | T99: =IF(Summary!$J$380=1,(+Project!T50-Project!S50)*$D99,$D99/$D$108*Project!$AC50) -> 0 | U99: =IF(Summary!$J$380=1,(+Project!U50-Project!T50)*$D99,$D99/$D$108*Project!$AC50) -> 0 | V99: =IF(Summary!$J$380=1,(+Project!V50-Project!U50)*$D99,$D99/$D$108*Project!$AC50) -> 0 | W99: =IF(Summary!$J$380=1,(+Project!W50-Project!V50)*$D99,$D99/$D$108*Project!$AC50) -> 0 | X99: =IF(Summary!$J$380=1,(+Project!X50-Project!W50)*$D99,$D99/$D$108*Project!$AC50) -> 0 | Y99: =IF(Summary!$J$380=1,(+Project!Y50-Project!X50)*$D99,$D99/$D$108*Project!$AC50) -> 0 | Z99: =IF(Summary!$J$380=1,(+Project!Z50-Project!Y50)*$D99,$D99/$D$108*Project!$AC50) -> 0 | AA99: =IF(Summary!$J$380=1,(+Project!AA50-Project!Z50)*$D99,$D99/$D$108*Project!$AC50) -> 0 | AB99: =IF(Summary!$J$380=1,(+Project!AB50-Project!AA50)*$D99,$D99/$D$108*Project!$AC50) -> 0 | AC99: =IF(Summary!$J$380=1,(+Project!AC50-Project!AB50)*$D99,$D99/$D$108*Project!$AC50) -> 0
A100: 100 | B100: =+B14 -> 9 | C100: [Settlement A] Master | D100: =Consumers!BU17/1000 -> 0 | E100: 0 | F100: 0 | G100: ="k"&Summary!$G$3 -> k£ | I100: =IF(Summary!$J$380=1,(+Project!I51-Project!H51)*$D100,$D100/$D$108*Project!$AC51) -> 0 | J100: =IF(Summary!$J$380=1,(+Project!J51-Project!I51)*$D100,$D100/$D$108*Project!$AC51) -> 0 | K100: =IF(Summary!$J$380=1,(+Project!K51-Project!J51)*$D100,$D100/$D$108*Project!$AC51) -> 0 | L100: =IF(Summary!$J$380=1,(+Project!L51-Project!K51)*$D100,$D100/$D$108*Project!$AC51) -> 0 | M100: =IF(Summary!$J$380=1,(+Project!M51-Project!L51)*$D100,$D100/$D$108*Project!$AC51) -> 0 | N100: =IF(Summary!$J$380=1,(+Project!N51-Project!M51)*$D100,$D100/$D$108*Project!$AC51) -> 0 | O100: =IF(Summary!$J$380=1,(+Project!O51-Project!N51)*$D100,$D100/$D$108*Project!$AC51) -> 0 | P100: =IF(Summary!$J$380=1,(+Project!P51-Project!O51)*$D100,$D100/$D$108*Project!$AC51) -> 0 | Q100: =IF(Summary!$J$380=1,(+Project!Q51-Project!P51)*$D100,$D100/$D$108*Project!$AC51) -> 0 | R100: =IF(Summary!$J$380=1,(+Project!R51-Project!Q51)*$D100,$D100/$D$108*Project!$AC51) -> 0 | S100: =IF(Summary!$J$380=1,(+Project!S51-Project!R51)*$D100,$D100/$D$108*Project!$AC51) -> 0 | T100: =IF(Summary!$J$380=1,(+Project!T51-Project!S51)*$D100,$D100/$D$108*Project!$AC51) -> 0 | U100: =IF(Summary!$J$380=1,(+Project!U51-Project!T51)*$D100,$D100/$D$108*Project!$AC51) -> 0 | V100: =IF(Summary!$J$380=1,(+Project!V51-Project!U51)*$D100,$D100/$D$108*Project!$AC51) -> 0 | W100: =IF(Summary!$J$380=1,(+Project!W51-Project!V51)*$D100,$D100/$D$108*Project!$AC51) -> 0 | X100: =IF(Summary!$J$380=1,(+Project!X51-Project!W51)*$D100,$D100/$D$108*Project!$AC51) -> 0 | Y100: =IF(Summary!$J$380=1,(+Project!Y51-Project!X51)*$D100,$D100/$D$108*Project!$AC51) -> 0 | Z100: =IF(Summary!$J$380=1,(+Project!Z51-Project!Y51)*$D100,$D100/$D$108*Project!$AC51) -> 0 | AA100: =IF(Summary!$J$380=1,(+Project!AA51-Project!Z51)*$D100,$D100/$D$108*Project!$AC51) -> 0 | AB100: =IF(Summary!$J$380=1,(+Project!AB51-Project!AA51)*$D100,$D100/$D$108*Project!$AC51) -> 0 | AC100: =IF(Summary!$J$380=1,(+Project!AC51-Project!AB51)*$D100,$D100/$D$108*Project!$AC51) -> 0
A101: 101 | B101: =+B15 -> 10 | C101: [Settlement A] 2 | D101: =Consumers!BU18/1000 -> 0 | E101: 0 | F101: 0 | G101: ="k"&Summary!$G$3 -> k£ | I101: =IF(Summary!$J$380=1,(+Project!I52-Project!H52)*$D101,$D101/$D$108*Project!$AC52) -> 0 | J101: =IF(Summary!$J$380=1,(+Project!J52-Project!I52)*$D101,$D101/$D$108*Project!$AC52) -> 0 | K101: =IF(Summary!$J$380=1,(+Project!K52-Project!J52)*$D101,$D101/$D$108*Project!$AC52) -> 0 | L101: =IF(Summary!$J$380=1,(+Project!L52-Project!K52)*$D101,$D101/$D$108*Project!$AC52) -> 0 | M101: =IF(Summary!$J$380=1,(+Project!M52-Project!L52)*$D101,$D101/$D$108*Project!$AC52) -> 0 | N101: =IF(Summary!$J$380=1,(+Project!N52-Project!M52)*$D101,$D101/$D$108*Project!$AC52) -> 0 | O101: =IF(Summary!$J$380=1,(+Project!O52-Project!N52)*$D101,$D101/$D$108*Project!$AC52) -> 0 | P101: =IF(Summary!$J$380=1,(+Project!P52-Project!O52)*$D101,$D101/$D$108*Project!$AC52) -> 0 | Q101: =IF(Summary!$J$380=1,(+Project!Q52-Project!P52)*$D101,$D101/$D$108*Project!$AC52) -> 0 | R101: =IF(Summary!$J$380=1,(+Project!R52-Project!Q52)*$D101,$D101/$D$108*Project!$AC52) -> 0 | S101: =IF(Summary!$J$380=1,(+Project!S52-Project!R52)*$D101,$D101/$D$108*Project!$AC52) -> 0 | T101: =IF(Summary!$J$380=1,(+Project!T52-Project!S52)*$D101,$D101/$D$108*Project!$AC52) -> 0 | U101: =IF(Summary!$J$380=1,(+Project!U52-Project!T52)*$D101,$D101/$D$108*Project!$AC52) -> 0 | V101: =IF(Summary!$J$380=1,(+Project!V52-Project!U52)*$D101,$D101/$D$108*Project!$AC52) -> 0 | W101: =IF(Summary!$J$380=1,(+Project!W52-Project!V52)*$D101,$D101/$D$108*Project!$AC52) -> 0 | X101: =IF(Summary!$J$380=1,(+Project!X52-Project!W52)*$D101,$D101/$D$108*Project!$AC52) -> 0 | Y101: =IF(Summary!$J$380=1,(+Project!Y52-Project!X52)*$D101,$D101/$D$108*Project!$AC52) -> 0 | Z101: =IF(Summary!$J$380=1,(+Project!Z52-Project!Y52)*$D101,$D101/$D$108*Project!$AC52) -> 0 | AA101: =IF(Summary!$J$380=1,(+Project!AA52-Project!Z52)*$D101,$D101/$D$108*Project!$AC52) -> 0 | AB101: =IF(Summary!$J$380=1,(+Project!AB52-Project!AA52)*$D101,$D101/$D$108*Project!$AC52) -> 0 | AC101: =IF(Summary!$J$380=1,(+Project!AC52-Project!AB52)*$D101,$D101/$D$108*Project!$AC52) -> 0
A102: 102 | B102: =+B16 -> 11 | C102: [Settlement A] 3 | D102: =Consumers!BU19/1000 -> 0 | E102: 0 | F102: 0 | G102: ="k"&Summary!$G$3 -> k£ | I102: =IF(Summary!$J$380=1,(+Project!I53-Project!H53)*$D102,$D102/$D$108*Project!$AC53) -> 0 | J102: =IF(Summary!$J$380=1,(+Project!J53-Project!I53)*$D102,$D102/$D$108*Project!$AC53) -> 0 | K102: =IF(Summary!$J$380=1,(+Project!K53-Project!J53)*$D102,$D102/$D$108*Project!$AC53) -> 0 | L102: =IF(Summary!$J$380=1,(+Project!L53-Project!K53)*$D102,$D102/$D$108*Project!$AC53) -> 0 | M102: =IF(Summary!$J$380=1,(+Project!M53-Project!L53)*$D102,$D102/$D$108*Project!$AC53) -> 0 | N102: =IF(Summary!$J$380=1,(+Project!N53-Project!M53)*$D102,$D102/$D$108*Project!$AC53) -> 0 | O102: =IF(Summary!$J$380=1,(+Project!O53-Project!N53)*$D102,$D102/$D$108*Project!$AC53) -> 0 | P102: =IF(Summary!$J$380=1,(+Project!P53-Project!O53)*$D102,$D102/$D$108*Project!$AC53) -> 0 | Q102: =IF(Summary!$J$380=1,(+Project!Q53-Project!P53)*$D102,$D102/$D$108*Project!$AC53) -> 0 | R102: =IF(Summary!$J$380=1,(+Project!R53-Project!Q53)*$D102,$D102/$D$108*Project!$AC53) -> 0 | S102: =IF(Summary!$J$380=1,(+Project!S53-Project!R53)*$D102,$D102/$D$108*Project!$AC53) -> 0 | T102: =IF(Summary!$J$380=1,(+Project!T53-Project!S53)*$D102,$D102/$D$108*Project!$AC53) -> 0 | U102: =IF(Summary!$J$380=1,(+Project!U53-Project!T53)*$D102,$D102/$D$108*Project!$AC53) -> 0 | V102: =IF(Summary!$J$380=1,(+Project!V53-Project!U53)*$D102,$D102/$D$108*Project!$AC53) -> 0 | W102: =IF(Summary!$J$380=1,(+Project!W53-Project!V53)*$D102,$D102/$D$108*Project!$AC53) -> 0 | X102: =IF(Summary!$J$380=1,(+Project!X53-Project!W53)*$D102,$D102/$D$108*Project!$AC53) -> 0 | Y102: =IF(Summary!$J$380=1,(+Project!Y53-Project!X53)*$D102,$D102/$D$108*Project!$AC53) -> 0 | Z102: =IF(Summary!$J$380=1,(+Project!Z53-Project!Y53)*$D102,$D102/$D$108*Project!$AC53) -> 0 | AA102: =IF(Summary!$J$380=1,(+Project!AA53-Project!Z53)*$D102,$D102/$D$108*Project!$AC53) -> 0 | AB102: =IF(Summary!$J$380=1,(+Project!AB53-Project!AA53)*$D102,$D102/$D$108*Project!$AC53) -> 0 | AC102: =IF(Summary!$J$380=1,(+Project!AC53-Project!AB53)*$D102,$D102/$D$108*Project!$AC53) -> 0
A103: 103 | B103: =+B17 -> 12 | C103: [Settlement A] 4 | D103: =Consumers!BU20/1000 -> 0 | E103: 0 | F103: 0 | G103: ="k"&Summary!$G$3 -> k£ | I103: =IF(Summary!$J$380=1,(+Project!I54-Project!H54)*$D103,$D103/$D$108*Project!$AC54) -> 0 | J103: =IF(Summary!$J$380=1,(+Project!J54-Project!I54)*$D103,$D103/$D$108*Project!$AC54) -> 0 | K103: =IF(Summary!$J$380=1,(+Project!K54-Project!J54)*$D103,$D103/$D$108*Project!$AC54) -> 0 | L103: =IF(Summary!$J$380=1,(+Project!L54-Project!K54)*$D103,$D103/$D$108*Project!$AC54) -> 0 | M103: =IF(Summary!$J$380=1,(+Project!M54-Project!L54)*$D103,$D103/$D$108*Project!$AC54) -> 0 | N103: =IF(Summary!$J$380=1,(+Project!N54-Project!M54)*$D103,$D103/$D$108*Project!$AC54) -> 0 | O103: =IF(Summary!$J$380=1,(+Project!O54-Project!N54)*$D103,$D103/$D$108*Project!$AC54) -> 0 | P103: =IF(Summary!$J$380=1,(+Project!P54-Project!O54)*$D103,$D103/$D$108*Project!$AC54) -> 0 | Q103: =IF(Summary!$J$380=1,(+Project!Q54-Project!P54)*$D103,$D103/$D$108*Project!$AC54) -> 0 | R103: =IF(Summary!$J$380=1,(+Project!R54-Project!Q54)*$D103,$D103/$D$108*Project!$AC54) -> 0 | S103: =IF(Summary!$J$380=1,(+Project!S54-Project!R54)*$D103,$D103/$D$108*Project!$AC54) -> 0 | T103: =IF(Summary!$J$380=1,(+Project!T54-Project!S54)*$D103,$D103/$D$108*Project!$AC54) -> 0 | U103: =IF(Summary!$J$380=1,(+Project!U54-Project!T54)*$D103,$D103/$D$108*Project!$AC54) -> 0 | V103: =IF(Summary!$J$380=1,(+Project!V54-Project!U54)*$D103,$D103/$D$108*Project!$AC54) -> 0 | W103: =IF(Summary!$J$380=1,(+Project!W54-Project!V54)*$D103,$D103/$D$108*Project!$AC54) -> 0 | X103: =IF(Summary!$J$380=1,(+Project!X54-Project!W54)*$D103,$D103/$D$108*Project!$AC54) -> 0 | Y103: =IF(Summary!$J$380=1,(+Project!Y54-Project!X54)*$D103,$D103/$D$108*Project!$AC54) -> 0 | Z103: =IF(Summary!$J$380=1,(+Project!Z54-Project!Y54)*$D103,$D103/$D$108*Project!$AC54) -> 0 | AA103: =IF(Summary!$J$380=1,(+Project!AA54-Project!Z54)*$D103,$D103/$D$108*Project!$AC54) -> 0 | AB103: =IF(Summary!$J$380=1,(+Project!AB54-Project!AA54)*$D103,$D103/$D$108*Project!$AC54) -> 0 | AC103: =IF(Summary!$J$380=1,(+Project!AC54-Project!AB54)*$D103,$D103/$D$108*Project!$AC54) -> 0
A104: 104 | B104: =+B18 -> 13 | C104: [Settlement A] 5 | D104: =Consumers!BU21/1000 -> 0 | E104: 0 | F104: 0 | G104: ="k"&Summary!$G$3 -> k£ | I104: =IF(Summary!$J$380=1,(+Project!I55-Project!H55)*$D104,$D104/$D$108*Project!$AC55) -> 0 | J104: =IF(Summary!$J$380=1,(+Project!J55-Project!I55)*$D104,$D104/$D$108*Project!$AC55) -> 0 | K104: =IF(Summary!$J$380=1,(+Project!K55-Project!J55)*$D104,$D104/$D$108*Project!$AC55) -> 0 | L104: =IF(Summary!$J$380=1,(+Project!L55-Project!K55)*$D104,$D104/$D$108*Project!$AC55) -> 0 | M104: =IF(Summary!$J$380=1,(+Project!M55-Project!L55)*$D104,$D104/$D$108*Project!$AC55) -> 0 | N104: =IF(Summary!$J$380=1,(+Project!N55-Project!M55)*$D104,$D104/$D$108*Project!$AC55) -> 0 | O104: =IF(Summary!$J$380=1,(+Project!O55-Project!N55)*$D104,$D104/$D$108*Project!$AC55) -> 0 | P104: =IF(Summary!$J$380=1,(+Project!P55-Project!O55)*$D104,$D104/$D$108*Project!$AC55) -> 0 | Q104: =IF(Summary!$J$380=1,(+Project!Q55-Project!P55)*$D104,$D104/$D$108*Project!$AC55) -> 0 | R104: =IF(Summary!$J$380=1,(+Project!R55-Project!Q55)*$D104,$D104/$D$108*Project!$AC55) -> 0 | S104: =IF(Summary!$J$380=1,(+Project!S55-Project!R55)*$D104,$D104/$D$108*Project!$AC55) -> 0 | T104: =IF(Summary!$J$380=1,(+Project!T55-Project!S55)*$D104,$D104/$D$108*Project!$AC55) -> 0 | U104: =IF(Summary!$J$380=1,(+Project!U55-Project!T55)*$D104,$D104/$D$108*Project!$AC55) -> 0 | V104: =IF(Summary!$J$380=1,(+Project!V55-Project!U55)*$D104,$D104/$D$108*Project!$AC55) -> 0 | W104: =IF(Summary!$J$380=1,(+Project!W55-Project!V55)*$D104,$D104/$D$108*Project!$AC55) -> 0 | X104: =IF(Summary!$J$380=1,(+Project!X55-Project!W55)*$D104,$D104/$D$108*Project!$AC55) -> 0 | Y104: =IF(Summary!$J$380=1,(+Project!Y55-Project!X55)*$D104,$D104/$D$108*Project!$AC55) -> 0 | Z104: =IF(Summary!$J$380=1,(+Project!Z55-Project!Y55)*$D104,$D104/$D$108*Project!$AC55) -> 0 | AA104: =IF(Summary!$J$380=1,(+Project!AA55-Project!Z55)*$D104,$D104/$D$108*Project!$AC55) -> 0 | AB104: =IF(Summary!$J$380=1,(+Project!AB55-Project!AA55)*$D104,$D104/$D$108*Project!$AC55) -> 0 | AC104: =IF(Summary!$J$380=1,(+Project!AC55-Project!AB55)*$D104,$D104/$D$108*Project!$AC55) -> 0
A105: 105 | B105: =+B19 -> 14 | C105: [Settlement A] 6 | D105: =Consumers!BU22/1000 -> 0 | E105: 0 | F105: 0 | G105: ="k"&Summary!$G$3 -> k£ | I105: =IF(Summary!$J$380=1,(+Project!I56-Project!H56)*$D105,$D105/$D$108*Project!$AC56) -> 0 | J105: =IF(Summary!$J$380=1,(+Project!J56-Project!I56)*$D105,$D105/$D$108*Project!$AC56) -> 0 | K105: =IF(Summary!$J$380=1,(+Project!K56-Project!J56)*$D105,$D105/$D$108*Project!$AC56) -> 0 | L105: =IF(Summary!$J$380=1,(+Project!L56-Project!K56)*$D105,$D105/$D$108*Project!$AC56) -> 0 | M105: =IF(Summary!$J$380=1,(+Project!M56-Project!L56)*$D105,$D105/$D$108*Project!$AC56) -> 0 | N105: =IF(Summary!$J$380=1,(+Project!N56-Project!M56)*$D105,$D105/$D$108*Project!$AC56) -> 0 | O105: =IF(Summary!$J$380=1,(+Project!O56-Project!N56)*$D105,$D105/$D$108*Project!$AC56) -> 0 | P105: =IF(Summary!$J$380=1,(+Project!P56-Project!O56)*$D105,$D105/$D$108*Project!$AC56) -> 0 | Q105: =IF(Summary!$J$380=1,(+Project!Q56-Project!P56)*$D105,$D105/$D$108*Project!$AC56) -> 0 | R105: =IF(Summary!$J$380=1,(+Project!R56-Project!Q56)*$D105,$D105/$D$108*Project!$AC56) -> 0 | S105: =IF(Summary!$J$380=1,(+Project!S56-Project!R56)*$D105,$D105/$D$108*Project!$AC56) -> 0 | T105: =IF(Summary!$J$380=1,(+Project!T56-Project!S56)*$D105,$D105/$D$108*Project!$AC56) -> 0 | U105: =IF(Summary!$J$380=1,(+Project!U56-Project!T56)*$D105,$D105/$D$108*Project!$AC56) -> 0 | V105: =IF(Summary!$J$380=1,(+Project!V56-Project!U56)*$D105,$D105/$D$108*Project!$AC56) -> 0 | W105: =IF(Summary!$J$380=1,(+Project!W56-Project!V56)*$D105,$D105/$D$108*Project!$AC56) -> 0 | X105: =IF(Summary!$J$380=1,(+Project!X56-Project!W56)*$D105,$D105/$D$108*Project!$AC56) -> 0 | Y105: =IF(Summary!$J$380=1,(+Project!Y56-Project!X56)*$D105,$D105/$D$108*Project!$AC56) -> 0 | Z105: =IF(Summary!$J$380=1,(+Project!Z56-Project!Y56)*$D105,$D105/$D$108*Project!$AC56) -> 0 | AA105: =IF(Summary!$J$380=1,(+Project!AA56-Project!Z56)*$D105,$D105/$D$108*Project!$AC56) -> 0 | AB105: =IF(Summary!$J$380=1,(+Project!AB56-Project!AA56)*$D105,$D105/$D$108*Project!$AC56) -> 0 | AC105: =IF(Summary!$J$380=1,(+Project!AC56-Project!AB56)*$D105,$D105/$D$108*Project!$AC56) -> 0
A106: 106 | B106: =+B20 -> 15 | C106: [Settlement A] 7 | D106: =Consumers!BU23/1000 -> 0 | E106: 0 | F106: 0 | G106: ="k"&Summary!$G$3 -> k£ | I106: =IF(Summary!$J$380=1,(+Project!I57-Project!H57)*$D106,$D106/$D$108*Project!$AC57) -> 0 | J106: =IF(Summary!$J$380=1,(+Project!J57-Project!I57)*$D106,$D106/$D$108*Project!$AC57) -> 0 | K106: =IF(Summary!$J$380=1,(+Project!K57-Project!J57)*$D106,$D106/$D$108*Project!$AC57) -> 0 | L106: =IF(Summary!$J$380=1,(+Project!L57-Project!K57)*$D106,$D106/$D$108*Project!$AC57) -> 0 | M106: =IF(Summary!$J$380=1,(+Project!M57-Project!L57)*$D106,$D106/$D$108*Project!$AC57) -> 0 | N106: =IF(Summary!$J$380=1,(+Project!N57-Project!M57)*$D106,$D106/$D$108*Project!$AC57) -> 0 | O106: =IF(Summary!$J$380=1,(+Project!O57-Project!N57)*$D106,$D106/$D$108*Project!$AC57) -> 0 | P106: =IF(Summary!$J$380=1,(+Project!P57-Project!O57)*$D106,$D106/$D$108*Project!$AC57) -> 0 | Q106: =IF(Summary!$J$380=1,(+Project!Q57-Project!P57)*$D106,$D106/$D$108*Project!$AC57) -> 0 | R106: =IF(Summary!$J$380=1,(+Project!R57-Project!Q57)*$D106,$D106/$D$108*Project!$AC57) -> 0 | S106: =IF(Summary!$J$380=1,(+Project!S57-Project!R57)*$D106,$D106/$D$108*Project!$AC57) -> 0 | T106: =IF(Summary!$J$380=1,(+Project!T57-Project!S57)*$D106,$D106/$D$108*Project!$AC57) -> 0 | U106: =IF(Summary!$J$380=1,(+Project!U57-Project!T57)*$D106,$D106/$D$108*Project!$AC57) -> 0 | V106: =IF(Summary!$J$380=1,(+Project!V57-Project!U57)*$D106,$D106/$D$108*Project!$AC57) -> 0 | W106: =IF(Summary!$J$380=1,(+Project!W57-Project!V57)*$D106,$D106/$D$108*Project!$AC57) -> 0 | X106: =IF(Summary!$J$380=1,(+Project!X57-Project!W57)*$D106,$D106/$D$108*Project!$AC57) -> 0 | Y106: =IF(Summary!$J$380=1,(+Project!Y57-Project!X57)*$D106,$D106/$D$108*Project!$AC57) -> 0 | Z106: =IF(Summary!$J$380=1,(+Project!Z57-Project!Y57)*$D106,$D106/$D$108*Project!$AC57) -> 0 | AA106: =IF(Summary!$J$380=1,(+Project!AA57-Project!Z57)*$D106,$D106/$D$108*Project!$AC57) -> 0 | AB106: =IF(Summary!$J$380=1,(+Project!AB57-Project!AA57)*$D106,$D106/$D$108*Project!$AC57) -> 0 | AC106: =IF(Summary!$J$380=1,(+Project!AC57-Project!AB57)*$D106,$D106/$D$108*Project!$AC57) -> 0
A107: 107 | B107: Oil boilers | C107: =+B$69 -> Investments | D107: =SUM(D92:D106) -> 0 | E107: =+SUM(J107:AC107) -> 0 | F107: 0 | G107: ="k"&Summary!$G$3 -> k£ | I107: =SUM(I92:I106) -> 0 | J107: =SUM(J92:J106) -> 0 | K107: =SUM(K92:K106) -> 0 | L107: 0 | M107: 0 | N107: 0 | O107: 0 | P107: 0 | Q107: 0 | R107: 0 | S107: 0 | T107: 0 | U107: 0 | V107: 0 | W107: 0 | X107: 0 | Y107: 0 | Z107: 0 | AA107: 0 | AB107: 0 | AC107: 0
A108: 108 | B108: Contribution to residual value | D108: =+Summary!J400 -> 20 | E108: =+SUM(I108:AC108) -> 0 | G108: ="k"&Summary!$G$3 -> k£ | I108: =-I107*(1-($AC$1-I$1)/$D108) -> 0 | J108: 0 | K108: 0 | L108: 0 | M108: 0 | N108: 0 | O108: 0 | P108: 0 | Q108: 0 | R108: 0 | S108: 0 | T108: 0 | U108: 0 | V108: 0 | W108: 0 | X108: 0 | Y108: 0 | Z108: 0 | AA108: 0 | AB108: 0 | AC108: 0
A109: 109 | B109: Residual value of individual investments | F109: =I109+NPV(+F$68,J109:AC109) -> 0 | G109: ="k"&Summary!$G$3 -> k£ | I109: 0 | J109: 0 | K109: 0 | L109: 0 | M109: 0 | N109: 0 | O109: 0 | P109: 0 | Q109: 0 | R109: 0 | S109: 0 | T109: 0 | U109: 0 | V109: 0 | W109: 0 | X109: 0 | Y109: 0 | Z109: 0 | AA109: 0 | AB109: 0 | AC109: =E108 -> 0
A110: 110 | B110: Individual investments including residual value | F110: =I110+NPV(+F$68,J110:AC110) -> 0 | G110: ="k"&Summary!$G$3 -> k£ | I110: =+I107+I109 -> 0 | J110: 0 | K110: 0 | L110: 0 | M110: 0 | N110: 0 | O110: 0 | P110: 0 | Q110: 0 | R110: 0 | S110: 0 | T110: 0 | U110: 0 | V110: 0 | W110: 0 | X110: 0 | Y110: 0 | Z110: 0 | AA110: 0 | AB110: 0 | AC110: =+AC107+AC109 -> 0
A111: 111
A112: 112 | B112: Gas boilers | D112: Maximal | E112: ="k"&Summary!$G$3 -> k£ | F112: NPV | I112: =+IF(Summary!$J$380=1,"Reinvestments same year the consumer else would be connected to DH","Reinvestment uniformly distributed during life-time") -> Reinvestments same year the consumer else would be connected to DH
A113: 113 | B113: =+B6 -> 1 | C113: =+C6 -> [Settlement B] 1 | D113: =Consumers!CD9/1000 -> 0 | E113: =+SUM(I113:AC113) -> 0 | F113: =I113+NPV(+F$68,J113:AC113) -> 0 | G113: ="k"&Summary!$G$3 -> k£ | I113: =IF(Summary!$J$380=1,(+Project!I43-Project!H43)*$D113,$D113/$D$129*Project!$AC43) -> 0 | J113: =IF(Summary!$J$380=1,(+Project!J43-Project!I43)*$D113,$D113/$D$129*Project!$AC43) -> 0 | K113: =IF(Summary!$J$380=1,(+Project!K43-Project!J43)*$D113,$D113/$D$129*Project!$AC43) -> 0 | L113: =IF(Summary!$J$380=1,(+Project!L43-Project!K43)*$D113,$D113/$D$129*Project!$AC43) -> 0 | M113: =IF(Summary!$J$380=1,(+Project!M43-Project!L43)*$D113,$D113/$D$129*Project!$AC43) -> 0 | N113: =IF(Summary!$J$380=1,(+Project!N43-Project!M43)*$D113,$D113/$D$129*Project!$AC43) -> 0 | O113: =IF(Summary!$J$380=1,(+Project!O43-Project!N43)*$D113,$D113/$D$129*Project!$AC43) -> 0 | P113: =IF(Summary!$J$380=1,(+Project!P43-Project!O43)*$D113,$D113/$D$129*Project!$AC43) -> 0 | Q113: =IF(Summary!$J$380=1,(+Project!Q43-Project!P43)*$D113,$D113/$D$129*Project!$AC43) -> 0 | R113: =IF(Summary!$J$380=1,(+Project!R43-Project!Q43)*$D113,$D113/$D$129*Project!$AC43) -> 0 | S113: =IF(Summary!$J$380=1,(+Project!S43-Project!R43)*$D113,$D113/$D$129*Project!$AC43) -> 0 | T113: =IF(Summary!$J$380=1,(+Project!T43-Project!S43)*$D113,$D113/$D$129*Project!$AC43) -> 0 | U113: =IF(Summary!$J$380=1,(+Project!U43-Project!T43)*$D113,$D113/$D$129*Project!$AC43) -> 0 | V113: =IF(Summary!$J$380=1,(+Project!V43-Project!U43)*$D113,$D113/$D$129*Project!$AC43) -> 0 | W113: =IF(Summary!$J$380=1,(+Project!W43-Project!V43)*$D113,$D113/$D$129*Project!$AC43) -> 0 | X113: =IF(Summary!$J$380=1,(+Project!X43-Project!W43)*$D113,$D113/$D$129*Project!$AC43) -> 0 | Y113: =IF(Summary!$J$380=1,(+Project!Y43-Project!X43)*$D113,$D113/$D$129*Project!$AC43) -> 0 | Z113: =IF(Summary!$J$380=1,(+Project!Z43-Project!Y43)*$D113,$D113/$D$129*Project!$AC43) -> 0 | AA113: =IF(Summary!$J$380=1,(+Project!AA43-Project!Z43)*$D113,$D113/$D$129*Project!$AC43) -> 0 | AB113: =IF(Summary!$J$380=1,(+Project!AB43-Project!AA43)*$D113,$D113/$D$129*Project!$AC43) -> 0 | AC113: =IF(Summary!$J$380=1,(+Project!AC43-Project!AB43)*$D113,$D113/$D$129*Project!$AC43) -> 0
A114: =+A113+1 -> 114 | B114: =+B7 -> 2 | C114: =+C7 -> [Settlement B] 2 | D114: =Consumers!CD10/1000 -> 0 | E114: =+SUM(I114:AC114) -> 0 | F114: 0 | G114: ="k"&Summary!$G$3 -> k£ | I114: =IF(Summary!$J$380=1,(+Project!I44-Project!H44)*$D114,$D114/$D$129*Project!$AC44) -> 0 | J114: =IF(Summary!$J$380=1,(+Project!J44-Project!I44)*$D114,$D114/$D$129*Project!$AC44) -> 0 | K114: =IF(Summary!$J$380=1,(+Project!K44-Project!J44)*$D114,$D114/$D$129*Project!$AC44) -> 0 | L114: =IF(Summary!$J$380=1,(+Project!L44-Project!K44)*$D114,$D114/$D$129*Project!$AC44) -> 0 | M114: =IF(Summary!$J$380=1,(+Project!M44-Project!L44)*$D114,$D114/$D$129*Project!$AC44) -> 0 | N114: =IF(Summary!$J$380=1,(+Project!N44-Project!M44)*$D114,$D114/$D$129*Project!$AC44) -> 0 | O114: =IF(Summary!$J$380=1,(+Project!O44-Project!N44)*$D114,$D114/$D$129*Project!$AC44) -> 0 | P114: =IF(Summary!$J$380=1,(+Project!P44-Project!O44)*$D114,$D114/$D$129*Project!$AC44) -> 0 | Q114: =IF(Summary!$J$380=1,(+Project!Q44-Project!P44)*$D114,$D114/$D$129*Project!$AC44) -> 0 | R114: =IF(Summary!$J$380=1,(+Project!R44-Project!Q44)*$D114,$D114/$D$129*Project!$AC44) -> 0 | S114: =IF(Summary!$J$380=1,(+Project!S44-Project!R44)*$D114,$D114/$D$129*Project!$AC44) -> 0 | T114: =IF(Summary!$J$380=1,(+Project!T44-Project!S44)*$D114,$D114/$D$129*Project!$AC44) -> 0 | U114: =IF(Summary!$J$380=1,(+Project!U44-Project!T44)*$D114,$D114/$D$129*Project!$AC44) -> 0 | V114: =IF(Summary!$J$380=1,(+Project!V44-Project!U44)*$D114,$D114/$D$129*Project!$AC44) -> 0 | W114: =IF(Summary!$J$380=1,(+Project!W44-Project!V44)*$D114,$D114/$D$129*Project!$AC44) -> 0 | X114: =IF(Summary!$J$380=1,(+Project!X44-Project!W44)*$D114,$D114/$D$129*Project!$AC44) -> 0 | Y114: =IF(Summary!$J$380=1,(+Project!Y44-Project!X44)*$D114,$D114/$D$129*Project!$AC44) -> 0 | Z114: =IF(Summary!$J$380=1,(+Project!Z44-Project!Y44)*$D114,$D114/$D$129*Project!$AC44) -> 0 | AA114: =IF(Summary!$J$380=1,(+Project!AA44-Project!Z44)*$D114,$D114/$D$129*Project!$AC44) -> 0 | AB114: =IF(Summary!$J$380=1,(+Project!AB44-Project!AA44)*$D114,$D114/$D$129*Project!$AC44) -> 0 | AC114: =IF(Summary!$J$380=1,(+Project!AC44-Project!AB44)*$D114,$D114/$D$129*Project!$AC44) -> 0
A115: 115 | B115: =+B8 -> 3 | C115: [Settlement B] 3 | D115: =Consumers!CD11/1000 -> 0 | E115: 0 | F115: 0 | G115: ="k"&Summary!$G$3 -> k£ | I115: =IF(Summary!$J$380=1,(+Project!I45-Project!H45)*$D115,$D115/$D$129*Project!$AC45) -> 0 | J115: =IF(Summary!$J$380=1,(+Project!J45-Project!I45)*$D115,$D115/$D$129*Project!$AC45) -> 0 | K115: =IF(Summary!$J$380=1,(+Project!K45-Project!J45)*$D115,$D115/$D$129*Project!$AC45) -> 0 | L115: =IF(Summary!$J$380=1,(+Project!L45-Project!K45)*$D115,$D115/$D$129*Project!$AC45) -> 0 | M115: =IF(Summary!$J$380=1,(+Project!M45-Project!L45)*$D115,$D115/$D$129*Project!$AC45) -> 0 | N115: =IF(Summary!$J$380=1,(+Project!N45-Project!M45)*$D115,$D115/$D$129*Project!$AC45) -> 0 | O115: =IF(Summary!$J$380=1,(+Project!O45-Project!N45)*$D115,$D115/$D$129*Project!$AC45) -> 0 | P115: =IF(Summary!$J$380=1,(+Project!P45-Project!O45)*$D115,$D115/$D$129*Project!$AC45) -> 0 | Q115: =IF(Summary!$J$380=1,(+Project!Q45-Project!P45)*$D115,$D115/$D$129*Project!$AC45) -> 0 | R115: =IF(Summary!$J$380=1,(+Project!R45-Project!Q45)*$D115,$D115/$D$129*Project!$AC45) -> 0 | S115: =IF(Summary!$J$380=1,(+Project!S45-Project!R45)*$D115,$D115/$D$129*Project!$AC45) -> 0 | T115: =IF(Summary!$J$380=1,(+Project!T45-Project!S45)*$D115,$D115/$D$129*Project!$AC45) -> 0 | U115: =IF(Summary!$J$380=1,(+Project!U45-Project!T45)*$D115,$D115/$D$129*Project!$AC45) -> 0 | V115: =IF(Summary!$J$380=1,(+Project!V45-Project!U45)*$D115,$D115/$D$129*Project!$AC45) -> 0 | W115: =IF(Summary!$J$380=1,(+Project!W45-Project!V45)*$D115,$D115/$D$129*Project!$AC45) -> 0 | X115: =IF(Summary!$J$380=1,(+Project!X45-Project!W45)*$D115,$D115/$D$129*Project!$AC45) -> 0 | Y115: =IF(Summary!$J$380=1,(+Project!Y45-Project!X45)*$D115,$D115/$D$129*Project!$AC45) -> 0 | Z115: =IF(Summary!$J$380=1,(+Project!Z45-Project!Y45)*$D115,$D115/$D$129*Project!$AC45) -> 0 | AA115: =IF(Summary!$J$380=1,(+Project!AA45-Project!Z45)*$D115,$D115/$D$129*Project!$AC45) -> 0 | AB115: =IF(Summary!$J$380=1,(+Project!AB45-Project!AA45)*$D115,$D115/$D$129*Project!$AC45) -> 0 | AC115: =IF(Summary!$J$380=1,(+Project!AC45-Project!AB45)*$D115,$D115/$D$129*Project!$AC45) -> 0
A116: 116 | B116: =+B9 -> 4 | C116: [Settlement B] 4 | D116: =Consumers!CD12/1000 -> 0 | E116: 0 | F116: 0 | G116: ="k"&Summary!$G$3 -> k£ | I116: =IF(Summary!$J$380=1,(+Project!I46-Project!H46)*$D116,$D116/$D$129*Project!$AC46) -> 0 | J116: =IF(Summary!$J$380=1,(+Project!J46-Project!I46)*$D116,$D116/$D$129*Project!$AC46) -> 0 | K116: =IF(Summary!$J$380=1,(+Project!K46-Project!J46)*$D116,$D116/$D$129*Project!$AC46) -> 0 | L116: =IF(Summary!$J$380=1,(+Project!L46-Project!K46)*$D116,$D116/$D$129*Project!$AC46) -> 0 | M116: =IF(Summary!$J$380=1,(+Project!M46-Project!L46)*$D116,$D116/$D$129*Project!$AC46) -> 0 | N116: =IF(Summary!$J$380=1,(+Project!N46-Project!M46)*$D116,$D116/$D$129*Project!$AC46) -> 0 | O116: =IF(Summary!$J$380=1,(+Project!O46-Project!N46)*$D116,$D116/$D$129*Project!$AC46) -> 0 | P116: =IF(Summary!$J$380=1,(+Project!P46-Project!O46)*$D116,$D116/$D$129*Project!$AC46) -> 0 | Q116: =IF(Summary!$J$380=1,(+Project!Q46-Project!P46)*$D116,$D116/$D$129*Project!$AC46) -> 0 | R116: =IF(Summary!$J$380=1,(+Project!R46-Project!Q46)*$D116,$D116/$D$129*Project!$AC46) -> 0 | S116: =IF(Summary!$J$380=1,(+Project!S46-Project!R46)*$D116,$D116/$D$129*Project!$AC46) -> 0 | T116: =IF(Summary!$J$380=1,(+Project!T46-Project!S46)*$D116,$D116/$D$129*Project!$AC46) -> 0 | U116: =IF(Summary!$J$380=1,(+Project!U46-Project!T46)*$D116,$D116/$D$129*Project!$AC46) -> 0 | V116: =IF(Summary!$J$380=1,(+Project!V46-Project!U46)*$D116,$D116/$D$129*Project!$AC46) -> 0 | W116: =IF(Summary!$J$380=1,(+Project!W46-Project!V46)*$D116,$D116/$D$129*Project!$AC46) -> 0 | X116: =IF(Summary!$J$380=1,(+Project!X46-Project!W46)*$D116,$D116/$D$129*Project!$AC46) -> 0 | Y116: =IF(Summary!$J$380=1,(+Project!Y46-Project!X46)*$D116,$D116/$D$129*Project!$AC46) -> 0 | Z116: =IF(Summary!$J$380=1,(+Project!Z46-Project!Y46)*$D116,$D116/$D$129*Project!$AC46) -> 0 | AA116: =IF(Summary!$J$380=1,(+Project!AA46-Project!Z46)*$D116,$D116/$D$129*Project!$AC46) -> 0 | AB116: =IF(Summary!$J$380=1,(+Project!AB46-Project!AA46)*$D116,$D116/$D$129*Project!$AC46) -> 0 | AC116: =IF(Summary!$J$380=1,(+Project!AC46-Project!AB46)*$D116,$D116/$D$129*Project!$AC46) -> 0
A117: 117 | B117: =+B10 -> 5 | C117: [Settlement B] 5 | D117: =Consumers!CD13/1000 -> 0 | E117: 0 | F117: 0 | G117: ="k"&Summary!$G$3 -> k£ | I117: =IF(Summary!$J$380=1,(+Project!I47-Project!H47)*$D117,$D117/$D$129*Project!$AC47) -> 0 | J117: =IF(Summary!$J$380=1,(+Project!J47-Project!I47)*$D117,$D117/$D$129*Project!$AC47) -> 0 | K117: =IF(Summary!$J$380=1,(+Project!K47-Project!J47)*$D117,$D117/$D$129*Project!$AC47) -> 0 | L117: =IF(Summary!$J$380=1,(+Project!L47-Project!K47)*$D117,$D117/$D$129*Project!$AC47) -> 0 | M117: =IF(Summary!$J$380=1,(+Project!M47-Project!L47)*$D117,$D117/$D$129*Project!$AC47) -> 0 | N117: =IF(Summary!$J$380=1,(+Project!N47-Project!M47)*$D117,$D117/$D$129*Project!$AC47) -> 0 | O117: =IF(Summary!$J$380=1,(+Project!O47-Project!N47)*$D117,$D117/$D$129*Project!$AC47) -> 0 | P117: =IF(Summary!$J$380=1,(+Project!P47-Project!O47)*$D117,$D117/$D$129*Project!$AC47) -> 0 | Q117: =IF(Summary!$J$380=1,(+Project!Q47-Project!P47)*$D117,$D117/$D$129*Project!$AC47) -> 0 | R117: =IF(Summary!$J$380=1,(+Project!R47-Project!Q47)*$D117,$D117/$D$129*Project!$AC47) -> 0 | S117: =IF(Summary!$J$380=1,(+Project!S47-Project!R47)*$D117,$D117/$D$129*Project!$AC47) -> 0 | T117: =IF(Summary!$J$380=1,(+Project!T47-Project!S47)*$D117,$D117/$D$129*Project!$AC47) -> 0 | U117: =IF(Summary!$J$380=1,(+Project!U47-Project!T47)*$D117,$D117/$D$129*Project!$AC47) -> 0 | V117: =IF(Summary!$J$380=1,(+Project!V47-Project!U47)*$D117,$D117/$D$129*Project!$AC47) -> 0 | W117: =IF(Summary!$J$380=1,(+Project!W47-Project!V47)*$D117,$D117/$D$129*Project!$AC47) -> 0 | X117: =IF(Summary!$J$380=1,(+Project!X47-Project!W47)*$D117,$D117/$D$129*Project!$AC47) -> 0 | Y117: =IF(Summary!$J$380=1,(+Project!Y47-Project!X47)*$D117,$D117/$D$129*Project!$AC47) -> 0 | Z117: =IF(Summary!$J$380=1,(+Project!Z47-Project!Y47)*$D117,$D117/$D$129*Project!$AC47) -> 0 | AA117: =IF(Summary!$J$380=1,(+Project!AA47-Project!Z47)*$D117,$D117/$D$129*Project!$AC47) -> 0 | AB117: =IF(Summary!$J$380=1,(+Project!AB47-Project!AA47)*$D117,$D117/$D$129*Project!$AC47) -> 0 | AC117: =IF(Summary!$J$380=1,(+Project!AC47-Project!AB47)*$D117,$D117/$D$129*Project!$AC47) -> 0
A118: 118 | B118: =+B11 -> 6 | C118: [Settlement B] 6 | D118: =Consumers!CD14/1000 -> 0 | E118: 0 | F118: 0 | G118: ="k"&Summary!$G$3 -> k£ | I118: =IF(Summary!$J$380=1,(+Project!I48-Project!H48)*$D118,$D118/$D$129*Project!$AC48) -> 0 | J118: =IF(Summary!$J$380=1,(+Project!J48-Project!I48)*$D118,$D118/$D$129*Project!$AC48) -> 0 | K118: =IF(Summary!$J$380=1,(+Project!K48-Project!J48)*$D118,$D118/$D$129*Project!$AC48) -> 0 | L118: =IF(Summary!$J$380=1,(+Project!L48-Project!K48)*$D118,$D118/$D$129*Project!$AC48) -> 0 | M118: =IF(Summary!$J$380=1,(+Project!M48-Project!L48)*$D118,$D118/$D$129*Project!$AC48) -> 0 | N118: =IF(Summary!$J$380=1,(+Project!N48-Project!M48)*$D118,$D118/$D$129*Project!$AC48) -> 0 | O118: =IF(Summary!$J$380=1,(+Project!O48-Project!N48)*$D118,$D118/$D$129*Project!$AC48) -> 0 | P118: =IF(Summary!$J$380=1,(+Project!P48-Project!O48)*$D118,$D118/$D$129*Project!$AC48) -> 0 | Q118: =IF(Summary!$J$380=1,(+Project!Q48-Project!P48)*$D118,$D118/$D$129*Project!$AC48) -> 0 | R118: =IF(Summary!$J$380=1,(+Project!R48-Project!Q48)*$D118,$D118/$D$129*Project!$AC48) -> 0 | S118: =IF(Summary!$J$380=1,(+Project!S48-Project!R48)*$D118,$D118/$D$129*Project!$AC48) -> 0 | T118: =IF(Summary!$J$380=1,(+Project!T48-Project!S48)*$D118,$D118/$D$129*Project!$AC48) -> 0 | U118: =IF(Summary!$J$380=1,(+Project!U48-Project!T48)*$D118,$D118/$D$129*Project!$AC48) -> 0 | V118: =IF(Summary!$J$380=1,(+Project!V48-Project!U48)*$D118,$D118/$D$129*Project!$AC48) -> 0 | W118: =IF(Summary!$J$380=1,(+Project!W48-Project!V48)*$D118,$D118/$D$129*Project!$AC48) -> 0 | X118: =IF(Summary!$J$380=1,(+Project!X48-Project!W48)*$D118,$D118/$D$129*Project!$AC48) -> 0 | Y118: =IF(Summary!$J$380=1,(+Project!Y48-Project!X48)*$D118,$D118/$D$129*Project!$AC48) -> 0 | Z118: =IF(Summary!$J$380=1,(+Project!Z48-Project!Y48)*$D118,$D118/$D$129*Project!$AC48) -> 0 | AA118: =IF(Summary!$J$380=1,(+Project!AA48-Project!Z48)*$D118,$D118/$D$129*Project!$AC48) -> 0 | AB118: =IF(Summary!$J$380=1,(+Project!AB48-Project!AA48)*$D118,$D118/$D$129*Project!$AC48) -> 0 | AC118: =IF(Summary!$J$380=1,(+Project!AC48-Project!AB48)*$D118,$D118/$D$129*Project!$AC48) -> 0
A119: 119 | B119: =+B12 -> 7 | C119: [Settlement B] 7 | D119: =Consumers!CD15/1000 -> 0 | E119: 0 | F119: 0 | G119: ="k"&Summary!$G$3 -> k£ | I119: =IF(Summary!$J$380=1,(+Project!I49-Project!H49)*$D119,$D119/$D$129*Project!$AC49) -> 0 | J119: =IF(Summary!$J$380=1,(+Project!J49-Project!I49)*$D119,$D119/$D$129*Project!$AC49) -> 0 | K119: =IF(Summary!$J$380=1,(+Project!K49-Project!J49)*$D119,$D119/$D$129*Project!$AC49) -> 0 | L119: =IF(Summary!$J$380=1,(+Project!L49-Project!K49)*$D119,$D119/$D$129*Project!$AC49) -> 0 | M119: =IF(Summary!$J$380=1,(+Project!M49-Project!L49)*$D119,$D119/$D$129*Project!$AC49) -> 0 | N119: =IF(Summary!$J$380=1,(+Project!N49-Project!M49)*$D119,$D119/$D$129*Project!$AC49) -> 0 | O119: =IF(Summary!$J$380=1,(+Project!O49-Project!N49)*$D119,$D119/$D$129*Project!$AC49) -> 0 | P119: =IF(Summary!$J$380=1,(+Project!P49-Project!O49)*$D119,$D119/$D$129*Project!$AC49) -> 0 | Q119: =IF(Summary!$J$380=1,(+Project!Q49-Project!P49)*$D119,$D119/$D$129*Project!$AC49) -> 0 | R119: =IF(Summary!$J$380=1,(+Project!R49-Project!Q49)*$D119,$D119/$D$129*Project!$AC49) -> 0 | S119: =IF(Summary!$J$380=1,(+Project!S49-Project!R49)*$D119,$D119/$D$129*Project!$AC49) -> 0 | T119: =IF(Summary!$J$380=1,(+Project!T49-Project!S49)*$D119,$D119/$D$129*Project!$AC49) -> 0 | U119: =IF(Summary!$J$380=1,(+Project!U49-Project!T49)*$D119,$D119/$D$129*Project!$AC49) -> 0 | V119: =IF(Summary!$J$380=1,(+Project!V49-Project!U49)*$D119,$D119/$D$129*Project!$AC49) -> 0 | W119: =IF(Summary!$J$380=1,(+Project!W49-Project!V49)*$D119,$D119/$D$129*Project!$AC49) -> 0 | X119: =IF(Summary!$J$380=1,(+Project!X49-Project!W49)*$D119,$D119/$D$129*Project!$AC49) -> 0 | Y119: =IF(Summary!$J$380=1,(+Project!Y49-Project!X49)*$D119,$D119/$D$129*Project!$AC49) -> 0 | Z119: =IF(Summary!$J$380=1,(+Project!Z49-Project!Y49)*$D119,$D119/$D$129*Project!$AC49) -> 0 | AA119: =IF(Summary!$J$380=1,(+Project!AA49-Project!Z49)*$D119,$D119/$D$129*Project!$AC49) -> 0 | AB119: =IF(Summary!$J$380=1,(+Project!AB49-Project!AA49)*$D119,$D119/$D$129*Project!$AC49) -> 0 | AC119: =IF(Summary!$J$380=1,(+Project!AC49-Project!AB49)*$D119,$D119/$D$129*Project!$AC49) -> 0
A120: 120 | B120: =+B13 -> 8 | C120: [Settlement B] 8 | D120: =Consumers!CD16/1000 -> 0 | E120: 0 | F120: 0 | G120: ="k"&Summary!$G$3 -> k£ | I120: =IF(Summary!$J$380=1,(+Project!I50-Project!H50)*$D120,$D120/$D$129*Project!$AC50) -> 0 | J120: =IF(Summary!$J$380=1,(+Project!J50-Project!I50)*$D120,$D120/$D$129*Project!$AC50) -> 0 | K120: =IF(Summary!$J$380=1,(+Project!K50-Project!J50)*$D120,$D120/$D$129*Project!$AC50) -> 0 | L120: =IF(Summary!$J$380=1,(+Project!L50-Project!K50)*$D120,$D120/$D$129*Project!$AC50) -> 0 | M120: =IF(Summary!$J$380=1,(+Project!M50-Project!L50)*$D120,$D120/$D$129*Project!$AC50) -> 0 | N120: =IF(Summary!$J$380=1,(+Project!N50-Project!M50)*$D120,$D120/$D$129*Project!$AC50) -> 0 | O120: =IF(Summary!$J$380=1,(+Project!O50-Project!N50)*$D120,$D120/$D$129*Project!$AC50) -> 0 | P120: =IF(Summary!$J$380=1,(+Project!P50-Project!O50)*$D120,$D120/$D$129*Project!$AC50) -> 0 | Q120: =IF(Summary!$J$380=1,(+Project!Q50-Project!P50)*$D120,$D120/$D$129*Project!$AC50) -> 0 | R120: =IF(Summary!$J$380=1,(+Project!R50-Project!Q50)*$D120,$D120/$D$129*Project!$AC50) -> 0 | S120: =IF(Summary!$J$380=1,(+Project!S50-Project!R50)*$D120,$D120/$D$129*Project!$AC50) -> 0 | T120: =IF(Summary!$J$380=1,(+Project!T50-Project!S50)*$D120,$D120/$D$129*Project!$AC50) -> 0 | U120: =IF(Summary!$J$380=1,(+Project!U50-Project!T50)*$D120,$D120/$D$129*Project!$AC50) -> 0 | V120: =IF(Summary!$J$380=1,(+Project!V50-Project!U50)*$D120,$D120/$D$129*Project!$AC50) -> 0 | W120: =IF(Summary!$J$380=1,(+Project!W50-Project!V50)*$D120,$D120/$D$129*Project!$AC50) -> 0 | X120: =IF(Summary!$J$380=1,(+Project!X50-Project!W50)*$D120,$D120/$D$129*Project!$AC50) -> 0 | Y120: =IF(Summary!$J$380=1,(+Project!Y50-Project!X50)*$D120,$D120/$D$129*Project!$AC50) -> 0 | Z120: =IF(Summary!$J$380=1,(+Project!Z50-Project!Y50)*$D120,$D120/$D$129*Project!$AC50) -> 0 | AA120: =IF(Summary!$J$380=1,(+Project!AA50-Project!Z50)*$D120,$D120/$D$129*Project!$AC50) -> 0 | AB120: =IF(Summary!$J$380=1,(+Project!AB50-Project!AA50)*$D120,$D120/$D$129*Project!$AC50) -> 0 | AC120: =IF(Summary!$J$380=1,(+Project!AC50-Project!AB50)*$D120,$D120/$D$129*Project!$AC50) -> 0
A121: 121 | B121: =+B14 -> 9 | C121: [Settlement A] Master | D121: =Consumers!CD17/1000 -> 0 | E121: 0 | F121: 0 | G121: ="k"&Summary!$G$3 -> k£ | I121: =IF(Summary!$J$380=1,(+Project!I51-Project!H51)*$D121,$D121/$D$129*Project!$AC51) -> 0 | J121: =IF(Summary!$J$380=1,(+Project!J51-Project!I51)*$D121,$D121/$D$129*Project!$AC51) -> 0 | K121: =IF(Summary!$J$380=1,(+Project!K51-Project!J51)*$D121,$D121/$D$129*Project!$AC51) -> 0 | L121: =IF(Summary!$J$380=1,(+Project!L51-Project!K51)*$D121,$D121/$D$129*Project!$AC51) -> 0 | M121: =IF(Summary!$J$380=1,(+Project!M51-Project!L51)*$D121,$D121/$D$129*Project!$AC51) -> 0 | N121: =IF(Summary!$J$380=1,(+Project!N51-Project!M51)*$D121,$D121/$D$129*Project!$AC51) -> 0 | O121: =IF(Summary!$J$380=1,(+Project!O51-Project!N51)*$D121,$D121/$D$129*Project!$AC51) -> 0 | P121: =IF(Summary!$J$380=1,(+Project!P51-Project!O51)*$D121,$D121/$D$129*Project!$AC51) -> 0 | Q121: =IF(Summary!$J$380=1,(+Project!Q51-Project!P51)*$D121,$D121/$D$129*Project!$AC51) -> 0 | R121: =IF(Summary!$J$380=1,(+Project!R51-Project!Q51)*$D121,$D121/$D$129*Project!$AC51) -> 0 | S121: =IF(Summary!$J$380=1,(+Project!S51-Project!R51)*$D121,$D121/$D$129*Project!$AC51) -> 0 | T121: =IF(Summary!$J$380=1,(+Project!T51-Project!S51)*$D121,$D121/$D$129*Project!$AC51) -> 0 | U121: =IF(Summary!$J$380=1,(+Project!U51-Project!T51)*$D121,$D121/$D$129*Project!$AC51) -> 0 | V121: =IF(Summary!$J$380=1,(+Project!V51-Project!U51)*$D121,$D121/$D$129*Project!$AC51) -> 0 | W121: =IF(Summary!$J$380=1,(+Project!W51-Project!V51)*$D121,$D121/$D$129*Project!$AC51) -> 0 | X121: =IF(Summary!$J$380=1,(+Project!X51-Project!W51)*$D121,$D121/$D$129*Project!$AC51) -> 0 | Y121: =IF(Summary!$J$380=1,(+Project!Y51-Project!X51)*$D121,$D121/$D$129*Project!$AC51) -> 0 | Z121: =IF(Summary!$J$380=1,(+Project!Z51-Project!Y51)*$D121,$D121/$D$129*Project!$AC51) -> 0 | AA121: =IF(Summary!$J$380=1,(+Project!AA51-Project!Z51)*$D121,$D121/$D$129*Project!$AC51) -> 0 | AB121: =IF(Summary!$J$380=1,(+Project!AB51-Project!AA51)*$D121,$D121/$D$129*Project!$AC51) -> 0 | AC121: =IF(Summary!$J$380=1,(+Project!AC51-Project!AB51)*$D121,$D121/$D$129*Project!$AC51) -> 0
A122: 122 | B122: =+B15 -> 10 | C122: [Settlement A] 2 | D122: =Consumers!CD18/1000 -> 0 | E122: 0 | F122: 0 | G122: ="k"&Summary!$G$3 -> k£ | I122: =IF(Summary!$J$380=1,(+Project!I52-Project!H52)*$D122,$D122/$D$129*Project!$AC52) -> 0 | J122: =IF(Summary!$J$380=1,(+Project!J52-Project!I52)*$D122,$D122/$D$129*Project!$AC52) -> 0 | K122: =IF(Summary!$J$380=1,(+Project!K52-Project!J52)*$D122,$D122/$D$129*Project!$AC52) -> 0 | L122: =IF(Summary!$J$380=1,(+Project!L52-Project!K52)*$D122,$D122/$D$129*Project!$AC52) -> 0 | M122: =IF(Summary!$J$380=1,(+Project!M52-Project!L52)*$D122,$D122/$D$129*Project!$AC52) -> 0 | N122: =IF(Summary!$J$380=1,(+Project!N52-Project!M52)*$D122,$D122/$D$129*Project!$AC52) -> 0 | O122: =IF(Summary!$J$380=1,(+Project!O52-Project!N52)*$D122,$D122/$D$129*Project!$AC52) -> 0 | P122: =IF(Summary!$J$380=1,(+Project!P52-Project!O52)*$D122,$D122/$D$129*Project!$AC52) -> 0 | Q122: =IF(Summary!$J$380=1,(+Project!Q52-Project!P52)*$D122,$D122/$D$129*Project!$AC52) -> 0 | R122: =IF(Summary!$J$380=1,(+Project!R52-Project!Q52)*$D122,$D122/$D$129*Project!$AC52) -> 0 | S122: =IF(Summary!$J$380=1,(+Project!S52-Project!R52)*$D122,$D122/$D$129*Project!$AC52) -> 0 | T122: =IF(Summary!$J$380=1,(+Project!T52-Project!S52)*$D122,$D122/$D$129*Project!$AC52) -> 0 | U122: =IF(Summary!$J$380=1,(+Project!U52-Project!T52)*$D122,$D122/$D$129*Project!$AC52) -> 0 | V122: =IF(Summary!$J$380=1,(+Project!V52-Project!U52)*$D122,$D122/$D$129*Project!$AC52) -> 0 | W122: =IF(Summary!$J$380=1,(+Project!W52-Project!V52)*$D122,$D122/$D$129*Project!$AC52) -> 0 | X122: =IF(Summary!$J$380=1,(+Project!X52-Project!W52)*$D122,$D122/$D$129*Project!$AC52) -> 0 | Y122: =IF(Summary!$J$380=1,(+Project!Y52-Project!X52)*$D122,$D122/$D$129*Project!$AC52) -> 0 | Z122: =IF(Summary!$J$380=1,(+Project!Z52-Project!Y52)*$D122,$D122/$D$129*Project!$AC52) -> 0 | AA122: =IF(Summary!$J$380=1,(+Project!AA52-Project!Z52)*$D122,$D122/$D$129*Project!$AC52) -> 0 | AB122: =IF(Summary!$J$380=1,(+Project!AB52-Project!AA52)*$D122,$D122/$D$129*Project!$AC52) -> 0 | AC122: =IF(Summary!$J$380=1,(+Project!AC52-Project!AB52)*$D122,$D122/$D$129*Project!$AC52) -> 0
A123: 123 | B123: =+B16 -> 11 | C123: [Settlement A] 3 | D123: =Consumers!CD19/1000 -> 0 | E123: 0 | F123: 0 | G123: ="k"&Summary!$G$3 -> k£ | I123: =IF(Summary!$J$380=1,(+Project!I53-Project!H53)*$D123,$D123/$D$129*Project!$AC53) -> 0 | J123: =IF(Summary!$J$380=1,(+Project!J53-Project!I53)*$D123,$D123/$D$129*Project!$AC53) -> 0 | K123: =IF(Summary!$J$380=1,(+Project!K53-Project!J53)*$D123,$D123/$D$129*Project!$AC53) -> 0 | L123: =IF(Summary!$J$380=1,(+Project!L53-Project!K53)*$D123,$D123/$D$129*Project!$AC53) -> 0 | M123: =IF(Summary!$J$380=1,(+Project!M53-Project!L53)*$D123,$D123/$D$129*Project!$AC53) -> 0 | N123: =IF(Summary!$J$380=1,(+Project!N53-Project!M53)*$D123,$D123/$D$129*Project!$AC53) -> 0 | O123: =IF(Summary!$J$380=1,(+Project!O53-Project!N53)*$D123,$D123/$D$129*Project!$AC53) -> 0 | P123: =IF(Summary!$J$380=1,(+Project!P53-Project!O53)*$D123,$D123/$D$129*Project!$AC53) -> 0 | Q123: =IF(Summary!$J$380=1,(+Project!Q53-Project!P53)*$D123,$D123/$D$129*Project!$AC53) -> 0 | R123: =IF(Summary!$J$380=1,(+Project!R53-Project!Q53)*$D123,$D123/$D$129*Project!$AC53) -> 0 | S123: =IF(Summary!$J$380=1,(+Project!S53-Project!R53)*$D123,$D123/$D$129*Project!$AC53) -> 0 | T123: =IF(Summary!$J$380=1,(+Project!T53-Project!S53)*$D123,$D123/$D$129*Project!$AC53) -> 0 | U123: =IF(Summary!$J$380=1,(+Project!U53-Project!T53)*$D123,$D123/$D$129*Project!$AC53) -> 0 | V123: =IF(Summary!$J$380=1,(+Project!V53-Project!U53)*$D123,$D123/$D$129*Project!$AC53) -> 0 | W123: =IF(Summary!$J$380=1,(+Project!W53-Project!V53)*$D123,$D123/$D$129*Project!$AC53) -> 0 | X123: =IF(Summary!$J$380=1,(+Project!X53-Project!W53)*$D123,$D123/$D$129*Project!$AC53) -> 0 | Y123: =IF(Summary!$J$380=1,(+Project!Y53-Project!X53)*$D123,$D123/$D$129*Project!$AC53) -> 0 | Z123: =IF(Summary!$J$380=1,(+Project!Z53-Project!Y53)*$D123,$D123/$D$129*Project!$AC53) -> 0 | AA123: =IF(Summary!$J$380=1,(+Project!AA53-Project!Z53)*$D123,$D123/$D$129*Project!$AC53) -> 0 | AB123: =IF(Summary!$J$380=1,(+Project!AB53-Project!AA53)*$D123,$D123/$D$129*Project!$AC53) -> 0 | AC123: =IF(Summary!$J$380=1,(+Project!AC53-Project!AB53)*$D123,$D123/$D$129*Project!$AC53) -> 0
A124: 124 | B124: =+B17 -> 12 | C124: [Settlement A] 4 | D124: =Consumers!CD20/1000 -> 0 | E124: 0 | F124: 0 | G124: ="k"&Summary!$G$3 -> k£ | I124: =IF(Summary!$J$380=1,(+Project!I54-Project!H54)*$D124,$D124/$D$129*Project!$AC54) -> 0 | J124: =IF(Summary!$J$380=1,(+Project!J54-Project!I54)*$D124,$D124/$D$129*Project!$AC54) -> 0 | K124: =IF(Summary!$J$380=1,(+Project!K54-Project!J54)*$D124,$D124/$D$129*Project!$AC54) -> 0 | L124: =IF(Summary!$J$380=1,(+Project!L54-Project!K54)*$D124,$D124/$D$129*Project!$AC54) -> 0 | M124: =IF(Summary!$J$380=1,(+Project!M54-Project!L54)*$D124,$D124/$D$129*Project!$AC54) -> 0 | N124: =IF(Summary!$J$380=1,(+Project!N54-Project!M54)*$D124,$D124/$D$129*Project!$AC54) -> 0 | O124: =IF(Summary!$J$380=1,(+Project!O54-Project!N54)*$D124,$D124/$D$129*Project!$AC54) -> 0 | P124: =IF(Summary!$J$380=1,(+Project!P54-Project!O54)*$D124,$D124/$D$129*Project!$AC54) -> 0 | Q124: =IF(Summary!$J$380=1,(+Project!Q54-Project!P54)*$D124,$D124/$D$129*Project!$AC54) -> 0 | R124: =IF(Summary!$J$380=1,(+Project!R54-Project!Q54)*$D124,$D124/$D$129*Project!$AC54) -> 0 | S124: =IF(Summary!$J$380=1,(+Project!S54-Project!R54)*$D124,$D124/$D$129*Project!$AC54) -> 0 | T124: =IF(Summary!$J$380=1,(+Project!T54-Project!S54)*$D124,$D124/$D$129*Project!$AC54) -> 0 | U124: =IF(Summary!$J$380=1,(+Project!U54-Project!T54)*$D124,$D124/$D$129*Project!$AC54) -> 0 | V124: =IF(Summary!$J$380=1,(+Project!V54-Project!U54)*$D124,$D124/$D$129*Project!$AC54) -> 0 | W124: =IF(Summary!$J$380=1,(+Project!W54-Project!V54)*$D124,$D124/$D$129*Project!$AC54) -> 0 | X124: =IF(Summary!$J$380=1,(+Project!X54-Project!W54)*$D124,$D124/$D$129*Project!$AC54) -> 0 | Y124: =IF(Summary!$J$380=1,(+Project!Y54-Project!X54)*$D124,$D124/$D$129*Project!$AC54) -> 0 | Z124: =IF(Summary!$J$380=1,(+Project!Z54-Project!Y54)*$D124,$D124/$D$129*Project!$AC54) -> 0 | AA124: =IF(Summary!$J$380=1,(+Project!AA54-Project!Z54)*$D124,$D124/$D$129*Project!$AC54) -> 0 | AB124: =IF(Summary!$J$380=1,(+Project!AB54-Project!AA54)*$D124,$D124/$D$129*Project!$AC54) -> 0 | AC124: =IF(Summary!$J$380=1,(+Project!AC54-Project!AB54)*$D124,$D124/$D$129*Project!$AC54) -> 0
A125: 125 | B125: =+B18 -> 13 | C125: [Settlement A] 5 | D125: =Consumers!CD21/1000 -> 0 | E125: 0 | F125: 0 | G125: ="k"&Summary!$G$3 -> k£ | I125: =IF(Summary!$J$380=1,(+Project!I55-Project!H55)*$D125,$D125/$D$129*Project!$AC55) -> 0 | J125: =IF(Summary!$J$380=1,(+Project!J55-Project!I55)*$D125,$D125/$D$129*Project!$AC55) -> 0 | K125: =IF(Summary!$J$380=1,(+Project!K55-Project!J55)*$D125,$D125/$D$129*Project!$AC55) -> 0 | L125: =IF(Summary!$J$380=1,(+Project!L55-Project!K55)*$D125,$D125/$D$129*Project!$AC55) -> 0 | M125: =IF(Summary!$J$380=1,(+Project!M55-Project!L55)*$D125,$D125/$D$129*Project!$AC55) -> 0 | N125: =IF(Summary!$J$380=1,(+Project!N55-Project!M55)*$D125,$D125/$D$129*Project!$AC55) -> 0 | O125: =IF(Summary!$J$380=1,(+Project!O55-Project!N55)*$D125,$D125/$D$129*Project!$AC55) -> 0 | P125: =IF(Summary!$J$380=1,(+Project!P55-Project!O55)*$D125,$D125/$D$129*Project!$AC55) -> 0 | Q125: =IF(Summary!$J$380=1,(+Project!Q55-Project!P55)*$D125,$D125/$D$129*Project!$AC55) -> 0 | R125: =IF(Summary!$J$380=1,(+Project!R55-Project!Q55)*$D125,$D125/$D$129*Project!$AC55) -> 0 | S125: =IF(Summary!$J$380=1,(+Project!S55-Project!R55)*$D125,$D125/$D$129*Project!$AC55) -> 0 | T125: =IF(Summary!$J$380=1,(+Project!T55-Project!S55)*$D125,$D125/$D$129*Project!$AC55) -> 0 | U125: =IF(Summary!$J$380=1,(+Project!U55-Project!T55)*$D125,$D125/$D$129*Project!$AC55) -> 0 | V125: =IF(Summary!$J$380=1,(+Project!V55-Project!U55)*$D125,$D125/$D$129*Project!$AC55) -> 0 | W125: =IF(Summary!$J$380=1,(+Project!W55-Project!V55)*$D125,$D125/$D$129*Project!$AC55) -> 0 | X125: =IF(Summary!$J$380=1,(+Project!X55-Project!W55)*$D125,$D125/$D$129*Project!$AC55) -> 0 | Y125: =IF(Summary!$J$380=1,(+Project!Y55-Project!X55)*$D125,$D125/$D$129*Project!$AC55) -> 0 | Z125: =IF(Summary!$J$380=1,(+Project!Z55-Project!Y55)*$D125,$D125/$D$129*Project!$AC55) -> 0 | AA125: =IF(Summary!$J$380=1,(+Project!AA55-Project!Z55)*$D125,$D125/$D$129*Project!$AC55) -> 0 | AB125: =IF(Summary!$J$380=1,(+Project!AB55-Project!AA55)*$D125,$D125/$D$129*Project!$AC55) -> 0 | AC125: =IF(Summary!$J$380=1,(+Project!AC55-Project!AB55)*$D125,$D125/$D$129*Project!$AC55) -> 0
A126: 126 | B126: =+B19 -> 14 | C126: [Settlement A] 6 | D126: =Consumers!CD22/1000 -> 0 | E126: 0 | F126: 0 | G126: ="k"&Summary!$G$3 -> k£ | I126: =IF(Summary!$J$380=1,(+Project!I56-Project!H56)*$D126,$D126/$D$129*Project!$AC56) -> 0 | J126: =IF(Summary!$J$380=1,(+Project!J56-Project!I56)*$D126,$D126/$D$129*Project!$AC56) -> 0 | K126: =IF(Summary!$J$380=1,(+Project!K56-Project!J56)*$D126,$D126/$D$129*Project!$AC56) -> 0 | L126: =IF(Summary!$J$380=1,(+Project!L56-Project!K56)*$D126,$D126/$D$129*Project!$AC56) -> 0 | M126: =IF(Summary!$J$380=1,(+Project!M56-Project!L56)*$D126,$D126/$D$129*Project!$AC56) -> 0 | N126: =IF(Summary!$J$380=1,(+Project!N56-Project!M56)*$D126,$D126/$D$129*Project!$AC56) -> 0 | O126: =IF(Summary!$J$380=1,(+Project!O56-Project!N56)*$D126,$D126/$D$129*Project!$AC56) -> 0 | P126: =IF(Summary!$J$380=1,(+Project!P56-Project!O56)*$D126,$D126/$D$129*Project!$AC56) -> 0 | Q126: =IF(Summary!$J$380=1,(+Project!Q56-Project!P56)*$D126,$D126/$D$129*Project!$AC56) -> 0 | R126: =IF(Summary!$J$380=1,(+Project!R56-Project!Q56)*$D126,$D126/$D$129*Project!$AC56) -> 0 | S126: =IF(Summary!$J$380=1,(+Project!S56-Project!R56)*$D126,$D126/$D$129*Project!$AC56) -> 0 | T126: =IF(Summary!$J$380=1,(+Project!T56-Project!S56)*$D126,$D126/$D$129*Project!$AC56) -> 0 | U126: =IF(Summary!$J$380=1,(+Project!U56-Project!T56)*$D126,$D126/$D$129*Project!$AC56) -> 0 | V126: =IF(Summary!$J$380=1,(+Project!V56-Project!U56)*$D126,$D126/$D$129*Project!$AC56) -> 0 | W126: =IF(Summary!$J$380=1,(+Project!W56-Project!V56)*$D126,$D126/$D$129*Project!$AC56) -> 0 | X126: =IF(Summary!$J$380=1,(+Project!X56-Project!W56)*$D126,$D126/$D$129*Project!$AC56) -> 0 | Y126: =IF(Summary!$J$380=1,(+Project!Y56-Project!X56)*$D126,$D126/$D$129*Project!$AC56) -> 0 | Z126: =IF(Summary!$J$380=1,(+Project!Z56-Project!Y56)*$D126,$D126/$D$129*Project!$AC56) -> 0 | AA126: =IF(Summary!$J$380=1,(+Project!AA56-Project!Z56)*$D126,$D126/$D$129*Project!$AC56) -> 0 | AB126: =IF(Summary!$J$380=1,(+Project!AB56-Project!AA56)*$D126,$D126/$D$129*Project!$AC56) -> 0 | AC126: =IF(Summary!$J$380=1,(+Project!AC56-Project!AB56)*$D126,$D126/$D$129*Project!$AC56) -> 0
A127: 127 | B127: =+B20 -> 15 | C127: [Settlement A] 7 | D127: =Consumers!CD23/1000 -> 1886.4 | E127: 1697.76 | F127: 1566.001548 | G127: ="k"&Summary!$G$3 -> k£ | I127: =IF(Summary!$J$380=1,(+Project!I57-Project!H57)*$D127,$D127/$D$129*Project!$AC57) -> 0 | J127: =IF(Summary!$J$380=1,(+Project!J57-Project!I57)*$D127,$D127/$D$129*Project!$AC57) -> 565.92 | K127: =IF(Summary!$J$380=1,(+Project!K57-Project!J57)*$D127,$D127/$D$129*Project!$AC57) -> 377.28 | L127: =IF(Summary!$J$380=1,(+Project!L57-Project!K57)*$D127,$D127/$D$129*Project!$AC57) -> 188.64 | M127: =IF(Summary!$J$380=1,(+Project!M57-Project!L57)*$D127,$D127/$D$129*Project!$AC57) -> 188.64 | N127: =IF(Summary!$J$380=1,(+Project!N57-Project!M57)*$D127,$D127/$D$129*Project!$AC57) -> 188.64 | O127: =IF(Summary!$J$380=1,(+Project!O57-Project!N57)*$D127,$D127/$D$129*Project!$AC57) -> 188.64 | P127: =IF(Summary!$J$380=1,(+Project!P57-Project!O57)*$D127,$D127/$D$129*Project!$AC57) -> 0 | Q127: =IF(Summary!$J$380=1,(+Project!Q57-Project!P57)*$D127,$D127/$D$129*Project!$AC57) -> 0 | R127: =IF(Summary!$J$380=1,(+Project!R57-Project!Q57)*$D127,$D127/$D$129*Project!$AC57) -> 0 | S127: =IF(Summary!$J$380=1,(+Project!S57-Project!R57)*$D127,$D127/$D$129*Project!$AC57) -> 0 | T127: =IF(Summary!$J$380=1,(+Project!T57-Project!S57)*$D127,$D127/$D$129*Project!$AC57) -> 0 | U127: =IF(Summary!$J$380=1,(+Project!U57-Project!T57)*$D127,$D127/$D$129*Project!$AC57) -> 0 | V127: =IF(Summary!$J$380=1,(+Project!V57-Project!U57)*$D127,$D127/$D$129*Project!$AC57) -> 0 | W127: =IF(Summary!$J$380=1,(+Project!W57-Project!V57)*$D127,$D127/$D$129*Project!$AC57) -> 0 | X127: =IF(Summary!$J$380=1,(+Project!X57-Project!W57)*$D127,$D127/$D$129*Project!$AC57) -> 0 | Y127: =IF(Summary!$J$380=1,(+Project!Y57-Project!X57)*$D127,$D127/$D$129*Project!$AC57) -> 0 | Z127: =IF(Summary!$J$380=1,(+Project!Z57-Project!Y57)*$D127,$D127/$D$129*Project!$AC57) -> 0 | AA127: =IF(Summary!$J$380=1,(+Project!AA57-Project!Z57)*$D127,$D127/$D$129*Project!$AC57) -> 0 | AB127: =IF(Summary!$J$380=1,(+Project!AB57-Project!AA57)*$D127,$D127/$D$129*Project!$AC57) -> 0 | AC127: =IF(Summary!$J$380=1,(+Project!AC57-Project!AB57)*$D127,$D127/$D$129*Project!$AC57) -> 0
A128: 128 | B128: Gas boilers | C128: =+B$69 -> Investments | D128: =SUM(D113:D127) -> 1886.4 | E128: =+SUM(H128:AC128) -> 1697.76 | F128: 1566.001548 | G128: ="k"&Summary!$G$3 -> k£ | I128: =SUM(I113:I127) -> 0 | J128: =SUM(J113:J127) -> 565.92 | K128: 377.28 | L128: 188.64 | M128: 188.64 | N128: 188.64 | O128: 188.64 | P128: 0 | Q128: 0 | R128: 0 | S128: 0 | T128: 0 | U128: 0 | V128: 0 | W128: 0 | X128: 0 | Y128: 0 | Z128: 0 | AA128: 0 | AB128: 0 | AC128: 0
A129: 129 | B129: Contribution to residual value | D129: =+Summary!J408 -> 20 | E129: =+SUM(I129:AC129) -> -235.8 | G129: ="k"&Summary!$G$3 -> k£ | I129: =-I128*(1-($AC$1-I$1)/$D129) -> 0 | J129: -28.296 | K129: -37.728 | L129: -28.296 | M129: -37.728 | N129: -47.16 | O129: -56.592 | P129: 0 | Q129: 0 | R129: 0 | S129: 0 | T129: 0 | U129: 0 | V129: 0 | W129: 0 | X129: 0 | Y129: 0 | Z129: 0 | AA129: 0 | AB129: 0 | AC129: 0
A130: 130 | B130: Residual value of individual investments | F130: =I130+NPV(+F$68,J130:AC130) -> -130.5567428 | G130: ="k"&Summary!$G$3 -> k£ | I130: 0 | J130: 0 | K130: 0 | L130: 0 | M130: 0 | N130: 0 | O130: 0 | P130: 0 | Q130: 0 | R130: 0 | S130: 0 | T130: 0 | U130: 0 | V130: 0 | W130: 0 | X130: 0 | Y130: 0 | Z130: 0 | AA130: 0 | AB130: 0 | AC130: =E129 -> -235.8
A131: 131 | B131: Individual investments including residual value | F131: =I131+NPV(+F$68,J131:AC131) -> 1435.444806 | G131: ="k"&Summary!$G$3 -> k£ | I131: =+I128+I130 -> 0 | J131: 565.92 | K131: 377.28 | L131: 188.64 | M131: 188.64 | N131: 188.64 | O131: 188.64 | P131: 0 | Q131: 0 | R131: 0 | S131: 0 | T131: 0 | U131: 0 | V131: 0 | W131: 0 | X131: 0 | Y131: 0 | Z131: 0 | AA131: 0 | AB131: 0 | AC131: =+AC128+AC130 -> -235.8
A132: 132
A133: 133 | B133: Individual investments | D133: =+D86+D128 ->  | E133: =+SUM(I133:AC133) ->  | F133: =I133+NPV(+F$68,J133:AC133) ->  | G133: ="k"&Summary!$G$3 -> k£ | I133: =+I86+I107+I128 ->  | J133: =+J86+J107+J128 -> 
A134: 134 | B134: Contribution to residual value all individual | E134: =+SUM(I134:AC134) ->  | G134: ="k"&Summary!$G$3 -> k£
A135: 135 | B135: Residual value of individual investments | F135: =I135+NPV(+F$68,J135:AC135) ->  | G135: ="k"&Summary!$G$3 -> k£ | I135: 0 | J135: 0 | K135: 0 | L135: 0 | M135: 0 | N135: 0 | O135: 0 | P135: 0 | Q135: 0 | R135: 0 | S135: 0 | T135: 0 | U135: 0 | V135: 0 | W135: 0 | X135: 0 | Y135: 0 | Z135: 0 | AA135: 0 | AB135: 0 | AC135: =E134 -> 
A136: 136 | B136: Individual investments including residual value | F136: =I136+NPV(+F$68,J136:AC136) ->  | G136: ="k"&Summary!$G$3 -> k£ | I136: =+I133+I135 ->  | AC136: =+AC133+AC135 -> 
A137: 137
A138: 138 | B138: Cost of energy, individual supply | D138: ="k"&Summary!$G$3 -> k£ | E138: =+Summary!$G$3&"/"&Summary!$F$3 -> £/MWh
A139: 139 | B139: Heat Pumps | D139: =+SUM(I139:AC139) -> 0 | E139: =+Consumers!BN25 -> 0 | F139: =I139+NPV(+F$68,J139:AC139) -> 0 | G139: ="k"&Summary!$G$3 -> k£ | I139: =+I60*$E139/1000 -> 0 | J139: =+J60*$E139/1000 -> 0 | K139: 0 | L139: 0 | M139: 0 | N139: 0 | O139: 0 | P139: 0 | Q139: 0 | R139: 0 | S139: 0 | T139: 0 | U139: 0 | V139: 0 | W139: 0 | X139: 0 | Y139: 0 | Z139: 0 | AA139: 0 | AB139: 0 | AC139: 0
A140: 140 | B140: Oil boilers | D140: =+SUM(I140:AC140) -> 0 | E140: =Summary!J242/Summary!J401 -> 100 | F140: =I140+NPV(+F$68,J140:AC140) -> 0 | G140: ="k"&Summary!$G$3 -> k£ | I140: =+I61*$E140/1000 -> 0 | J140: 0 | K140: 0 | L140: 0 | M140: 0 | N140: 0 | O140: 0 | P140: 0 | Q140: 0 | R140: 0 | S140: 0 | T140: 0 | U140: 0 | V140: 0 | W140: 0 | X140: 0 | Y140: 0 | Z140: 0 | AA140: 0 | AB140: 0 | AC140: 0
A141: 141 | B141: Gas boilers in average | D141: =+SUM(I141:AC141) -> 0 | E141: =+Consumers!CR25 -> 0 | F141: =I141+NPV(+F$68,J141:AC141) -> 0 | G141: ="k"&Summary!$G$3 -> k£ | I141: =+I62*$E141/1000 -> 0 | J141: 0 | K141: 0 | L141: 0 | M141: 0 | N141: 0 | O141: 0 | P141: 0 | Q141: 0 | R141: 0 | S141: 0 | T141: 0 | U141: 0 | V141: 0 | W141: 0 | X141: 0 | Y141: 0 | Z141: 0 | AA141: 0 | AB141: 0 | AC141: 0
A142: 142 | B142: =+B138 -> Cost of energy, individual supply | D142: =+SUM(I142:AC142) -> 0 | E142: =+F142/F63*1000 ->  | F142: =I142+NPV(+F$68,J142:AC142) -> 0 | G142: ="k"&Summary!$G$3 -> k£ | I142: =SUM(I139:I141) -> 0 | J142: 0 | K142: 0 | L142: 0 | M142: 0 | N142: 0 | O142: 0 | P142: 0 | Q142: 0 | R142: 0 | S142: 0 | T142: 0 | U142: 0 | V142: 0 | W142: 0 | X142: 0 | Y142: 0 | Z142: 0 | AA142: 0 | AB142: 0 | AC142: 0
A143: 143
A144: 144 | B144: Heat incentive, individual supply | D144: ="k"&Summary!$G$3 -> k£ | E144: =+Summary!$G$3&"/"&Summary!$F$3 -> £/MWh | F144: =+Summary!J262 -> 10 | G144: years
A145: 145 | B145: =+B139 -> Heat Pumps | D145: =+SUM(I145:AC145) -> 0 | E145: =+Summary!J266 -> 25.4 | F145: =I145+NPV(+F$68,J145:AC145) -> 0 | G145: ="k"&Summary!$G$3 -> k£ | I145: =+I60*$E145/1000 -> 0 | J145: =+IF(J$1<($I$1+$F$144+1),J60*$E145/1000,0) -> 0 | K145: 0 | L145: 0 | M145: 0 | N145: 0 | O145: 0 | P145: 0 | Q145: 0 | R145: 0 | S145: 0 | T145: 0 | U145: 0 | V145: 0 | W145: 0 | X145: 0 | Y145: 0 | Z145: 0 | AA145: 0 | AB145: 0 | AC145: 0
A146: 146 | B146: =+B140 -> Oil boilers | D146: 0 | E146: 0 | F146: 0 | G146: ="k"&Summary!$G$3 -> k£ | I146: =+I61*$E146/1000 -> 0 | J146: =+IF(J$1<($I$1+$F$144+1),J61*$E146/1000,0) -> 0 | K146: 0 | L146: 0 | M146: 0 | N146: 0 | O146: 0 | P146: 0 | Q146: 0 | R146: 0 | S146: 0 | T146: 0 | U146: 0 | V146: 0 | W146: 0 | X146: 0 | Y146: 0 | Z146: 0 | AA146: 0 | AB146: 0 | AC146: 0
A147: 147 | B147: Gas boilers in average | D147: 0 | E147: 0 | F147: 0 | G147: ="k"&Summary!$G$3 -> k£ | I147: =+I62*$E147/1000 -> 0 | J147: =+IF(J$1<($I$1+$F$144+1),J62*$E147/1000,0) -> 0 | K147: 0 | L147: 0 | M147: 0 | N147: 0 | O147: 0 | P147: 0 | Q147: 0 | R147: 0 | S147: 0 | T147: 0 | U147: 0 | V147: 0 | W147: 0 | X147: 0 | Y147: 0 | Z147: 0 | AA147: 0 | AB147: 0 | AC147: 0
A148: 148 | B148: =+B144 -> Heat incentive, individual supply | D148: 0 | E148: =+F148/F63*1000 ->  | F148: =I148+NPV(+F$68,J148:AC148) -> 0 | G148: ="k"&Summary!$G$3 -> k£ | I148: =SUM(I145:I147) -> 0 | J148: 0 | K148: 0 | L148: 0 | M148: 0 | N148: 0 | O148: 0 | P148: 0 | Q148: 0 | R148: 0 | S148: 0 | T148: 0 | U148: 0 | V148: 0 | W148: 0 | X148: 0 | Y148: 0 | Z148: 0 | AA148: 0 | AB148: 0 | AC148: 0
A149: 149
A150: 150 | B150: Individual | C150: O&M costs
A151: 151 | B151: Heat pump | D151: ="k"&Summary!$G$3&"/år" -> k£/år | F151: NPV
A152: 152 | B152: =+B6 -> 1 | C152: =+C6 -> [Settlement B] 1 | D152: =+Consumers!BP9/1000+Consumers!BQ9/1000 -> 0 | F152: =I152+NPV(+F$68,J152:AC152) -> 0 | G152: ="k"&Summary!$G$3 -> k£ | I152: =+Project!I43*$D152 -> 0 | J152: =+Project!J43*$D152 -> 0 | K152: =+Project!K43*$D152 -> 0 | L152: =+Project!L43*$D152 -> 0 | M152: =+Project!M43*$D152 -> 0 | N152: =+Project!N43*$D152 -> 0 | O152: =+Project!O43*$D152 -> 0 | P152: =+Project!P43*$D152 -> 0 | Q152: =+Project!Q43*$D152 -> 0 | R152: =+Project!R43*$D152 -> 0 | S152: =+Project!S43*$D152 -> 0 | T152: =+Project!T43*$D152 -> 0 | U152: =+Project!U43*$D152 -> 0 | V152: =+Project!V43*$D152 -> 0 | W152: =+Project!W43*$D152 -> 0 | X152: =+Project!X43*$D152 -> 0 | Y152: =+Project!Y43*$D152 -> 0 | Z152: =+Project!Z43*$D152 -> 0 | AA152: =+Project!AA43*$D152 -> 0 | AB152: =+Project!AB43*$D152 -> 0 | AC152: =+Project!AC43*$D152 -> 0
A153: 153 | B153: =+B7 -> 2 | C153: =+C7 -> [Settlement B] 2 | D153: =+Consumers!BP10/1000+Consumers!BQ10/1000 -> 0 | F153: 0 | G153: ="k"&Summary!$G$3 -> k£ | I153: =+Project!I44*$D153 -> 0 | J153: =+Project!J44*$D153 -> 0 | K153: =+Project!K44*$D153 -> 0 | L153: =+Project!L44*$D153 -> 0 | M153: =+Project!M44*$D153 -> 0 | N153: =+Project!N44*$D153 -> 0 | O153: =+Project!O44*$D153 -> 0 | P153: =+Project!P44*$D153 -> 0 | Q153: =+Project!Q44*$D153 -> 0 | R153: =+Project!R44*$D153 -> 0 | S153: =+Project!S44*$D153 -> 0 | T153: =+Project!T44*$D153 -> 0 | U153: =+Project!U44*$D153 -> 0 | V153: =+Project!V44*$D153 -> 0 | W153: =+Project!W44*$D153 -> 0 | X153: =+Project!X44*$D153 -> 0 | Y153: =+Project!Y44*$D153 -> 0 | Z153: =+Project!Z44*$D153 -> 0 | AA153: =+Project!AA44*$D153 -> 0 | AB153: =+Project!AB44*$D153 -> 0 | AC153: =+Project!AC44*$D153 -> 0
A154: 154 | B154: =+B8 -> 3 | C154: [Settlement B] 3 | D154: =+Consumers!BP11/1000+Consumers!BQ11/1000 -> 0 | F154: 0 | G154: ="k"&Summary!$G$3 -> k£ | I154: =+Project!I45*$D154 -> 0 | J154: =+Project!J45*$D154 -> 0 | K154: =+Project!K45*$D154 -> 0 | L154: =+Project!L45*$D154 -> 0 | M154: =+Project!M45*$D154 -> 0 | N154: =+Project!N45*$D154 -> 0 | O154: =+Project!O45*$D154 -> 0 | P154: =+Project!P45*$D154 -> 0 | Q154: =+Project!Q45*$D154 -> 0 | R154: =+Project!R45*$D154 -> 0 | S154: =+Project!S45*$D154 -> 0 | T154: =+Project!T45*$D154 -> 0 | U154: =+Project!U45*$D154 -> 0 | V154: =+Project!V45*$D154 -> 0 | W154: =+Project!W45*$D154 -> 0 | X154: =+Project!X45*$D154 -> 0 | Y154: =+Project!Y45*$D154 -> 0 | Z154: =+Project!Z45*$D154 -> 0 | AA154: =+Project!AA45*$D154 -> 0 | AB154: =+Project!AB45*$D154 -> 0 | AC154: =+Project!AC45*$D154 -> 0
A155: 155 | B155: =+B9 -> 4 | C155: [Settlement B] 4 | D155: =+Consumers!BP12/1000+Consumers!BQ12/1000 -> 0 | F155: 0 | G155: ="k"&Summary!$G$3 -> k£ | I155: =+Project!I46*$D155 -> 0 | J155: =+Project!J46*$D155 -> 0 | K155: =+Project!K46*$D155 -> 0 | L155: =+Project!L46*$D155 -> 0 | M155: =+Project!M46*$D155 -> 0 | N155: =+Project!N46*$D155 -> 0 | O155: =+Project!O46*$D155 -> 0 | P155: =+Project!P46*$D155 -> 0 | Q155: =+Project!Q46*$D155 -> 0 | R155: =+Project!R46*$D155 -> 0 | S155: =+Project!S46*$D155 -> 0 | T155: =+Project!T46*$D155 -> 0 | U155: =+Project!U46*$D155 -> 0 | V155: =+Project!V46*$D155 -> 0 | W155: =+Project!W46*$D155 -> 0 | X155: =+Project!X46*$D155 -> 0 | Y155: =+Project!Y46*$D155 -> 0 | Z155: =+Project!Z46*$D155 -> 0 | AA155: =+Project!AA46*$D155 -> 0 | AB155: =+Project!AB46*$D155 -> 0 | AC155: =+Project!AC46*$D155 -> 0
A156: 156 | B156: =+B10 -> 5 | C156: [Settlement B] 5 | D156: =+Consumers!BP13/1000+Consumers!BQ13/1000 -> 0 | F156: 0 | G156: ="k"&Summary!$G$3 -> k£ | I156: =+Project!I47*$D156 -> 0 | J156: =+Project!J47*$D156 -> 0 | K156: =+Project!K47*$D156 -> 0 | L156: =+Project!L47*$D156 -> 0 | M156: =+Project!M47*$D156 -> 0 | N156: =+Project!N47*$D156 -> 0 | O156: =+Project!O47*$D156 -> 0 | P156: =+Project!P47*$D156 -> 0 | Q156: =+Project!Q47*$D156 -> 0 | R156: =+Project!R47*$D156 -> 0 | S156: =+Project!S47*$D156 -> 0 | T156: =+Project!T47*$D156 -> 0 | U156: =+Project!U47*$D156 -> 0 | V156: =+Project!V47*$D156 -> 0 | W156: =+Project!W47*$D156 -> 0 | X156: =+Project!X47*$D156 -> 0 | Y156: =+Project!Y47*$D156 -> 0 | Z156: =+Project!Z47*$D156 -> 0 | AA156: =+Project!AA47*$D156 -> 0 | AB156: =+Project!AB47*$D156 -> 0 | AC156: =+Project!AC47*$D156 -> 0
A157: 157 | B157: =+B11 -> 6 | C157: [Settlement B] 6 | D157: =+Consumers!BP14/1000+Consumers!BQ14/1000 -> 0 | F157: 0 | G157: ="k"&Summary!$G$3 -> k£ | I157: =+Project!I48*$D157 -> 0 | J157: =+Project!J48*$D157 -> 0 | K157: =+Project!K48*$D157 -> 0 | L157: =+Project!L48*$D157 -> 0 | M157: =+Project!M48*$D157 -> 0 | N157: =+Project!N48*$D157 -> 0 | O157: =+Project!O48*$D157 -> 0 | P157: =+Project!P48*$D157 -> 0 | Q157: =+Project!Q48*$D157 -> 0 | R157: =+Project!R48*$D157 -> 0 | S157: =+Project!S48*$D157 -> 0 | T157: =+Project!T48*$D157 -> 0 | U157: =+Project!U48*$D157 -> 0 | V157: =+Project!V48*$D157 -> 0 | W157: =+Project!W48*$D157 -> 0 | X157: =+Project!X48*$D157 -> 0 | Y157: =+Project!Y48*$D157 -> 0 | Z157: =+Project!Z48*$D157 -> 0 | AA157: =+Project!AA48*$D157 -> 0 | AB157: =+Project!AB48*$D157 -> 0 | AC157: =+Project!AC48*$D157 -> 0
A158: 158 | B158: =+B12 -> 7 | C158: [Settlement B] 7 | D158: =+Consumers!BP15/1000+Consumers!BQ15/1000 -> 0 | F158: 0 | G158: ="k"&Summary!$G$3 -> k£ | I158: =+Project!I49*$D158 -> 0 | J158: =+Project!J49*$D158 -> 0 | K158: =+Project!K49*$D158 -> 0 | L158: =+Project!L49*$D158 -> 0 | M158: =+Project!M49*$D158 -> 0 | N158: =+Project!N49*$D158 -> 0 | O158: =+Project!O49*$D158 -> 0 | P158: =+Project!P49*$D158 -> 0 | Q158: =+Project!Q49*$D158 -> 0 | R158: =+Project!R49*$D158 -> 0 | S158: =+Project!S49*$D158 -> 0 | T158: =+Project!T49*$D158 -> 0 | U158: =+Project!U49*$D158 -> 0 | V158: =+Project!V49*$D158 -> 0 | W158: =+Project!W49*$D158 -> 0 | X158: =+Project!X49*$D158 -> 0 | Y158: =+Project!Y49*$D158 -> 0 | Z158: =+Project!Z49*$D158 -> 0 | AA158: =+Project!AA49*$D158 -> 0 | AB158: =+Project!AB49*$D158 -> 0 | AC158: =+Project!AC49*$D158 -> 0
A159: 159 | B159: =+B13 -> 8 | C159: [Settlement B] 8 | D159: =+Consumers!BP16/1000+Consumers!BQ16/1000 -> 0 | F159: 0 | G159: ="k"&Summary!$G$3 -> k£ | I159: =+Project!I50*$D159 -> 0 | J159: =+Project!J50*$D159 -> 0 | K159: =+Project!K50*$D159 -> 0 | L159: =+Project!L50*$D159 -> 0 | M159: =+Project!M50*$D159 -> 0 | N159: =+Project!N50*$D159 -> 0 | O159: =+Project!O50*$D159 -> 0 | P159: =+Project!P50*$D159 -> 0 | Q159: =+Project!Q50*$D159 -> 0 | R159: =+Project!R50*$D159 -> 0 | S159: =+Project!S50*$D159 -> 0 | T159: =+Project!T50*$D159 -> 0 | U159: =+Project!U50*$D159 -> 0 | V159: =+Project!V50*$D159 -> 0 | W159: =+Project!W50*$D159 -> 0 | X159: =+Project!X50*$D159 -> 0 | Y159: =+Project!Y50*$D159 -> 0 | Z159: =+Project!Z50*$D159 -> 0 | AA159: =+Project!AA50*$D159 -> 0 | AB159: =+Project!AB50*$D159 -> 0 | AC159: =+Project!AC50*$D159 -> 0
A160: 160 | B160: =+B14 -> 9 | C160: [Settlement A] Master | D160: =+Consumers!BP17/1000+Consumers!BQ17/1000 -> 0 | F160: 0 | G160: ="k"&Summary!$G$3 -> k£ | I160: =+Project!I51*$D160 -> 0 | J160: =+Project!J51*$D160 -> 0 | K160: =+Project!K51*$D160 -> 0 | L160: =+Project!L51*$D160 -> 0 | M160: =+Project!M51*$D160 -> 0 | N160: =+Project!N51*$D160 -> 0 | O160: =+Project!O51*$D160 -> 0 | P160: =+Project!P51*$D160 -> 0 | Q160: =+Project!Q51*$D160 -> 0 | R160: =+Project!R51*$D160 -> 0 | S160: =+Project!S51*$D160 -> 0 | T160: =+Project!T51*$D160 -> 0 | U160: =+Project!U51*$D160 -> 0 | V160: =+Project!V51*$D160 -> 0 | W160: =+Project!W51*$D160 -> 0 | X160: =+Project!X51*$D160 -> 0 | Y160: =+Project!Y51*$D160 -> 0 | Z160: =+Project!Z51*$D160 -> 0 | AA160: =+Project!AA51*$D160 -> 0 | AB160: =+Project!AB51*$D160 -> 0 | AC160: =+Project!AC51*$D160 -> 0
A161: 161 | B161: =+B15 -> 10 | C161: [Settlement A] 2 | D161: =+Consumers!BP18/1000+Consumers!BQ18/1000 -> 0 | F161: 0 | G161: ="k"&Summary!$G$3 -> k£ | I161: =+Project!I52*$D161 -> 0 | J161: =+Project!J52*$D161 -> 0 | K161: =+Project!K52*$D161 -> 0 | L161: =+Project!L52*$D161 -> 0 | M161: =+Project!M52*$D161 -> 0 | N161: =+Project!N52*$D161 -> 0 | O161: =+Project!O52*$D161 -> 0 | P161: =+Project!P52*$D161 -> 0 | Q161: =+Project!Q52*$D161 -> 0 | R161: =+Project!R52*$D161 -> 0 | S161: =+Project!S52*$D161 -> 0 | T161: =+Project!T52*$D161 -> 0 | U161: =+Project!U52*$D161 -> 0 | V161: =+Project!V52*$D161 -> 0 | W161: =+Project!W52*$D161 -> 0 | X161: =+Project!X52*$D161 -> 0 | Y161: =+Project!Y52*$D161 -> 0 | Z161: =+Project!Z52*$D161 -> 0 | AA161: =+Project!AA52*$D161 -> 0 | AB161: =+Project!AB52*$D161 -> 0 | AC161: =+Project!AC52*$D161 -> 0
A162: 162 | B162: =+B16 -> 11 | C162: [Settlement A] 3 | D162: =+Consumers!BP19/1000+Consumers!BQ19/1000 -> 0 | F162: 0 | G162: ="k"&Summary!$G$3 -> k£ | I162: =+Project!I53*$D162 -> 0 | J162: =+Project!J53*$D162 -> 0 | K162: =+Project!K53*$D162 -> 0 | L162: =+Project!L53*$D162 -> 0 | M162: =+Project!M53*$D162 -> 0 | N162: =+Project!N53*$D162 -> 0 | O162: =+Project!O53*$D162 -> 0 | P162: =+Project!P53*$D162 -> 0 | Q162: =+Project!Q53*$D162 -> 0 | R162: =+Project!R53*$D162 -> 0 | S162: =+Project!S53*$D162 -> 0 | T162: =+Project!T53*$D162 -> 0 | U162: =+Project!U53*$D162 -> 0 | V162: =+Project!V53*$D162 -> 0 | W162: =+Project!W53*$D162 -> 0 | X162: =+Project!X53*$D162 -> 0 | Y162: =+Project!Y53*$D162 -> 0 | Z162: =+Project!Z53*$D162 -> 0 | AA162: =+Project!AA53*$D162 -> 0 | AB162: =+Project!AB53*$D162 -> 0 | AC162: =+Project!AC53*$D162 -> 0
A163: 163 | B163: =+B17 -> 12 | C163: [Settlement A] 4 | D163: =+Consumers!BP20/1000+Consumers!BQ20/1000 -> 0 | F163: 0 | G163: ="k"&Summary!$G$3 -> k£ | I163: =+Project!I54*$D163 -> 0 | J163: =+Project!J54*$D163 -> 0 | K163: =+Project!K54*$D163 -> 0 | L163: =+Project!L54*$D163 -> 0 | M163: =+Project!M54*$D163 -> 0 | N163: =+Project!N54*$D163 -> 0 | O163: =+Project!O54*$D163 -> 0 | P163: =+Project!P54*$D163 -> 0 | Q163: =+Project!Q54*$D163 -> 0 | R163: =+Project!R54*$D163 -> 0 | S163: =+Project!S54*$D163 -> 0 | T163: =+Project!T54*$D163 -> 0 | U163: =+Project!U54*$D163 -> 0 | V163: =+Project!V54*$D163 -> 0 | W163: =+Project!W54*$D163 -> 0 | X163: =+Project!X54*$D163 -> 0 | Y163: =+Project!Y54*$D163 -> 0 | Z163: =+Project!Z54*$D163 -> 0 | AA163: =+Project!AA54*$D163 -> 0 | AB163: =+Project!AB54*$D163 -> 0 | AC163: =+Project!AC54*$D163 -> 0
A164: 164 | B164: =+B18 -> 13 | C164: [Settlement A] 5 | D164: =+Consumers!BP21/1000+Consumers!BQ21/1000 -> 0 | F164: 0 | G164: ="k"&Summary!$G$3 -> k£ | I164: =+Project!I55*$D164 -> 0 | J164: =+Project!J55*$D164 -> 0 | K164: =+Project!K55*$D164 -> 0 | L164: =+Project!L55*$D164 -> 0 | M164: =+Project!M55*$D164 -> 0 | N164: =+Project!N55*$D164 -> 0 | O164: =+Project!O55*$D164 -> 0 | P164: =+Project!P55*$D164 -> 0 | Q164: =+Project!Q55*$D164 -> 0 | R164: =+Project!R55*$D164 -> 0 | S164: =+Project!S55*$D164 -> 0 | T164: =+Project!T55*$D164 -> 0 | U164: =+Project!U55*$D164 -> 0 | V164: =+Project!V55*$D164 -> 0 | W164: =+Project!W55*$D164 -> 0 | X164: =+Project!X55*$D164 -> 0 | Y164: =+Project!Y55*$D164 -> 0 | Z164: =+Project!Z55*$D164 -> 0 | AA164: =+Project!AA55*$D164 -> 0 | AB164: =+Project!AB55*$D164 -> 0 | AC164: =+Project!AC55*$D164 -> 0
A165: 165 | B165: =+B19 -> 14 | C165: [Settlement A] 6 | D165: =+Consumers!BP22/1000+Consumers!BQ22/1000 -> 0 | F165: 0 | G165: ="k"&Summary!$G$3 -> k£ | I165: =+Project!I56*$D165 -> 0 | J165: =+Project!J56*$D165 -> 0 | K165: =+Project!K56*$D165 -> 0 | L165: =+Project!L56*$D165 -> 0 | M165: =+Project!M56*$D165 -> 0 | N165: =+Project!N56*$D165 -> 0 | O165: =+Project!O56*$D165 -> 0 | P165: =+Project!P56*$D165 -> 0 | Q165: =+Project!Q56*$D165 -> 0 | R165: =+Project!R56*$D165 -> 0 | S165: =+Project!S56*$D165 -> 0 | T165: =+Project!T56*$D165 -> 0 | U165: =+Project!U56*$D165 -> 0 | V165: =+Project!V56*$D165 -> 0 | W165: =+Project!W56*$D165 -> 0 | X165: =+Project!X56*$D165 -> 0 | Y165: =+Project!Y56*$D165 -> 0 | Z165: =+Project!Z56*$D165 -> 0 | AA165: =+Project!AA56*$D165 -> 0 | AB165: =+Project!AB56*$D165 -> 0 | AC165: =+Project!AC56*$D165 -> 0
A166: 166 | B166: =+B20 -> 15 | C166: [Settlement A] 7 | D166: =+Consumers!BP23/1000+Consumers!BQ23/1000 -> 0.6 | F166: 7.134998372 | G166: ="k"&Summary!$G$3 -> k£ | I166: =+Project!I57*$D166 -> 0 | J166: =+Project!J57*$D166 -> 0.18 | K166: =+Project!K57*$D166 -> 0.3 | L166: =+Project!L57*$D166 -> 0.36 | M166: =+Project!M57*$D166 -> 0.42 | N166: =+Project!N57*$D166 -> 0.48 | O166: =+Project!O57*$D166 -> 0.54 | P166: =+Project!P57*$D166 -> 0.54 | Q166: =+Project!Q57*$D166 -> 0.54 | R166: =+Project!R57*$D166 -> 0.54 | S166: =+Project!S57*$D166 -> 0.54 | T166: =+Project!T57*$D166 -> 0.54 | U166: =+Project!U57*$D166 -> 0.54 | V166: =+Project!V57*$D166 -> 0.54 | W166: =+Project!W57*$D166 -> 0.54 | X166: =+Project!X57*$D166 -> 0.54 | Y166: =+Project!Y57*$D166 -> 0.54 | Z166: =+Project!Z57*$D166 -> 0.54 | AA166: =+Project!AA57*$D166 -> 0.54 | AB166: =+Project!AB57*$D166 -> 0.54 | AC166: =+Project!AC57*$D166 -> 0.54
A167: 167 | B167: Heat pumps | C167: O&M costs | D167: =SUM(D152:D166) -> 0.6 | F167: 7.134998372 | G167: ="k"&Summary!$G$3 -> k£ | I167: =SUM(I152:I166) -> 0 | J167: =SUM(J152:J166) -> 0.18 | K167: =SUM(K152:K166) -> 0.3 | L167: 0.36 | M167: 0.42 | N167: 0.48 | O167: 0.54 | P167: 0.54 | Q167: 0.54 | R167: 0.54 | S167: 0.54 | T167: 0.54 | U167: 0.54 | V167: 0.54 | W167: 0.54 | X167: 0.54 | Y167: 0.54 | Z167: 0.54 | AA167: 0.54 | AB167: 0.54 | AC167: =SUM(AC152:AC166) -> 0.54
A168: 168
A169: 169 | B169: Oil boilers | D169: ="k"&Summary!$G$3&"/år" -> k£/år
A170: 170 | B170: =+B6 -> 1 | C170: =+C6 -> [Settlement B] 1 | D170: =+(Consumers!BY9+Consumers!BZ9)/1000 -> 0 | F170: =I170+NPV(+F$68,J170:AC170) -> 0 | G170: ="k"&Summary!$G$3 -> k£ | I170: =+Project!I43*$D170 -> 0 | J170: =+Project!J43*$D170 -> 0 | K170: =+Project!K43*$D170 -> 0 | L170: =+Project!L43*$D170 -> 0 | M170: =+Project!M43*$D170 -> 0 | N170: =+Project!N43*$D170 -> 0 | O170: =+Project!O43*$D170 -> 0 | P170: =+Project!P43*$D170 -> 0 | Q170: =+Project!Q43*$D170 -> 0 | R170: =+Project!R43*$D170 -> 0 | S170: =+Project!S43*$D170 -> 0 | T170: =+Project!T43*$D170 -> 0 | U170: =+Project!U43*$D170 -> 0 | V170: =+Project!V43*$D170 -> 0 | W170: =+Project!W43*$D170 -> 0 | X170: =+Project!X43*$D170 -> 0 | Y170: =+Project!Y43*$D170 -> 0 | Z170: =+Project!Z43*$D170 -> 0 | AA170: =+Project!AA43*$D170 -> 0 | AB170: =+Project!AB43*$D170 -> 0 | AC170: =+Project!AC43*$D170 -> 0
A171: 171 | B171: =+B7 -> 2 | C171: =+C7 -> [Settlement B] 2 | D171: =+(Consumers!BY10+Consumers!BZ10)/1000 -> 0 | F171: 0 | G171: ="k"&Summary!$G$3 -> k£ | I171: =+Project!I44*$D171 -> 0 | J171: =+Project!J44*$D171 -> 0 | K171: =+Project!K44*$D171 -> 0 | L171: =+Project!L44*$D171 -> 0 | M171: =+Project!M44*$D171 -> 0 | N171: =+Project!N44*$D171 -> 0 | O171: =+Project!O44*$D171 -> 0 | P171: =+Project!P44*$D171 -> 0 | Q171: =+Project!Q44*$D171 -> 0 | R171: =+Project!R44*$D171 -> 0 | S171: =+Project!S44*$D171 -> 0 | T171: =+Project!T44*$D171 -> 0 | U171: =+Project!U44*$D171 -> 0 | V171: =+Project!V44*$D171 -> 0 | W171: =+Project!W44*$D171 -> 0 | X171: =+Project!X44*$D171 -> 0 | Y171: =+Project!Y44*$D171 -> 0 | Z171: =+Project!Z44*$D171 -> 0 | AA171: =+Project!AA44*$D171 -> 0 | AB171: =+Project!AB44*$D171 -> 0 | AC171: =+Project!AC44*$D171 -> 0
A172: 172 | B172: =+B8 -> 3 | C172: [Settlement B] 3 | D172: =+(Consumers!BY11+Consumers!BZ11)/1000 -> 0 | F172: 0 | G172: ="k"&Summary!$G$3 -> k£ | I172: =+Project!I45*$D172 -> 0 | J172: =+Project!J45*$D172 -> 0 | K172: =+Project!K45*$D172 -> 0 | L172: =+Project!L45*$D172 -> 0 | M172: =+Project!M45*$D172 -> 0 | N172: =+Project!N45*$D172 -> 0 | O172: =+Project!O45*$D172 -> 0 | P172: =+Project!P45*$D172 -> 0 | Q172: =+Project!Q45*$D172 -> 0 | R172: =+Project!R45*$D172 -> 0 | S172: =+Project!S45*$D172 -> 0 | T172: =+Project!T45*$D172 -> 0 | U172: =+Project!U45*$D172 -> 0 | V172: =+Project!V45*$D172 -> 0 | W172: =+Project!W45*$D172 -> 0 | X172: =+Project!X45*$D172 -> 0 | Y172: =+Project!Y45*$D172 -> 0 | Z172: =+Project!Z45*$D172 -> 0 | AA172: =+Project!AA45*$D172 -> 0 | AB172: =+Project!AB45*$D172 -> 0 | AC172: =+Project!AC45*$D172 -> 0
A173: 173 | B173: =+B9 -> 4 | C173: [Settlement B] 4 | D173: =+(Consumers!BY12+Consumers!BZ12)/1000 -> 0 | F173: 0 | G173: ="k"&Summary!$G$3 -> k£ | I173: =+Project!I46*$D173 -> 0 | J173: =+Project!J46*$D173 -> 0 | K173: =+Project!K46*$D173 -> 0 | L173: =+Project!L46*$D173 -> 0 | M173: =+Project!M46*$D173 -> 0 | N173: =+Project!N46*$D173 -> 0 | O173: =+Project!O46*$D173 -> 0 | P173: =+Project!P46*$D173 -> 0 | Q173: =+Project!Q46*$D173 -> 0 | R173: =+Project!R46*$D173 -> 0 | S173: =+Project!S46*$D173 -> 0 | T173: =+Project!T46*$D173 -> 0 | U173: =+Project!U46*$D173 -> 0 | V173: =+Project!V46*$D173 -> 0 | W173: =+Project!W46*$D173 -> 0 | X173: =+Project!X46*$D173 -> 0 | Y173: =+Project!Y46*$D173 -> 0 | Z173: =+Project!Z46*$D173 -> 0 | AA173: =+Project!AA46*$D173 -> 0 | AB173: =+Project!AB46*$D173 -> 0 | AC173: =+Project!AC46*$D173 -> 0
A174: 174 | B174: =+B10 -> 5 | C174: [Settlement B] 5 | D174: =+(Consumers!BY13+Consumers!BZ13)/1000 -> 0 | F174: 0 | G174: ="k"&Summary!$G$3 -> k£ | I174: =+Project!I47*$D174 -> 0 | J174: =+Project!J47*$D174 -> 0 | K174: =+Project!K47*$D174 -> 0 | L174: =+Project!L47*$D174 -> 0 | M174: =+Project!M47*$D174 -> 0 | N174: =+Project!N47*$D174 -> 0 | O174: =+Project!O47*$D174 -> 0 | P174: =+Project!P47*$D174 -> 0 | Q174: =+Project!Q47*$D174 -> 0 | R174: =+Project!R47*$D174 -> 0 | S174: =+Project!S47*$D174 -> 0 | T174: =+Project!T47*$D174 -> 0 | U174: =+Project!U47*$D174 -> 0 | V174: =+Project!V47*$D174 -> 0 | W174: =+Project!W47*$D174 -> 0 | X174: =+Project!X47*$D174 -> 0 | Y174: =+Project!Y47*$D174 -> 0 | Z174: =+Project!Z47*$D174 -> 0 | AA174: =+Project!AA47*$D174 -> 0 | AB174: =+Project!AB47*$D174 -> 0 | AC174: =+Project!AC47*$D174 -> 0
A175: 175 | B175: =+B11 -> 6 | C175: [Settlement B] 6 | D175: =+(Consumers!BY14+Consumers!BZ14)/1000 -> 0 | F175: 0 | G175: ="k"&Summary!$G$3 -> k£ | I175: =+Project!I48*$D175 -> 0 | J175: =+Project!J48*$D175 -> 0 | K175: =+Project!K48*$D175 -> 0 | L175: =+Project!L48*$D175 -> 0 | M175: =+Project!M48*$D175 -> 0 | N175: =+Project!N48*$D175 -> 0 | O175: =+Project!O48*$D175 -> 0 | P175: =+Project!P48*$D175 -> 0 | Q175: =+Project!Q48*$D175 -> 0 | R175: =+Project!R48*$D175 -> 0 | S175: =+Project!S48*$D175 -> 0 | T175: =+Project!T48*$D175 -> 0 | U175: =+Project!U48*$D175 -> 0 | V175: =+Project!V48*$D175 -> 0 | W175: =+Project!W48*$D175 -> 0 | X175: =+Project!X48*$D175 -> 0 | Y175: =+Project!Y48*$D175 -> 0 | Z175: =+Project!Z48*$D175 -> 0 | AA175: =+Project!AA48*$D175 -> 0 | AB175: =+Project!AB48*$D175 -> 0 | AC175: =+Project!AC48*$D175 -> 0
A176: 176 | B176: =+B12 -> 7 | C176: [Settlement B] 7 | D176: =+(Consumers!BY15+Consumers!BZ15)/1000 -> 0 | F176: 0 | G176: ="k"&Summary!$G$3 -> k£ | I176: =+Project!I49*$D176 -> 0 | J176: =+Project!J49*$D176 -> 0 | K176: =+Project!K49*$D176 -> 0 | L176: =+Project!L49*$D176 -> 0 | M176: =+Project!M49*$D176 -> 0 | N176: =+Project!N49*$D176 -> 0 | O176: =+Project!O49*$D176 -> 0 | P176: =+Project!P49*$D176 -> 0 | Q176: =+Project!Q49*$D176 -> 0 | R176: =+Project!R49*$D176 -> 0 | S176: =+Project!S49*$D176 -> 0 | T176: =+Project!T49*$D176 -> 0 | U176: =+Project!U49*$D176 -> 0 | V176: =+Project!V49*$D176 -> 0 | W176: =+Project!W49*$D176 -> 0 | X176: =+Project!X49*$D176 -> 0 | Y176: =+Project!Y49*$D176 -> 0 | Z176: =+Project!Z49*$D176 -> 0 | AA176: =+Project!AA49*$D176 -> 0 | AB176: =+Project!AB49*$D176 -> 0 | AC176: =+Project!AC49*$D176 -> 0
A177: 177 | B177: =+B13 -> 8 | C177: [Settlement B] 8 | D177: =+(Consumers!BY16+Consumers!BZ16)/1000 -> 0 | F177: 0 | G177: ="k"&Summary!$G$3 -> k£ | I177: =+Project!I50*$D177 -> 0 | J177: =+Project!J50*$D177 -> 0 | K177: =+Project!K50*$D177 -> 0 | L177: =+Project!L50*$D177 -> 0 | M177: =+Project!M50*$D177 -> 0 | N177: =+Project!N50*$D177 -> 0 | O177: =+Project!O50*$D177 -> 0 | P177: =+Project!P50*$D177 -> 0 | Q177: =+Project!Q50*$D177 -> 0 | R177: =+Project!R50*$D177 -> 0 | S177: =+Project!S50*$D177 -> 0 | T177: =+Project!T50*$D177 -> 0 | U177: =+Project!U50*$D177 -> 0 | V177: =+Project!V50*$D177 -> 0 | W177: =+Project!W50*$D177 -> 0 | X177: =+Project!X50*$D177 -> 0 | Y177: =+Project!Y50*$D177 -> 0 | Z177: =+Project!Z50*$D177 -> 0 | AA177: =+Project!AA50*$D177 -> 0 | AB177: =+Project!AB50*$D177 -> 0 | AC177: =+Project!AC50*$D177 -> 0
A178: 178 | B178: =+B14 -> 9 | C178: [Settlement A] Master | D178: =+(Consumers!BY17+Consumers!BZ17)/1000 -> 0 | F178: 0 | G178: ="k"&Summary!$G$3 -> k£ | I178: =+Project!I51*$D178 -> 0 | J178: =+Project!J51*$D178 -> 0 | K178: =+Project!K51*$D178 -> 0 | L178: =+Project!L51*$D178 -> 0 | M178: =+Project!M51*$D178 -> 0 | N178: =+Project!N51*$D178 -> 0 | O178: =+Project!O51*$D178 -> 0 | P178: =+Project!P51*$D178 -> 0 | Q178: =+Project!Q51*$D178 -> 0 | R178: =+Project!R51*$D178 -> 0 | S178: =+Project!S51*$D178 -> 0 | T178: =+Project!T51*$D178 -> 0 | U178: =+Project!U51*$D178 -> 0 | V178: =+Project!V51*$D178 -> 0 | W178: =+Project!W51*$D178 -> 0 | X178: =+Project!X51*$D178 -> 0 | Y178: =+Project!Y51*$D178 -> 0 | Z178: =+Project!Z51*$D178 -> 0 | AA178: =+Project!AA51*$D178 -> 0 | AB178: =+Project!AB51*$D178 -> 0 | AC178: =+Project!AC51*$D178 -> 0
A179: 179 | B179: =+B15 -> 10 | C179: [Settlement A] 2 | D179: =+(Consumers!BY18+Consumers!BZ18)/1000 -> 0 | F179: 0 | G179: ="k"&Summary!$G$3 -> k£ | I179: =+Project!I52*$D179 -> 0 | J179: =+Project!J52*$D179 -> 0 | K179: =+Project!K52*$D179 -> 0 | L179: =+Project!L52*$D179 -> 0 | M179: =+Project!M52*$D179 -> 0 | N179: =+Project!N52*$D179 -> 0 | O179: =+Project!O52*$D179 -> 0 | P179: =+Project!P52*$D179 -> 0 | Q179: =+Project!Q52*$D179 -> 0 | R179: =+Project!R52*$D179 -> 0 | S179: =+Project!S52*$D179 -> 0 | T179: =+Project!T52*$D179 -> 0 | U179: =+Project!U52*$D179 -> 0 | V179: =+Project!V52*$D179 -> 0 | W179: =+Project!W52*$D179 -> 0 | X179: =+Project!X52*$D179 -> 0 | Y179: =+Project!Y52*$D179 -> 0 | Z179: =+Project!Z52*$D179 -> 0 | AA179: =+Project!AA52*$D179 -> 0 | AB179: =+Project!AB52*$D179 -> 0 | AC179: =+Project!AC52*$D179 -> 0
A180: 180 | B180: =+B16 -> 11 | C180: [Settlement A] 3 | D180: =+(Consumers!BY19+Consumers!BZ19)/1000 -> 0 | F180: 0 | G180: ="k"&Summary!$G$3 -> k£ | I180: =+Project!I53*$D180 -> 0 | J180: =+Project!J53*$D180 -> 0 | K180: =+Project!K53*$D180 -> 0 | L180: =+Project!L53*$D180 -> 0 | M180: =+Project!M53*$D180 -> 0 | N180: =+Project!N53*$D180 -> 0 | O180: =+Project!O53*$D180 -> 0 | P180: =+Project!P53*$D180 -> 0 | Q180: =+Project!Q53*$D180 -> 0 | R180: =+Project!R53*$D180 -> 0 | S180: =+Project!S53*$D180 -> 0 | T180: =+Project!T53*$D180 -> 0 | U180: =+Project!U53*$D180 -> 0 | V180: =+Project!V53*$D180 -> 0 | W180: =+Project!W53*$D180 -> 0 | X180: =+Project!X53*$D180 -> 0 | Y180: =+Project!Y53*$D180 -> 0 | Z180: =+Project!Z53*$D180 -> 0 | AA180: =+Project!AA53*$D180 -> 0 | AB180: =+Project!AB53*$D180 -> 0 | AC180: =+Project!AC53*$D180 -> 0
A181: 181 | B181: =+B17 -> 12 | C181: [Settlement A] 4 | D181: =+(Consumers!BY20+Consumers!BZ20)/1000 -> 0 | F181: 0 | G181: ="k"&Summary!$G$3 -> k£ | I181: =+Project!I54*$D181 -> 0 | J181: =+Project!J54*$D181 -> 0 | K181: =+Project!K54*$D181 -> 0 | L181: =+Project!L54*$D181 -> 0 | M181: =+Project!M54*$D181 -> 0 | N181: =+Project!N54*$D181 -> 0 | O181: =+Project!O54*$D181 -> 0 | P181: =+Project!P54*$D181 -> 0 | Q181: =+Project!Q54*$D181 -> 0 | R181: =+Project!R54*$D181 -> 0 | S181: =+Project!S54*$D181 -> 0 | T181: =+Project!T54*$D181 -> 0 | U181: =+Project!U54*$D181 -> 0 | V181: =+Project!V54*$D181 -> 0 | W181: =+Project!W54*$D181 -> 0 | X181: =+Project!X54*$D181 -> 0 | Y181: =+Project!Y54*$D181 -> 0 | Z181: =+Project!Z54*$D181 -> 0 | AA181: =+Project!AA54*$D181 -> 0 | AB181: =+Project!AB54*$D181 -> 0 | AC181: =+Project!AC54*$D181 -> 0
A182: 182 | B182: =+B18 -> 13 | C182: [Settlement A] 5 | D182: =+(Consumers!BY21+Consumers!BZ21)/1000 -> 0 | F182: 0 | G182: ="k"&Summary!$G$3 -> k£ | I182: =+Project!I55*$D182 -> 0 | J182: =+Project!J55*$D182 -> 0 | K182: =+Project!K55*$D182 -> 0 | L182: =+Project!L55*$D182 -> 0 | M182: =+Project!M55*$D182 -> 0 | N182: =+Project!N55*$D182 -> 0 | O182: =+Project!O55*$D182 -> 0 | P182: =+Project!P55*$D182 -> 0 | Q182: =+Project!Q55*$D182 -> 0 | R182: =+Project!R55*$D182 -> 0 | S182: =+Project!S55*$D182 -> 0 | T182: =+Project!T55*$D182 -> 0 | U182: =+Project!U55*$D182 -> 0 | V182: =+Project!V55*$D182 -> 0 | W182: =+Project!W55*$D182 -> 0 | X182: =+Project!X55*$D182 -> 0 | Y182: =+Project!Y55*$D182 -> 0 | Z182: =+Project!Z55*$D182 -> 0 | AA182: =+Project!AA55*$D182 -> 0 | AB182: =+Project!AB55*$D182 -> 0 | AC182: =+Project!AC55*$D182 -> 0
A183: 183 | B183: =+B19 -> 14 | C183: [Settlement A] 6 | D183: =+(Consumers!BY22+Consumers!BZ22)/1000 -> 0 | F183: 0 | G183: ="k"&Summary!$G$3 -> k£ | I183: =+Project!I56*$D183 -> 0 | J183: =+Project!J56*$D183 -> 0 | K183: =+Project!K56*$D183 -> 0 | L183: =+Project!L56*$D183 -> 0 | M183: =+Project!M56*$D183 -> 0 | N183: =+Project!N56*$D183 -> 0 | O183: =+Project!O56*$D183 -> 0 | P183: =+Project!P56*$D183 -> 0 | Q183: =+Project!Q56*$D183 -> 0 | R183: =+Project!R56*$D183 -> 0 | S183: =+Project!S56*$D183 -> 0 | T183: =+Project!T56*$D183 -> 0 | U183: =+Project!U56*$D183 -> 0 | V183: =+Project!V56*$D183 -> 0 | W183: =+Project!W56*$D183 -> 0 | X183: =+Project!X56*$D183 -> 0 | Y183: =+Project!Y56*$D183 -> 0 | Z183: =+Project!Z56*$D183 -> 0 | AA183: =+Project!AA56*$D183 -> 0 | AB183: =+Project!AB56*$D183 -> 0 | AC183: =+Project!AC56*$D183 -> 0
A184: =+A183+1 -> 184 | B184: =+B20 -> 15 | C184: [Settlement A] 7 | D184: =+(Consumers!BY23+Consumers!BZ23)/1000 -> 0 | F184: 0 | G184: ="k"&Summary!$G$3 -> k£ | I184: =+Project!I57*$D184 -> 0 | J184: =+Project!J57*$D184 -> 0 | K184: =+Project!K57*$D184 -> 0 | L184: =+Project!L57*$D184 -> 0 | M184: =+Project!M57*$D184 -> 0 | N184: =+Project!N57*$D184 -> 0 | O184: =+Project!O57*$D184 -> 0 | P184: =+Project!P57*$D184 -> 0 | Q184: =+Project!Q57*$D184 -> 0 | R184: =+Project!R57*$D184 -> 0 | S184: =+Project!S57*$D184 -> 0 | T184: =+Project!T57*$D184 -> 0 | U184: =+Project!U57*$D184 -> 0 | V184: =+Project!V57*$D184 -> 0 | W184: =+Project!W57*$D184 -> 0 | X184: =+Project!X57*$D184 -> 0 | Y184: =+Project!Y57*$D184 -> 0 | Z184: =+Project!Z57*$D184 -> 0 | AA184: =+Project!AA57*$D184 -> 0 | AB184: =+Project!AB57*$D184 -> 0 | AC184: =+Project!AC57*$D184 -> 0
A185: 185 | B185: Oil boilers | C185: O&M costs | F185: 0 | G185: ="k"&Summary!$G$3 -> k£ | I185: =SUM(I170:I184) -> 0 | J185: =SUM(J170:J184) -> 0 | K185: 0 | L185: 0 | M185: 0 | N185: 0 | O185: 0 | P185: 0 | Q185: 0 | R185: 0 | S185: 0 | T185: 0 | U185: 0 | V185: 0 | W185: 0 | X185: 0 | Y185: 0 | Z185: 0 | AA185: 0 | AB185: 0 | AC185: 0
A186: 186
A187: 187 | B187: Gas boilers | D187: ="k"&Summary!$G$3&"/år" -> k£/år | F187: NPV
A188: 188 | B188: =+B6 -> 1 | C188: =+C6 -> [Settlement B] 1 | D188: =Consumers!CS9/1000+Consumers!CT9/1000 -> 0 | F188: =I188+NPV(+F$68,J188:AC188) -> 0 | G188: ="k"&Summary!$G$3 -> k£ | I188: =+Project!I43*$D188 -> 0 | J188: =+Project!J43*$D188 -> 0 | K188: =+Project!K43*$D188 -> 0 | L188: =+Project!L43*$D188 -> 0 | M188: =+Project!M43*$D188 -> 0 | N188: =+Project!N43*$D188 -> 0 | O188: =+Project!O43*$D188 -> 0 | P188: =+Project!P43*$D188 -> 0 | Q188: =+Project!Q43*$D188 -> 0 | R188: =+Project!R43*$D188 -> 0 | S188: =+Project!S43*$D188 -> 0 | T188: =+Project!T43*$D188 -> 0 | U188: =+Project!U43*$D188 -> 0 | V188: =+Project!V43*$D188 -> 0 | W188: =+Project!W43*$D188 -> 0 | X188: =+Project!X43*$D188 -> 0 | Y188: =+Project!Y43*$D188 -> 0 | Z188: =+Project!Z43*$D188 -> 0 | AA188: =+Project!AA43*$D188 -> 0 | AB188: =+Project!AB43*$D188 -> 0 | AC188: =+Project!AC43*$D188 -> 0
A189: 189 | B189: =+B7 -> 2 | C189: =+C7 -> [Settlement B] 2 | D189: =Consumers!CS10/1000+Consumers!CT10/1000 -> 0 | F189: 0 | G189: ="k"&Summary!$G$3 -> k£ | I189: =+Project!I44*$D189 -> 0 | J189: =+Project!J44*$D189 -> 0 | K189: =+Project!K44*$D189 -> 0 | L189: =+Project!L44*$D189 -> 0 | M189: =+Project!M44*$D189 -> 0 | N189: =+Project!N44*$D189 -> 0 | O189: =+Project!O44*$D189 -> 0 | P189: =+Project!P44*$D189 -> 0 | Q189: =+Project!Q44*$D189 -> 0 | R189: =+Project!R44*$D189 -> 0 | S189: =+Project!S44*$D189 -> 0 | T189: =+Project!T44*$D189 -> 0 | U189: =+Project!U44*$D189 -> 0 | V189: =+Project!V44*$D189 -> 0 | W189: =+Project!W44*$D189 -> 0 | X189: =+Project!X44*$D189 -> 0 | Y189: =+Project!Y44*$D189 -> 0 | Z189: =+Project!Z44*$D189 -> 0 | AA189: =+Project!AA44*$D189 -> 0 | AB189: =+Project!AB44*$D189 -> 0 | AC189: =+Project!AC44*$D189 -> 0
A190: 190 | B190: =+B8 -> 3 | C190: [Settlement B] 3 | D190: =Consumers!CS11/1000+Consumers!CT11/1000 -> 0 | F190: 0 | G190: ="k"&Summary!$G$3 -> k£ | I190: =+Project!I45*$D190 -> 0 | J190: =+Project!J45*$D190 -> 0 | K190: =+Project!K45*$D190 -> 0 | L190: =+Project!L45*$D190 -> 0 | M190: =+Project!M45*$D190 -> 0 | N190: =+Project!N45*$D190 -> 0 | O190: =+Project!O45*$D190 -> 0 | P190: =+Project!P45*$D190 -> 0 | Q190: =+Project!Q45*$D190 -> 0 | R190: =+Project!R45*$D190 -> 0 | S190: =+Project!S45*$D190 -> 0 | T190: =+Project!T45*$D190 -> 0 | U190: =+Project!U45*$D190 -> 0 | V190: =+Project!V45*$D190 -> 0 | W190: =+Project!W45*$D190 -> 0 | X190: =+Project!X45*$D190 -> 0 | Y190: =+Project!Y45*$D190 -> 0 | Z190: =+Project!Z45*$D190 -> 0 | AA190: =+Project!AA45*$D190 -> 0 | AB190: =+Project!AB45*$D190 -> 0 | AC190: =+Project!AC45*$D190 -> 0
A191: 191 | B191: =+B9 -> 4 | C191: [Settlement B] 4 | D191: =Consumers!CS12/1000+Consumers!CT12/1000 -> 0 | F191: 0 | G191: ="k"&Summary!$G$3 -> k£ | I191: =+Project!I46*$D191 -> 0 | J191: =+Project!J46*$D191 -> 0 | K191: =+Project!K46*$D191 -> 0 | L191: =+Project!L46*$D191 -> 0 | M191: =+Project!M46*$D191 -> 0 | N191: =+Project!N46*$D191 -> 0 | O191: =+Project!O46*$D191 -> 0 | P191: =+Project!P46*$D191 -> 0 | Q191: =+Project!Q46*$D191 -> 0 | R191: =+Project!R46*$D191 -> 0 | S191: =+Project!S46*$D191 -> 0 | T191: =+Project!T46*$D191 -> 0 | U191: =+Project!U46*$D191 -> 0 | V191: =+Project!V46*$D191 -> 0 | W191: =+Project!W46*$D191 -> 0 | X191: =+Project!X46*$D191 -> 0 | Y191: =+Project!Y46*$D191 -> 0 | Z191: =+Project!Z46*$D191 -> 0 | AA191: =+Project!AA46*$D191 -> 0 | AB191: =+Project!AB46*$D191 -> 0 | AC191: =+Project!AC46*$D191 -> 0
A192: 192 | B192: =+B10 -> 5 | C192: [Settlement B] 5 | D192: =Consumers!CS13/1000+Consumers!CT13/1000 -> 0 | F192: 0 | G192: ="k"&Summary!$G$3 -> k£ | I192: =+Project!I47*$D192 -> 0 | J192: =+Project!J47*$D192 -> 0 | K192: =+Project!K47*$D192 -> 0 | L192: =+Project!L47*$D192 -> 0 | M192: =+Project!M47*$D192 -> 0 | N192: =+Project!N47*$D192 -> 0 | O192: =+Project!O47*$D192 -> 0 | P192: =+Project!P47*$D192 -> 0 | Q192: =+Project!Q47*$D192 -> 0 | R192: =+Project!R47*$D192 -> 0 | S192: =+Project!S47*$D192 -> 0 | T192: =+Project!T47*$D192 -> 0 | U192: =+Project!U47*$D192 -> 0 | V192: =+Project!V47*$D192 -> 0 | W192: =+Project!W47*$D192 -> 0 | X192: =+Project!X47*$D192 -> 0 | Y192: =+Project!Y47*$D192 -> 0 | Z192: =+Project!Z47*$D192 -> 0 | AA192: =+Project!AA47*$D192 -> 0 | AB192: =+Project!AB47*$D192 -> 0 | AC192: =+Project!AC47*$D192 -> 0
A193: 193 | B193: =+B11 -> 6 | C193: [Settlement B] 6 | D193: =Consumers!CS14/1000+Consumers!CT14/1000 -> 0 | F193: 0 | G193: ="k"&Summary!$G$3 -> k£ | I193: =+Project!I48*$D193 -> 0 | J193: =+Project!J48*$D193 -> 0 | K193: =+Project!K48*$D193 -> 0 | L193: =+Project!L48*$D193 -> 0 | M193: =+Project!M48*$D193 -> 0 | N193: =+Project!N48*$D193 -> 0 | O193: =+Project!O48*$D193 -> 0 | P193: =+Project!P48*$D193 -> 0 | Q193: =+Project!Q48*$D193 -> 0 | R193: =+Project!R48*$D193 -> 0 | S193: =+Project!S48*$D193 -> 0 | T193: =+Project!T48*$D193 -> 0 | U193: =+Project!U48*$D193 -> 0 | V193: =+Project!V48*$D193 -> 0 | W193: =+Project!W48*$D193 -> 0 | X193: =+Project!X48*$D193 -> 0 | Y193: =+Project!Y48*$D193 -> 0 | Z193: =+Project!Z48*$D193 -> 0 | AA193: =+Project!AA48*$D193 -> 0 | AB193: =+Project!AB48*$D193 -> 0 | AC193: =+Project!AC48*$D193 -> 0
A194: 194 | B194: =+B12 -> 7 | C194: [Settlement B] 7 | D194: =Consumers!CS15/1000+Consumers!CT15/1000 -> 0 | F194: 0 | G194: ="k"&Summary!$G$3 -> k£ | I194: =+Project!I49*$D194 -> 0 | J194: =+Project!J49*$D194 -> 0 | K194: =+Project!K49*$D194 -> 0 | L194: =+Project!L49*$D194 -> 0 | M194: =+Project!M49*$D194 -> 0 | N194: =+Project!N49*$D194 -> 0 | O194: =+Project!O49*$D194 -> 0 | P194: =+Project!P49*$D194 -> 0 | Q194: =+Project!Q49*$D194 -> 0 | R194: =+Project!R49*$D194 -> 0 | S194: =+Project!S49*$D194 -> 0 | T194: =+Project!T49*$D194 -> 0 | U194: =+Project!U49*$D194 -> 0 | V194: =+Project!V49*$D194 -> 0 | W194: =+Project!W49*$D194 -> 0 | X194: =+Project!X49*$D194 -> 0 | Y194: =+Project!Y49*$D194 -> 0 | Z194: =+Project!Z49*$D194 -> 0 | AA194: =+Project!AA49*$D194 -> 0 | AB194: =+Project!AB49*$D194 -> 0 | AC194: =+Project!AC49*$D194 -> 0
A195: 195 | B195: =+B13 -> 8 | C195: [Settlement B] 8 | D195: =Consumers!CS16/1000+Consumers!CT16/1000 -> 0 | F195: 0 | G195: ="k"&Summary!$G$3 -> k£ | I195: =+Project!I50*$D195 -> 0 | J195: =+Project!J50*$D195 -> 0 | K195: =+Project!K50*$D195 -> 0 | L195: =+Project!L50*$D195 -> 0 | M195: =+Project!M50*$D195 -> 0 | N195: =+Project!N50*$D195 -> 0 | O195: =+Project!O50*$D195 -> 0 | P195: =+Project!P50*$D195 -> 0 | Q195: =+Project!Q50*$D195 -> 0 | R195: =+Project!R50*$D195 -> 0 | S195: =+Project!S50*$D195 -> 0 | T195: =+Project!T50*$D195 -> 0 | U195: =+Project!U50*$D195 -> 0 | V195: =+Project!V50*$D195 -> 0 | W195: =+Project!W50*$D195 -> 0 | X195: =+Project!X50*$D195 -> 0 | Y195: =+Project!Y50*$D195 -> 0 | Z195: =+Project!Z50*$D195 -> 0 | AA195: =+Project!AA50*$D195 -> 0 | AB195: =+Project!AB50*$D195 -> 0 | AC195: =+Project!AC50*$D195 -> 0
A196: 196 | B196: =+B14 -> 9 | C196: [Settlement A] Master | D196: =Consumers!CS17/1000+Consumers!CT17/1000 -> 0 | F196: 0 | G196: ="k"&Summary!$G$3 -> k£ | I196: =+Project!I51*$D196 -> 0 | J196: =+Project!J51*$D196 -> 0 | K196: =+Project!K51*$D196 -> 0 | L196: =+Project!L51*$D196 -> 0 | M196: =+Project!M51*$D196 -> 0 | N196: =+Project!N51*$D196 -> 0 | O196: =+Project!O51*$D196 -> 0 | P196: =+Project!P51*$D196 -> 0 | Q196: =+Project!Q51*$D196 -> 0 | R196: =+Project!R51*$D196 -> 0 | S196: =+Project!S51*$D196 -> 0 | T196: =+Project!T51*$D196 -> 0 | U196: =+Project!U51*$D196 -> 0 | V196: =+Project!V51*$D196 -> 0 | W196: =+Project!W51*$D196 -> 0 | X196: =+Project!X51*$D196 -> 0 | Y196: =+Project!Y51*$D196 -> 0 | Z196: =+Project!Z51*$D196 -> 0 | AA196: =+Project!AA51*$D196 -> 0 | AB196: =+Project!AB51*$D196 -> 0 | AC196: =+Project!AC51*$D196 -> 0
A197: 197 | B197: =+B15 -> 10 | C197: [Settlement A] 2 | D197: =Consumers!CS18/1000+Consumers!CT18/1000 -> 0 | F197: 0 | G197: ="k"&Summary!$G$3 -> k£ | I197: =+Project!I52*$D197 -> 0 | J197: =+Project!J52*$D197 -> 0 | K197: =+Project!K52*$D197 -> 0 | L197: =+Project!L52*$D197 -> 0 | M197: =+Project!M52*$D197 -> 0 | N197: =+Project!N52*$D197 -> 0 | O197: =+Project!O52*$D197 -> 0 | P197: =+Project!P52*$D197 -> 0 | Q197: =+Project!Q52*$D197 -> 0 | R197: =+Project!R52*$D197 -> 0 | S197: =+Project!S52*$D197 -> 0 | T197: =+Project!T52*$D197 -> 0 | U197: =+Project!U52*$D197 -> 0 | V197: =+Project!V52*$D197 -> 0 | W197: =+Project!W52*$D197 -> 0 | X197: =+Project!X52*$D197 -> 0 | Y197: =+Project!Y52*$D197 -> 0 | Z197: =+Project!Z52*$D197 -> 0 | AA197: =+Project!AA52*$D197 -> 0 | AB197: =+Project!AB52*$D197 -> 0 | AC197: =+Project!AC52*$D197 -> 0
A198: =+A197+1 -> 198 | B198: =+B16 -> 11 | C198: [Settlement A] 3 | D198: =Consumers!CS19/1000+Consumers!CT19/1000 -> 0 | F198: 0 | G198: ="k"&Summary!$G$3 -> k£ | I198: =+Project!I53*$D198 -> 0 | J198: =+Project!J53*$D198 -> 0 | K198: =+Project!K53*$D198 -> 0 | L198: =+Project!L53*$D198 -> 0 | M198: =+Project!M53*$D198 -> 0 | N198: =+Project!N53*$D198 -> 0 | O198: =+Project!O53*$D198 -> 0 | P198: =+Project!P53*$D198 -> 0 | Q198: =+Project!Q53*$D198 -> 0 | R198: =+Project!R53*$D198 -> 0 | S198: =+Project!S53*$D198 -> 0 | T198: =+Project!T53*$D198 -> 0 | U198: =+Project!U53*$D198 -> 0 | V198: =+Project!V53*$D198 -> 0 | W198: =+Project!W53*$D198 -> 0 | X198: =+Project!X53*$D198 -> 0 | Y198: =+Project!Y53*$D198 -> 0 | Z198: =+Project!Z53*$D198 -> 0 | AA198: =+Project!AA53*$D198 -> 0 | AB198: =+Project!AB53*$D198 -> 0 | AC198: =+Project!AC53*$D198 -> 0
A199: 199 | B199: =+B17 -> 12 | C199: [Settlement A] 4 | D199: =Consumers!CS20/1000+Consumers!CT20/1000 -> 0 | F199: 0 | G199: ="k"&Summary!$G$3 -> k£ | I199: =+Project!I54*$D199 -> 0 | J199: =+Project!J54*$D199 -> 0 | K199: =+Project!K54*$D199 -> 0 | L199: =+Project!L54*$D199 -> 0 | M199: =+Project!M54*$D199 -> 0 | N199: =+Project!N54*$D199 -> 0 | O199: =+Project!O54*$D199 -> 0 | P199: =+Project!P54*$D199 -> 0 | Q199: =+Project!Q54*$D199 -> 0 | R199: =+Project!R54*$D199 -> 0 | S199: =+Project!S54*$D199 -> 0 | T199: =+Project!T54*$D199 -> 0 | U199: =+Project!U54*$D199 -> 0 | V199: =+Project!V54*$D199 -> 0 | W199: =+Project!W54*$D199 -> 0 | X199: =+Project!X54*$D199 -> 0 | Y199: =+Project!Y54*$D199 -> 0 | Z199: =+Project!Z54*$D199 -> 0 | AA199: =+Project!AA54*$D199 -> 0 | AB199: =+Project!AB54*$D199 -> 0 | AC199: =+Project!AC54*$D199 -> 0
A200: 200 | B200: =+B18 -> 13 | C200: [Settlement A] 5 | D200: =Consumers!CS21/1000+Consumers!CT21/1000 -> 0 | F200: 0 | G200: ="k"&Summary!$G$3 -> k£ | I200: =+Project!I55*$D200 -> 0 | J200: =+Project!J55*$D200 -> 0 | K200: =+Project!K55*$D200 -> 0 | L200: =+Project!L55*$D200 -> 0 | M200: =+Project!M55*$D200 -> 0 | N200: =+Project!N55*$D200 -> 0 | O200: =+Project!O55*$D200 -> 0 | P200: =+Project!P55*$D200 -> 0 | Q200: =+Project!Q55*$D200 -> 0 | R200: =+Project!R55*$D200 -> 0 | S200: =+Project!S55*$D200 -> 0 | T200: =+Project!T55*$D200 -> 0 | U200: =+Project!U55*$D200 -> 0 | V200: =+Project!V55*$D200 -> 0 | W200: =+Project!W55*$D200 -> 0 | X200: =+Project!X55*$D200 -> 0 | Y200: =+Project!Y55*$D200 -> 0 | Z200: =+Project!Z55*$D200 -> 0 | AA200: =+Project!AA55*$D200 -> 0 | AB200: =+Project!AB55*$D200 -> 0 | AC200: =+Project!AC55*$D200 -> 0
... 30 more rows

Sheet Network
A1: 1 | B1: Network
A2: =+A1+1 -> 2 | B2: Dimension | D2: m | E2: =+Networkdesign!B4 -> DN15 | F2: =+Networkdesign!B$5 -> DN20 | G2: =+Networkdesign!B6 -> DN25 | H2: =+Networkdesign!B7 -> DN32 | I2: =+Networkdesign!B8 -> DN40 | J2: =+Networkdesign!B9 -> DN50 | K2: =+Networkdesign!B10 -> DN65 | L2: =+Networkdesign!B11 -> DN80 | M2: =+Networkdesign!B12 -> DN100 | N2: =+Networkdesign!B13 -> DN125 | O2: =+Networkdesign!B14 -> DN150 | P2: =+Networkdesign!B15 -> DN200 | Q2: =+Networkdesign!B16 -> DN250 | R2: =+Networkdesign!B17 -> DN300 | S2: Sum
A3: =+A2+1 -> 3
A4: 4 | B4: Length of distribution network first stage, branch lines included in Network for all potential districts
A5: 5 | B5: =+Summary!H8 -> 0 | C5: =+Consumers!B9 -> [Settlement B] 1 | D5: m | E5: 0 | F5: =+SettlementBnet!M5 -> 231.6 | G5: =+SettlementBnet!N5 -> 468.5 | H5: =+SettlementBnet!O5 -> 1357.4 | I5: =+SettlementBnet!P5 -> 527.3 | J5: =+SettlementBnet!Q5 -> 1550.8 | K5: =+SettlementBnet!R5 -> 584.7 | L5: =+SettlementBnet!S5 -> 470.6 | M5: =+SettlementBnet!T5 -> 71.3 | N5: =+SettlementBnet!U5 -> 161 | O5: =+SettlementBnet!V5 -> 374.9 | P5: =+SettlementBnet!W5 -> 97 | Q5: =+SettlementBnet!X5 -> 0 | R5: 0 | S5: =SUM(E5:R5) -> 5895.1
A6: 6 | B6: =+Summary!H9 -> 0 | C6: =+Consumers!B10 -> [Settlement B] 2 | D6: m | E6: 0 | F6: 0 | G6: 0 | H6: 0 | I6: 0 | J6: 0 | K6: 0 | L6: 0 | M6: 0 | N6: 0 | O6: 0 | P6: 0 | Q6: 0 | R6: 0 | S6: 0
A7: 7 | B7: =+Summary!H10 -> 0 | C7: =+Consumers!B11 -> [Settlement B] 3 | D7: m | E7: 0 | F7: 0 | G7: 0 | H7: 0 | I7: 0 | J7: 0 | K7: 0 | L7: 0 | M7: 0 | N7: 0 | O7: 0 | P7: 0 | Q7: 0 | R7: 0 | S7: 0
A8: 8 | B8: =+Summary!H11 -> 0 | C8: =+Consumers!B12 -> [Settlement B] 4 | D8: m | E8: 0 | F8: 0 | G8: 0 | H8: 0 | I8: 0 | J8: 0 | K8: 0 | L8: 0 | M8: 0 | N8: 0 | O8: 0 | P8: 0 | Q8: 0 | R8: 0 | S8: 0
A9: 9 | B9: =+Summary!H12 -> 0 | C9: =+Consumers!B13 -> [Settlement B] 5 | D9: m | E9: 0 | F9: 0 | G9: 0 | H9: 0 | I9: 0 | J9: 0 | K9: 0 | L9: 0 | M9: 0 | N9: 0 | O9: 0 | P9: 0 | Q9: 0 | R9: 0 | S9: 0
A10: 10 | B10: =+Summary!H13 -> 0 | C10: =+Consumers!B14 -> [Settlement B] 6 | D10: m | E10: 0 | F10: 0 | G10: 0 | H10: 0 | I10: 0 | J10: 0 | K10: 0 | L10: 0 | M10: 0 | N10: 0 | O10: 0 | P10: 0 | Q10: 0 | R10: 0 | S10: 0
A11: 11 | B11: =+Summary!H14 -> 0 | C11: =+Consumers!B15 -> [Settlement B] 7 | D11: m | E11: 0 | F11: 0 | G11: 0 | H11: 0 | I11: 0 | J11: 0 | K11: 0 | L11: 0 | M11: 0 | N11: 0 | O11: 0 | P11: 0 | Q11: 0 | R11: 0 | S11: 0
A12: 12 | B12: =+Summary!H15 -> 0 | C12: =+Consumers!B16 -> [Settlement B] 8 | D12: m | E12: 0 | F12: 0 | G12: 0 | H12: 0 | I12: 0 | J12: 0 | K12: 0 | L12: 0 | M12: 0 | N12: 0 | O12: 0 | P12: 0 | Q12: 0 | R12: 0 | S12: 0
A13: 13 | B13: =+Summary!H16 -> 0 | C13: =+Consumers!B17 -> [Settlement A] Master | D13: m | E13: 0 | F13: =+F$19/6 -> 96.88333333 | G13: =+G$19/6 -> 42.23333333 | H13: 64.56666667 | I13: 62.9 | J13: 54.31666667 | K13: 100.3 | L13: 91.76666667 | M13: 230.1666667 | N13: 82.26666667 | O13: 71.03333333 | P13: 70.58333333 | Q13: 32.88333333 | R13: 28.6 | S13: 1028.5
A14: 14 | B14: =+Summary!H17 -> 0 | C14: =+Consumers!B18 -> [Settlement A] 2 | D14: m | E14: 0 | F14: =+F$19/6 -> 96.88333333 | G14: 42.23333333 | H14: 64.56666667 | I14: 62.9 | J14: 54.31666667 | K14: 100.3 | L14: 91.76666667 | M14: 230.1666667 | N14: 82.26666667 | O14: 71.03333333 | P14: 70.58333333 | Q14: 32.88333333 | R14: 28.6 | S14: 1028.5
A15: 15 | B15: =+Summary!H18 -> 0 | C15: =+Consumers!B19 -> [Settlement A] 3 | D15: m | E15: 0 | F15: 96.88333333 | G15: 42.23333333 | H15: 64.56666667 | I15: 62.9 | J15: 54.31666667 | K15: 100.3 | L15: 91.76666667 | M15: 230.1666667 | N15: 82.26666667 | O15: 71.03333333 | P15: 70.58333333 | Q15: 32.88333333 | R15: 28.6 | S15: 1028.5
A16: 16 | B16: =+Summary!H19 -> 0 | C16: =+Consumers!B20 -> [Settlement A] 4 | D16: m | E16: 0 | F16: 96.88333333 | G16: 42.23333333 | H16: 64.56666667 | I16: 62.9 | J16: 54.31666667 | K16: 100.3 | L16: 91.76666667 | M16: 230.1666667 | N16: 82.26666667 | O16: 71.03333333 | P16: 70.58333333 | Q16: 32.88333333 | R16: 28.6 | S16: 1028.5
A17: 17 | B17: =+Summary!H20 -> 0 | C17: =+Consumers!B21 -> [Settlement A] 5 | D17: m | E17: 0 | F17: 96.88333333 | G17: 42.23333333 | H17: 64.56666667 | I17: 62.9 | J17: 54.31666667 | K17: 100.3 | L17: 91.76666667 | M17: 230.1666667 | N17: 82.26666667 | O17: 71.03333333 | P17: 70.58333333 | Q17: 32.88333333 | R17: 28.6 | S17: 1028.5
A18: 18 | B18: =+Summary!H21 -> 0 | C18: =+Consumers!B22 -> [Settlement A] 6 | D18: m | E18: 0 | F18: 96.88333333 | G18: 42.23333333 | H18: 64.56666667 | I18: 62.9 | J18: 54.31666667 | K18: 100.3 | L18: 91.76666667 | M18: 230.1666667 | N18: 82.26666667 | O18: 71.03333333 | P18: 70.58333333 | Q18: 32.88333333 | R18: 28.6 | S18: 1028.5
A19: 19 | B19: =+Summary!H22 -> 1 | C19: =+Consumers!B23 -> [Settlement A] 7 | D19: m | E19: 0 | F19: =+SettlementAnet!M2 -> 581.3 | G19: =+SettlementAnet!N2 -> 253.4 | H19: =+SettlementAnet!O2 -> 387.4 | I19: =+SettlementAnet!P2 -> 377.4 | J19: =+SettlementAnet!Q2 -> 325.9 | K19: =+SettlementAnet!R2 -> 601.8 | L19: =+SettlementAnet!S2 -> 550.6 | M19: =+SettlementAnet!T2 -> 1381 | N19: =+SettlementAnet!U2 -> 493.6 | O19: =+SettlementAnet!V2 -> 426.2 | P19: =+SettlementAnet!W2 -> 423.5 | Q19: =+SettlementAnet!X2 -> 197.3 | R19: =+SettlementAnet!Y2 -> 171.6 | S19: 6171
A20: 20 | B20: All potential distribution lines | D20: m | E20: =SUM(E5:E19) -> 0 | F20: =SUM(F5:F19) -> 1394.2 | G20: 975.3 | H20: 2132.2 | I20: 1282.1 | J20: 2202.6 | K20: 1788.3 | L20: 1571.8 | M20: 2833.3 | N20: 1148.2 | O20: 1227.3 | P20: 944 | Q20: 394.6 | R20: 343.2 | S20: =+SUM(E20:R20) -> 18237.1
A21: 21 | B21: Distribution lines included | D21: m | E21: =+SUMPRODUCT($B5:$B19,E5:E19) -> 0 | F21: =+SUMPRODUCT($B5:$B19,F5:F19) -> 581.3 | G21: =+SUMPRODUCT($B5:$B19,G5:G19) -> 253.4 | H21: 387.4 | I21: 377.4 | J21: 325.9 | K21: 601.8 | L21: 550.6 | M21: 1381 | N21: 493.6 | O21: 426.2 | P21: 423.5 | Q21: 197.3 | R21: 171.6 | S21: 6171
A22: 22 | B22: Total incl. Additional | D22: m | E22: =+E21 -> 0 | F22: =+F21 -> 581.3 | G22: 253.4 | H22: 387.4 | I22: 377.4 | J22: 325.9 | K22: 601.8 | L22: 550.6 | M22: 1381 | N22: 493.6 | O22: 426.2 | P22: 423.5 | Q22: 197.3 | R22: 171.6 | S22: 6171
A23: 23
A24: 24 | B24: Distibution network excluding small branchlines in the scenario
A25: 25 | B25: =+B5 -> 0 | C25: =+C5 -> [Settlement B] 1 | D25: m | E25: =+E5*$B5 -> 0 | F25: 0 | G25: 0 | H25: 0 | I25: 0 | J25: 0 | K25: 0 | L25: 0 | M25: 0 | N25: 0 | O25: 0 | P25: 0 | Q25: 0 | R25: 0 | S25: =SUM(E25:R25) -> 0
A26: 26 | B26: 0 | C26: [Settlement B] 2 | D26: m | E26: =+E6*$B6 -> 0 | F26: 0 | G26: 0 | H26: 0 | I26: 0 | J26: 0 | K26: 0 | L26: 0 | M26: 0 | N26: 0 | O26: 0 | P26: 0 | Q26: 0 | R26: 0 | S26: 0
A27: 27 | B27: 0 | C27: [Settlement B] 3 | D27: m | E27: =+E7*$B7 -> 0 | F27: 0 | G27: 0 | H27: 0 | I27: 0 | J27: 0 | K27: 0 | L27: 0 | M27: 0 | N27: 0 | O27: 0 | P27: 0 | Q27: 0 | R27: 0 | S27: 0
A28: 28 | B28: 0 | C28: [Settlement B] 4 | D28: m | E28: =+E8*$B8 -> 0 | F28: 0 | G28: 0 | H28: 0 | I28: 0 | J28: 0 | K28: 0 | L28: 0 | M28: 0 | N28: 0 | O28: 0 | P28: 0 | Q28: 0 | R28: 0 | S28: 0
A29: 29 | B29: 0 | C29: [Settlement B] 5 | D29: m | E29: =+E9*$B9 -> 0 | F29: 0 | G29: 0 | H29: 0 | I29: 0 | J29: 0 | K29: 0 | L29: 0 | M29: 0 | N29: 0 | O29: 0 | P29: 0 | Q29: 0 | R29: 0 | S29: 0
A30: 30 | B30: 0 | C30: [Settlement B] 6 | D30: m | E30: =+E10*$B10 -> 0 | F30: 0 | G30: 0 | H30: 0 | I30: 0 | J30: 0 | K30: 0 | L30: 0 | M30: 0 | N30: 0 | O30: 0 | P30: 0 | Q30: 0 | R30: 0 | S30: 0
A31: 31 | B31: 0 | C31: [Settlement B] 7 | D31: m | E31: =+E11*$B11 -> 0 | F31: 0 | G31: 0 | H31: 0 | I31: 0 | J31: 0 | K31: 0 | L31: 0 | M31: 0 | N31: 0 | O31: 0 | P31: 0 | Q31: 0 | R31: 0 | S31: 0
A32: 32 | B32: 0 | C32: [Settlement B] 8 | D32: m | E32: =+E12*$B12 -> 0 | F32: 0 | G32: 0 | H32: 0 | I32: 0 | J32: 0 | K32: 0 | L32: 0 | M32: 0 | N32: 0 | O32: 0 | P32: 0 | Q32: 0 | R32: 0 | S32: 0
A33: 33 | B33: 0 | C33: [Settlement A] Master | D33: m | E33: =+E13*$B13 -> 0 | F33: 0 | G33: 0 | H33: 0 | I33: 0 | J33: 0 | K33: 0 | L33: 0 | M33: 0 | N33: 0 | O33: 0 | P33: 0 | Q33: 0 | R33: 0 | S33: 0
A34: 34 | B34: 0 | C34: [Settlement A] 2 | D34: m | E34: =+E14*$B14 -> 0 | F34: 0 | G34: 0 | H34: 0 | I34: 0 | J34: 0 | K34: 0 | L34: 0 | M34: 0 | N34: 0 | O34: 0 | P34: 0 | Q34: 0 | R34: 0 | S34: 0
A35: 35 | B35: 0 | C35: [Settlement A] 3 | D35: m | E35: =+E15*$B15 -> 0 | F35: 0 | G35: 0 | H35: 0 | I35: 0 | J35: 0 | K35: 0 | L35: 0 | M35: 0 | N35: 0 | O35: 0 | P35: 0 | Q35: 0 | R35: 0 | S35: 0
A36: 36 | B36: 0 | C36: [Settlement A] 4 | D36: m | E36: =+E16*$B16 -> 0 | F36: 0 | G36: 0 | H36: 0 | I36: 0 | J36: 0 | K36: 0 | L36: 0 | M36: 0 | N36: 0 | O36: 0 | P36: 0 | Q36: 0 | R36: 0 | S36: 0
A37: 37 | B37: 0 | C37: [Settlement A] 5 | D37: m | E37: =+E17*$B17 -> 0 | F37: 0 | G37: 0 | H37: 0 | I37: 0 | J37: 0 | K37: 0 | L37: 0 | M37: 0 | N37: 0 | O37: 0 | P37: 0 | Q37: 0 | R37: 0 | S37: 0
A38: 38 | B38: 0 | C38: [Settlement A] 6 | D38: m | E38: =+E18*$B18 -> 0 | F38: 0 | G38: 0 | H38: 0 | I38: 0 | J38: 0 | K38: 0 | L38: 0 | M38: 0 | N38: 0 | O38: 0 | P38: 0 | Q38: 0 | R38: 0 | S38: 0
A39: 39 | B39: 1 | C39: [Settlement A] 7 | D39: m | E39: =+E19*$B19 -> 0 | F39: 581.3 | G39: 253.4 | H39: 387.4 | I39: 377.4 | J39: 325.9 | K39: 601.8 | L39: 550.6 | M39: 1381 | N39: 493.6 | O39: 426.2 | P39: 423.5 | Q39: 197.3 | R39: 171.6 | S39: 6171
A40: 40 | B40: Distribution network | D40: m | E40: =SUM(E25:E39) -> 0 | F40: =SUM(F25:F39) -> 581.3 | G40: =SUM(G25:G39) -> 253.4 | H40: 387.4 | I40: 377.4 | J40: 325.9 | K40: 601.8 | L40: 550.6 | M40: 1381 | N40: 493.6 | O40: 426.2 | P40: 423.5 | Q40: 197.3 | R40: 171.6 | S40: =+SUM(E40:R40) -> 6171
A41: 41
A42: 42
A43: 43 | B43: Branch lines from "Consumers" | E43: =+E2 -> DN15 | F43: DN20 | G43: DN25 | H43: DN32 | I43: DN40 | J43: DN50 | K43: DN65 | L43: DN80 | M43: DN100
A44: 44 | B44: =+Summary!H8 -> 0 | C44: =+C5 -> [Settlement B] 1 | D44: m | E44: =Consumers!$Z$103*E$60 -> 0 | F44: =Consumers!$Z$103*F$60*$B44 -> 0 | G44: =Consumers!$Z$103*G$60 -> 0 | H44: =Consumers!$AA$103*H$60 -> 0 | I44: =Consumers!$AA$103*I$60 -> 0 | J44: =Consumers!AB$103 -> 0 | K44: =Consumers!AC$103 -> 0 | L44: =Consumers!AD$103 -> 0 | M44: =Consumers!AE$103 -> 0 | S44: =SUM(E44:R44) -> 0
A45: 45 | B45: =+Summary!H9 -> 0 | C45: =+C6 -> [Settlement B] 2 | D45: m | E45: =Consumers!$Z$185*E$60 -> 0 | F45: =Consumers!$Z$185*F$60 -> 0 | G45: =Consumers!$Z$185*G$60 -> 0 | H45: =Consumers!$AA$185*H$60 -> 0 | I45: =Consumers!$AA$185*I$60 -> 0 | J45: =Consumers!AB$185 -> 0 | K45: =Consumers!AC$185 -> 0 | L45: =Consumers!AD$185 -> 0 | M45: =Consumers!AE$185 -> 0 | S45: 0
A46: 46 | B46: =+Summary!H10 -> 0 | C46: [Settlement B] 3 | D46: m | E46: =Consumers!$Z$268*E$60 -> 0 | F46: =Consumers!$Z$268*F$60 -> 0 | G46: =Consumers!$Z$268*G$60 -> 0 | H46: =Consumers!$AA$268*H$60 -> 0 | I46: =Consumers!$AA$268*I$60 -> 0 | J46: =Consumers!AB$268 -> 0 | K46: =Consumers!AC$268 -> 0 | L46: =Consumers!AD$268 -> 0 | M46: =Consumers!AE$268 -> 0 | S46: 0
A47: 47 | B47: =+Summary!H11 -> 0 | C47: [Settlement B] 4 | D47: m | E47: =Consumers!$Z$347*E$60 -> 0 | F47: =Consumers!$Z$347*F$60 -> 0 | G47: =Consumers!$Z$347*G$60 -> 0 | H47: =Consumers!$AA$347*H$60 -> 0 | I47: =Consumers!$AA$347*I$60 -> 0 | J47: =Consumers!AB$347 -> 0 | K47: =Consumers!AC$347 -> 0 | L47: =Consumers!AD$347 -> 0 | M47: =Consumers!AE$347 -> 0 | S47: 0
A48: 48 | B48: =+Summary!H12 -> 0 | C48: [Settlement B] 5 | D48: m | E48: =Consumers!$Z$453*E$60 -> 0 | F48: =Consumers!$Z$453*F$60 -> 0 | G48: =Consumers!$Z$453*G$60 -> 0 | H48: =Consumers!$AA$453*H$60 -> 0 | I48: =Consumers!$AA$453*I$60 -> 0 | J48: =Consumers!AB$453 -> 0 | K48: =Consumers!AC$453 -> 0 | L48: =Consumers!AD$453 -> 0 | M48: =Consumers!AE$453 -> 0 | S48: 0
A49: 49 | B49: =+Summary!H13 -> 0 | C49: [Settlement B] 6 | D49: m | E49: =Consumers!$Z$531*E$60 -> 0 | F49: =Consumers!$Z$531*F$60 -> 0 | G49: =Consumers!$Z$531*G$60 -> 0 | H49: =Consumers!$AA$531*H$60 -> 0 | I49: =Consumers!$AA$531*I$60 -> 0 | J49: =Consumers!AB$531 -> 0 | K49: =Consumers!AC$531 -> 0 | L49: =Consumers!AD$531 -> 0 | M49: =Consumers!AE$531 -> 0 | S49: 0
A50: 50 | B50: =+Summary!H14 -> 0 | C50: [Settlement B] 7 | D50: m | E50: =Consumers!$Z$640*E$60 -> 0 | F50: =Consumers!$Z$640*F$60 -> 0 | G50: =Consumers!$Z$640*G$60 -> 0 | H50: =Consumers!$AA$640*H$60 -> 0 | I50: =Consumers!$AA$640*I$60 -> 0 | J50: =Consumers!AB$640 -> 0 | K50: =Consumers!AC$640 -> 0 | L50: =Consumers!AD$640 -> 0 | M50: =Consumers!AE$640 -> 0 | S50: 0
A51: 51 | B51: =+Summary!H15 -> 0 | C51: [Settlement B] 8 | D51: m | E51: =Consumers!$Z$703*E$60 -> 0 | F51: =Consumers!$Z$703*F$60 -> 0 | G51: =Consumers!$Z$703*G$60 -> 0 | H51: =Consumers!$AA$703*H$60 -> 0 | I51: =Consumers!$AA$703*I$60 -> 0 | J51: =Consumers!AB$703 -> 0 | K51: =Consumers!AC$703 -> 0 | L51: =Consumers!AD$703 -> 0 | M51: =Consumers!AE$703 -> 0 | S51: 0
A52: 52 | B52: =+Summary!H16 -> 0 | C52: [Settlement A] Master | D52: m | E52: =Consumers!$Z$772*E$60 -> 0 | F52: =Consumers!$Z$772*F$60 -> 0 | G52: =Consumers!$Z$772*G$60 -> 0 | H52: =Consumers!$AA$772*H$60 -> 0 | I52: =Consumers!$AA$772*I$60 -> 0 | J52: =Consumers!AB$772 -> 0 | K52: =Consumers!AC$772 -> 0 | L52: =Consumers!AD$772 -> 0 | M52: =Consumers!AE$772 -> 0 | S52: 0
A53: 53 | B53: =+Summary!H17 -> 0 | C53: [Settlement A] 2 | D53: m | E53: =Consumers!$Z$806*E$60 -> 0 | F53: =Consumers!$Z$806*F$60 -> 0 | G53: =Consumers!$Z$806*G$60 -> 0 | H53: =Consumers!$AA$806*H$60 -> 0 | I53: =Consumers!$AA$806*I$60 -> 0 | J53: =Consumers!AB$806 -> 0 | K53: =Consumers!AC$806 -> 0 | L53: =Consumers!AD$806 -> 0 | M53: =Consumers!AE$806 -> 0 | S53: 0
A54: 54 | B54: =+Summary!H18 -> 0 | C54: [Settlement A] 3 | D54: m | E54: =Consumers!$Z$820*E$60 -> 0 | F54: =Consumers!$Z$820*F$60 -> 0 | G54: =Consumers!$Z$820*G$60 -> 0 | H54: =Consumers!$AA$820*H$60 -> 0 | I54: =Consumers!$AA$820*I$60 -> 0 | J54: =Consumers!AB$820 -> 0 | K54: =Consumers!AC$820 -> 0 | L54: =Consumers!AD$820 -> 0 | M54: =Consumers!AE$820 -> 0 | S54: 0
A55: 55 | B55: =+Summary!H19 -> 0 | C55: [Settlement A] 4 | D55: m | E55: =Consumers!$Z$837*E$60 -> 0 | F55: =Consumers!$Z$837*F$60 -> 0 | G55: =Consumers!$Z$837*G$60 -> 0 | H55: =Consumers!$AA$837*H$60 -> 0 | I55: =Consumers!$AA$837*I$60 -> 0 | J55: =Consumers!AB$837 -> 0 | K55: =Consumers!AC$837 -> 0 | L55: =Consumers!AD$837 -> 0 | M55: =Consumers!AE$837 -> 0 | S55: 0
A56: 56 | B56: =+Summary!H20 -> 0 | C56: [Settlement A] 5 | D56: m | E56: =Consumers!$Z$842*E$60 -> 0 | F56: =Consumers!$Z$842*F$60 -> 0 | G56: =Consumers!$Z$842*G$60 -> 0 | H56: =Consumers!$AA$842*H$60 -> 0 | I56: =Consumers!$AA$842*I$60 -> 0 | J56: =Consumers!AB$842 -> 0 | K56: =Consumers!AC$842 -> 0 | L56: =Consumers!AD$842 -> 0 | M56: =Consumers!AE$842 -> 0 | S56: 0
A57: 57 | B57: =+Summary!H21 -> 0 | C57: [Settlement A] 6 | D57: m | E57: =Consumers!$Z$847*E$60 -> 0 | F57: =Consumers!$Z$847*F$60 -> 0 | G57: =Consumers!$Z$847*G$60 -> 0 | H57: =Consumers!$AA$847*H$60 -> 0 | I57: =Consumers!$AA$847*I$60 -> 0 | J57: =Consumers!AB$847 -> 0 | K57: =Consumers!AC$847 -> 0 | L57: =Consumers!AD$847 -> 0 | M57: =Consumers!AE$847 -> 0 | S57: 0
A58: 58 | B58: =+Summary!H22 -> 1 | C58: [Settlement A] 7 | D58: m | E58: =Consumers!$Z$1246*E$60 ->  | F58: =Consumers!$Z$1246*F$60 ->  | G58: =Consumers!$Z$1246*G$60 ->  | H58: =Consumers!$AA$1246*H$60 ->  | I58: =Consumers!$AA$1246*I$60 ->  | J58: =Consumers!AB$1246 ->  | K58: =Consumers!AC$1246 ->  | L58: =Consumers!AD$1246 ->  | M58: =Consumers!AE$1246 -> 
A59: 59 | B59: I alt | D59: m | E59: =SUM(E44:E58) ->  | F59: =SUM(F44:F58) ->  | S59: =+SUM(E59:R59) -> 
A60: 60 | C60: Share of small pipes | E60: 0 | F60: 0 | G60: =1-E60-F60 -> 1 | H60: 0 | I60: =1-H60 -> 1 | S60: =SUM(S44:S58) -> 
A61: 61
A62: 62 | B62: Length and data
A63: 63 | B63: Distribution lines | D63: m | E63: =E21 -> 0 | F63: =F21 -> 581.3 | G63: 253.4 | H63: 387.4 | I63: 377.4 | J63: 325.9 | K63: 601.8 | L63: 550.6 | M63: 1381 | N63: 493.6 | O63: 426.2 | P63: 423.5 | Q63: 197.3 | R63: 171.6 | S63: =+SUM(E63:R63) -> 6171
A64: 64 | B64: Branch lines | D64: m | E64: =E59 ->  | F64: =F59 ->  | S64: =+SUM(E64:R64) -> 
A65: =+A64+1 -> 65 | B65: Lines in total | D65: m | E65: =+E63+E64 ->  | F65: =+F$63+F$64 ->  | G65: =+G$63+G$64 ->  | H65: =+H$63+H$64 ->  | N65: 493.6 | O65: 426.2 | P65: 423.5 | Q65: 197.3 | R65: 171.6 | S65: =+SUM(E65:R65) -> 
A66: 66 | B66: Area of one pipe | D66: m2 | E66: =+Networkdesign!$A4 -> 0 | F66: =+Networkdesign!$A5 -> 0 | G66: =+Networkdesign!$A6 -> 0 | H66: =+Networkdesign!$A7 -> 0 | I66: =+Networkdesign!$A8 -> 0 | J66: =+Networkdesign!$A9 -> 0 | K66: =+Networkdesign!$A10 -> 0 | L66: =+Networkdesign!$A11 -> 0 | M66: =+Networkdesign!$A12 -> 0 | N66: =+Networkdesign!$A13 -> 0 | O66: =+Networkdesign!$A14 -> 0 | P66: =+Networkdesign!$A15 -> 0 | Q66: =+Networkdesign!$A16 -> 0 | R66: =+Networkdesign!$A17 -> 0
A67: 67 | B67: Water in double pipe | D67: m3 | E67: =+E65*E66*2 ->  | F67: =+F65*F66*2 ->  | N67: 0 | O67: 0 | P67: 0 | Q67: 0 | R67: 0 | S67: =+SUM(E67:R67) -> 
A68: 68 | B68: Pipe diameter | D68: m | E68: 0.11 | F68: 0.11 | G68: 0.11 | H68: 0.125 | I68: 0.125 | J68: 0.14 | K68: 0.16 | L68: 0.18 | M68: 0.225 | N68: 0.25 | O68: 0.28 | P68: 0.355 | Q68: 0.45 | R68: 0.5
A69: 69 | B69: With of duct | D69: m | E69: 0.67 | F69: 0.67 | G69: 0.67 | H69: 0.7 | I69: 0.7 | J69: 0.73 | K69: 0.77 | L69: 0.81 | M69: 1.05 | N69: 1.1 | O69: 1.31 | P69: 1.46 | Q69: 1.65 | R69: 1.75
A70: 70 | B70: Debth of duct | D70: m | E70: =0.6+0.1+E68 -> 0.81 | F70: =0.6+0.1+F68 -> 0.81 | G70: 0.81 | H70: 0.825 | I70: 0.825 | J70: 0.84 | K70: 0.86 | L70: 0.88 | M70: 0.925 | N70: 0.95 | O70: 0.98 | P70: 1.055 | Q70: 1.15 | R70: 1.2
A71: 71 | B71: Area of duct | D71: m2 | E71: =+E69*E70 -> 0.5427 | F71: =+F69*F70 -> 0.5427 | G71: 0.5427 | H71: 0.5775 | I71: 0.5775 | J71: 0.6132 | K71: 0.6622 | L71: 0.7128 | M71: 0.97125 | N71: 1.045 | O71: 1.2838 | P71: 1.5403 | Q71: 1.8975 | R71: 2.1
A72: 72 | B72: Volume of excavation | D72: m3 | E72: =+E65*E71 ->  | F72: =+F65*F71 ->  | N72: 515.812 | O72: 547.15556 | P72: 652.31705 | Q72: 374.37675 | R72: 360.36 | S72: =+SUM(E72:R72) -> 
A73: 73
A74: 74 | B74: Investments
A75: 75 | B75: Factor for branch lines to new buildings in urban development areas | J75: Factor | K75: =+Summary!D356 -> 1 | L75: General factor on all investments in network
A76: 76 | B76: Design price | D76: =+Summary!G3&"/m" -> £/m | E76: =+E78/10 -> 290 | F76: =+F78/10 -> 315.4 | G76: 337.9 | H76: 353.8 | I76: 366.8 | J76: 392.3 | K76: 428.2 | L76: 478.1 | M76: 551.6 | N76: 648.8 | O76: 749.6 | P76: 936.7 | Q76: 1222.3 | R76: 1470.6
A77: 77 | B77: including, design and adm.
A78: 78 | B78: Price in DKK | D78: DKK/m | E78: 2900 | F78: 3154 | G78: 3379 | H78: 3538 | I78: 3668 | J78: 3923 | K78: 4282 | L78: 4781 | M78: 5516 | N78: 6488 | O78: 7496 | P78: 9367 | Q78: 12223 | R78: 14706 | T78: Factor for
A79: 79 | B79: Factor for each district and dimension | T79: each district
A80: 80 | B80: =+Summary!H8 -> 0 | C80: =+C5 -> [Settlement B] 1 | E80: 1 | F80: 1 | G80: 1 | H80: 1 | I80: 1 | J80: 1 | K80: 1 | L80: 1 | M80: 1 | N80: 1 | O80: 1 | P80: 1 | Q80: 1 | R80: 1 | T80: 1
A81: 81 | B81: =+Summary!H9 -> 0 | C81: =+C6 -> [Settlement B] 2 | E81: 1 | F81: 1 | G81: 1 | H81: 1 | I81: 1 | J81: 1 | K81: 1 | L81: 1 | M81: 1 | N81: 1 | O81: 1 | P81: 1 | Q81: 1 | R81: 1 | T81: 1
A82: 82 | B82: =+Summary!H10 -> 0 | C82: [Settlement B] 3 | E82: 1 | F82: 1 | G82: 1 | H82: 1 | I82: 1 | J82: 1 | K82: 1 | L82: 1 | M82: 1 | N82: 1 | O82: 1 | P82: 1 | Q82: 1 | R82: 1 | T82: 1
A83: 83 | B83: =+Summary!H11 -> 0 | C83: [Settlement B] 4 | E83: 1 | F83: 1 | G83: 1 | H83: 1 | I83: 1 | J83: 1 | K83: 1 | L83: 1 | M83: 1 | N83: 1 | O83: 1 | P83: 1 | Q83: 1 | R83: 1 | T83: 1
A84: 84 | B84: =+Summary!H12 -> 0 | C84: [Settlement B] 5 | E84: 1 | F84: 1 | G84: 1 | H84: 1 | I84: 1 | J84: 1 | K84: 1 | L84: 1 | M84: 1 | N84: 1 | O84: 1 | P84: 1 | Q84: 1 | R84: 1 | T84: 1
A85: 85 | B85: =+Summary!H13 -> 0 | C85: [Settlement B] 6 | E85: 1 | F85: 1 | G85: 1 | H85: 1 | I85: 1 | J85: 1 | K85: 1 | L85: 1 | M85: 1 | N85: 1 | O85: 1 | P85: 1 | Q85: 1 | R85: 1 | T85: 1
A86: 86 | B86: =+Summary!H14 -> 0 | C86: [Settlement B] 7 | E86: 1 | F86: 1 | G86: 1 | H86: 1 | I86: 1 | J86: 1 | K86: 1 | L86: 1 | M86: 1 | N86: 1 | O86: 1 | P86: 1 | Q86: 1 | R86: 1 | T86: 1
A87: 87 | B87: =+Summary!H15 -> 0 | C87: [Settlement B] 8 | E87: 1 | F87: 1 | G87: 1 | H87: 1 | I87: 1 | J87: 1 | K87: 1 | L87: 1 | M87: 1 | N87: 1 | O87: 1 | P87: 1 | Q87: 1 | R87: 1 | T87: 1
A88: 88 | B88: =+Summary!H16 -> 0 | C88: [Settlement A] Master | E88: 1 | F88: 1 | G88: 1 | H88: 1 | I88: 1 | J88: 1 | K88: 1 | L88: 1 | M88: 1 | N88: 1 | O88: 1 | P88: 1 | Q88: 1 | R88: 1 | T88: 1
A89: 89 | B89: =+Summary!H17 -> 0 | C89: [Settlement A] 2 | E89: 1 | F89: 1 | G89: 1 | H89: 1 | I89: 1 | J89: 1 | K89: 1 | L89: 1 | M89: 1 | N89: 1 | O89: 1 | P89: 1 | Q89: 1 | R89: 1 | T89: 1
A90: 90 | B90: =+Summary!H18 -> 0 | C90: [Settlement A] 3 | E90: 1 | F90: 1 | G90: 1 | H90: 1 | I90: 1 | J90: 1 | K90: 1 | L90: 1 | M90: 1 | N90: 1 | O90: 1 | P90: 1 | Q90: 1 | R90: 1 | T90: 1
A91: 91 | B91: =+Summary!H19 -> 0 | C91: [Settlement A] 4 | E91: 1 | F91: 1 | G91: 1 | H91: 1 | I91: 1 | J91: 1 | K91: 1 | L91: 1 | M91: 1 | N91: 1 | O91: 1 | P91: 1 | Q91: 1 | R91: 1 | T91: 1
A92: 92 | B92: =+Summary!H20 -> 0 | C92: [Settlement A] 5 | E92: 1 | F92: 1 | G92: 1 | H92: 1 | I92: 1 | J92: 1 | K92: 1 | L92: 1 | M92: 1 | N92: 1 | O92: 1 | P92: 1 | Q92: 1 | R92: 1 | T92: 1
A93: 93 | B93: =+Summary!H21 -> 0 | C93: [Settlement A] 6 | E93: 1 | F93: 1 | G93: 1 | H93: 1 | I93: 1 | J93: 1 | K93: 1 | L93: 1 | M93: 1 | N93: 1 | O93: 1 | P93: 1 | Q93: 1 | R93: 1 | T93: 1
A94: 94 | B94: =+Summary!H22 -> 1 | C94: [Settlement A] 7 | E94: 1 | F94: 1 | G94: 1 | H94: 1 | I94: 1 | J94: 1 | K94: 1 | L94: 1 | M94: 1 | N94: 1 | O94: 1 | P94: 1 | Q94: 1 | R94: 1 | T94: 1
A95: 95
A96: 96
A97: 97 | B97: Investment in distribution network | F97: Including factors | S97: Total | T97: Branch lines | U97: Total
A98: 98 | B98: =+Summary!H8 -> 0 | C98: =+C5 -> [Settlement B] 1 | D98: =+Summary!G$3 -> £ | E98: =+E$76*E5*E80*$K$75*$T80*$B98 -> 0 | F98: 0 | G98: 0 | H98: 0 | I98: 0 | J98: 0 | K98: 0 | L98: 0 | M98: 0 | N98: 0 | O98: 0 | P98: 0 | Q98: 0 | R98: 0 | S98: =+SUM(E98:R98) -> 0 | T98: =Consumers!AH$103 -> 0 | U98: =+S98+T98 -> 0
A99: 99 | B99: =+Summary!H9 -> 0 | C99: =+C6 -> [Settlement B] 2 | D99: =+Summary!G$3 -> £ | E99: =+E$76*E6*E81*$K$75*$T81*$B99 -> 0 | F99: 0 | G99: 0 | H99: 0 | I99: 0 | J99: 0 | K99: 0 | L99: 0 | M99: 0 | N99: 0 | O99: 0 | P99: 0 | Q99: 0 | R99: 0 | S99: 0 | T99: =U117 -> 0 | U99: =+S99+T99 -> 0
A100: 100 | B100: =+Summary!H10 -> 0 | C100: [Settlement B] 3 | D100: =+Summary!G$3 -> £ | E100: =+E$76*E7*E82*$K$75*$T82*$B100 -> 0 | F100: 0 | G100: 0 | H100: 0 | I100: 0 | J100: 0 | K100: 0 | L100: 0 | M100: 0 | N100: 0 | O100: 0 | P100: 0 | Q100: 0 | R100: 0 | S100: 0 | T100: 0 | U100: 0
A101: 101 | B101: =+Summary!H11 -> 0 | C101: [Settlement B] 4 | D101: =+Summary!G$3 -> £ | E101: =+E$76*E8*E83*$K$75*$T83*$B101 -> 0 | F101: 0 | G101: 0 | H101: 0 | I101: 0 | J101: 0 | K101: 0 | L101: 0 | M101: 0 | N101: 0 | O101: 0 | P101: 0 | Q101: 0 | R101: 0 | S101: 0 | T101: 0 | U101: 0
A102: 102 | B102: =+Summary!H12 -> 0 | C102: [Settlement B] 5 | D102: =+Summary!G$3 -> £ | E102: =+E$76*E9*E84*$K$75*$T84*$B102 -> 0 | F102: 0 | G102: 0 | H102: 0 | I102: 0 | J102: 0 | K102: 0 | L102: 0 | M102: 0 | N102: 0 | O102: 0 | P102: 0 | Q102: 0 | R102: 0 | S102: 0 | T102: 0 | U102: 0
A103: 103 | B103: =+Summary!H13 -> 0 | C103: [Settlement B] 6 | D103: =+Summary!G$3 -> £ | E103: =+E$76*E10*E85*$K$75*$T85*$B103 -> 0 | F103: 0 | G103: 0 | H103: 0 | I103: 0 | J103: 0 | K103: 0 | L103: 0 | M103: 0 | N103: 0 | O103: 0 | P103: 0 | Q103: 0 | R103: 0 | S103: 0 | T103: 0 | U103: 0
A104: 104 | B104: =+Summary!H14 -> 0 | C104: [Settlement B] 7 | D104: =+Summary!G$3 -> £ | E104: =+E$76*E11*E86*$K$75*$T86*$B104 -> 0 | F104: 0 | G104: 0 | H104: 0 | I104: 0 | J104: 0 | K104: 0 | L104: 0 | M104: 0 | N104: 0 | O104: 0 | P104: 0 | Q104: 0 | R104: 0 | S104: 0 | T104: 0 | U104: 0
A105: 105 | B105: =+Summary!H15 -> 0 | C105: [Settlement B] 8 | D105: =+Summary!G$3 -> £ | E105: =+E$76*E12*E87*$K$75*$T87*$B105 -> 0 | F105: 0 | G105: 0 | H105: 0 | I105: 0 | J105: 0 | K105: 0 | L105: 0 | M105: 0 | N105: 0 | O105: 0 | P105: 0 | Q105: 0 | R105: 0 | S105: 0 | T105: 0 | U105: 0
A106: 106 | B106: =+Summary!H16 -> 0 | C106: [Settlement A] Master | D106: =+Summary!G$3 -> £ | E106: =+E$76*E13*E88*$K$75*$T88*$B106 -> 0 | F106: 0 | G106: 0 | H106: 0 | I106: 0 | J106: 0 | K106: 0 | L106: 0 | M106: 0 | N106: 0 | O106: 0 | P106: 0 | Q106: 0 | R106: 0 | S106: 0 | T106: 0 | U106: 0
A107: 107 | B107: =+Summary!H17 -> 0 | C107: [Settlement A] 2 | D107: =+Summary!G$3 -> £ | E107: =+E$76*E14*E89*$K$75*$T89*$B107 -> 0 | F107: 0 | G107: 0 | H107: 0 | I107: 0 | J107: 0 | K107: 0 | L107: 0 | M107: 0 | N107: 0 | O107: 0 | P107: 0 | Q107: 0 | R107: 0 | S107: 0 | T107: 0 | U107: =+S107+T107 -> 0
A108: 108 | B108: =+Summary!H18 -> 0 | C108: [Settlement A] 3 | D108: =+Summary!G$3 -> £ | E108: =+E$76*E15*E90*$K$75*$T90*$B108 -> 0 | F108: 0 | G108: 0 | H108: 0 | I108: 0 | J108: 0 | K108: 0 | L108: 0 | M108: 0 | N108: 0 | O108: 0 | P108: 0 | Q108: 0 | R108: 0 | S108: 0 | T108: 0 | U108: =+S108+T108 -> 0
A109: 109 | B109: =+Summary!H19 -> 0 | C109: [Settlement A] 4 | D109: =+Summary!G$3 -> £ | E109: =+E$76*E16*E91*$K$75*$T91*$B109 -> 0 | F109: 0 | G109: 0 | H109: 0 | I109: 0 | J109: 0 | K109: 0 | L109: 0 | M109: 0 | N109: 0 | O109: 0 | P109: 0 | Q109: 0 | R109: 0 | S109: 0 | T109: 0 | U109: =+S109+T109 -> 0
A110: 110 | B110: =+Summary!H20 -> 0 | C110: [Settlement A] 5 | D110: =+Summary!G$3 -> £ | E110: =+E$76*E17*E92*$K$75*$T92*$B110 -> 0 | F110: 0 | G110: 0 | H110: 0 | I110: 0 | J110: 0 | K110: 0 | L110: 0 | M110: 0 | N110: 0 | O110: 0 | P110: 0 | Q110: 0 | R110: 0 | S110: 0 | T110: 0 | U110: 0
A111: 111 | B111: =+Summary!H21 -> 0 | C111: [Settlement A] 6 | D111: =+Summary!G$3 -> £ | E111: =+E$76*E18*E93*$K$75*$T93*$B111 -> 0 | F111: 0 | G111: 0 | H111: 0 | I111: 0 | J111: 0 | K111: 0 | L111: 0 | M111: 0 | N111: 0 | O111: 0 | P111: 0 | Q111: 0 | R111: 0 | S111: 0 | T111: 0 | U111: 0
A112: 112 | B112: =+Summary!H22 -> 1 | C112: [Settlement A] 7 | D112: =+Summary!G$3 -> £ | E112: =+E$76*E19*E94*$K$75*$T94*$B112 -> 0 | F112: 183342.02 | G112: 85623.86 | H112: 137062.12 | I112: 138430.32 | J112: 127850.57 | K112: 257690.76 | L112: 263241.86 | M112: 761759.6 | N112: 320247.68 | O112: 319479.52 | P112: 396692.45 | Q112: 241159.79 | R112: 252354.96 | S112: 3484935.51
A113: 113 | B113: Total | D113: =+Summary!G$3 -> £ | E113: =SUM(E98:E112) -> 0 | F113: =SUM(F98:F112) -> 183342.02 | G113: 85623.86 | H113: 137062.12 | I113: 138430.32 | J113: 127850.57 | K113: 257690.76 | L113: 263241.86 | M113: 761759.6 | N113: 320247.68 | O113: 319479.52 | P113: 396692.45 | Q113: 241159.79 | R113: 252354.96 | S113: =SUM(S98:S112) -> 3484935.51 | T113: =SUM(T98:T112) ->  | U113: =SUM(U98:U112) -> 
A114: 114
A115: 115 | B115: Investment in branch lines including area factor | G115: DN-25 | H115: DN32 | I115: DN40 | J115: DN50 | K115: DN65 | L115: DN80 | M115: DN100- | S115: Total with factors | T115: Difference | U115: Without factors
A116: 116 | B116: =+Summary!H8 -> 0 | C116: =+C5 -> [Settlement B] 1 | D116: =+Summary!G$3 -> £ | E116: =+E$76*E44*$T80*$B116 -> 0 | F116: 0 | G116: 0 | H116: 0 | I116: 0 | J116: 0 | K116: 0 | L116: 0 | M116: 0 | S116: =+SUM(E116:R116) -> 0 | T116: =U116-S116 -> 0 | U116: =Consumers!AH$103 -> 0
A117: 117 | B117: =+Summary!H9 -> 0 | C117: =+C6 -> [Settlement B] 2 | D117: =+Summary!G$3 -> £ | E117: =+E$76*E45*$T81*$B117 -> 0 | F117: 0 | G117: 0 | H117: 0 | I117: 0 | J117: 0 | K117: 0 | L117: 0 | M117: 0 | S117: 0 | T117: =U117-S117 -> 0 | U117: =Consumers!AH$185 -> 0
A118: 118 | B118: =+Summary!H10 -> 0 | C118: [Settlement B] 3 | D118: =+Summary!G$3 -> £ | E118: =+E$76*E46*$T82*$B118 -> 0 | F118: 0 | G118: 0 | H118: 0 | I118: 0 | J118: 0 | K118: 0 | L118: 0 | M118: 0 | S118: 0 | T118: =U118-S118 -> 0 | U118: =Consumers!AH$268 -> 0
A119: 119 | B119: =+Summary!H11 -> 0 | C119: [Settlement B] 4 | D119: =+Summary!G$3 -> £ | E119: =+E$76*E47*$T83*$B119 -> 0 | F119: 0 | G119: 0 | H119: 0 | I119: 0 | J119: 0 | K119: 0 | L119: 0 | M119: 0 | S119: 0 | T119: =U119-S119 -> 0 | U119: =Consumers!AH$347 -> 0
A120: 120 | B120: =+Summary!H12 -> 0 | C120: [Settlement B] 5 | D120: =+Summary!G$3 -> £ | E120: =+E$76*E48*$T84*$B120 -> 0 | F120: 0 | G120: 0 | H120: 0 | I120: 0 | J120: 0 | K120: 0 | L120: 0 | M120: 0 | S120: 0 | T120: =U120-S120 -> 0 | U120: =Consumers!AH$453 -> 0
A121: 121 | B121: =+Summary!H13 -> 0 | C121: [Settlement B] 6 | D121: =+Summary!G$3 -> £ | E121: =+E$76*E49*$T85*$B121 -> 0 | F121: 0 | G121: 0 | H121: 0 | I121: 0 | J121: 0 | K121: 0 | L121: 0 | M121: 0 | S121: 0 | T121: =U121-S121 -> 0 | U121: =Consumers!AH$531 -> 0
A122: 122 | B122: =+Summary!H14 -> 0 | C122: [Settlement B] 7 | D122: =+Summary!G$3 -> £ | E122: =+E$76*E50*$T86*$B122 -> 0 | F122: 0 | G122: 0 | H122: 0 | I122: 0 | J122: 0 | K122: 0 | L122: 0 | M122: 0 | S122: 0 | T122: 0 | U122: =Consumers!AH$640 -> 0
A123: 123 | B123: =+Summary!H15 -> 0 | C123: [Settlement B] 8 | D123: =+Summary!G$3 -> £ | E123: =+E$76*E51*$T87*$B123 -> 0 | F123: 0 | G123: 0 | H123: 0 | I123: 0 | J123: 0 | K123: 0 | L123: 0 | M123: 0 | S123: 0 | T123: 0 | U123: =Consumers!AH$703 -> 0
A124: 124 | B124: =+Summary!H16 -> 0 | C124: [Settlement A] Master | D124: =+Summary!G$3 -> £ | E124: =+E$76*E52*$T88*$B124 -> 0 | F124: 0 | G124: 0 | H124: 0 | I124: 0 | J124: 0 | K124: 0 | L124: 0 | M124: 0 | S124: 0 | T124: 0 | U124: =Consumers!AH$772 -> 0
A125: 125 | B125: =+Summary!H17 -> 0 | C125: [Settlement A] 2 | D125: =+Summary!G$3 -> £ | E125: =+E$76*E53*$T89*$B125 -> 0 | F125: 0 | G125: 0 | H125: 0 | I125: 0 | J125: 0 | K125: 0 | L125: 0 | M125: 0 | S125: 0 | T125: 0 | U125: =Consumers!AH$806 -> 0
A126: 126 | B126: =+Summary!H18 -> 0 | C126: [Settlement A] 3 | D126: =+Summary!G$3 -> £ | E126: =+E$76*E54*$T90*$B126 -> 0 | F126: 0 | G126: 0 | H126: 0 | I126: 0 | J126: 0 | K126: 0 | L126: 0 | M126: 0 | S126: 0 | T126: 0 | U126: =Consumers!AH$820 -> 0
A127: 127 | B127: =+Summary!H19 -> 0 | C127: [Settlement A] 4 | D127: =+Summary!G$3 -> £ | E127: =+E$76*E55*$T91*$B127 -> 0 | F127: 0 | G127: 0 | H127: 0 | I127: 0 | J127: 0 | K127: 0 | L127: 0 | M127: 0 | S127: 0 | T127: 0 | U127: =Consumers!AH$837 -> 0
A128: 128 | B128: =+Summary!H20 -> 0 | C128: [Settlement A] 5 | D128: =+Summary!G$3 -> £ | E128: =+E$76*E56*$T92*$B128 -> 0 | F128: 0 | G128: 0 | H128: 0 | I128: 0 | J128: 0 | K128: 0 | L128: 0 | M128: 0 | S128: 0 | T128: 0 | U128: =Consumers!AH$842 -> 0
A129: =+A128+1 -> 129 | B129: =+Summary!H21 -> 0 | C129: [Settlement A] 6 | D129: =+Summary!G$3 -> £ | E129: =+E$76*E57*$T93*$B129 -> 0 | F129: 0 | G129: 0 | H129: 0 | I129: 0 | J129: 0 | K129: 0 | L129: 0 | M129: 0 | S129: 0 | T129: 0 | U129: =Consumers!AH$847 -> 0
A130: 130 | B130: =+Summary!H22 -> 1 | C130: [Settlement A] 7 | D130: =+Summary!G$3 -> £ | E130: =+E$76*E58*$T94*$B130 ->  | U130: =Consumers!AH$1246 -> 
A131: 131 | B131: Total | D131: =+Summary!G$3 -> £ | E131: =SUM(E116:E130) ->  | F131: =SUM(F116:F130) ->  | S131: =SUM(S116:S130) ->  | T131: =SUM(T116:T130) ->  | U131: =SUM(U116:U130) -> 
A132: 132 | S132: =SUM(E131:R131) -> 
A133: 133 | B133: Total investments based on branch line data calculated on consumer sheet
A134: 134 | B134: Distribution lines total | D134: =+Summary!G$3 -> £ | E134: =E113 -> 0 | F134: =F113 -> 183342.02 | G134: 85623.86 | H134: 137062.12 | I134: 138430.32 | J134: 127850.57 | K134: 257690.76 | L134: 263241.86 | M134: 761759.6 | N134: 320247.68 | O134: 319479.52 | P134: 396692.45 | Q134: 241159.79 | R134: 252354.96 | S134: =+SUM(E134:R134) -> 3484935.51
A135: 135 | B135: Branch lines total | D135: =+Summary!G$3 -> £ | E135: =E131 ->  | F135: =IF($S$131=0,0,F131*$U$131/$S$131) ->  | S135: =+SUM(E135:R135) -> 
A136: 136 | B136: Network total | D136: =+Summary!G$3 -> £ | E136: =+E134+E135 ->  | N136: 320247.68 | O136: 319479.52 | P136: 396692.45 | Q136: 241159.79 | R136: 252354.96 | S136: =+SUM(E136:R136) -> 
A137: 137
A138: 138 | B138: Heat loss analysis | E138: Twin pipes
A139: 139 | B139: Heat losses | D139: kWh/m | E139: =+Networkdesign!O5 -> 82.1688 | F139: =(E139+G139)/2 -> 82.1688 | G139: =+Networkdesign!O6 -> 82.1688 | H139: =+Networkdesign!O7 -> 82.1688 | I139: =+Networkdesign!O8 -> 117.384 | J139: =+Networkdesign!O9 -> 117.384 | K139: =+Networkdesign!O10 -> 129.1224 | L139: =+Networkdesign!O11 -> 140.8608 | M139: =+Networkdesign!O12 -> 140.8608 | N139: =+Networkdesign!O13 -> 265.28784 | O139: =+Networkdesign!O14 -> 299.3292 | P139: =+Networkdesign!O15 -> 316.9368 | Q139: =+Networkdesign!O16 -> 328.6752 | R139: 500 | S139: Heat losses | T139: Heat losses | U139: Heat losses
